Workbook

Sheet Firing Range (hidden)
E2: Pupils | M2: Other Grants | O2: Year 1 | V2: Year 2 | AD2: Year 3
B3: DFE | C3: School Name | D3: Errors | E3: MLD&SLCN | F3: BESD | G3: SLD | H3: PD&PMLD | I3: ASD | J3: WeekdayPD&PMLD | K3: WeekendPD&PMLD | L3: WeekdayASD | M3: FTE | N3: Amount | O3: Pre 1 | P3: Pre 2 | Q3: Post 1 | R3: Post 2 | S3: Pay | T3: Pension | U3: Pooled funding total | V3: MLD&SLCN | W3: BESD | X3: SLD | Y3: PD&PMLD | Z3: ASD | AA3: WeekdayPD&PMLD | AB3: WeekdayASD | AC3: WeekendPD&PMLD | AD3: MLD&SLCN | AE3: BESD | AF3: SLD | AG3: PD&PMLD | AH3: ASD | AI3: WeekdayPD&PMLD | AJ3: WeekdayASD | AK3: WeekendPD&PMLD | AM3: Pupils | AU3: Other Grants | AW3: Year 1 | BD3: Pupils | BL3: Other Grants | BN3: Year 1 | BU3: Pupils - Yr 2 | CD3: Pupils - Yr 3
B4: Live Link | E4: =Pupils!$G$4 -> 0 | F4: =Pupils!$G$5 -> 0 | G4: =Pupils!$G$6 -> 0 | H4: =Pupils!$G$7 -> 0 | I4: =Pupils!$G$8 -> 0 | J4: =Pupils!$G$9 -> 0 | K4: =Pupils!$G$10 -> 0 | L4: =Pupils!$G$11 -> 0 | M4: ='Other Grants'!$E$18 -> 0 | N4: =('Other Grants'!$K$19+'Other Grants'!$L$19+'Other Grants'!$M$19)/3 -> 0 | O4: =ROUND('Year 1'!$I$18,0) -> 0 | P4: =ROUND('Year 1'!$I$22,0) -> 0 | Q4: =ROUND('Year 1'!$I$29,0) -> 0 | R4: =ROUND('Year 1'!$I$33,0) -> 0 | S4: ='Year 1'!$I$62 -> 0 | T4: ='Year 1'!$I$63+'Year 1'!$I$64 -> 0 | U4: ='Year 1'!$I$85 -> 0 | V4: ='Year 2'!$H$40 -> 0 | W4: ='Year 2'!$H$41 -> 0 | X4: ='Year 2'!$H$42 -> 0 | Y4: ='Year 2'!$H$43 -> 0 | Z4: ='Year 2'!$H$44 -> 0 | AA4: ='Year 2'!$H$45 -> 0 | AB4: ='Year 2'!$H$46 -> 0 | AC4: ='Year 2'!$H$47 -> 0 | AD4: ='Year 3'!$H$40 -> 0 | AE4: ='Year 3'!$H$41 -> 0 | AF4: ='Year 3'!$H$42 -> 0 | AG4: ='Year 3'!$H$43 -> 0 | AH4: ='Year 3'!$H$44 -> 0 | AI4: ='Year 3'!$H$45 -> 0 | AJ4: ='Year 3'!$H$46 -> 0 | AK4: ='Year 3'!$H$47 -> 0 | AM4: MLD&SLCN | AN4: SEMH | AO4: SLD | AP4: PD&PMLD | AQ4: ASD | AR4: WeekdayPD&PMLD | AS4: WeekdayASD | AT4: WeekendPD&PMLD | AU4: FTE | AV4: Cash | AW4: Pre 1 | AX4: Pre 2 | AY4: Post 1 | AZ4: Post 2 | BA4: Pay & Pension | BB4: Pooled funding total | BD4: MLD&SLCN | BE4: BESD | BF4: SLD | BG4: PD&PMLD | BH4: ASD | BI4: WeekdayPD&PMLD | BJ4: WeekdayASD | BK4: WeekendPD&PMLD | BL4: FTE | BM4: CASH | BN4: Pre 1 | BO4: Pre 2 | BP4: Post 1 | BQ4: Post 2 | BR4: Pay & Pension | BS4: Pooled funding total | BU4: MLD&SLCN | BV4: BESD | BW4: SLD | BX4: PD&PMLD | BY4: ASD | BZ4: WeekdayPD&PMLD | CA4: WeekdayASD | CB4: WeekendPD&PMLD | CD4: MLD&SLCN | CE4: BESD | CF4: SLD | CG4: PD&PMLD | CH4: ASD | CI4: WeekdayPD&PMLD | CJ4: WeekdayASD | CK4: WeekendPD&PMLD
B5: 7032 | C5: Bower Grove School | D5: =COUNTIF(BD5:BS5,"ERROR") -> 9 | E5: 2921.682435 | F5: 9465.843453 | G5: 7269.422768 | H5: 14514.90497 | I5: 9465.843453 | J5: 0 | K5: 0 | L5: 0 | M5: 0 | N5: 0 | O5: 925667 | P5: 1388500 | Q5: 0 | R5: 0 | S5: 40495.6025 | T5: 94232.99643 | U5: 6046.9175 | V5: 3140.380839 | W5: 9815.425077 | X5: 7575.075978 | Y5: 14965.46783 | Z5: 9815.425077 | AA5: 0 | AB5: 0 | AC5: 0 | AD5: 3403.188456 | AE5: 10211.73358 | AF5: 7926.577498 | AG5: 15464.77718 | AH5: 10211.73358 | AI5: 0 | AJ5: 0 | AK5: 0 | AM5: 2988.560145 | AN5: 9532.721163 | AO5: 7336.300478 | AP5: 14581.78268 | AQ5: 9532.721163 | AR5: 0 | AS5: 0 | AT5: 0 | AU5: 0 | AV5: 0 | AW5: 900000 | AX5: 1350000 | AY5: 0 | AZ5: 0 | BA5: 130992.88 | BB5: 5879.25 | BC5: =S5+T5-BA5 -> 3735.718933 | BD5: =IF(AM5=E5,"OK","ERROR") -> ERROR | BE5: =IF(AN5=F5,"OK","ERROR") -> ERROR | BF5: ERROR | BG5: ERROR | BH5: ERROR | BI5: OK | BJ5: =IF(AS5=L5,"OK","ERROR") -> OK | BK5: =IF(AT5=K5,"OK","ERROR") -> OK | BL5: =IF(AU5=M5,"OK","ERROR") -> OK | BM5: =IF(AV5=N5,"OK","ERROR") -> OK | BN5: =IF(ROUND(O5-AW5,0)=0,"OK","ERROR") -> ERROR | BO5: =IF(ROUND(P5-AX5,0)=0,"OK","ERROR") -> ERROR | BP5: OK | BQ5: OK | BR5: =IF(ROUND(BA5-S5-T5,0)=0,"OK","ERROR") -> ERROR | BS5: =IF(ROUND(BB5,0)=ROUND(U5,0),"OK","ERROR") -> ERROR | BU5: =IF(V5>=E5,"OK","ERROR") -> OK | BV5: =IF(W5>=F5,"OK","ERROR") -> OK | BW5: OK | BX5: OK | BY5: OK | BZ5: OK | CA5: =IF(AB5>=L5,"OK","ERROR") -> OK | CB5: =IF(AC5>=K5,"OK","ERROR") -> OK | CD5: =IF(AD5>=V5,"OK","ERROR") -> OK | CE5: =IF(AE5>=W5,"OK","ERROR") -> OK | CF5: OK | CG5: OK | CH5: OK | CI5: OK | CJ5: OK | CK5: OK
B6: 7033 | C6: St Anthony's School | D6: 0 | E6: 5632.556727 | F6: 12055.98229 | G6: 9900.084118 | H6: 17098.76868 | I6: 12055.98229 | J6: 0 | K6: 0 | L6: 0 | M6: 0 | N6: 0 | O6: 430667 | P6: 646000 | Q6: 0 | R6: 0 | S6: 18840.59 | T6: 64953.55316 | U6: 2813.33 | V6: 5898.458997 | W6: 12573.50324 | X6: 10333.15414 | Y6: 17723.54599 | Z6: 12573.50324 | AA6: 0 | AB6: 0 | AC6: 0 | AD6: 6216.428177 | AE6: 13024.9733 | AF6: 10739.81722 | AG6: 18278.0169 | AH6: 13024.9733 | AI6: 0 | AJ6: 0 | AK6: 0 | AM6: 5632.556727 | AN6: 12055.98229 | AO6: 9900.084118 | AP6: 17098.76868 | AQ6: 12055.98229 | AR6: 0 | AS6: 0 | AT6: 0 | AU6: 0 | AV6: 0 | AW6: 430666.6667 | AX6: 646000 | AY6: 0 | AZ6: 0 | BA6: 83794.14 | BB6: 2813.33 | BC6: =S6+T6-BA6 -> 0.003163265312 | BD6: =IF(AM6=E6,"OK","ERROR") -> OK | BE6: OK | BF6: OK | BG6: OK | BH6: OK | BI6: OK | BJ6: OK | BK6: =IF(AT6=K6,"OK","ERROR") -> OK | BL6: =IF(AU6=M6,"OK","ERROR") -> OK | BM6: =IF(AV6=N6,"OK","ERROR") -> OK | BN6: =IF(ROUND(O6-AW6,0)=0,"OK","ERROR") -> OK | BO6: =IF(ROUND(P6-AX6,0)=0,"OK","ERROR") -> OK | BP6: =IF(ROUND(Q6-AY6,0)=0,"OK","ERROR") -> OK | BQ6: =IF(ROUND(R6-AZ6,0)=0,"OK","ERROR") -> OK | BR6: =IF(ROUND(BA6-S6-T6,0)=0,"OK","ERROR") -> OK | BS6: =IF(ROUND(BB6,0)=ROUND(U6,0),"OK","ERROR") -> OK | BU6: =IF(V6>=E6,"OK","ERROR") -> OK | BV6: =IF(W6>=F6,"OK","ERROR") -> OK | BW6: =IF(X6>=G6,"OK","ERROR") -> OK | BX6: =IF(Y6>=H6,"OK","ERROR") -> OK | BY6: =IF(Z6>=I6,"OK","ERROR") -> OK | BZ6: =IF(AA6>=J6,"OK","ERROR") -> OK | CA6: =IF(AB6>=L6,"OK","ERROR") -> OK | CB6: =IF(AC6>=K6,"OK","ERROR") -> OK | CD6: =IF(AD6>=V6,"OK","ERROR") -> OK | CE6: =IF(AE6>=W6,"OK","ERROR") -> OK | CF6: =IF(AF6>=X6,"OK","ERROR") -> OK | CG6: =IF(AG6>=Y6,"OK","ERROR") -> OK | CH6: =IF(AH6>=Z6,"OK","ERROR") -> OK | CI6: =IF(AI6>=AA6,"OK","ERROR") -> OK | CJ6: =IF(AJ6>=AB6,"OK","ERROR") -> OK | CK6: =IF(AK6>=AC6,"OK","ERROR") -> OK
B7: 7044 | C7: Rowhill School | D7: 0 | E7: 4972.183 | F7: 11491.60859 | G7: 9319.367222 | H7: 16705.5533 | I7: 11564.92604 | J7: 0 | K7: 0 | L7: 0 | M7: 0 | N7: 0 | O7: 528000 | P7: 792000 | Q7: 0 | R7: 0 | S7: 23798.28 | T7: 112287.588 | U7: 3449.16 | V7: 5186.490542 | W7: 11923.04571 | X7: 9707.359518 | Y7: 17241.26932 | Z7: 11997.82951 | AA7: 0 | AB7: 0 | AC7: 0 | AD7: 5490.220353 | AE7: 12361.50662 | AF7: 10101.50671 | AG7: 17786.09471 | AH7: 12437.7861 | AI7: 0 | AJ7: 0 | AK7: 0 | AM7: 4972.183 | AN7: 11491.60859 | AO7: 9319.367222 | AP7: 16705.5533 | AQ7: 11564.92604 | AR7: 0 | AS7: 0 | AT7: 0 | AU7: 0 | AV7: 0 | AW7: 528000 | AX7: 792000 | AY7: 0 | AZ7: 0 | BA7: 136085.87 | BB7: 3449.16 | BC7: -0.001999999979 | BD7: OK | BE7: OK | BF7: OK | BG7: OK | BH7: OK | BI7: OK | BJ7: OK | BK7: OK | BL7: OK | BM7: OK | BN7: OK | BO7: OK | BP7: OK | BQ7: OK | BR7: OK | BS7: OK | BU7: OK | BV7: OK | BW7: OK | BX7: OK | BY7: OK | BZ7: OK | CA7: OK | CB7: OK | CD7: OK | CE7: OK | CF7: OK | CG7: OK | CH7: OK | CI7: OK | CJ7: OK | CK7: OK
B8: 7045 | C8: Elms School | D8: 0 | E8: 3877.156006 | F8: 10421.31702 | G8: 8224.896339 | H8: 15470.37854 | I8: 10421.31702 | J8: 0 | K8: 0 | L8: 0 | M8: 0 | N8: 0 | O8: 618000 | P8: 927000 | Q8: 0 | R8: 0 | S8: 27035.955 | T8: 79534.0087 | U8: 4037.085 | V8: 4210.211797 | W8: 10885.25604 | X8: 8644.906937 | Y8: 16035.29879 | Z8: 10885.25604 | AA8: 0 | AB8: 0 | AC8: 0 | AD8: 4494.416033 | AE8: 11302.96116 | AF8: 9017.805076 | AG8: 16556.00476 | AH8: 11302.96116 | AI8: 0 | AJ8: 0 | AK8: 0 | AM8: 3877.156006 | AN8: 10421.31702 | AO8: 8224.896339 | AP8: 15470.37854 | AQ8: 10421.31702 | AR8: 0 | AS8: 0 | AT8: 0 | AU8: 0 | AV8: 0 | AW8: 618000 | AX8: 927000 | AY8: 0 | AZ8: 0 | BA8: 106569.96 | BB8: 4037.085 | BC8: 0.003702531671 | BD8: OK | BE8: OK | BF8: OK | BG8: OK | BH8: OK | BI8: OK | BJ8: OK | BK8: OK | BL8: OK | BM8: OK | BN8: OK | BO8: OK | BP8: OK | BQ8: OK | BR8: OK | BS8: OK | BU8: OK | BV8: OK | BW8: OK | BX8: OK | BY8: OK | BZ8: OK | CA8: OK | CB8: OK | CD8: OK | CE8: OK | CF8: OK | CG8: OK | CH8: OK | CI8: OK | CJ8: OK | CK8: OK
B9: 7062 | C9: The Orchard School | D9: 0 | E9: 6044.433198 | F9: 12467.85876 | G9: 10311.96059 | H9: 17423.76842 | I9: 12467.85876 | J9: 0 | K9: 0 | L9: 0 | M9: 0 | N9: 0 | O9: 388333 | P9: 582500 | Q9: 0 | R9: 0 | S9: 16988.6125 | T9: 58200.79162 | U9: 2536.7875 | V9: 6044.433198 | W9: 12481.5834 | X9: 10311.96059 | Y9: 17631.62615 | Z9: 12481.5834 | AA9: 0 | AB9: 0 | AC9: 0 | AD9: 6122.66995 | AE9: 12931.21507 | AF9: 10646.05899 | AG9: 18184.25868 | AH9: 12931.21507 | AI9: 0 | AJ9: 0 | AK9: 0 | AM9: 6044.433198 | AN9: 12467.85876 | AO9: 10311.96059 | AP9: 17423.76842 | AQ9: 12467.85876 | AR9: 0 | AS9: 0 | AT9: 0 | AU9: 0 | AV9: 0 | AW9: 388333.3333 | AX9: 582500 | AY9: 0 | AZ9: 0 | BA9: 75189.4 | BB9: 2536.7875 | BC9: 0.004116465876 | BD9: OK | BE9: OK | BF9: OK | BG9: OK | BH9: OK | BI9: OK | BJ9: OK | BK9: OK | BL9: OK | BM9: OK | BN9: OK | BO9: OK | BP9: OK | BQ9: OK | BR9: OK | BS9: OK | BU9: OK | BV9: OK | BW9: OK | BX9: OK | BY9: OK | BZ9: OK | CA9: OK | CB9: OK | CD9: OK | CE9: OK | CF9: OK | CG9: OK | CH9: OK | CI9: OK | CJ9: OK | CK9: OK
B10: 7041 | C10: Goldwyn School | D10: 0 | E10: 4529.2109 | F10: 10670.83198 | G10: 8474.411296 | H10: 15719.8935 | I10: 10670.83198 | J10: 0 | K10: 0 | L10: 0 | M10: 0 | N10: 0 | O10: 623333 | P10: 935000 | Q10: 153333 | R10: 230000 | S10: 34123.05 | T10: 164569.236 | U10: 5073.575 | V10: 4529.2109 | W10: 11091.31695 | X10: 8850.967847 | Y10: 16241.3597 | Z10: 11091.31695 | AA10: 0 | AB10: 0 | AC10: 0 | AD10: 4704.598161 | AE10: 11513.14328 | AF10: 9227.987204 | AG10: 16766.18689 | AH10: 11513.14328 | AI10: 0 | AJ10: 0 | AK10: 0 | AM10: 4529.2109 | AN10: 10670.83198 | AO10: 8474.411296 | AP10: 15719.8935 | AQ10: 10670.83198 | AR10: 0 | AS10: 0 | AT10: 0 | AU10: 0 | AV10: 0 | AW10: 623333.3333 | AX10: 935000 | AY10: 153333.3333 | AZ10: 230000 | BA10: 198692.29 | BB10: 5073.575 | BC10: -0.003999999986 | BD10: OK | BE10: OK | BF10: OK | BG10: OK | BH10: OK | BI10: OK | BJ10: OK | BK10: OK | BL10: OK | BM10: OK | BN10: OK | BO10: OK | BP10: OK | BQ10: OK | BR10: OK | BS10: OK | BU10: OK | BV10: OK | BW10: OK | BX10: OK | BY10: OK | BZ10: OK | CA10: OK | CB10: OK | CD10: OK | CE10: OK | CF10: OK | CG10: OK | CH10: OK | CI10: OK | CJ10: OK | CK10: OK
B11: 7067 | C11: Portal House School | D11: 0 | E11: 7172.253256 | F11: 13716.41427 | G11: 11519.99359 | H11: 18765.47579 | I11: 13716.41427 | J11: 0 | K11: 0 | L11: 0 | M11: 0 | N11: 0 | O11: 320000 | P11: 480000 | Q11: 0 | R11: 0 | S11: 13999.2 | T11: 52742.45 | U11: 2090.4 | V11: 7537.538649 | W11: 14212.58289 | X11: 11972.23379 | Y11: 19362.62564 | Z11: 14212.58289 | AA11: 0 | AB11: 0 | AC11: 0 | AD11: 7888.289422 | AE11: 14696.83454 | AF11: 12411.67846 | AG11: 19949.87815 | AH11: 14696.83454 | AI11: 0 | AJ11: 0 | AK11: 0 | AM11: 7172.253256 | AN11: 13716.41427 | AO11: 11519.99359 | AP11: 18765.47579 | AQ11: 13716.41427 | AR11: 0 | AS11: 0 | AT11: 0 | AU11: 0 | AV11: 0 | AW11: 320000 | AX11: 480000 | AY11: 0 | AZ11: 0 | BA11: 66741.65 | BB11: 2090.4 | BC11: 0 | BD11: OK | BE11: OK | BF11: OK | BG11: OK | BH11: OK | BI11: OK | BJ11: OK | BK11: OK | BL11: OK | BM11: OK | BN11: OK | BO11: OK | BP11: OK | BQ11: OK | BR11: OK | BS11: OK | BU11: OK | BV11: OK | BW11: OK | BX11: OK | BY11: OK | BZ11: OK | CA11: OK | CB11: OK | CD11: OK | CE11: OK | CF11: OK | CG11: OK | CH11: OK | CI11: OK | CJ11: OK | CK11: OK
B12: 7021 | C12: Valence School | D12: 0 | E12: 7235.910384 | F12: 13831.93362 | G12: 11668.13487 | H12: 19054.32095 | I12: 13913.69369 | J12: 71163.29384 | K12: 99320.37283 | L12: 0 | M12: 0 | N12: 0 | O12: 320000 | P12: 480000 | Q12: 120000 | R12: 180000 | S12: 19831.9 | T12: 72833.69482 | U12: 2874.3 | V12: 7566.715706 | W12: 14294.65941 | X12: 12087.58468 | Y12: 19621.49448 | Z12: 14378.05468 | AA12: 72772.64683 | AB12: 0 | AC12: 101492.8674 | AD12: 7918.05002 | AE12: 14780.55259 | AF12: 12529.33637 | AG12: 20213.92437 | AH12: 14865.61577 | AI12: 74428.09976 | AJ12: 0 | AK12: 103722.7247 | AM12: 7235.910384 | AN12: 13831.93362 | AO12: 11668.13487 | AP12: 19054.32095 | AQ12: 13913.69369 | AR12: 71163.29384 | AS12: 0 | AT12: 99320.37283 | AU12: 0 | AV12: 0 | AW12: 320000 | AX12: 480000 | AY12: 120000 | AZ12: 180000 | BA12: 92665.5953 | BB12: 2874.3 | BC12: -0.0004761904856 | BD12: OK | BE12: OK | BF12: OK | BG12: OK | BH12: OK | BI12: OK | BJ12: OK | BK12: OK | BL12: OK | BM12: OK | BN12: OK | BO12: OK | BP12: OK | BQ12: OK | BR12: OK | BS12: OK | BU12: OK | BV12: OK | BW12: OK | BX12: OK | BY12: OK | BZ12: OK | CA12: OK | CB12: OK | CD12: OK | CE12: OK | CF12: OK | CG12: OK | CH12: OK | CI12: OK | CJ12: OK | CK12: OK
B13: 7002 | C13: Broomhill Bank School | D13: 0 | E13: 4965.7249 | F13: 9460.6 | G13: 8625.9123 | H13: 14729.8983 | I13: 11162.0813 | J13: 0 | K13: 0 | L13: 51572.782 | M13: 0 | N13: 0 | O13: 991000 | P13: 1486500 | Q13: 418667 | R13: 628000 | S13: 61567.315 | T13: 173617.3795 | U13: 9208.6475 | V13: 4965.7249 | W13: 9622.82019 | X13: 8625.9123 | Y13: 14826.76304 | Z13: 11162.0813 | AA13: 0 | AB13: 51572.782 | AC13: 0 | AD13: 4965.7249 | AE13: 10015.27659 | AF13: 8625.9123 | AG13: 15323.2983 | AH13: 11162.0813 | AI13: 0 | AJ13: 52210.41655 | AK13: 0 | AM13: 4965.7249 | AN13: 9460.6 | AO13: 8625.9123 | AP13: 14729.8983 | AQ13: 11162.0813 | AR13: 0 | AS13: 51572.782 | AT13: 0 | AU13: 0 | AV13: 0 | AW13: 991000 | AX13: 1486500 | AY13: 418666.6667 | AZ13: 628000 | BA13: 235184.69 | BB13: 9208.6475 | BC13: 0.00445310201 | BD13: OK | BE13: OK | BF13: OK | BG13: OK | BH13: OK | BI13: OK | BJ13: OK | BK13: OK | BL13: OK | BM13: OK | BN13: OK | BO13: OK | BP13: OK | BQ13: OK | BR13: OK | BS13: OK | BU13: OK | BV13: OK | BW13: OK | BX13: OK | BY13: OK | BZ13: OK | CA13: OK | CB13: OK | CD13: OK | CE13: OK | CF13: OK | CG13: OK | CH13: OK | CI13: OK | CJ13: OK | CK13: OK
B14: 7052 | C14: Grange Park School | D14: 0 | E14: 3575.953696 | F14: 10120.11471 | G14: 7923.694029 | H14: 15169.17623 | I14: 10918.06488 | J14: 0 | K14: 0 | L14: 0 | M14: 0 | N14: 0 | O14: 373333 | P14: 560000 | Q14: 230667 | R14: 346000 | S14: 26321.4125 | T14: 60768.93992 | U14: 3945.63 | V14: 3761.659761 | W14: 10436.704 | X14: 8196.3549 | Y14: 15586.74675 | Z14: 11250.61317 | AA14: 0 | AB14: 0 | AC14: 0 | AD14: 4036.892956 | AE14: 10845.43808 | AF14: 8560.281998 | AG14: 16098.48168 | AH14: 11675.62543 | AI14: 0 | AJ14: 0 | AK14: 0 | AM14: 3575.953696 | AN14: 10120.11471 | AO14: 7923.694029 | AP14: 15169.17623 | AQ14: 10918.06488 | AR14: 0 | AS14: 0 | AT14: 0 | AU14: 0 | AV14: 0 | AW14: 373333.3333 | AX14: 560000 | AY14: 230666.6667 | AZ14: 346000 | BA14: 87090.35 | BB14: 3945.63 | BC14: 0.002418256132 | BD14: OK | BE14: OK | BF14: OK | BG14: OK | BH14: OK | BI14: OK | BJ14: OK | BK14: OK | BL14: OK | BM14: OK | BN14: OK | BO14: OK | BP14: OK | BQ14: OK | BR14: OK | BS14: OK | BU14: OK | BV14: OK | BW14: OK | BX14: OK | BY14: OK | BZ14: OK | CA14: OK | CB14: OK | CD14: OK | CE14: OK | CF14: OK | CG14: OK | CH14: OK | CI14: OK | CJ14: OK | CK14: OK
B15: 7058 | C15: Stone Bay School | D15: 0 | E15: 7032.5023 | F15: 12338.0742 | G15: 11016.3775 | H15: 17656.1386 | I15: 20448.7364 | J15: 79111.43472 | K15: 0 | L15: 82041.87489 | M15: 0 | N15: 0 | O15: 364667 | P15: 547000 | Q15: 42667 | R15: 64000 | S15: 17805.2325 | T15: 64065.92679 | U15: 2660.905 | V15: 7032.5023 | W15: 12338.0742 | X15: 11016.3775 | Y15: 17656.1386 | Z15: 20448.7364 | AA15: 80836.41224 | AB15: 83825.4612 | AC15: 0 | AD15: 7032.5023 | AE15: 12728.18849 | AF15: 11016.3775 | AG15: 17981.2321 | AH15: 21030.06204 | AI15: 82653.14048 | AJ15: 85701.97043 | AK15: 0 | AM15: 7032.5023 | AN15: 12338.0742 | AO15: 11016.3775 | AP15: 17656.1386 | AQ15: 20448.7364 | AR15: 79111.43472 | AS15: 82041.87489 | AT15: 0 | AU15: 0 | AV15: 0 | AW15: 364666.6667 | AX15: 547000 | AY15: 42666.66667 | AZ15: 64000 | BA15: 81871.16 | BB15: 2660.905 | BC15: -0.0007093023305 | BD15: OK | BE15: OK | BF15: OK | BG15: OK | BH15: OK | BI15: OK | BJ15: OK | BK15: OK | BL15: OK | BM15: OK | BN15: OK | BO15: OK | BP15: OK | BQ15: OK | BR15: OK | BS15: OK | BU15: OK | BV15: OK | BW15: OK | BX15: OK | BY15: OK | BZ15: OK | CA15: OK | CB15: OK | CD15: OK | CE15: OK | CF15: OK | CG15: OK | CH15: OK | CI15: OK | CJ15: OK | CK15: OK
B16: 7073 | C16: Laleham Gap School | D16: 9 | E16: 3221.34 | F16: 9707.13 | G16: 7530.3 | H16: 14741.68298 | I16: 10497.96 | J16: 0 | K16: 0 | L16: 0 | M16: 0 | N16: 0 | O16: 790000 | P16: 1185000 | Q16: 52000 | R16: 78000 | S16: 36747.9 | T16: 134315.8286 | U16: 5500.365 | V16: 3266.434646 | W16: 9941.478885 | X16: 7701.129785 | Y16: 15091.52163 | Z16: 10755.38806 | AA16: 0 | AB16: 0 | AC16: 0 | AD16: 3531.763339 | AE16: 10340.30846 | AF16: 8055.152381 | AG16: 15593.35207 | AH16: 11170.49582 | AI16: 0 | AJ16: 0 | AK16: 0 | AM16: 3243.810918 | AN16: 9787.971936 | AO16: 7591.55125 | AP16: 14837.03345 | AQ16: 10585.9221 | AR16: 0 | AS16: 0 | AT16: 0 | AU16: 0 | AV16: 0 | AW16: 759666.6667 | AX16: 1139500 | AY16: 52000 | AZ16: 78000 | BA16: 164886.43 | BB16: 5302.2125 | BC16: 6177.298571 | BD16: ERROR | BE16: ERROR | BF16: ERROR | BG16: ERROR | BH16: ERROR | BI16: OK | BJ16: OK | BK16: OK | BL16: OK | BM16: OK | BN16: ERROR | BO16: ERROR | BP16: OK | BQ16: OK | BR16: ERROR | BS16: ERROR | BU16: OK | BV16: OK | BW16: OK | BX16: OK | BY16: OK | BZ16: OK | CA16: OK | CB16: OK | CD16: OK | CE16: OK | CF16: OK | CG16: OK | CH16: OK | CI16: OK | CJ16: OK | CK16: OK
B17: 7039 | C17: The Ifield School | D17: 0 | E17: 2877.157295 | F17: 9421.318313 | G17: 7224.897628 | H17: 14470.37983 | I17: 10219.26848 | J17: 0 | K17: 0 | L17: 0 | M17: 6 | N17: 118624 | O17: 896333 | P17: 1344500 | Q17: 158667 | R17: 238000 | S17: 46182.7775 | T17: 139825.1191 | U17: 6891.7875 | V17: 3114.70344 | W17: 9789.747679 | X17: 7549.39858 | Y17: 14939.79043 | Z17: 10603.65685 | AA17: 0 | AB17: 0 | AC17: 0 | AD17: 3376.997509 | AE17: 10185.54263 | AF17: 7900.386551 | AG17: 15438.58624 | AH17: 11015.72999 | AI17: 0 | AJ17: 0 | AK17: 0 | AM17: 2877.157295 | AN17: 9421.318313 | AO17: 7224.897628 | AP17: 14470.37983 | AQ17: 10219.26848 | AR17: 0 | AS17: 0 | AT17: 0 | AU17: 6 | AV17: 118624 | AW17: 896333.3333 | AX17: 1344500 | AY17: 158666.6667 | AZ17: 238000 | BA17: 186007.9 | BB17: 6891.7875 | BC17: -0.003393333347 | BD17: OK | BE17: OK | BF17: OK | BG17: OK | BH17: OK | BI17: OK | BJ17: OK | BK17: OK | BL17: OK | BM17: OK | BN17: OK | BO17: OK | BP17: OK | BQ17: OK | BR17: OK | BS17: OK | BU17: OK | BV17: OK | BW17: OK | BX17: OK | BY17: OK | BZ17: OK | CA17: OK | CB17: OK | CD17: OK | CE17: OK | CF17: OK | CG17: OK | CH17: OK | CI17: OK | CJ17: OK | CK17: OK
B18: 7040 | C18: Foreland Fields School | D18: 0 | E18: 3116.844488 | F18: 9661.005506 | G18: 7464.584821 | H18: 14710.06703 | I18: 10458.95567 | J18: 0 | K18: 0 | L18: 0 | M18: 10 | N18: 217073 | O18: 845333 | P18: 1268000 | Q18: 124000 | R18: 186000 | S18: 42449.6575 | T18: 104121.045 | U18: 6332.17 | V18: 3373.575321 | W18: 10048.61956 | X18: 7808.27046 | Y18: 15198.66231 | Z18: 10862.52873 | AA18: 0 | AB18: 0 | AC18: 0 | AD18: 3641.046827 | AE18: 10449.59195 | AF18: 8164.435869 | AG18: 15702.63555 | AH18: 11279.77931 | AI18: 0 | AJ18: 0 | AK18: 0 | AM18: 3116.844488 | AN18: 9661.005506 | AO18: 7464.584821 | AP18: 14710.06703 | AQ18: 10458.95567 | AR18: 0 | AS18: 0 | AT18: 0 | AU18: 10 | AV18: 217073 | AW18: 845333.3333 | AX18: 1268000 | AY18: 124000 | AZ18: 186000 | BA18: 146570.7 | BB18: 6332.17 | BC18: 0.002454545436 | BD18: OK | BE18: OK | BF18: OK | BG18: OK | BH18: OK | BI18: OK | BJ18: OK | BK18: OK | BL18: OK | BM18: OK | BN18: OK | BO18: OK | BP18: OK | BQ18: OK | BR18: OK | BS18: OK | BU18: OK | BV18: OK | BW18: OK | BX18: OK | BY18: OK | BZ18: OK | CA18: OK | CB18: OK | CD18: OK | CE18: OK | CF18: OK | CG18: OK | CH18: OK | CI18: OK | CJ18: OK | CK18: OK
B19: 7043 | C19: The Beacon Folkestone | D19: 0 | E19: 2356.336208 | F19: 8900.497226 | G19: 6704.076541 | H19: 13949.55875 | I19: 9698.447395 | J19: 0 | K19: 0 | L19: 0 | M19: 10 | N19: 217073 | O19: 1197000 | P19: 1795500 | Q19: 444000 | R19: 666000 | S19: 70958.445 | T19: 189491.5778 | U19: 10719.8325 | V19: 2592.266187 | W19: 9267.310426 | X19: 7026.961326 | Y19: 14417.35318 | Z19: 10081.2196 | AA19: 0 | AB19: 0 | AC19: 0 | AD19: 2844.111511 | AE19: 9652.656634 | AF19: 7367.500553 | AG19: 14905.70024 | AH19: 10482.84399 | AI19: 0 | AJ19: 0 | AK19: 0 | AM19: 2356.336208 | AN19: 8900.497226 | AO19: 6704.076541 | AP19: 13949.55875 | AQ19: 9698.447395 | AR19: 0 | AS19: 0 | AT19: 0 | AU19: 10 | AV19: 217073 | AW19: 1197000 | AX19: 1795500 | AY19: 444000 | AZ19: 666000 | BA19: 260450.02 | BB19: 10719.8325 | BC19: 0.002791574283 | BD19: OK | BE19: OK | BF19: OK | BG19: OK | BH19: OK | BI19: OK | BJ19: OK | BK19: OK | BL19: OK | BM19: OK | BN19: OK | BO19: OK | BP19: OK | BQ19: OK | BR19: OK | BS19: OK | BU19: OK | BV19: OK | BW19: OK | BX19: OK | BY19: OK | BZ19: OK | CA19: OK | CB19: OK | CD19: OK | CE19: OK | CF19: OK | CG19: OK | CH19: OK | CI19: OK | CJ19: OK | CK19: OK
B20: 7051 | C20: Nexus School | D20: 0 | E20: 3156.2724 | F20: 9443.897608 | G20: 7287.999436 | H20: 14455.66071 | I20: 10227.12612 | J20: 0 | K20: 0 | L20: 0 | M20: 8 | N20: 138800 | O20: 1007333 | P20: 1511000 | Q20: 144000 | R20: 216000 | S20: 50236.7125 | T20: 115877.7239 | U20: 7521.085 | V20: 3156.2724 | W20: 9728.829834 | X20: 7488.480735 | Y20: 14878.87258 | Z20: 10542.73901 | AA20: 0 | AB20: 0 | AC20: 0 | AD20: 3314.861307 | AE20: 10123.40643 | AF20: 7838.25035 | AG20: 15376.45004 | AH20: 10953.59379 | AI20: 0 | AJ20: 0 | AK20: 0 | AM20: 3156.2724 | AN20: 9443.897608 | AO20: 7287.999436 | AP20: 14455.66071 | AQ20: 10227.12612 | AR20: 0 | AS20: 0 | AT20: 0 | AU20: 8 | AV20: 138800 | AW20: 1007333.333 | AX20: 1511000 | AY20: 144000 | AZ20: 216000 | BA20: 166114.44 | BB20: 7521.085 | BC20: -0.003578582429 | BD20: OK | BE20: OK | BF20: OK | BG20: OK | BH20: OK | BI20: OK | BJ20: OK | BK20: OK | BL20: OK | BM20: OK | BN20: OK | BO20: OK | BP20: OK | BQ20: OK | BR20: OK | BS20: OK | BU20: OK | BV20: OK | BW20: OK | BX20: OK | BY20: OK | BZ20: OK | CA20: OK | CB20: OK | CD20: OK | CE20: OK | CF20: OK | CG20: OK | CH20: OK | CI20: OK | CJ20: OK | CK20: OK
B21: 7056 | C21: Five Acre Wood School | D21: 0 | E21: 1645.236091 | F21: 8189.397109 | G21: 5992.976424 | H21: 13238.45863 | I21: 8987.347278 | J21: 0 | K21: 0 | L21: 0 | M21: 15 | N21: 267512 | O21: 2415333 | P21: 3623000 | Q21: 284000 | R21: 426000 | S21: 117826.6 | T21: 259303.4603 | U21: 17633.395 | V21: 1795.897537 | W21: 8470.941776 | X21: 6230.592677 | Y21: 13620.98453 | Z21: 9284.850948 | AA21: 0 | AB21: 0 | AC21: 0 | AD21: 2031.815488 | AE21: 8840.360612 | AF21: 6555.20453 | AG21: 14093.40422 | AH21: 9670.547967 | AI21: 0 | AJ21: 0 | AK21: 0 | AM21: 1645.236091 | AN21: 8189.397109 | AO21: 5992.976424 | AP21: 13238.45863 | AQ21: 8987.347278 | AR21: 0 | AS21: 0 | AT21: 0 | AU21: 15 | AV21: 267512 | AW21: 2415333.333 | AX21: 3623000 | AY21: 284000 | AZ21: 426000 | BA21: 377130.06 | BB21: 17633.395 | BC21: 0.0002836880158 | BD21: OK | BE21: =IF(AN21=F21,"OK","ERROR") -> OK | BF21: =IF(AO21=G21,"OK","ERROR") -> OK | BG21: =IF(AP21=H21,"OK","ERROR") -> OK | BH21: =IF(AQ21=I21,"OK","ERROR") -> OK | BI21: =IF(AR21=J21,"OK","ERROR") -> OK | BJ21: OK | BK21: OK | BL21: OK | BM21: OK | BN21: OK | BO21: OK | BP21: OK | BQ21: OK | BR21: OK | BS21: OK | BU21: OK | BV21: OK | BW21: OK | BX21: OK | BY21: OK | BZ21: OK | CA21: OK | CB21: OK | CD21: OK | CE21: OK | CF21: OK | CG21: OK | CH21: OK | CI21: OK | CJ21: OK | CK21: OK
B22: 7063 | C22: St Nicholas' School | D22: 0 | E22: 2931.570256 | F22: 9365.363942 | G22: 7199.097646 | H22: 14414.42546 | I22: 10163.31411 | J22: 0 | K22: 0 | L22: 0 | M22: 6 | N22: 118624 | O22: 1219000 | P22: 1828500 | Q22: 176000 | R22: 264000 | S22: 61027.7625 | T22: 161476.4546 | U22: 9112.8375 | V22: 3040.515453 | W22: 9715.559692 | X22: 7475.210593 | Y22: 14865.60244 | Z22: 10529.46886 | AA22: 0 | AB22: 0 | AC22: 0 | AD22: 3301.325762 | AE22: 10109.87089 | AF22: 7824.714805 | AG22: 15362.91449 | AH22: 10940.05824 | AI22: 0 | AJ22: 0 | AK22: 0 | AM22: 2931.570256 | AN22: 9365.363942 | AO22: 7199.097646 | AP22: 14414.42546 | AQ22: 10163.31411 | AR22: 0 | AS22: 0 | AT22: 0 | AU22: 6 | AV22: 118624 | AW22: 1219000 | AX22: 1828500 | AY22: 176000 | AZ22: 264000 | BA22: 222504.22 | BB22: 9112.8375 | BC22: -0.002887779119 | BD22: OK | BE22: OK | BF22: OK | BG22: OK | BH22: OK | BI22: OK | BJ22: OK | BK22: OK | BL22: OK | BM22: OK | BN22: OK | BO22: OK | BP22: OK | BQ22: OK | BR22: OK | BS22: OK | BU22: OK | BV22: OK | BW22: OK | BX22: OK | BY22: OK | BZ22: OK | CA22: OK | CB22: OK | CD22: OK | CE22: OK | CF22: OK | CG22: OK | CH22: OK | CI22: OK | CJ22: OK | CK22: OK
B23: 7066 | C23: Milestone Academy | D23: 0 | E23: 2758.486227 | F23: 9354.509462 | G23: 7190.710712 | H23: 14576.89679 | I23: 10249.06362 | J23: 0 | K23: 0 | L23: 0 | M23: 12 | N23: 237248 | O23: 0 | P23: 0 | Q23: 0 | R23: 0 | S23: 65445.27 | T23: 110407.0139 | U23: 0 | V23: 0 | W23: 0 | X23: 0 | Y23: 0 | Z23: 0 | AA23: 0 | AB23: 0 | AC23: 0 | AD23: 0 | AE23: 0 | AF23: 0 | AG23: 0 | AH23: 0 | AI23: 0 | AJ23: 0 | AK23: 0 | AM23: 2758.486227 | AN23: 9354.509462 | AO23: 7190.710712 | AP23: 14576.89679 | AQ23: 10249.06362 | AR23: 0 | AS23: 0 | AT23: 0 | AU23: 12 | AV23: 237248 | AW23: 0 | AX23: 0 | AY23: 0 | AZ23: 0 | BA23: 175852.28 | BB23: 0 | BC23: 0.003866004961 | BD23: OK | BE23: OK | BF23: OK | BG23: OK | BH23: OK | BI23: OK | BJ23: OK | BK23: OK | BL23: OK | BM23: OK | BN23: OK | BO23: OK | BP23: OK | BQ23: OK | BR23: OK | BS23: OK | BU23: ERROR | BV23: ERROR | BW23: ERROR | BX23: ERROR | BY23: ERROR | BZ23: OK | CA23: OK | CB23: OK | CD23: OK | CE23: OK | CF23: OK | CG23: OK | CH23: OK | CI23: OK | CJ23: OK | CK23: OK
B24: 7069 | C24: The Wyvern School | D24: 0 | E24: 2380.58183 | F24: 8860.89 | G24: 6684.06 | H24: 13901.78025 | I24: 9651.72 | J24: 0 | K24: 0 | L24: 0 | M24: 5 | N24: 108536 | O24: 1202000 | P24: 1803000 | Q24: 169333 | R24: 254000 | S24: 59788.25 | T24: 145741.4991 | U24: 8958.235 | V24: 2502.262241 | W24: 9177.30648 | X24: 6936.957381 | Y24: 14327.34923 | Z24: 9991.215651 | AA24: 0 | AB24: 0 | AC24: 0 | AD24: 2752.307486 | AE24: 9560.852609 | AF24: 7275.696528 | AG24: 14813.89621 | AH24: 10391.03996 | AI24: 0 | AJ24: 0 | AK24: 0 | AM24: 2380.58183 | AN24: 8860.89 | AO24: 6684.06 | AP24: 13901.78025 | AQ24: 9651.72 | AR24: 0 | AS24: 0 | AT24: 0 | AU24: 5 | AV24: 108536 | AW24: 1202000 | AX24: 1803000 | AY24: 169333.3333 | AZ24: 254000 | BA24: 205529.75 | BB24: 8958.235 | BC24: -0.0008875739877 | BD24: OK | BE24: OK | BF24: OK | BG24: OK | BH24: OK | BI24: OK | BJ24: OK | BK24: OK | BL24: OK | BM24: OK | BN24: OK | BO24: OK | BP24: OK | BQ24: OK | BR24: OK | BS24: OK | BU24: OK | BV24: OK | BW24: OK | BX24: OK | BY24: OK | BZ24: OK | CA24: OK | CB24: OK | CD24: OK | CE24: OK | CF24: OK | CG24: OK | CH24: OK | CI24: OK | CJ24: OK | CK24: OK
B25: 7070 | C25: Oakley School | D25: 0 | E25: 3288.325386 | F25: 9832.486404 | G25: 7636.065719 | H25: 14881.54792 | I25: 10630.43657 | J25: 0 | K25: 0 | L25: 0 | M25: 12 | N25: 237248 | O25: 638000 | P25: 957000 | Q25: 216000 | R25: 324000 | S25: 37097.88 | T25: 80100.61042 | U25: 5578.755 | V25: 3560.325486 | W25: 10235.36972 | X25: 7995.020625 | Y25: 15385.41247 | Z25: 11049.2789 | AA25: 0 | AB25: 0 | AC25: 0 | AD25: 3831.531995 | AE25: 10640.07712 | AF25: 8354.921038 | AG25: 15893.12072 | AH25: 11470.26447 | AI25: 0 | AJ25: 0 | AK25: 0 | AM25: 3288.325386 | AN25: 9832.486404 | AO25: 7636.065719 | AP25: 14881.54792 | AQ25: 10630.43657 | AR25: 0 | AS25: 0 | AT25: 0 | AU25: 12 | AV25: 237248 | AW25: 638000 | AX25: 957000 | AY25: 216000 | AZ25: 324000 | BA25: 117198.49 | BB25: 5578.755 | BC25: 0.0004196816153 | BD25: OK | BE25: OK | BF25: OK | BG25: OK | BH25: OK | BI25: OK | BJ25: OK | BK25: OK | BL25: OK | BM25: OK | BN25: OK | BO25: OK | BP25: OK | BQ25: OK | BR25: OK | BS25: OK | BU25: OK | BV25: OK | BW25: OK | BX25: OK | BY25: OK | BZ25: OK | CA25: OK | CB25: OK | CD25: OK | CE25: OK | CF25: OK | CG25: OK | CH25: OK | CI25: OK | CJ25: OK | CK25: OK
B26: 7072 | C26: Meadowfield School | D26: 0 | E26: 2434.130483 | F26: 8978.291501 | G26: 6781.870816 | H26: 14027.35302 | I26: 9776.241669 | J26: 0 | K26: 0 | L26: 0 | M26: 6 | N26: 118624 | O26: 1324000 | P26: 1986000 | Q26: 174667 | R26: 262000 | S26: 65504.59 | T26: 168071.5746 | U26: 9790.04 | V26: 2588.873843 | W26: 9263.918081 | X26: 7023.568982 | Y26: 14413.96083 | Z26: 10077.82725 | AA26: 0 | AB26: 0 | AC26: 0 | AD26: 2840.651319 | AE26: 9649.196443 | AF26: 7364.040362 | AG26: 14902.24005 | AH26: 10479.3838 | AI26: 0 | AJ26: 0 | AK26: 0 | AM26: 2434.130483 | AN26: 8978.291501 | AO26: 6781.870816 | AP26: 14027.35302 | AQ26: 9776.241669 | AR26: 0 | AS26: 0 | AT26: 0 | AU26: 6 | AV26: 118624 | AW26: 1324000 | AX26: 1986000 | AY26: 174666.6667 | AZ26: 262000 | BA26: 233576.16 | BB26: 9790.04 | BC26: 0.004598612461 | BD26: OK | BE26: OK | BF26: OK | BG26: OK | BH26: OK | BI26: OK | BJ26: OK | BK26: OK | BL26: OK | BM26: OK | BN26: OK | BO26: OK | BP26: OK | BQ26: OK | BR26: OK | BS26: OK | BU26: OK | BV26: OK | BW26: OK | BX26: OK | BY26: OK | BZ26: OK | CA26: OK | CB26: OK | CD26: OK | CE26: OK | CF26: OK | CG26: OK | CH26: OK | CI26: OK | CJ26: OK | CK26: OK
E27: 3463.80471 | F27: 10007.96573 | G27: 7811.545043 | H27: 15057.02725 | I27: 10805.9159 | J27: 0 | K27: 0 | L27: 0 | M27: 0 | N27: 0 | O27: 0 | P27: 0 | Q27: 0 | R27: 0 | S27: 27473.43 | T27: 95350.24929 | U27: 0 | V27: 0 | W27: 0 | X27: 0 | Y27: 0 | Z27: 0 | AA27: 0 | AB27: 0 | AC27: 0 | AD27: 0 | AE27: 0 | AF27: 0 | AG27: 0 | AH27: 0 | AI27: 0 | AJ27: 0 | AK27: 0
E28: 3942.451874 | F28: 10486.61289 | G28: 8290.192207 | H28: 15535.67441 | I28: 11284.56306 | J28: 0 | K28: 0 | L28: 0 | M28: 0 | N28: 0 | O28: 0 | P28: 0 | Q28: 0 | R28: 0 | S28: 32839.79 | T28: 91179.88752 | U28: 0 | V28: 0 | W28: 0 | X28: 0 | Y28: 0 | Z28: 0 | AA28: 0 | AB28: 0 | AC28: 0 | AD28: 0 | AE28: 0 | AF28: 0 | AG28: 0 | AH28: 0 | AI28: 0 | AJ28: 0 | AK28: 0

Sheet Lookups (hidden)
B2: DFE | C2: School Name | D2: Type | E2: Nursery FTE | F2: Fringe | G2: Place Funding Provider | H2: Residential Weekday Summer | I2: Residential Weekend Summer | J2: Places Summer Pre-16 | K2: Places Summer Post-16 | L2: Places Winter Pre-16 | M2: Places Winter Post-16 | N2: Residential Weekday Winter | O2: Residential Weekend Winter | P2: Teachers Pay Grant Rate | Q2: STLS | R2: Teachers Pension Grant Rate - School | S2: Special School Supplementary Fund (Place Funding) | T2: Special School Supplementary Fund (Top-up Funding) | U2: Valence STLS adj | W2: Needs | Y2: Rate Key | Z2: Rate
B3: 7032 | C3: Bower Grove School | D3: Day | E3: 0 | F3: 0 | G3: KCC | H3: 0 | I3: 0 | J3: 225 | K3: 0 | L3: 225 | M3: 0 | N3: 0 | O3: 0 | P3: 174.99 | Q3: 0 | R3: 407.2005607 | S3: 76500 | T3: 72978.46972 | W3: MLD&SLCN | Y3: 7032MLD&SLCN | Z3: 2988.560145
B4: 7033 | C4: St Anthony's School | D4: Day | E4: 0 | F4: 0 | G4: KCC | H4: 0 | I4: 0 | J4: 110 | K4: 0 | L4: 106 | M4: 0 | N4: 0 | O4: 0 | P4: 174.99 | Q4: 0 | R4: 603.2837755 | S4: 36606.66667 | T4: 43204.6313 | W4: SEMH | Y4: 7032SEMH | Z4: 9532.721163
B5: 7044 | C5: Rowhill School | D5: Day | E5: 0 | F5: 1 | G5: KCC | H5: 0 | I5: 0 | J5: 132 | K5: 0 | L5: 132 | M5: 0 | N5: 0 | O5: 0 | P5: 180.29 | Q5: 20890.35 | R5: 850.6635455 | S5: 44880 | T5: 57739.85604 | W5: SLD | Y5: 7032SLD | Z5: 7336.300478
B6: 7045 | C6: Elms School | D6: Day | E6: 0 | F6: 0 | G6: KCC | H6: 0 | I6: 0 | J6: 158 | K6: 0 | L6: 152 | M6: 0 | N6: 0 | O6: 0 | P6: 174.99 | Q6: 17289.93 | R6: 514.7832278 | S6: 52530 | T6: 51778.668 | W6: PD&PMLD | Y6: 7032PD&PMLD | Z6: 14581.78268
B7: 7062 | C7: The Orchard School | D7: Day | E7: 0 | F7: 0 | G7: KCC | H7: 0 | I7: 0 | J7: 93 | K7: 0 | L7: 100 | M7: 0 | N7: 0 | O7: 0 | P7: 174.99 | Q7: 0 | R7: 599.4931325 | S7: 33008.33333 | T7: 43497.04116 | W7: ASD | Y7: 7032ASD | Z7: 9532.721163
B8: 7041 | C8: Goldwyn School | D8: Day | E8: 0 | F8: 0 | G8: KCC | H8: 0 | I8: 0 | J8: 150 | K8: 45 | L8: 160 | M8: 35 | N8: 0 | O8: 0 | P8: 174.99 | Q8: 17751.16 | R8: 843.9448 | S8: 66300 | T8: 71683.3696 | W8: WeekdayPD&PMLD | Y8: 7033MLD&SLCN | Z8: 5632.556727
B9: 7067 | C9: Portal House School | D9: Day | E9: 0 | F9: 0 | G9: KCC | H9: 0 | I9: 0 | J9: 80 | K9: 0 | L9: 80 | M9: 0 | N9: 0 | O9: 0 | P9: 174.99 | Q9: 0 | R9: 659.280625 | S9: 27200 | T9: 34296.888 | W9: WeekendPD&PMLD | Y9: 7033SEMH | Z9: 12055.98229
B10: 7021 | C10: Valence School | D10: Residential | E10: 0 | F10: 1 | G10: KCC | H10: 46 | I10: 18 | J10: 80 | K10: 30 | L10: 80 | M10: 30 | N10: 46 | O10: 18 | P10: 180.29 | Q10: 10870.2153 | R10: 1661.305905 | S10: 37400 | T10: 148534.3744 | U10: 109909.9547 | W10: WeekdayASD | Y10: 7033SLD | Z10: 9900.084118
B11: 7002 | C11: Broomhill Bank School | D11: Residential | E11: 0 | F11: 1 | G11: KCC | H11: 23 | I11: 0 | J11: 218 | K11: 100 | L11: 269 | M11: 107 | N11: 23 | O11: 0 | P11: 174.99 | Q11: 12662.69 | R11: 493.4648398 | S11: 119623.3333 | T11: 151812.5174 | Y11: 7033PD&PMLD | Z11: 17098.76868
B12: 7052 | C12: Grange Park School | D12: Day | E12: 0 | F12: 0 | G12: KCC | H12: 0 | I12: 0 | J12: 91 | K12: 53 | L12: 95 | M12: 60 | N12: 0 | O12: 0 | P12: 174.99 | Q12: 0 | R12: 404.0040327 | S12: 51141.66667 | T12: 65220.49626 | Y12: 7033ASD | Z12: 12055.98229
B13: 7058 | C13: Stone Bay School | D13: Residential | E13: 0 | F13: 0 | G13: KCC | H13: 10 | I13: 0 | J13: 90 | K13: 10 | L13: 92 | M13: 11 | N13: 10 | O13: 0 | P13: 174.99 | Q13: 0 | R13: 629.6405581 | S13: 34595 | T13: 94112.63274 | Y13: 7039MLD&SLCN | Z13: 2877.157295
B14: 7073 | C14: Laleham Gap School | D14: Day | E14: 0 | F14: 0 | G14: KCC | H14: 0 | I14: 0 | J14: 187 | K14: 9 | L14: 192 | M14: 15 | N14: 0 | O14: 0 | P14: 174.99 | Q14: 22750.63 | R14: 639.5991837 | S14: 71400 | T14: 73228.00932 | Y14: 7039SEMH | Z14: 9421.318313
B15: 7039 | C15: The Ifield School | D15: Day | E15: 6 | F15: 0 | G15: KCC | H15: 0 | I15: 0 | J15: 220 | K15: 41 | L15: 227 | M15: 39 | N15: 0 | O15: 0 | P15: 174.99 | Q15: 26659.1 | R15: 529.80784 | S15: 89731.66667 | T15: 74710.95366 | Y15: 7039SLD | Z15: 7224.897628
B16: 7040 | C16: Foreland Fields School | D16: Day | E16: 10 | F16: 0 | G16: KCC | H16: 0 | I16: 0 | J16: 209 | K16: 33 | L16: 213 | M16: 30 | N16: 0 | O16: 0 | P16: 174.99 | Q16: 0 | R16: 429.2176364 | S16: 82478.33333 | T16: 80857.33018 | Y16: 7039PD&PMLD | Z16: 14470.37983
B17: 7043 | C17: The Beacon Folkestone | D17: Day | E17: 10 | F17: 0 | G17: KCC | H17: 0 | I17: 0 | J17: 329 | K17: 73 | L17: 278 | M17: 130 | N17: 0 | O17: 0 | P17: 174.99 | Q17: 21719.4 | R17: 467.3035211 | S17: 137870 | T17: 106839.3315 | Y17: 7039ASD | Z17: 10219.26848
B18: 7051 | C18: Nexus School | D18: Day | E18: 8 | F18: 0 | G18: KCC | H18: 0 | I18: 0 | J18: 246 | K18: 30 | L18: 256 | M18: 39 | N18: 0 | O18: 0 | P18: 174.99 | Q18: 15272.39 | R18: 403.6379353 | S18: 97608.33333 | T18: 78226.09772 | Y18: 7040MLD&SLCN | Z18: 3116.844488
B19: 7056 | C19: Five Acre Wood School | D19: Day | E19: 15 | F19: 0 | G19: KCC | H19: 0 | I19: 0 | J19: 542 | K19: 59 | L19: 648 | M19: 77 | N19: 0 | O19: 0 | P19: 174.99 | Q19: 26516.76 | R19: 385.1041489 | S19: 228933.3333 | T19: 173615.1846 | Y19: 7040SEMH | Z19: 9661.005506
B20: 7063 | C20: St Nicholas' School | D20: Day | E20: 6 | F20: 0 | G20: KCC | H20: 0 | I20: 0 | J20: 296 | K20: 44 | L20: 311 | M20: 44 | N20: 0 | O20: 0 | P20: 174.99 | Q20: 15586.85 | R20: 463.0149236 | S20: 118575 | T20: 102835.1495 | Y20: 7040SLD | Z20: 7464.584821
B21: 7066 | C21: Milestone Academy | D21: Day | E21: 12 | F21: 1 | G21: ESFA | H21: 0 | I21: 0 | J21: 326 | K21: 37 | L21: 326 | M21: 37 | N21: 0 | O21: 0 | P21: 180.29 | Q21: 0 | R21: 304.1515533 | S21: 123420 | T21: 124802.3876 | Y21: 7040PD&PMLD | Z21: 14710.06703
B22: 7069 | C22: The Wyvern School | D22: Day | E22: 5 | F22: 0 | G22: KCC | H22: 0 | I22: 0 | J22: 297 | K22: 33 | L22: 303 | M22: 47 | N22: 0 | O22: 0 | P22: 174.99 | Q22: 0 | R22: 426.5604852 | S22: 116166.6667 | T22: 104372.8192 | Y22: 7040ASD | Z22: 10458.95567
B23: 7070 | C23: Oakley School | D23: Day | E23: 12 | F23: 0 | G23: KCC | H23: 0 | I23: 0 | J23: 170 | K23: 42 | L23: 152 | M23: 60 | N23: 0 | O23: 0 | P23: 174.99 | Q23: 0 | R23: 377.833068 | S23: 72080 | T23: 52663.7169 | Y23: 7041MLD&SLCN | Z23: 4529.2109
B24: 7072 | C24: Meadowfield School | D24: Day | E24: 6 | F24: 0 | G24: KCC | H24: 0 | I24: 0 | J24: 310 | K24: 41 | L24: 346 | M24: 45 | N24: 0 | O24: 0 | P24: 174.99 | Q24: 26085.65 | R24: 448.9890684 | S24: 127273.3333 | T24: 118260.6081 | Y24: 7041SEMH | Z24: 10670.83198
B25: 7006 | C25: Snowfields | D25: Day | E25: 0 | F25: 0 | G25: ESFA | H25: 0 | I25: 0 | J25: 120 | K25: 0 | L25: 226 | M25: 12 | N25: 0 | O25: 0 | P25: 174.99 | Q25: 0 | R25: 485.8608571 | S25: 71003.33333 | T25: 62449.7142 | Y25: 7041SLD | Z25: 8474.411296
B26: 7005 | C26: Aspire | D26: Day | E26: 0 | F26: 0 | G26: ESFA | H26: 0 | I26: 0 | J26: 136 | K26: 0 | L26: 172 | M26: 0 | N26: 0 | O26: 0 | P26: 174.99 | Q26: 0 | R26: 607.3264286 | S26: 57913.33333 | T26: 42185.1957 | Y26: 7041PD&PMLD | Z26: 15719.8935
Y27: 7041ASD | Z27: 10670.83198
Y28: 7043MLD&SLCN | Z28: 2356.336208
Y29: 7043SEMH | Z29: 8900.497226
Y30: 7043SLD | Z30: 6704.076541
Y31: 7043PD&PMLD | Z31: 13949.55875
Y32: 7043ASD | Z32: 9698.447395
Y33: 7044MLD&SLCN | Z33: 4972.183
Y34: 7044SEMH | Z34: 11491.60859
Y35: 7044SLD | Z35: 9319.367222
Y36: 7044PD&PMLD | Z36: 16705.5533
Y37: 7044ASD | Z37: 11564.92604
Y38: 7045MLD&SLCN | Z38: 3877.156006
Y39: 7045SEMH | Z39: 10421.31702
Y40: 7045SLD | Z40: 8224.896339
Y41: 7045PD&PMLD | Z41: 15470.37854
Y42: 7045ASD | Z42: 10421.31702
Y43: 7051MLD&SLCN | Z43: 3156.2724
Y44: 7051SEMH | Z44: 9443.897608
Y45: 7051SLD | Z45: 7287.999436
Y46: 7051PD&PMLD | Z46: 14455.66071
Y47: 7051ASD | Z47: 10227.12612
Y48: 7052MLD&SLCN | Z48: 3575.953696
Y49: 7052SEMH | Z49: 10120.11471
Y50: 7052SLD | Z50: 7923.694029
Y51: 7052PD&PMLD | Z51: 15169.17623
Y52: 7052ASD | Z52: 10918.06488
Y53: 7056MLD&SLCN | Z53: 1645.236091
Y54: 7056SEMH | Z54: 8189.397109
Y55: 7056SLD | Z55: 5992.976424
Y56: 7056PD&PMLD | Z56: 13238.45863
Y57: 7056ASD | Z57: 8987.347278
Y58: 7062MLD&SLCN | Z58: 6044.433198
Y59: 7062SEMH | Z59: 12467.85876
Y60: 7062SLD | Z60: 10311.96059
Y61: 7062PD&PMLD | Z61: 17423.76842
Y62: 7062ASD | Z62: 12467.85876
Y63: 7063MLD&SLCN | Z63: 2931.570256
Y64: 7063SEMH | Z64: 9365.363942
Y65: 7063SLD | Z65: 7199.097646
Y66: 7063PD&PMLD | Z66: 14414.42546
Y67: 7063ASD | Z67: 10163.31411
Y68: 7066MLD&SLCN | Z68: 2758.486227
Y69: 7066SEMH | Z69: 9354.509462
Y70: 7066SLD | Z70: 7190.710712
Y71: 7066PD&PMLD | Z71: 14576.89679
Y72: 7066ASD | Z72: 10249.06362
Y73: 7067MLD&SLCN | Z73: 7172.253256
Y74: 7067SEMH | Z74: 13716.41427
Y75: 7067SLD | Z75: 11519.99359
Y76: 7067PD&PMLD | Z76: 18765.47579
Y77: 7067ASD | Z77: 13716.41427
Y78: 7069MLD&SLCN | Z78: 2380.58183
Y79: 7069SEMH | Z79: 8860.89
Y80: 7069SLD | Z80: 6684.06
Y81: 7069PD&PMLD | Z81: 13901.78025
Y82: 7069ASD | Z82: 9651.72
Y83: 7070MLD&SLCN | Z83: 3288.325386
Y84: 7070SEMH | Z84: 9832.486404
Y85: 7070SLD | Z85: 7636.065719
Y86: 7070PD&PMLD | Z86: 14881.54792
Y87: 7070ASD | Z87: 10630.43657
Y88: 7072MLD&SLCN | Z88: 2434.130483
Y89: 7072SEMH | Z89: 8978.291501
Y90: 7072SLD | Z90: 6781.870816
Y91: 7072PD&PMLD | Z91: 14027.35302
Y92: 7072ASD | Z92: 9776.241669
Y93: 7002MLD&SLCN | Z93: 4965.7249
Y94: 7002SEMH | Z94: 9460.6
Y95: 7002SLD | Z95: 8625.9123
Y96: 7002PD&PMLD | Z96: 14729.8983
Y97: 7002ASD | Z97: 11162.0813
Y98: 7002WeekdayASD | Z98: 51572.782
Y99: 7021MLD&SLCN | Z99: 7235.910384
Y100: 7021SEMH | Z100: 13831.93362
Y101: 7021SLD | Z101: 11668.13487
Y102: 7021PD&PMLD | Z102: 19054.32095
Y103: 7021ASD | Z103: 13913.69369
Y104: 7021WeekdayPD&PMLD | Z104: 71163.29384
Y105: 7021WeekendPD&PMLD | Z105: 99320.37283
Y106: 7058MLD&SLCN | Z106: 7032.5023
Y107: 7058SEMH | Z107: 12338.0742
Y108: 7058SLD | Z108: 11016.3775
Y109: 7058PD&PMLD | Z109: 17656.1386
Y110: 7058ASD | Z110: 20448.7364
Y111: 7058WeekdayPD&PMLD | Z111: 79111.43472
Y112: 7058WeekdayASD | Z112: 82041.87489
Y113: 7073MLD&SLCN | Z113: 3243.810918
Y114: 7073SEMH | Z114: 9787.971936
Y115: 7073SLD | Z115: 7591.55125
Y116: 7073PD&PMLD | Z116: 14837.03345
Y117: 7073ASD | Z117: 10585.9221
Y118: 7006MLD&SLCN | Z118: 3927.613754
Y119: 7006SEMH | Z119: 10471.77477
Y120: 7006SLD | Z120: 8275.354086
Y121: 7006PD&PMLD | Z121: 15520.83629
Y122: 7006ASD | Z122: 11269.72494
Y123: 7005MLD&SLCN | Z123: 3463.80471
Y124: 7005SEMH | Z124: 10007.96573
Y125: 7005SLD | Z125: 7811.545043
Y126: 7005PD&PMLD | Z126: 15057.02725
Y127: 7005ASD | Z127: 10805.9159

Sheet Yr2&3 (hidden)
B1: Inflator | C1: 0.02 | G1: 23-24 AY | K1: 24-25 AY | N1: YEAR 2 | O1: 25-26 AY | R1: YEAR 3
G2: TOTAL SCHOOL LEAD WINTER | H2: WINTER PLACES | I2: PUPIL LED TOTAL | J2: WINTER RATE | K2: PUPIL LED TOTAL | L2: TOTAL SCHOOL LEAD WINTER | M2: TOTAL RATE | N2: TOTAL 23-24 FY | O2: PUPIL LED TOTAL | P2: TOTAL SCHOOL LEAD WINTER | Q2: TOTAL RATE | R2: TOTAL 24-25 FY
A3: 7005 | B3: Aspire | C3: Day | D3: 7005 | E3: MLD & SLCN | F3: 7005MLD&SLCN | G3: 2998.35449 | H3: 172 | I3: 10426.65923 | J3: 13425.01372 | K3: =I3 -> 10426.65923 | L3: =(G3*H3)/('Year 2'!$G$17+'Year 2'!$G$29) ->  | M3: =(K3+L3) ->  | N3: =(((5/12)*J3)+((7/12*M3)))*(1+$C$1) ->  | O3: =I3 -> 10426.65923 | P3: =(G3*H3)/('Year 3'!$G$17+'Year 3'!$G$29) ->  | Q3: =O3+P3 ->  | R3: =(((5/12)*M3)+((7/12)*Q3))*(1+$C$1)*(1+$C$1) -> 
C4: Day | D4: 7005 | E4: SEMH | F4: 7005SEMH | G4: 2998.35449 | H4: 172 | I4: 16970.82025 | J4: 19969.17474 | K4: =I4 -> 16970.82025 | L4: =(G4*H4)/('Year 2'!$G$17+'Year 2'!$G$29) ->  | M4: =(K4+L4) ->  | N4: =(((5/12)*J4)+((7/12*M4)))*(1+$C$1) ->  | O4: =I4 -> 16970.82025 | P4: =(G4*H4)/('Year 3'!$G$17+'Year 3'!$G$29) ->  | Q4: =O4+P4 ->  | R4: =(((5/12)*M4)+((7/12)*Q4))*(1+$C$1)*(1+$C$1) -> 
C5: Day | D5: 7005 | E5: SLD | F5: 7005SLD | G5: 2998.35449 | H5: 172 | I5: 14774.39956 | J5: 17772.75405 | K5: 14774.39956 | L5: =(G5*H5)/('Year 2'!$G$17+'Year 2'!$G$29) ->  | O5: 14774.39956 | P5: =(G5*H5)/('Year 3'!$G$17+'Year 3'!$G$29) -> 
C6: Day | D6: 7005 | E6: PD & PMLD | F6: 7005PD&PMLD | G6: 2998.35449 | H6: 172 | I6: 22019.88176 | J6: 25018.23625 | K6: 22019.88176 | L6: =(G6*H6)/('Year 2'!$G$17+'Year 2'!$G$29) ->  | O6: 22019.88176 | P6: =(G6*H6)/('Year 3'!$G$17+'Year 3'!$G$29) -> 
C7: Day | D7: 7005 | E7: ASD | F7: 7005ASD | G7: 2998.35449 | H7: 172 | I7: 17768.77041 | J7: 20767.1249 | K7: 17768.77041 | L7: =(G7*H7)/('Year 2'!$G$17+'Year 2'!$G$29) ->  | O7: 17768.77041 | P7: =(G7*H7)/('Year 3'!$G$17+'Year 3'!$G$29) -> 
A8: 7006 | B8: Snowfields | C8: Day | D8: 7006 | E8: MLD & SLCN | F8: 7006MLD&SLCN | G8: 3001.539875 | H8: 238 | I8: 10410.60113 | J8: 13412.141 | K8: 10410.60113 | L8: =(G8*H8)/('Year 2'!$G$17+'Year 2'!$G$29) ->  | O8: 10410.60113 | P8: =(G8*H8)/('Year 3'!$G$17+'Year 3'!$G$29) -> 
C9: Day | D9: 7006 | E9: SEMH | F9: 7006SEMH | G9: 3001.539875 | H9: 238 | I9: 16954.76215 | J9: 19956.30202 | K9: 16954.76215 | L9: =(G9*H9)/('Year 2'!$G$17+'Year 2'!$G$29) ->  | O9: 16954.76215 | P9: =(G9*H9)/('Year 3'!$G$17+'Year 3'!$G$29) -> 
C10: Day | D10: 7006 | E10: SLD | F10: 7006SLD | G10: 3001.539875 | H10: 238 | I10: 14758.34146 | J10: 17759.88133 | K10: 14758.34146 | L10: =(G10*H10)/('Year 2'!$G$17+'Year 2'!$G$29) ->  | O10: 14758.34146 | P10: =(G10*H10)/('Year 3'!$G$17+'Year 3'!$G$29) -> 
C11: Day | D11: 7006 | E11: PD & PMLD | F11: 7006PD&PMLD | G11: 3001.539875 | H11: 238 | I11: 22003.82366 | J11: 25005.36354 | K11: 22003.82366 | L11: =(G11*H11)/('Year 2'!$G$17+'Year 2'!$G$29) ->  | O11: 22003.82366 | P11: =(G11*H11)/('Year 3'!$G$17+'Year 3'!$G$29) -> 
C12: Day | D12: 7006 | E12: ASD | F12: 7006ASD | G12: 3001.539875 | H12: 238 | I12: 17752.71231 | J12: 20754.25219 | K12: 17752.71231 | L12: =(G12*H12)/('Year 2'!$G$17+'Year 2'!$G$29) ->  | O12: 17752.71231 | P12: =(G12*H12)/('Year 3'!$G$17+'Year 3'!$G$29) -> 
A13: 7032 | B13: Bower Grove School | C13: Day | D13: 7032 | E13: MLD & SLCN | F13: 7032MLD&SLCN | G13: 2459.710055 | H13: 225 | I13: 10537.66376 | J13: 12997.37382 | K13: 10537.66376 | L13: =(G13*H13)/('Year 2'!$G$17+'Year 2'!$G$29) ->  | O13: 10537.66376 | P13: =(G13*H13)/('Year 3'!$G$17+'Year 3'!$G$29) -> 
C14: Day | D14: 7032 | E14: SEMH | F14: 7032SEMH | G14: 2459.710055 | H14: 225 | I14: 17081.82478 | J14: 19541.53483 | K14: 17081.82478 | L14: =(G14*H14)/('Year 2'!$G$17+'Year 2'!$G$29) ->  | O14: 17081.82478 | P14: =(G14*H14)/('Year 3'!$G$17+'Year 3'!$G$29) -> 
C15: Day | D15: 7032 | E15: SLD | F15: 7032SLD | G15: 2459.710055 | H15: 225 | I15: 14885.40409 | J15: 17345.11415 | K15: 14885.40409 | L15: =(G15*H15)/('Year 2'!$G$17+'Year 2'!$G$29) ->  | O15: 14885.40409 | P15: =(G15*H15)/('Year 3'!$G$17+'Year 3'!$G$29) -> 
C16: Day | D16: 7032 | E16: PD & PMLD | F16: 7032PD&PMLD | G16: 2459.710055 | H16: 225 | I16: 22130.8863 | J16: 24590.59635 | K16: 22130.8863 | L16: =(G16*H16)/('Year 2'!$G$17+'Year 2'!$G$29) ->  | O16: 22130.8863 | P16: =(G16*H16)/('Year 3'!$G$17+'Year 3'!$G$29) -> 
C17: Day | D17: 7032 | E17: ASD | F17: 7032ASD | G17: 2459.710055 | H17: 225 | I17: 17081.82478 | J17: 19541.53483 | K17: 17081.82478 | L17: =(G17*H17)/('Year 2'!$G$17+'Year 2'!$G$29) ->  | O17: 17081.82478 | P17: =(G17*H17)/('Year 3'!$G$17+'Year 3'!$G$29) -> 
A18: 7033 | B18: St Anthony's School | C18: Day | D18: 7033 | E18: MLD & SLCN | F18: 7033MLD&SLCN | G18: 4986.10553 | H18: 106 | I18: 10600.61898 | J18: 15586.72451 | K18: 10600.61898 | L18: =(G18*H18)/('Year 2'!$G$17+'Year 2'!$G$29) ->  | O18: 10600.61898 | P18: =(G18*H18)/('Year 3'!$G$17+'Year 3'!$G$29) -> 
C19: Day | D19: 7033 | E19: SEMH | F19: 7033SEMH | G19: 4986.10553 | H19: 106 | I19: 17144.78 | J19: 22130.88553 | K19: 17144.78 | L19: =(G19*H19)/('Year 2'!$G$17+'Year 2'!$G$29) ->  | O19: 17144.78 | P19: =(G19*H19)/('Year 3'!$G$17+'Year 3'!$G$29) -> 
C20: Day | D20: 7033 | E20: SLD | F20: 7033SLD | G20: 4986.10553 | H20: 106 | I20: 14948.35931 | J20: 19934.46484 | K20: 14948.35931 | L20: =(G20*H20)/('Year 2'!$G$17+'Year 2'!$G$29) ->  | O20: 14948.35931 | P20: =(G20*H20)/('Year 3'!$G$17+'Year 3'!$G$29) -> 
C21: Day | D21: 7033 | E21: PD & PMLD | F21: 7033PD&PMLD | G21: 4986.10553 | H21: 106 | I21: 22193.84151 | J21: 27179.94704 | K21: 22193.84151 | L21: =(G21*H21)/('Year 2'!$G$17+'Year 2'!$G$29) ->  | O21: 22193.84151 | P21: =(G21*H21)/('Year 3'!$G$17+'Year 3'!$G$29) -> 
C22: Day | D22: 7033 | E22: ASD | F22: 7033ASD | G22: 4986.10553 | H22: 106 | I22: 17144.78 | J22: 22130.88553 | K22: 17144.78 | L22: =(G22*H22)/('Year 2'!$G$17+'Year 2'!$G$29) ->  | O22: 17144.78 | P22: =(G22*H22)/('Year 3'!$G$17+'Year 3'!$G$29) -> 
A23: 7039 | B23: The Ifield School | C23: Day | D23: 7039 | E23: MLD & SLCN | F23: 7039MLD&SLCN | G23: 2413.023956 | H23: 266 | I23: 10444.52844 | J23: 12857.55239 | K23: 10444.52844 | L23: =(G23*H23)/('Year 2'!$G$17+'Year 2'!$G$29) ->  | O23: 10444.52844 | P23: =(G23*H23)/('Year 3'!$G$17+'Year 3'!$G$29) -> 
C24: Day | D24: 7039 | E24: SEMH | F24: 7039SEMH | G24: 2413.023956 | H24: 266 | I24: 16988.68945 | J24: 19401.71341 | K24: 16988.68945 | L24: =(G24*H24)/('Year 2'!$G$17+'Year 2'!$G$29) ->  | O24: 16988.68945 | P24: =(G24*H24)/('Year 3'!$G$17+'Year 3'!$G$29) -> 
C25: Day | D25: 7039 | E25: SLD | F25: 7039SLD | G25: 2413.023956 | H25: 266 | I25: 14792.26877 | J25: 17205.29273 | K25: 14792.26877 | L25: =(G25*H25)/('Year 2'!$G$17+'Year 2'!$G$29) ->  | O25: 14792.26877 | P25: =(G25*H25)/('Year 3'!$G$17+'Year 3'!$G$29) -> 
C26: Day | D26: 7039 | E26: PD & PMLD | F26: 7039PD&PMLD | G26: 2413.023956 | H26: 266 | I26: 22037.75097 | J26: 24450.77493 | K26: 22037.75097 | L26: =(G26*H26)/('Year 2'!$G$17+'Year 2'!$G$29) ->  | O26: 22037.75097 | P26: =(G26*H26)/('Year 3'!$G$17+'Year 3'!$G$29) -> 
C27: Day | D27: 7039 | E27: ASD | F27: 7039ASD | G27: 2413.023956 | H27: 266 | I27: 17786.63962 | J27: 20199.66358 | K27: 17786.63962 | L27: =(G27*H27)/('Year 2'!$G$17+'Year 2'!$G$29) ->  | O27: 17786.63962 | P27: =(G27*H27)/('Year 3'!$G$17+'Year 3'!$G$29) -> 
A28: 7040 | B28: Foreland Fields School | C28: Day | D28: 7040 | E28: MLD & SLCN | F28: 7040MLD&SLCN | G28: 2633.869892 | H28: 243 | I28: 10477.47846 | J28: 13111.34835 | K28: 10477.47846 | L28: =(G28*H28)/('Year 2'!$G$17+'Year 2'!$G$29) ->  | O28: 10477.47846 | P28: =(G28*H28)/('Year 3'!$G$17+'Year 3'!$G$29) -> 
C29: Day | D29: 7040 | E29: SEMH | F29: 7040SEMH | G29: 2633.869892 | H29: 243 | I29: 17021.63948 | J29: 19655.50937 | K29: 17021.63948 | L29: =(G29*H29)/('Year 2'!$G$17+'Year 2'!$G$29) ->  | O29: 17021.63948 | P29: =(G29*H29)/('Year 3'!$G$17+'Year 3'!$G$29) -> 
C30: Day | D30: 7040 | E30: SLD | F30: 7040SLD | G30: 2633.869892 | H30: 243 | I30: 14825.21879 | J30: 17459.08869 | K30: 14825.21879 | L30: =(G30*H30)/('Year 2'!$G$17+'Year 2'!$G$29) ->  | O30: 14825.21879 | P30: =(G30*H30)/('Year 3'!$G$17+'Year 3'!$G$29) -> 
C31: Day | D31: 7040 | E31: PD & PMLD | F31: 7040PD&PMLD | G31: 2633.869892 | H31: 243 | I31: 22070.701 | J31: 24704.57089 | K31: 22070.701 | L31: =(G31*H31)/('Year 2'!$G$17+'Year 2'!$G$29) ->  | O31: 22070.701 | P31: =(G31*H31)/('Year 3'!$G$17+'Year 3'!$G$29) -> 
C32: Day | D32: 7040 | E32: ASD | F32: 7040ASD | G32: 2633.869892 | H32: 243 | I32: 17819.58965 | J32: 20453.45954 | K32: 17819.58965 | L32: =(G32*H32)/('Year 2'!$G$17+'Year 2'!$G$29) ->  | O32: 17819.58965 | P32: =(G32*H32)/('Year 3'!$G$17+'Year 3'!$G$29) -> 
A33: 7041 | B33: Goldwyn Community Special School | C33: Day | D33: 7041 | E33: MLD & SLCN | F33: 7041MLD&SLCN | G33: 3651.035795 | H33: 195 | I33: 10482.5649 | J33: 14133.60069 | K33: 10482.5649 | L33: =(G33*H33)/('Year 2'!$G$17+'Year 2'!$G$29) ->  | O33: 10482.5649 | P33: =(G33*H33)/('Year 3'!$G$17+'Year 3'!$G$29) -> 
C34: Day | D34: 7041 | E34: SEMH | F34: 7041SEMH | G34: 3651.035795 | H34: 195 | I34: 17026.72592 | J34: 20677.76171 | K34: 17026.72592 | L34: =(G34*H34)/('Year 2'!$G$17+'Year 2'!$G$29) ->  | O34: 17026.72592 | P34: =(G34*H34)/('Year 3'!$G$17+'Year 3'!$G$29) -> 
C35: Day | D35: 7041 | E35: SLD | F35: 7041SLD | G35: 3651.035795 | H35: 195 | I35: 14830.30523 | J35: 18481.34103 | K35: 14830.30523 | L35: =(G35*H35)/('Year 2'!$G$17+'Year 2'!$G$29) ->  | O35: 14830.30523 | P35: =(G35*H35)/('Year 3'!$G$17+'Year 3'!$G$29) -> 
C36: Day | D36: 7041 | E36: PD & PMLD | F36: 7041PD&PMLD | G36: 3651.035795 | H36: 195 | I36: 22075.78744 | J36: 25726.82323 | K36: 22075.78744 | L36: =(G36*H36)/('Year 2'!$G$17+'Year 2'!$G$29) ->  | O36: 22075.78744 | P36: =(G36*H36)/('Year 3'!$G$17+'Year 3'!$G$29) -> 
C37: Day | D37: 7041 | E37: ASD | F37: 7041ASD | G37: 3651.035795 | H37: 195 | I37: 17026.72592 | J37: 20677.76171 | K37: 17026.72592 | L37: =(G37*H37)/('Year 2'!$G$17+'Year 2'!$G$29) ->  | O37: 17026.72592 | P37: =(G37*H37)/('Year 3'!$G$17+'Year 3'!$G$29) -> 
A38: 7043 | B38: The Beacon Folkestone | C38: Day | D38: 7043 | E38: MLD & SLCN | F38: 7043MLD&SLCN | G38: 1842.048064 | H38: 408 | I38: 10503.31094 | J38: 12345.35901 | K38: 10503.31094 | L38: =(G38*H38)/('Year 2'!$G$17+'Year 2'!$G$29) ->  | O38: 10503.31094 | P38: =(G38*H38)/('Year 3'!$G$17+'Year 3'!$G$29) -> 
C39: Day | D39: 7043 | E39: SEMH | F39: 7043SEMH | G39: 1842.048064 | H39: 408 | I39: 17047.47196 | J39: 18889.52003 | K39: 17047.47196 | L39: =(G39*H39)/('Year 2'!$G$17+'Year 2'!$G$29) ->  | O39: 17047.47196 | P39: =(G39*H39)/('Year 3'!$G$17+'Year 3'!$G$29) -> 
C40: Day | D40: 7043 | E40: SLD | F40: 7043SLD | G40: 1842.048064 | H40: 408 | I40: 14851.05128 | J40: 16693.09934 | K40: 14851.05128 | L40: =(G40*H40)/('Year 2'!$G$17+'Year 2'!$G$29) ->  | O40: 14851.05128 | P40: =(G40*H40)/('Year 3'!$G$17+'Year 3'!$G$29) -> 
C41: Day | D41: 7043 | E41: PD & PMLD | F41: 7043PD&PMLD | G41: 1842.048064 | H41: 408 | I41: 22096.53348 | J41: 23938.58154 | K41: 22096.53348 | L41: =(G41*H41)/('Year 2'!$G$17+'Year 2'!$G$29) ->  | O41: 22096.53348 | P41: =(G41*H41)/('Year 3'!$G$17+'Year 3'!$G$29) -> 
C42: Day | D42: 7043 | E42: ASD | F42: 7043ASD | G42: 1842.048064 | H42: 408 | I42: 17845.42213 | J42: 19687.47019 | K42: 17845.42213 | L42: =(G42*H42)/('Year 2'!$G$17+'Year 2'!$G$29) ->  | O42: 17845.42213 | P42: =(G42*H42)/('Year 3'!$G$17+'Year 3'!$G$29) -> 
A43: 7044 | B43: Rowhill School | C43: Day | D43: 7044 | E43: MLD & SLCN | F43: 7044MLD&SLCN | G43: 4180.758783 | H43: 132 | I43: 10707.95744 | J43: 14888.71622 | K43: 10707.95744 | L43: =(G43*H43)/('Year 2'!$G$17+'Year 2'!$G$29) ->  | O43: 10707.95744 | P43: =(G43*H43)/('Year 3'!$G$17+'Year 3'!$G$29) -> 
C44: Day | D44: 7044 | E44: SEMH | F44: 7044SEMH | G44: 4180.758783 | H44: 132 | I44: 17312.42329 | J44: 21493.18207 | K44: 17312.42329 | L44: =(G44*H44)/('Year 2'!$G$17+'Year 2'!$G$29) ->  | O44: 17312.42329 | P44: =(G44*H44)/('Year 3'!$G$17+'Year 3'!$G$29) -> 
C45: Day | D45: 7044 | E45: SLD | F45: 7044SLD | G45: 4180.758783 | H45: 132 | I45: 15140.18192 | J45: 19320.9407 | K45: 15140.18192 | L45: =(G45*H45)/('Year 2'!$G$17+'Year 2'!$G$29) ->  | O45: 15140.18192 | P45: =(G45*H45)/('Year 3'!$G$17+'Year 3'!$G$29) -> 
C46: Day | D46: 7044 | E46: PD & PMLD | F46: 7044PD&PMLD | G46: 4180.758783 | H46: 132 | I46: 22526.368 | J46: 26707.12678 | K46: 22526.368 | L46: =(G46*H46)/('Year 2'!$G$17+'Year 2'!$G$29) ->  | O46: 22526.368 | P46: =(G46*H46)/('Year 3'!$G$17+'Year 3'!$G$29) -> 
C47: Day | D47: 7044 | E47: ASD | F47: 7044ASD | G47: 4180.758783 | H47: 132 | I47: 17385.74074 | J47: 21566.49952 | K47: 17385.74074 | L47: =(G47*H47)/('Year 2'!$G$17+'Year 2'!$G$29) ->  | O47: 17385.74074 | P47: =(G47*H47)/('Year 3'!$G$17+'Year 3'!$G$29) -> 
A48: 7045 | B48: Elms School | C48: Day | D48: 7045 | E48: MLD & SLCN | F48: 7045MLD&SLCN | G48: 3294.717345 | H48: 152 | I48: 10636.86285 | J48: 13931.58019 | K48: 10636.86285 | L48: =(G48*H48)/('Year 2'!$G$17+'Year 2'!$G$29) ->  | O48: 10636.86285 | P48: =(G48*H48)/('Year 3'!$G$17+'Year 3'!$G$29) -> 
C49: Day | D49: 7045 | E49: SEMH | F49: 7045SEMH | G49: 3294.717345 | H49: 152 | I49: 17181.02387 | J49: 20475.74121 | K49: 17181.02387 | L49: =(G49*H49)/('Year 2'!$G$17+'Year 2'!$G$29) ->  | O49: 17181.02387 | P49: =(G49*H49)/('Year 3'!$G$17+'Year 3'!$G$29) -> 
C50: Day | D50: 7045 | E50: SLD | F50: 7045SLD | G50: 3294.717345 | H50: 152 | I50: 14984.60318 | J50: 18279.32053 | K50: 14984.60318 | L50: =(G50*H50)/('Year 2'!$G$17+'Year 2'!$G$29) ->  | O50: 14984.60318 | P50: =(G50*H50)/('Year 3'!$G$17+'Year 3'!$G$29) -> 
C51: Day | D51: 7045 | E51: PD & PMLD | F51: 7045PD&PMLD | G51: 3294.717345 | H51: 152 | I51: 22230.08539 | J51: 25524.80273 | K51: 22230.08539 | L51: =(G51*H51)/('Year 2'!$G$17+'Year 2'!$G$29) ->  | O51: 22230.08539 | P51: =(G51*H51)/('Year 3'!$G$17+'Year 3'!$G$29) -> 
C52: Day | D52: 7045 | E52: ASD | F52: 7045ASD | G52: 3294.717345 | H52: 152 | I52: 17181.02387 | J52: 20475.74121 | K52: 17181.02387 | L52: =(G52*H52)/('Year 2'!$G$17+'Year 2'!$G$29) ->  | O52: 17181.02387 | P52: =(G52*H52)/('Year 3'!$G$17+'Year 3'!$G$29) -> 
A53: 7051 | B53: Nexus School | C53: Day | D53: 7051 | E53: MLD & SLCN | F53: 7051MLD&SLCN | G53: 2356.107307 | H53: 295 | I53: 10441.72171 | J53: 12797.82902 | K53: 10441.72171 | L53: =(G53*H53)/('Year 2'!$G$17+'Year 2'!$G$29) ->  | O53: 10441.72171 | P53: =(G53*H53)/('Year 3'!$G$17+'Year 3'!$G$29) -> 
C54: Day | D54: 7051 | E54: SEMH | F54: 7051SEMH | G54: 2356.107307 | H54: 295 | I54: 16985.88273 | J54: 19341.99003 | K54: 16985.88273 | L54: =(G54*H54)/('Year 2'!$G$17+'Year 2'!$G$29) ->  | O54: 16985.88273 | P54: =(G54*H54)/('Year 3'!$G$17+'Year 3'!$G$29) -> 
C55: Day | D55: 7051 | E55: SLD | F55: 7051SLD | G55: 2356.107307 | H55: 295 | I55: 14789.46204 | J55: 17145.56935 | K55: 14789.46204 | L55: =(G55*H55)/('Year 2'!$G$17+'Year 2'!$G$29) ->  | O55: 14789.46204 | P55: =(G55*H55)/('Year 3'!$G$17+'Year 3'!$G$29) -> 
C56: Day | D56: 7051 | E56: PD & PMLD | F56: 7051PD&PMLD | G56: 2356.107307 | H56: 295 | I56: 22034.94425 | J56: 24391.05155 | K56: 22034.94425 | L56: =(G56*H56)/('Year 2'!$G$17+'Year 2'!$G$29) ->  | O56: 22034.94425 | P56: =(G56*H56)/('Year 3'!$G$17+'Year 3'!$G$29) -> 
C57: Day | D57: 7051 | E57: ASD | F57: 7051ASD | G57: 2356.107307 | H57: 295 | I57: 17783.83289 | J57: 20139.9402 | K57: 17783.83289 | L57: =(G57*H57)/('Year 2'!$G$17+'Year 2'!$G$29) ->  | O57: 17783.83289 | P57: =(G57*H57)/('Year 3'!$G$17+'Year 3'!$G$29) -> 
A58: 7052 | B58: Grange Park School | C58: Day | D58: 7052 | E58: MLD & SLCN | F58: 7052MLD&SLCN | G58: 3046.51423 | H58: 155 | I58: 10445.30907 | J58: 13491.82329 | K58: 10445.30907 | L58: =(G58*H58)/('Year 2'!$G$17+'Year 2'!$G$29) ->  | O58: 10445.30907 | P58: =(G58*H58)/('Year 3'!$G$17+'Year 3'!$G$29) -> 
C59: Day | D59: 7052 | E59: SEMH | F59: 7052SEMH | G59: 3046.51423 | H59: 155 | I59: 16989.47008 | J59: 20035.98431 | K59: 16989.47008 | L59: =(G59*H59)/('Year 2'!$G$17+'Year 2'!$G$29) ->  | O59: 16989.47008 | P59: =(G59*H59)/('Year 3'!$G$17+'Year 3'!$G$29) -> 
C60: Day | D60: 7052 | E60: SLD | F60: 7052SLD | G60: 3046.51423 | H60: 155 | I60: 14793.0494 | J60: 17839.56363 | K60: 14793.0494 | L60: =(G60*H60)/('Year 2'!$G$17+'Year 2'!$G$29) ->  | O60: 14793.0494 | P60: =(G60*H60)/('Year 3'!$G$17+'Year 3'!$G$29) -> 
C61: Day | D61: 7052 | E61: PD & PMLD | F61: 7052PD&PMLD | G61: 3046.51423 | H61: 155 | I61: 22038.5316 | J61: 25085.04583 | K61: 22038.5316 | L61: =(G61*H61)/('Year 2'!$G$17+'Year 2'!$G$29) ->  | O61: 22038.5316 | P61: =(G61*H61)/('Year 3'!$G$17+'Year 3'!$G$29) -> 
C62: Day | D62: 7052 | E62: ASD | F62: 7052ASD | G62: 3046.51423 | H62: 155 | I62: 17787.42025 | J62: 20833.93448 | K62: 17787.42025 | L62: =(G62*H62)/('Year 2'!$G$17+'Year 2'!$G$29) ->  | O62: 17787.42025 | P62: =(G62*H62)/('Year 3'!$G$17+'Year 3'!$G$29) -> 
A63: 7056 | B63: Five Acre Wood School | C63: Day | D63: 7056 | E63: MLD & SLCN | F63: 7056MLD&SLCN | G63: 1132.681231 | H63: 725 | I63: 10431.9242 | J63: 11564.60543 | K63: 10431.9242 | L63: =(G63*H63)/('Year 2'!$G$17+'Year 2'!$G$29) ->  | O63: 10431.9242 | P63: =(G63*H63)/('Year 3'!$G$17+'Year 3'!$G$29) -> 
C64: Day | D64: 7056 | E64: SEMH | F64: 7056SEMH | G64: 1132.681231 | H64: 725 | I64: 16976.08522 | J64: 18108.76645 | K64: 16976.08522 | L64: =(G64*H64)/('Year 2'!$G$17+'Year 2'!$G$29) ->  | O64: 16976.08522 | P64: =(G64*H64)/('Year 3'!$G$17+'Year 3'!$G$29) -> 
C65: Day | D65: 7056 | E65: SLD | F65: 7056SLD | G65: 1132.681231 | H65: 725 | I65: 14779.66453 | J65: 15912.34576 | K65: 14779.66453 | L65: =(G65*H65)/('Year 2'!$G$17+'Year 2'!$G$29) ->  | O65: 14779.66453 | P65: =(G65*H65)/('Year 3'!$G$17+'Year 3'!$G$29) -> 
C66: Day | D66: 7056 | E66: PD & PMLD | F66: 7056PD&PMLD | G66: 1132.681231 | H66: 725 | I66: 22025.14674 | J66: 23157.82797 | K66: 22025.14674 | L66: =(G66*H66)/('Year 2'!$G$17+'Year 2'!$G$29) ->  | O66: 22025.14674 | P66: =(G66*H66)/('Year 3'!$G$17+'Year 3'!$G$29) -> 
C67: Day | D67: 7056 | E67: ASD | F67: 7056ASD | G67: 1132.681231 | H67: 725 | I67: 17774.03538 | J67: 18906.71662 | K67: 17774.03538 | L67: =(G67*H67)/('Year 2'!$G$17+'Year 2'!$G$29) ->  | O67: 17774.03538 | P67: =(G67*H67)/('Year 3'!$G$17+'Year 3'!$G$29) -> 
A68: 7062 | B68: The Orchard School | C68: Day | D68: 7062 | E68: MLD & SLCN | F68: 7062MLD&SLCN | G68: 4914.485147 | H68: 100 | I68: 10582.12188 | J68: 15496.60703 | K68: =I68 -> 10582.12188 | L68: =(G68*H68)/('Year 2'!$G$17+'Year 2'!$G$29) ->  | M68: =(K68+L68) ->  | N68: =(((5/12)*J68)+((7/12*M68)))*(1+$C$1) ->  | O68: =I68 -> 10582.12188 | P68: =(G68*H68)/('Year 3'!$G$17+'Year 3'!$G$29) ->  | Q68: =O68+P68 ->  | R68: =(((5/12)*M68)+((7/12)*Q68))*(1+$C$1)*(1+$C$1) -> 
C69: Day | D69: 7062 | E69: SEMH | F69: 7062SEMH | G69: 4914.485147 | H69: 100 | I69: 17126.2829 | J69: 22040.76804 | K69: 17126.2829 | L69: =(G69*H69)/('Year 2'!$G$17+'Year 2'!$G$29) ->  | O69: 17126.2829 | P69: =(G69*H69)/('Year 3'!$G$17+'Year 3'!$G$29) -> 
C70: Day | D70: 7062 | E70: SLD | F70: 7062SLD | G70: 4914.485147 | H70: 100 | I70: 14929.86221 | J70: 19844.34736 | K70: 14929.86221 | L70: =(G70*H70)/('Year 2'!$G$17+'Year 2'!$G$29) ->  | O70: 14929.86221 | P70: =(G70*H70)/('Year 3'!$G$17+'Year 3'!$G$29) -> 
C71: Day | D71: 7062 | E71: PD & PMLD | F71: 7062PD&PMLD | G71: 4914.485147 | H71: 100 | I71: 22175.34442 | J71: 27089.82956 | K71: 22175.34442 | L71: =(G71*H71)/('Year 2'!$G$17+'Year 2'!$G$29) ->  | O71: 22175.34442 | P71: =(G71*H71)/('Year 3'!$G$17+'Year 3'!$G$29) -> 
C72: Day | D72: 7062 | E72: ASD | F72: 7062ASD | G72: 4914.485147 | H72: 100 | I72: 17126.2829 | J72: 22040.76804 | K72: 17126.2829 | L72: =(G72*H72)/('Year 2'!$G$17+'Year 2'!$G$29) ->  | O72: 17126.2829 | P72: =(G72*H72)/('Year 3'!$G$17+'Year 3'!$G$29) -> 
A73: 7063 | B73: St Nicholas' School | C73: Day | D73: 7063 | E73: MLD & SLCN | F73: 7063MLD&SLCN | G73: 2330.020347 | H73: 355 | I73: 10454.79873 | J73: 12784.81907 | K73: 10454.79873 | L73: =(G73*H73)/('Year 2'!$G$17+'Year 2'!$G$29) ->  | O73: 10454.79873 | P73: =(G73*H73)/('Year 3'!$G$17+'Year 3'!$G$29) -> 
C74: Day | D74: 7063 | E74: SEMH | F74: 7063SEMH | G74: 2330.020347 | H74: 355 | I74: 16998.95974 | J74: 19328.98009 | K74: 16998.95974 | L74: =(G74*H74)/('Year 2'!$G$17+'Year 2'!$G$29) ->  | O74: 16998.95974 | P74: =(G74*H74)/('Year 3'!$G$17+'Year 3'!$G$29) -> 
C75: Day | D75: 7063 | E75: SLD | F75: 7063SLD | G75: 2330.020347 | H75: 355 | I75: 14802.53906 | J75: 17132.5594 | K75: 14802.53906 | L75: =(G75*H75)/('Year 2'!$G$17+'Year 2'!$G$29) ->  | O75: 14802.53906 | P75: =(G75*H75)/('Year 3'!$G$17+'Year 3'!$G$29) -> 
C76: Day | D76: 7063 | E76: PD & PMLD | F76: 7063PD&PMLD | G76: 2330.020347 | H76: 355 | I76: 22048.02126 | J76: 24378.04161 | K76: 22048.02126 | L76: =(G76*H76)/('Year 2'!$G$17+'Year 2'!$G$29) ->  | O76: 22048.02126 | P76: =(G76*H76)/('Year 3'!$G$17+'Year 3'!$G$29) -> 
C77: Day | D77: 7063 | E77: ASD | F77: 7063ASD | G77: 2330.020347 | H77: 355 | I77: 17796.90991 | J77: 20126.93026 | K77: 17796.90991 | L77: =(G77*H77)/('Year 2'!$G$17+'Year 2'!$G$29) ->  | O77: 17796.90991 | P77: =(G77*H77)/('Year 3'!$G$17+'Year 3'!$G$29) -> 
A78: 7066 | B78: Milestone School | C78: Day | D78: 7066 | E78: MLD & SLCN | F78: 7066MLD&SLCN | G78: 2179.199567 | H78: 363 | I78: 10580.92844 | J78: 12760.128 | K78: 10580.92844 | L78: =(G78*H78)/('Year 2'!$G$17+'Year 2'!$G$29) ->  | O78: 10580.92844 | P78: =(G78*H78)/('Year 3'!$G$17+'Year 3'!$G$29) -> 
C79: Day | D79: 7066 | E79: SEMH | F79: 7066SEMH | G79: 2179.199567 | H79: 363 | I79: 17176.95167 | J79: 19356.15124 | K79: 17176.95167 | L79: =(G79*H79)/('Year 2'!$G$17+'Year 2'!$G$29) ->  | O79: 17176.95167 | P79: =(G79*H79)/('Year 3'!$G$17+'Year 3'!$G$29) -> 
C80: Day | D80: 7066 | E80: SLD | F80: 7066SLD | G80: 2179.199567 | H80: 363 | I80: 15013.15292 | J80: 17192.35249 | K80: 15013.15292 | L80: =(G80*H80)/('Year 2'!$G$17+'Year 2'!$G$29) ->  | O80: 15013.15292 | P80: =(G80*H80)/('Year 3'!$G$17+'Year 3'!$G$29) -> 
C81: Day | D81: 7066 | E81: PD & PMLD | F81: 7066PD&PMLD | G81: 2179.199567 | H81: 363 | I81: 22399.339 | J81: 24578.53857 | K81: 22399.339 | L81: =(G81*H81)/('Year 2'!$G$17+'Year 2'!$G$29) ->  | O81: 22399.339 | P81: =(G81*H81)/('Year 3'!$G$17+'Year 3'!$G$29) -> 
C82: Day | D82: 7066 | E82: ASD | F82: 7066ASD | G82: 2179.199567 | H82: 363 | I82: 18071.50583 | J82: 20250.7054 | K82: 18071.50583 | L82: =(G82*H82)/('Year 2'!$G$17+'Year 2'!$G$29) ->  | O82: 18071.50583 | P82: =(G82*H82)/('Year 3'!$G$17+'Year 3'!$G$29) -> 
A83: 7067 | B83: Portal House School | C83: Day | D83: 7067 | E83: MLD & SLCN | F83: 7067MLD&SLCN | G83: 6680.947906 | H83: 80 | I83: 10512.71744 | J83: 17193.66534 | K83: 10512.71744 | L83: =(G83*H83)/('Year 2'!$G$17+'Year 2'!$G$29) ->  | O83: 10512.71744 | P83: =(G83*H83)/('Year 3'!$G$17+'Year 3'!$G$29) -> 
C84: Day | D84: 7067 | E84: SEMH | F84: 7067SEMH | G84: 6680.947906 | H84: 80 | I84: 17056.87845 | J84: 23737.82636 | K84: 17056.87845 | L84: =(G84*H84)/('Year 2'!$G$17+'Year 2'!$G$29) ->  | O84: 17056.87845 | P84: =(G84*H84)/('Year 3'!$G$17+'Year 3'!$G$29) -> 
C85: Day | D85: 7067 | E85: SLD | F85: 7067SLD | G85: 6680.947906 | H85: 80 | I85: 14860.45777 | J85: 21541.40567 | K85: 14860.45777 | L85: =(G85*H85)/('Year 2'!$G$17+'Year 2'!$G$29) ->  | O85: 14860.45777 | P85: =(G85*H85)/('Year 3'!$G$17+'Year 3'!$G$29) -> 
C86: Day | D86: 7067 | E86: PD & PMLD | F86: 7067PD&PMLD | G86: 6680.947906 | H86: 80 | I86: 22105.93997 | J86: 28786.88788 | K86: 22105.93997 | L86: =(G86*H86)/('Year 2'!$G$17+'Year 2'!$G$29) ->  | O86: 22105.93997 | P86: =(G86*H86)/('Year 3'!$G$17+'Year 3'!$G$29) -> 
C87: Day | D87: 7067 | E87: ASD | F87: 7067ASD | G87: 6680.947906 | H87: 80 | I87: 17056.87845 | J87: 23737.82636 | K87: 17056.87845 | L87: =(G87*H87)/('Year 2'!$G$17+'Year 2'!$G$29) ->  | O87: 17056.87845 | P87: =(G87*H87)/('Year 3'!$G$17+'Year 3'!$G$29) -> 
A88: 7069 | B88: The Wyvern School | C88: Day | D88: 7069 | E88: MLD & SLCN | F88: 7069MLD&SLCN | G88: 1833.711918 | H88: 350 | I88: 10423.40793 | J88: 12257.11984 | K88: 10423.40793 | L88: =(G88*H88)/('Year 2'!$G$17+'Year 2'!$G$29) ->  | O88: 10423.40793 | P88: =(G88*H88)/('Year 3'!$G$17+'Year 3'!$G$29) -> 
C89: Day | D89: 7069 | E89: SEMH | F89: 7069SEMH | G89: 1833.711918 | H89: 350 | I89: 16967.56894 | J89: 18801.28086 | K89: 16967.56894 | L89: =(G89*H89)/('Year 2'!$G$17+'Year 2'!$G$29) ->  | O89: 16967.56894 | P89: =(G89*H89)/('Year 3'!$G$17+'Year 3'!$G$29) -> 
C90: Day | D90: 7069 | E90: SLD | F90: 7069SLD | G90: 1833.711918 | H90: 350 | I90: 14771.14826 | J90: 16604.86018 | K90: 14771.14826 | L90: =(G90*H90)/('Year 2'!$G$17+'Year 2'!$G$29) ->  | O90: 14771.14826 | P90: =(G90*H90)/('Year 3'!$G$17+'Year 3'!$G$29) -> 
C91: Day | D91: 7069 | E91: PD & PMLD | F91: 7069PD&PMLD | G91: 1833.711918 | H91: 350 | I91: 22016.63046 | J91: 23850.34238 | K91: 22016.63046 | L91: =(G91*H91)/('Year 2'!$G$17+'Year 2'!$G$29) ->  | O91: 22016.63046 | P91: =(G91*H91)/('Year 3'!$G$17+'Year 3'!$G$29) -> 
C92: Day | D92: 7069 | E92: ASD | F92: 7069ASD | G92: 1833.711918 | H92: 350 | I92: 17765.51911 | J92: 19599.23103 | K92: 17765.51911 | L92: =(G92*H92)/('Year 2'!$G$17+'Year 2'!$G$29) ->  | O92: 17765.51911 | P92: =(G92*H92)/('Year 3'!$G$17+'Year 3'!$G$29) -> 
A93: 7070 | B93: Oakley School | C93: Day | D93: 7070 | E93: MLD & SLCN | F93: 7070MLD&SLCN | G93: 2858.942469 | H93: 212 | I93: 10435.49428 | J93: 13294.43675 | K93: 10435.49428 | L93: =(G93*H93)/('Year 2'!$G$17+'Year 2'!$G$29) ->  | O93: 10435.49428 | P93: =(G93*H93)/('Year 3'!$G$17+'Year 3'!$G$29) -> 
C94: Day | D94: 7070 | E94: SEMH | F94: 7070SEMH | G94: 2858.942469 | H94: 212 | I94: 16979.6553 | J94: 19838.59777 | K94: 16979.6553 | L94: =(G94*H94)/('Year 2'!$G$17+'Year 2'!$G$29) ->  | O94: 16979.6553 | P94: =(G94*H94)/('Year 3'!$G$17+'Year 3'!$G$29) -> 
C95: Day | D95: 7070 | E95: SLD | F95: 7070SLD | G95: 2858.942469 | H95: 212 | I95: 14783.23461 | J95: 17642.17708 | K95: 14783.23461 | L95: =(G95*H95)/('Year 2'!$G$17+'Year 2'!$G$29) ->  | O95: 14783.23461 | P95: =(G95*H95)/('Year 3'!$G$17+'Year 3'!$G$29) -> 
C96: Day | D96: 7070 | E96: PD & PMLD | F96: 7070PD&PMLD | G96: 2858.942469 | H96: 212 | I96: 22028.71682 | J96: 24887.65929 | K96: 22028.71682 | L96: =(G96*H96)/('Year 2'!$G$17+'Year 2'!$G$29) ->  | O96: 22028.71682 | P96: =(G96*H96)/('Year 3'!$G$17+'Year 3'!$G$29) -> 
C97: Day | D97: 7070 | E97: ASD | F97: 7070ASD | G97: 2858.942469 | H97: 212 | I97: 17777.60547 | J97: 20636.54794 | K97: 17777.60547 | L97: =(G97*H97)/('Year 2'!$G$17+'Year 2'!$G$29) ->  | O97: 17777.60547 | P97: =(G97*H97)/('Year 3'!$G$17+'Year 3'!$G$29) -> 
A98: 7072 | B98: Meadowfield School | C98: Day | D98: 7072 | E98: MLD & SLCN | F98: 7072MLD&SLCN | G98: 1886.500009 | H98: 391 | I98: 10455.53317 | J98: 12342.03318 | K98: 10455.53317 | L98: =(G98*H98)/('Year 2'!$G$17+'Year 2'!$G$29) ->  | O98: 10455.53317 | P98: =(G98*H98)/('Year 3'!$G$17+'Year 3'!$G$29) -> 
C99: Day | D99: 7072 | E99: SEMH | F99: 7072SEMH | G99: 1886.500009 | H99: 391 | I99: 16999.69419 | J99: 18886.1942 | K99: 16999.69419 | L99: =(G99*H99)/('Year 2'!$G$17+'Year 2'!$G$29) ->  | O99: 16999.69419 | P99: =(G99*H99)/('Year 3'!$G$17+'Year 3'!$G$29) -> 
C100: Day | D100: 7072 | E100: SLD | F100: 7072SLD | G100: 1886.500009 | H100: 391 | I100: 14803.2735 | J100: 16689.77351 | K100: 14803.2735 | L100: =(G100*H100)/('Year 2'!$G$17+'Year 2'!$G$29) ->  | O100: 14803.2735 | P100: =(G100*H100)/('Year 3'!$G$17+'Year 3'!$G$29) -> 
C101: Day | D101: 7072 | E101: PD & PMLD | F101: 7072PD&PMLD | G101: 1886.500009 | H101: 391 | I101: 22048.75571 | J101: 23935.25572 | K101: 22048.75571 | L101: =(G101*H101)/('Year 2'!$G$17+'Year 2'!$G$29) ->  | O101: 22048.75571 | P101: =(G101*H101)/('Year 3'!$G$17+'Year 3'!$G$29) -> 
C102: Day | D102: 7072 | E102: ASD | F102: 7072ASD | G102: 1886.500009 | H102: 391 | I102: 17797.64436 | J102: 19684.14437 | K102: 17797.64436 | L102: =(G102*H102)/('Year 2'!$G$17+'Year 2'!$G$29) ->  | O102: 17797.64436 | P102: =(G102*H102)/('Year 3'!$G$17+'Year 3'!$G$29) -> 
A103: 7073 | B103: Laleham Gap School | C103: Day | D103: 7073 | E103: MLD & SLCN | F103: 7073MLD&SLCN | G103: 2766.211538 | H103: 207 | I103: 10403.55489 | J103: 13169.76643 | K103: 10403.55489 | L103: =(G103*H103)/('Year 2'!$G$17+'Year 2'!$G$29) ->  | O103: 10403.55489 | P103: =(G103*H103)/('Year 3'!$G$17+'Year 3'!$G$29) -> 
C104: Day | D104: 7073 | E104: SEMH | F104: 7073SEMH | G104: 2766.211538 | H104: 207 | I104: 16947.71591 | J104: 19713.92745 | K104: 16947.71591 | L104: =(G104*H104)/('Year 2'!$G$17+'Year 2'!$G$29) ->  | O104: 16947.71591 | P104: =(G104*H104)/('Year 3'!$G$17+'Year 3'!$G$29) -> 
C105: Day | D105: 7073 | E105: SLD | F105: 7073SLD | G105: 2766.211538 | H105: 207 | I105: 14751.29523 | J105: 17517.50676 | K105: 14751.29523 | L105: =(G105*H105)/('Year 2'!$G$17+'Year 2'!$G$29) ->  | O105: 14751.29523 | P105: =(G105*H105)/('Year 3'!$G$17+'Year 3'!$G$29) -> 
C106: Day | D106: 7073 | E106: PD & PMLD | F106: 7073PD&PMLD | G106: 2766.211538 | H106: 207 | I106: 21996.77743 | J106: 24762.98897 | K106: 21996.77743 | L106: =(G106*H106)/('Year 2'!$G$17+'Year 2'!$G$29) ->  | O106: 21996.77743 | P106: =(G106*H106)/('Year 3'!$G$17+'Year 3'!$G$29) -> 
C107: Day | D107: 7073 | E107: ASD | F107: 7073ASD | G107: 2766.211538 | H107: 207 | I107: 17745.66608 | J107: 20511.87762 | K107: 17745.66608 | L107: =(G107*H107)/('Year 2'!$G$17+'Year 2'!$G$29) ->  | O107: 17745.66608 | P107: =(G107*H107)/('Year 3'!$G$17+'Year 3'!$G$29) -> 
A108: 7002 | B108: Broomhill Bank School | C108: Day | D108: 7002 | E108: MLD & SLCN | F108: 7002MLD&SLCN | G108: 2235.883728 | H108: 376 | I108: 10442.20261 | J108: 12678.08634 | K108: 10442.20261 | L108: =(G108*H108)/('Year 2'!$G$17+'Year 2'!$G$29) ->  | O108: 10442.20261 | P108: =(G108*H108)/('Year 3'!$G$17+'Year 3'!$G$29) -> 
C109: Day | D109: 7002 | E109: SEMH | F109: 7002SEMH | G109: 2235.883728 | H109: 376 | I109: 17002.17528 | J109: 19238.05901 | K109: 17002.17528 | L109: =(G109*H109)/('Year 2'!$G$17+'Year 2'!$G$29) ->  | O109: 17002.17528 | P109: =(G109*H109)/('Year 3'!$G$17+'Year 3'!$G$29) -> 
C110: Day | D110: 7002 | E110: SLD | F110: 7002SLD | G110: 2235.883728 | H110: 376 | I110: 14815.70031 | J110: 17051.58404 | K110: 14815.70031 | L110: =(G110*H110)/('Year 2'!$G$17+'Year 2'!$G$29) ->  | O110: 14815.70031 | P110: =(G110*H110)/('Year 3'!$G$17+'Year 3'!$G$29) -> 
C111: Day | D111: 7002 | E111: PD & PMLD | F111: 7002PD&PMLD | G111: 2235.883728 | H111: 376 | I111: 22104.08004 | J111: 24339.96376 | K111: 22104.08004 | L111: =(G111*H111)/('Year 2'!$G$17+'Year 2'!$G$29) ->  | O111: 22104.08004 | P111: =(G111*H111)/('Year 3'!$G$17+'Year 3'!$G$29) -> 
C112: Day | D112: 7002 | E112: ASD | F112: 7002ASD | G112: 2235.883728 | H112: 376 | I112: 17829.57789 | J112: 20065.46161 | K112: 17829.57789 | L112: =(G112*H112)/('Year 2'!$G$17+'Year 2'!$G$29) ->  | O112: 17829.57789 | P112: =(G112*H112)/('Year 3'!$G$17+'Year 3'!$G$29) -> 
C113: Residential weekday | D113: 7002 | E113: ASD | F113: 7002WeekdayASD | G113: 11767.54915 | H113: 376 | I113: 48027.16111 | J113: 59794.71026 | K113: 48027.16111 | L113: =(G113*H113)/('Year 2'!$G$17+'Year 2'!$G$29) ->  | O113: 48027.16111 | P113: =(G113*H113)/('Year 3'!$G$17+'Year 3'!$G$29) -> 
A114: 7021 | B114: Valence School | C114: Day | D114: 7021 | E114: MLD & SLCN | F114: 7021MLD&SLCN | G114: 6665.22676 | H114: 110 | I114: 10557.04354 | J114: 17222.2703 | K114: 10557.04354 | L114: =(G114*H114)/('Year 2'!$G$17+'Year 2'!$G$29) ->  | O114: 10557.04354 | P114: =(G114*H114)/('Year 3'!$G$17+'Year 3'!$G$29) -> 
C115: Day | D115: 7021 | E115: SEMH | F115: 7021SEMH | G115: 6665.22676 | H115: 110 | I115: 17153.06678 | J115: 23818.29354 | K115: 17153.06678 | L115: =(G115*H115)/('Year 2'!$G$17+'Year 2'!$G$29) ->  | O115: 17153.06678 | P115: =(G115*H115)/('Year 3'!$G$17+'Year 3'!$G$29) -> 
C116: Day | D116: 7021 | E116: SLD | F116: 7021SLD | G116: 6665.22676 | H116: 110 | I116: 14989.26803 | J116: 21654.49479 | K116: 14989.26803 | L116: =(G116*H116)/('Year 2'!$G$17+'Year 2'!$G$29) ->  | O116: 14989.26803 | P116: =(G116*H116)/('Year 3'!$G$17+'Year 3'!$G$29) -> 
C117: Day | D117: 7021 | E117: PD & PMLD | F117: 7021PD&PMLD | G117: 6665.22676 | H117: 110 | I117: 22375.45411 | J117: 29040.68087 | K117: 22375.45411 | L117: =(G117*H117)/('Year 2'!$G$17+'Year 2'!$G$29) ->  | O117: 22375.45411 | P117: =(G117*H117)/('Year 3'!$G$17+'Year 3'!$G$29) -> 
C118: Day | D118: 7021 | E118: ASD | F118: 7021ASD | G118: 6665.22676 | H118: 110 | I118: 17234.82684 | J118: 23900.0536 | K118: 17234.82684 | L118: =(G118*H118)/('Year 2'!$G$17+'Year 2'!$G$29) ->  | O118: 17234.82684 | P118: =(G118*H118)/('Year 3'!$G$17+'Year 3'!$G$29) -> 
C119: Residential weekday | D119: 7021 | E119: PD & PMLD | F119: 7021WeekdayPD&PMLD | G119: 13714.7575 | H119: 110 | I119: 67434.89625 | J119: 81149.65375 | K119: 67434.89625 | L119: =(G119*H119)/('Year 2'!$G$17+'Year 2'!$G$29) ->  | O119: 67434.89625 | P119: =(G119*H119)/('Year 3'!$G$17+'Year 3'!$G$29) -> 
C120: Residential Weekend | D120: 7021 | E120: PD & PMLD | F120: 7021WeekendPD&PMLD | G120: 13714.7575 | H120: 110 | I120: 95591.97525 | J120: 109306.7327 | K120: 95591.97525 | L120: =(G120*H120)/('Year 2'!$G$17+'Year 2'!$G$29) ->  | O120: 95591.97525 | P120: =(G120*H120)/('Year 3'!$G$17+'Year 3'!$G$29) -> 
A121: 7058 | B121: Stone Bay School | C121: Day | D121: 7058 | E121: MLD & SLCN | F121: 7058MLD&SLCN | G121: 4780.537009 | H121: 103 | I121: 10520.92721 | J121: 15301.46421 | K121: 10520.92721 | L121: =(G121*H121)/('Year 2'!$G$17+'Year 2'!$G$29) ->  | O121: 10520.92721 | P121: =(G121*H121)/('Year 3'!$G$17+'Year 3'!$G$29) -> 
C122: Day | D122: 7058 | E122: SEMH | F122: 7058SEMH | G122: 4780.537009 | H122: 103 | I122: 17065.08822 | J122: 21845.62523 | K122: 17065.08822 | L122: =(G122*H122)/('Year 2'!$G$17+'Year 2'!$G$29) ->  | O122: 17065.08822 | P122: =(G122*H122)/('Year 3'!$G$17+'Year 3'!$G$29) -> 
C123: Day | D123: 7058 | E123: SLD | F123: 7058SLD | G123: 4780.537009 | H123: 103 | I123: 14868.66754 | J123: 19649.20455 | K123: 14868.66754 | L123: =(G123*H123)/('Year 2'!$G$17+'Year 2'!$G$29) ->  | O123: 14868.66754 | P123: =(G123*H123)/('Year 3'!$G$17+'Year 3'!$G$29) -> 
C124: Day | D124: 7058 | E124: PD & PMLD | F124: 7058PD&PMLD | G124: 4780.537009 | H124: 103 | I124: 22114.14974 | J124: 26894.68675 | K124: 22114.14974 | L124: =(G124*H124)/('Year 2'!$G$17+'Year 2'!$G$29) ->  | O124: 22114.14974 | P124: =(G124*H124)/('Year 3'!$G$17+'Year 3'!$G$29) -> 
C125: Day | D125: 7058 | E125: ASD | F125: 7058ASD | G125: 4780.537009 | H125: 103 | I125: 25044.58991 | J125: 29825.12692 | K125: 25044.58991 | L125: =(G125*H125)/('Year 2'!$G$17+'Year 2'!$G$29) ->  | O125: 25044.58991 | P125: =(G125*H125)/('Year 3'!$G$17+'Year 3'!$G$29) -> 
C126: Residential weekday | D126: 7058 | E126: PD & PMLD | F126: 7058WeekdayPD&PMLD | G126: 31478.82282 | H126: 103 | I126: 57576.48329 | J126: 89055.30611 | K126: 57576.48329 | L126: =(G126*H126)/('Year 2'!$G$17+'Year 2'!$G$29) ->  | O126: 57576.48329 | P126: =(G126*H126)/('Year 3'!$G$17+'Year 3'!$G$29) -> 
C127: Residential weekday | D127: 7058 | E127: ASD | F127: 7058WeekdayASD | G127: 31478.82282 | H127: 103 | I127: 60506.92345 | J127: 91985.74628 | K127: 60506.92345 | L127: =(G127*H127)/('Year 2'!$G$17+'Year 2'!$G$29) ->  | O127: 60506.92345 | P127: =(G127*H127)/('Year 3'!$G$17+'Year 3'!$G$29) -> 

Sheet Contents
B1: Contents
A3: Pupils | B3: Input pupil details in order to calculate Element 3 for 2023-24
A4: Year 1 | B4: This is the summary of all funding streams for 2023-24. The following funding is summarised on this tab, Element 3, Place funding, excess place funding, Pupil Premium (PP) and Universal Infant Free School Meals (UIFSM). It also details the amount of pooled funding that will passed back to the LA.
A5: Other Grants | B5: Various Grants are recorded on this tab that have not been included in Years 1, 2 & 3.
A6: Excess E1 & E2 | B6: This tab provides the detailed calculation of additional place funding for excess places. The total excess place funding is then fed into the Year 1 tab.
A7: Year 2 & 3 | B7: This input sheet is where your schools estimated pupil numbers for 2024-25 (year 2) and 2025-26 (year 3) are input. The numbers in this sheet will determine your Element 3 funding for 2024-25 and 2025-26 which will then be shown in the relevant Year 2 and Year 3 tab.
A8: Year 2 | B8: This is the summary of all funding streams for 2024-25. The following funding is summarised on this tab, Element 3, Place funding, Pupil Premium (PP) and Universal Infant Free School Meals (UIFSM). It also details the amount of pooled funding that will passed back to the LA.
A9: Year 3 | B9: This is the summary of all funding streams for 2025-26. The following funding is summarised on this tab, Element 3, Place funding, Pupil Premium (PP) and Universal Infant Free School Meals (UIFSM). It also details the amount of pooled funding that will passed back to the LA.
A10: Monthly Statement | B10: This sheet is the monthly list of pupils funded through the schools advances system and will be populated by the template user.
A11: Reconcilation | B11: This tab, reconciles the information on the pupils tab and the monthly statement.
A12: BPS Summary | B12: This tab will be populated with the outputs from tabs Year 1, 2 and 3 and will be subsequently input into the BPS financial tool.

Sheet Pupils
H1: =SUM(H4:H3000) -> 0 | I1: =SUM(I4:I3000) -> 0 | J1: 0 | K1: 0 | L1: 0 | M1: 0 | N1: 0 | O1: 0 | P1: 0 | Q1: 0 | R1: 0 | S1: 0 | T1: 0
A3: Pupil Key | B3: Pupil Surname | C3: Pupil Forename | D3: Need Type | E3: Placement START Date | F3: Placement END Date | G3: Annual Rate | H3: April (March Pupils) | I3: May (April Pupils) | J3: June (May Pupils) | K3: July (June Pupils) | L3: August (July Pupils) | M3: September (July Pupils) | N3: October (September Pupils) | O3: November (October Pupils) | P3: December (November Pupils) | Q3: January (December Pupils) | R3: February (January Pupils) | S3: March (February Pupils) | T3: Total For Pupil
D4: MLD&SLCN | G4: =IFERROR(VLOOKUP(dfenum&D4,rates,2,0),0) -> 0 | H4: =IF(AND($E4<DATE(2023,4,1),$F4>DATE(2023,2,28)),$G4/12,0) -> 0 | I4: =IF(AND($E4<DATE(2023,5,1),$F4>DATE(2023,3,31)),$G4/12,0) -> 0 | J4: =IF(AND($E4<DATE(2023,6,1),$F4>DATE(2023,4,30)),$G4/12,0) -> 0 | K4: =IF(AND($E4<DATE(2023,7,1),$F4>DATE(2023,5,31)),$G4/12,0) -> 0 | L4: =IF(AND($E4<DATE(2023,8,1),$F4>DATE(2023,6,30)),$G4/12,0) -> 0 | M4: =IF(AND($E4<DATE(2023,8,1),$F4>DATE(2023,6,30)),$G4/12,0) -> 0 | N4: =IF(AND($E4<DATE(2023,10,1),$F4>DATE(2023,8,31)),$G4/12,0) -> 0 | O4: =IF(AND($E4<DATE(2023,11,1),$F4>DATE(2023,9,30)),$G4/12,0) -> 0 | P4: =IF(AND($E4<DATE(2023,12,1),$F4>DATE(2023,10,31)),$G4/12,0) -> 0 | Q4: =IF(AND($E4<DATE(2024,1,1),$F4>DATE(2023,11,30)),$G4/12,0) -> 0 | R4: =IF(AND($E4<DATE(2024,2,1),$F4>DATE(2023,12,31)),$G4/12,0) -> 0 | S4: =IF(AND($E4<DATE(2024,3,1),$F4>DATE(2024,1,31)),$G4/12,0) -> 0 | T4: =SUM(H4:S4) -> 0
D5: SEMH | G5: 0 | H5: =IF(AND($E5<DATE(2023,4,1),$F5>DATE(2023,2,28)),$G5/12,0) -> 0 | I5: =IF(AND($E5<DATE(2023,5,1),$F5>DATE(2023,3,31)),$G5/12,0) -> 0 | J5: =IF(AND($E5<DATE(2023,6,1),$F5>DATE(2023,4,30)),$G5/12,0) -> 0 | K5: =IF(AND($E5<DATE(2023,7,1),$F5>DATE(2023,5,31)),$G5/12,0) -> 0 | L5: =IF(AND($E5<DATE(2023,8,1),$F5>DATE(2023,6,30)),$G5/12,0) -> 0 | M5: 0 | N5: =IF(AND($E5<DATE(2023,10,1),$F5>DATE(2023,8,31)),$G5/12,0) -> 0 | O5: =IF(AND($E5<DATE(2023,11,1),$F5>DATE(2023,9,30)),$G5/12,0) -> 0 | P5: =IF(AND($E5<DATE(2023,12,1),$F5>DATE(2023,10,31)),$G5/12,0) -> 0 | Q5: =IF(AND($E5<DATE(2024,1,1),$F5>DATE(2023,11,30)),$G5/12,0) -> 0 | R5: =IF(AND($E5<DATE(2024,2,1),$F5>DATE(2023,12,31)),$G5/12,0) -> 0 | S5: =IF(AND($E5<DATE(2024,3,1),$F5>DATE(2024,1,31)),$G5/12,0) -> 0 | T5: 0
D6: SLD | G6: 0 | H6: 0 | I6: 0 | J6: 0 | K6: 0 | L6: 0 | M6: 0 | N6: 0 | O6: 0 | P6: 0 | Q6: 0 | R6: 0 | S6: 0 | T6: 0
D7: PD&PMLD | G7: 0 | H7: 0 | I7: 0 | J7: 0 | K7: 0 | L7: 0 | M7: 0 | N7: 0 | O7: 0 | P7: 0 | Q7: 0 | R7: 0 | S7: 0 | T7: 0
D8: ASD | G8: 0 | H8: 0 | I8: 0 | J8: 0 | K8: 0 | L8: 0 | M8: 0 | N8: 0 | O8: 0 | P8: 0 | Q8: 0 | R8: 0 | S8: 0 | T8: 0
D9: WeekdayPD&PMLD | G9: 0 | H9: 0 | I9: 0 | J9: 0 | K9: 0 | L9: 0 | M9: 0 | N9: 0 | O9: 0 | P9: 0 | Q9: 0 | R9: 0 | S9: 0 | T9: 0
D10: WeekendPD&PMLD | G10: 0 | H10: 0 | I10: 0 | J10: 0 | K10: 0 | L10: 0 | M10: 0 | N10: 0 | O10: 0 | P10: 0 | Q10: 0 | R10: 0 | S10: 0 | T10: 0
D11: WeekdayASD | G11: 0 | H11: 0 | I11: 0 | J11: 0 | K11: 0 | L11: 0 | M11: 0 | N11: 0 | O11: 0 | P11: 0 | Q11: 0 | R11: 0 | S11: 0 | T11: 0
G12: 0 | H12: 0 | I12: 0 | J12: 0 | K12: 0 | L12: 0 | M12: 0 | N12: 0 | O12: 0 | P12: 0 | Q12: 0 | R12: 0 | S12: 0 | T12: 0
G13: 0 | H13: 0 | I13: 0 | J13: 0 | K13: 0 | L13: 0 | M13: 0 | N13: 0 | O13: 0 | P13: 0 | Q13: 0 | R13: 0 | S13: 0 | T13: 0
G14: 0 | H14: 0 | I14: 0 | J14: 0 | K14: 0 | L14: 0 | M14: 0 | N14: 0 | O14: 0 | P14: 0 | Q14: 0 | R14: 0 | S14: 0 | T14: 0
G15: 0 | H15: 0 | I15: 0 | J15: 0 | K15: 0 | L15: 0 | M15: 0 | N15: 0 | O15: 0 | P15: 0 | Q15: 0 | R15: 0 | S15: 0 | T15: 0
G16: 0 | H16: 0 | I16: 0 | J16: 0 | K16: 0 | L16: 0 | M16: 0 | N16: 0 | O16: 0 | P16: 0 | Q16: 0 | R16: 0 | S16: 0 | T16: 0
G17: 0 | H17: 0 | I17: 0 | J17: 0 | K17: 0 | L17: 0 | M17: 0 | N17: 0 | O17: 0 | P17: 0 | Q17: 0 | R17: 0 | S17: 0 | T17: 0
G18: 0 | H18: 0 | I18: 0 | J18: 0 | K18: 0 | L18: 0 | M18: 0 | N18: 0 | O18: 0 | P18: 0 | Q18: 0 | R18: 0 | S18: 0 | T18: 0
G19: 0 | H19: 0 | I19: 0 | J19: 0 | K19: 0 | L19: 0 | M19: 0 | N19: 0 | O19: 0 | P19: 0 | Q19: 0 | R19: 0 | S19: 0 | T19: 0
G20: 0 | H20: 0 | I20: 0 | J20: 0 | K20: 0 | L20: 0 | M20: 0 | N20: 0 | O20: 0 | P20: 0 | Q20: 0 | R20: 0 | S20: 0 | T20: 0
G21: 0 | H21: 0 | I21: 0 | J21: 0 | K21: 0 | L21: 0 | M21: 0 | N21: 0 | O21: 0 | P21: 0 | Q21: 0 | R21: 0 | S21: 0 | T21: 0
G22: 0 | H22: 0 | I22: 0 | J22: 0 | K22: 0 | L22: 0 | M22: 0 | N22: 0 | O22: 0 | P22: 0 | Q22: 0 | R22: 0 | S22: 0 | T22: 0
G23: 0 | H23: 0 | I23: 0 | J23: 0 | K23: 0 | L23: 0 | M23: 0 | N23: 0 | O23: 0 | P23: 0 | Q23: 0 | R23: 0 | S23: 0 | T23: 0
G24: 0 | H24: 0 | I24: 0 | J24: 0 | K24: 0 | L24: 0 | M24: 0 | N24: 0 | O24: 0 | P24: 0 | Q24: 0 | R24: 0 | S24: 0 | T24: 0
G25: 0 | H25: 0 | I25: 0 | J25: 0 | K25: 0 | L25: 0 | M25: 0 | N25: 0 | O25: 0 | P25: 0 | Q25: 0 | R25: 0 | S25: 0 | T25: 0
G26: 0 | H26: 0 | I26: 0 | J26: 0 | K26: 0 | L26: 0 | M26: 0 | N26: 0 | O26: 0 | P26: 0 | Q26: 0 | R26: 0 | S26: 0 | T26: 0
G27: 0 | H27: 0 | I27: 0 | J27: 0 | K27: 0 | L27: 0 | M27: 0 | N27: 0 | O27: 0 | P27: 0 | Q27: 0 | R27: 0 | S27: 0 | T27: 0
G28: 0 | H28: 0 | I28: 0 | J28: 0 | K28: 0 | L28: 0 | M28: 0 | N28: 0 | O28: 0 | P28: 0 | Q28: 0 | R28: 0 | S28: 0 | T28: 0
G29: 0 | H29: 0 | I29: 0 | J29: 0 | K29: 0 | L29: 0 | M29: 0 | N29: 0 | O29: 0 | P29: 0 | Q29: 0 | R29: 0 | S29: 0 | T29: 0
G30: 0 | H30: 0 | I30: 0 | J30: 0 | K30: 0 | L30: 0 | M30: 0 | N30: 0 | O30: 0 | P30: 0 | Q30: 0 | R30: 0 | S30: 0 | T30: 0
G31: 0 | H31: 0 | I31: 0 | J31: 0 | K31: 0 | L31: 0 | M31: 0 | N31: 0 | O31: 0 | P31: 0 | Q31: 0 | R31: 0 | S31: 0 | T31: 0
G32: 0 | H32: 0 | I32: 0 | J32: 0 | K32: 0 | L32: 0 | M32: 0 | N32: 0 | O32: 0 | P32: 0 | Q32: 0 | R32: 0 | S32: 0 | T32: 0
G33: 0 | H33: 0 | I33: 0 | J33: 0 | K33: 0 | L33: 0 | M33: 0 | N33: 0 | O33: 0 | P33: 0 | Q33: 0 | R33: 0 | S33: 0 | T33: 0
G34: 0 | H34: 0 | I34: 0 | J34: 0 | K34: 0 | L34: 0 | M34: 0 | N34: 0 | O34: 0 | P34: 0 | Q34: 0 | R34: 0 | S34: 0 | T34: 0
G35: 0 | H35: 0 | I35: 0 | J35: 0 | K35: 0 | L35: 0 | M35: 0 | N35: 0 | O35: 0 | P35: 0 | Q35: 0 | R35: 0 | S35: 0 | T35: 0
G36: 0 | H36: 0 | I36: 0 | J36: 0 | K36: 0 | L36: 0 | M36: 0 | N36: 0 | O36: 0 | P36: 0 | Q36: 0 | R36: 0 | S36: 0 | T36: 0
G37: 0 | H37: 0 | I37: 0 | J37: 0 | K37: 0 | L37: 0 | M37: 0 | N37: 0 | O37: 0 | P37: 0 | Q37: 0 | R37: 0 | S37: 0 | T37: 0
G38: 0 | H38: 0 | I38: 0 | J38: 0 | K38: 0 | L38: 0 | M38: 0 | N38: 0 | O38: 0 | P38: 0 | Q38: 0 | R38: 0 | S38: 0 | T38: 0
G39: 0 | H39: 0 | I39: 0 | J39: 0 | K39: 0 | L39: 0 | M39: 0 | N39: 0 | O39: 0 | P39: 0 | Q39: 0 | R39: 0 | S39: 0 | T39: 0
G40: 0 | H40: 0 | I40: 0 | J40: 0 | K40: 0 | L40: 0 | M40: 0 | N40: 0 | O40: 0 | P40: 0 | Q40: 0 | R40: 0 | S40: 0 | T40: 0
G41: 0 | H41: 0 | I41: 0 | J41: 0 | K41: 0 | L41: 0 | M41: 0 | N41: 0 | O41: 0 | P41: 0 | Q41: 0 | R41: 0 | S41: 0 | T41: 0
G42: 0 | H42: 0 | I42: 0 | J42: 0 | K42: 0 | L42: 0 | M42: 0 | N42: 0 | O42: 0 | P42: 0 | Q42: 0 | R42: 0 | S42: 0 | T42: 0
G43: 0 | H43: 0 | I43: 0 | J43: 0 | K43: 0 | L43: 0 | M43: 0 | N43: 0 | O43: 0 | P43: 0 | Q43: 0 | R43: 0 | S43: 0 | T43: 0
G44: 0 | H44: 0 | I44: 0 | J44: 0 | K44: 0 | L44: 0 | M44: 0 | N44: 0 | O44: 0 | P44: 0 | Q44: 0 | R44: 0 | S44: 0 | T44: 0
G45: 0 | H45: 0 | I45: 0 | J45: 0 | K45: 0 | L45: 0 | M45: 0 | N45: 0 | O45: 0 | P45: 0 | Q45: 0 | R45: 0 | S45: 0 | T45: 0
G46: 0 | H46: 0 | I46: 0 | J46: 0 | K46: 0 | L46: 0 | M46: 0 | N46: 0 | O46: 0 | P46: 0 | Q46: 0 | R46: 0 | S46: 0 | T46: 0
G47: 0 | H47: 0 | I47: 0 | J47: 0 | K47: 0 | L47: 0 | M47: 0 | N47: 0 | O47: 0 | P47: 0 | Q47: 0 | R47: 0 | S47: 0 | T47: 0
G48: 0 | H48: 0 | I48: 0 | J48: 0 | K48: 0 | L48: 0 | M48: 0 | N48: 0 | O48: 0 | P48: 0 | Q48: 0 | R48: 0 | S48: 0 | T48: 0
G49: 0 | H49: 0 | I49: 0 | J49: 0 | K49: 0 | L49: 0 | M49: 0 | N49: 0 | O49: 0 | P49: 0 | Q49: 0 | R49: 0 | S49: 0 | T49: 0
G50: 0 | H50: 0 | I50: 0 | J50: 0 | K50: 0 | L50: 0 | M50: 0 | N50: 0 | O50: 0 | P50: 0 | Q50: 0 | R50: 0 | S50: 0 | T50: 0
G51: 0 | H51: 0 | I51: 0 | J51: 0 | K51: 0 | L51: 0 | M51: 0 | N51: 0 | O51: 0 | P51: 0 | Q51: 0 | R51: 0 | S51: 0 | T51: 0
G52: 0 | H52: 0 | I52: 0 | J52: 0 | K52: 0 | L52: 0 | M52: 0 | N52: 0 | O52: 0 | P52: 0 | Q52: 0 | R52: 0 | S52: 0 | T52: 0
G53: 0 | H53: 0 | I53: 0 | J53: 0 | K53: 0 | L53: 0 | M53: 0 | N53: 0 | O53: 0 | P53: 0 | Q53: 0 | R53: 0 | S53: 0 | T53: 0
G54: 0 | H54: 0 | I54: 0 | J54: 0 | K54: 0 | L54: 0 | M54: 0 | N54: 0 | O54: 0 | P54: 0 | Q54: 0 | R54: 0 | S54: 0 | T54: 0
G55: 0 | H55: 0 | I55: 0 | J55: 0 | K55: 0 | L55: 0 | M55: 0 | N55: 0 | O55: 0 | P55: 0 | Q55: 0 | R55: 0 | S55: 0 | T55: 0
G56: 0 | H56: 0 | I56: 0 | J56: 0 | K56: 0 | L56: 0 | M56: 0 | N56: 0 | O56: 0 | P56: 0 | Q56: 0 | R56: 0 | S56: 0 | T56: 0
G57: 0 | H57: 0 | I57: 0 | J57: 0 | K57: 0 | L57: 0 | M57: 0 | N57: 0 | O57: 0 | P57: 0 | Q57: 0 | R57: 0 | S57: 0 | T57: 0
G58: 0 | H58: 0 | I58: 0 | J58: 0 | K58: 0 | L58: 0 | M58: 0 | N58: 0 | O58: 0 | P58: 0 | Q58: 0 | R58: 0 | S58: 0 | T58: 0
G59: 0 | H59: 0 | I59: 0 | J59: 0 | K59: 0 | L59: 0 | M59: 0 | N59: 0 | O59: 0 | P59: 0 | Q59: 0 | R59: 0 | S59: 0 | T59: 0
G60: 0 | H60: 0 | I60: 0 | J60: 0 | K60: 0 | L60: 0 | M60: 0 | N60: 0 | O60: 0 | P60: 0 | Q60: 0 | R60: 0 | S60: 0 | T60: 0
G61: 0 | H61: 0 | I61: 0 | J61: 0 | K61: 0 | L61: 0 | M61: 0 | N61: 0 | O61: 0 | P61: 0 | Q61: 0 | R61: 0 | S61: 0 | T61: 0
G62: 0 | H62: 0 | I62: 0 | J62: 0 | K62: 0 | L62: 0 | M62: 0 | N62: 0 | O62: 0 | P62: 0 | Q62: 0 | R62: 0 | S62: 0 | T62: 0
G63: 0 | H63: 0 | I63: 0 | J63: 0 | K63: 0 | L63: 0 | M63: 0 | N63: 0 | O63: 0 | P63: 0 | Q63: 0 | R63: 0 | S63: 0 | T63: 0
G64: 0 | H64: 0 | I64: 0 | J64: 0 | K64: 0 | L64: 0 | M64: 0 | N64: 0 | O64: 0 | P64: 0 | Q64: 0 | R64: 0 | S64: 0 | T64: 0
G65: 0 | H65: 0 | I65: 0 | J65: 0 | K65: 0 | L65: 0 | M65: 0 | N65: 0 | O65: 0 | P65: 0 | Q65: 0 | R65: 0 | S65: 0 | T65: 0
G66: 0 | H66: 0 | I66: 0 | J66: 0 | K66: 0 | L66: 0 | M66: 0 | N66: 0 | O66: 0 | P66: 0 | Q66: 0 | R66: 0 | S66: 0 | T66: 0
G67: 0 | H67: 0 | I67: 0 | J67: 0 | K67: 0 | L67: 0 | M67: 0 | N67: 0 | O67: 0 | P67: 0 | Q67: 0 | R67: 0 | S67: 0 | T67: 0
G68: =IFERROR(VLOOKUP(dfenum&D68,rates,2,0),0) -> 0 | H68: 0 | I68: 0 | J68: 0 | K68: 0 | L68: 0 | M68: 0 | N68: 0 | O68: 0 | P68: 0 | Q68: 0 | R68: 0 | S68: 0 | T68: =SUM(H68:S68) -> 0
G69: 0 | H69: =IF(AND($E69<DATE(2023,4,1),$F69>DATE(2023,2,28)),$G69/12,0) -> 0 | I69: =IF(AND($E69<DATE(2023,5,1),$F69>DATE(2023,3,31)),$G69/12,0) -> 0 | J69: =IF(AND($E69<DATE(2023,6,1),$F69>DATE(2023,4,30)),$G69/12,0) -> 0 | K69: =IF(AND($E69<DATE(2023,7,1),$F69>DATE(2023,5,31)),$G69/12,0) -> 0 | L69: =IF(AND($E69<DATE(2023,8,1),$F69>DATE(2023,6,30)),$G69/12,0) -> 0 | M69: 0 | N69: =IF(AND($E69<DATE(2023,10,1),$F69>DATE(2023,8,31)),$G69/12,0) -> 0 | O69: =IF(AND($E69<DATE(2023,11,1),$F69>DATE(2023,9,30)),$G69/12,0) -> 0 | P69: =IF(AND($E69<DATE(2023,12,1),$F69>DATE(2023,10,31)),$G69/12,0) -> 0 | Q69: =IF(AND($E69<DATE(2024,1,1),$F69>DATE(2023,11,30)),$G69/12,0) -> 0 | R69: =IF(AND($E69<DATE(2024,2,1),$F69>DATE(2023,12,31)),$G69/12,0) -> 0 | S69: =IF(AND($E69<DATE(2024,3,1),$F69>DATE(2024,1,31)),$G69/12,0) -> 0 | T69: 0
G70: 0 | H70: 0 | I70: 0 | J70: 0 | K70: 0 | L70: 0 | M70: 0 | N70: 0 | O70: 0 | P70: 0 | Q70: 0 | R70: 0 | S70: 0 | T70: 0
G71: 0 | H71: 0 | I71: 0 | J71: 0 | K71: 0 | L71: 0 | M71: 0 | N71: 0 | O71: 0 | P71: 0 | Q71: 0 | R71: 0 | S71: 0 | T71: 0
G72: 0 | H72: 0 | I72: 0 | J72: 0 | K72: 0 | L72: 0 | M72: 0 | N72: 0 | O72: 0 | P72: 0 | Q72: 0 | R72: 0 | S72: 0 | T72: 0
G73: 0 | H73: 0 | I73: 0 | J73: 0 | K73: 0 | L73: 0 | M73: 0 | N73: 0 | O73: 0 | P73: 0 | Q73: 0 | R73: 0 | S73: 0 | T73: 0
G74: 0 | H74: 0 | I74: 0 | J74: 0 | K74: 0 | L74: 0 | M74: 0 | N74: 0 | O74: 0 | P74: 0 | Q74: 0 | R74: 0 | S74: 0 | T74: 0
G75: 0 | H75: 0 | I75: 0 | J75: 0 | K75: 0 | L75: 0 | M75: 0 | N75: 0 | O75: 0 | P75: 0 | Q75: 0 | R75: 0 | S75: 0 | T75: 0
G76: 0 | H76: 0 | I76: 0 | J76: 0 | K76: 0 | L76: 0 | M76: 0 | N76: 0 | O76: 0 | P76: 0 | Q76: 0 | R76: 0 | S76: 0 | T76: 0
G77: 0 | H77: 0 | I77: 0 | J77: 0 | K77: 0 | L77: 0 | M77: 0 | N77: 0 | O77: 0 | P77: 0 | Q77: 0 | R77: 0 | S77: 0 | T77: 0
G78: 0 | H78: 0 | I78: 0 | J78: 0 | K78: 0 | L78: 0 | M78: 0 | N78: 0 | O78: 0 | P78: 0 | Q78: 0 | R78: 0 | S78: 0 | T78: 0
G79: 0 | H79: 0 | I79: 0 | J79: 0 | K79: 0 | L79: 0 | M79: 0 | N79: 0 | O79: 0 | P79: 0 | Q79: 0 | R79: 0 | S79: 0 | T79: 0
G80: 0 | H80: 0 | I80: 0 | J80: 0 | K80: 0 | L80: 0 | M80: 0 | N80: 0 | O80: 0 | P80: 0 | Q80: 0 | R80: 0 | S80: 0 | T80: 0
G81: 0 | H81: 0 | I81: 0 | J81: 0 | K81: 0 | L81: 0 | M81: 0 | N81: 0 | O81: 0 | P81: 0 | Q81: 0 | R81: 0 | S81: 0 | T81: 0
G82: 0 | H82: 0 | I82: 0 | J82: 0 | K82: 0 | L82: 0 | M82: 0 | N82: 0 | O82: 0 | P82: 0 | Q82: 0 | R82: 0 | S82: 0 | T82: 0
G83: 0 | H83: 0 | I83: 0 | J83: 0 | K83: 0 | L83: 0 | M83: 0 | N83: 0 | O83: 0 | P83: 0 | Q83: 0 | R83: 0 | S83: 0 | T83: 0
G84: 0 | H84: 0 | I84: 0 | J84: 0 | K84: 0 | L84: 0 | M84: 0 | N84: 0 | O84: 0 | P84: 0 | Q84: 0 | R84: 0 | S84: 0 | T84: 0
G85: 0 | H85: 0 | I85: 0 | J85: 0 | K85: 0 | L85: 0 | M85: 0 | N85: 0 | O85: 0 | P85: 0 | Q85: 0 | R85: 0 | S85: 0 | T85: 0
G86: 0 | H86: 0 | I86: 0 | J86: 0 | K86: 0 | L86: 0 | M86: 0 | N86: 0 | O86: 0 | P86: 0 | Q86: 0 | R86: 0 | S86: 0 | T86: 0
G87: 0 | H87: 0 | I87: 0 | J87: 0 | K87: 0 | L87: 0 | M87: 0 | N87: 0 | O87: 0 | P87: 0 | Q87: 0 | R87: 0 | S87: 0 | T87: 0
G88: 0 | H88: 0 | I88: 0 | J88: 0 | K88: 0 | L88: 0 | M88: 0 | N88: 0 | O88: 0 | P88: 0 | Q88: 0 | R88: 0 | S88: 0 | T88: 0
G89: 0 | H89: 0 | I89: 0 | J89: 0 | K89: 0 | L89: 0 | M89: 0 | N89: 0 | O89: 0 | P89: 0 | Q89: 0 | R89: 0 | S89: 0 | T89: 0
G90: 0 | H90: 0 | I90: 0 | J90: 0 | K90: 0 | L90: 0 | M90: 0 | N90: 0 | O90: 0 | P90: 0 | Q90: 0 | R90: 0 | S90: 0 | T90: 0
G91: 0 | H91: 0 | I91: 0 | J91: 0 | K91: 0 | L91: 0 | M91: 0 | N91: 0 | O91: 0 | P91: 0 | Q91: 0 | R91: 0 | S91: 0 | T91: 0
G92: 0 | H92: 0 | I92: 0 | J92: 0 | K92: 0 | L92: 0 | M92: 0 | N92: 0 | O92: 0 | P92: 0 | Q92: 0 | R92: 0 | S92: 0 | T92: 0
G93: 0 | H93: 0 | I93: 0 | J93: 0 | K93: 0 | L93: 0 | M93: 0 | N93: 0 | O93: 0 | P93: 0 | Q93: 0 | R93: 0 | S93: 0 | T93: 0
G94: 0 | H94: 0 | I94: 0 | J94: 0 | K94: 0 | L94: 0 | M94: 0 | N94: 0 | O94: 0 | P94: 0 | Q94: 0 | R94: 0 | S94: 0 | T94: 0
G95: 0 | H95: 0 | I95: 0 | J95: 0 | K95: 0 | L95: 0 | M95: 0 | N95: 0 | O95: 0 | P95: 0 | Q95: 0 | R95: 0 | S95: 0 | T95: 0
G96: 0 | H96: 0 | I96: 0 | J96: 0 | K96: 0 | L96: 0 | M96: 0 | N96: 0 | O96: 0 | P96: 0 | Q96: 0 | R96: 0 | S96: 0 | T96: 0
G97: 0 | H97: 0 | I97: 0 | J97: 0 | K97: 0 | L97: 0 | M97: 0 | N97: 0 | O97: 0 | P97: 0 | Q97: 0 | R97: 0 | S97: 0 | T97: 0
G98: 0 | H98: 0 | I98: 0 | J98: 0 | K98: 0 | L98: 0 | M98: 0 | N98: 0 | O98: 0 | P98: 0 | Q98: 0 | R98: 0 | S98: 0 | T98: 0
G99: 0 | H99: 0 | I99: 0 | J99: 0 | K99: 0 | L99: 0 | M99: 0 | N99: 0 | O99: 0 | P99: 0 | Q99: 0 | R99: 0 | S99: 0 | T99: 0
G100: 0 | H100: 0 | I100: 0 | J100: 0 | K100: 0 | L100: 0 | M100: 0 | N100: 0 | O100: 0 | P100: 0 | Q100: 0 | R100: 0 | S100: 0 | T100: 0
G101: 0 | H101: 0 | I101: 0 | J101: 0 | K101: 0 | L101: 0 | M101: 0 | N101: 0 | O101: 0 | P101: 0 | Q101: 0 | R101: 0 | S101: 0 | T101: 0
G102: 0 | H102: 0 | I102: 0 | J102: 0 | K102: 0 | L102: 0 | M102: 0 | N102: 0 | O102: 0 | P102: 0 | Q102: 0 | R102: 0 | S102: 0 | T102: 0
G103: 0 | H103: 0 | I103: 0 | J103: 0 | K103: 0 | L103: 0 | M103: 0 | N103: 0 | O103: 0 | P103: 0 | Q103: 0 | R103: 0 | S103: 0 | T103: 0
G104: 0 | H104: 0 | I104: 0 | J104: 0 | K104: 0 | L104: 0 | M104: 0 | N104: 0 | O104: 0 | P104: 0 | Q104: 0 | R104: 0 | S104: 0 | T104: 0
G105: 0 | H105: 0 | I105: 0 | J105: 0 | K105: 0 | L105: 0 | M105: 0 | N105: 0 | O105: 0 | P105: 0 | Q105: 0 | R105: 0 | S105: 0 | T105: 0
G106: 0 | H106: 0 | I106: 0 | J106: 0 | K106: 0 | L106: 0 | M106: 0 | N106: 0 | O106: 0 | P106: 0 | Q106: 0 | R106: 0 | S106: 0 | T106: 0
G107: 0 | H107: 0 | I107: 0 | J107: 0 | K107: 0 | L107: 0 | M107: 0 | N107: 0 | O107: 0 | P107: 0 | Q107: 0 | R107: 0 | S107: 0 | T107: 0
G108: 0 | H108: 0 | I108: 0 | J108: 0 | K108: 0 | L108: 0 | M108: 0 | N108: 0 | O108: 0 | P108: 0 | Q108: 0 | R108: 0 | S108: 0 | T108: 0
G109: 0 | H109: 0 | I109: 0 | J109: 0 | K109: 0 | L109: 0 | M109: 0 | N109: 0 | O109: 0 | P109: 0 | Q109: 0 | R109: 0 | S109: 0 | T109: 0
G110: 0 | H110: 0 | I110: 0 | J110: 0 | K110: 0 | L110: 0 | M110: 0 | N110: 0 | O110: 0 | P110: 0 | Q110: 0 | R110: 0 | S110: 0 | T110: 0
G111: 0 | H111: 0 | I111: 0 | J111: 0 | K111: 0 | L111: 0 | M111: 0 | N111: 0 | O111: 0 | P111: 0 | Q111: 0 | R111: 0 | S111: 0 | T111: 0
G112: 0 | H112: 0 | I112: 0 | J112: 0 | K112: 0 | L112: 0 | M112: 0 | N112: 0 | O112: 0 | P112: 0 | Q112: 0 | R112: 0 | S112: 0 | T112: 0
G113: 0 | H113: 0 | I113: 0 | J113: 0 | K113: 0 | L113: 0 | M113: 0 | N113: 0 | O113: 0 | P113: 0 | Q113: 0 | R113: 0 | S113: 0 | T113: 0
G114: 0 | H114: 0 | I114: 0 | J114: 0 | K114: 0 | L114: 0 | M114: 0 | N114: 0 | O114: 0 | P114: 0 | Q114: 0 | R114: 0 | S114: 0 | T114: 0
G115: 0 | H115: 0 | I115: 0 | J115: 0 | K115: 0 | L115: 0 | M115: 0 | N115: 0 | O115: 0 | P115: 0 | Q115: 0 | R115: 0 | S115: 0 | T115: 0
G116: 0 | H116: 0 | I116: 0 | J116: 0 | K116: 0 | L116: 0 | M116: 0 | N116: 0 | O116: 0 | P116: 0 | Q116: 0 | R116: 0 | S116: 0 | T116: 0
G117: 0 | H117: 0 | I117: 0 | J117: 0 | K117: 0 | L117: 0 | M117: 0 | N117: 0 | O117: 0 | P117: 0 | Q117: 0 | R117: 0 | S117: 0 | T117: 0
G118: 0 | H118: 0 | I118: 0 | J118: 0 | K118: 0 | L118: 0 | M118: 0 | N118: 0 | O118: 0 | P118: 0 | Q118: 0 | R118: 0 | S118: 0 | T118: 0
G119: 0 | H119: 0 | I119: 0 | J119: 0 | K119: 0 | L119: 0 | M119: 0 | N119: 0 | O119: 0 | P119: 0 | Q119: 0 | R119: 0 | S119: 0 | T119: 0
G120: 0 | H120: 0 | I120: 0 | J120: 0 | K120: 0 | L120: 0 | M120: 0 | N120: 0 | O120: 0 | P120: 0 | Q120: 0 | R120: 0 | S120: 0 | T120: 0
G121: 0 | H121: 0 | I121: 0 | J121: 0 | K121: 0 | L121: 0 | M121: 0 | N121: 0 | O121: 0 | P121: 0 | Q121: 0 | R121: 0 | S121: 0 | T121: 0
G122: 0 | H122: 0 | I122: 0 | J122: 0 | K122: 0 | L122: 0 | M122: 0 | N122: 0 | O122: 0 | P122: 0 | Q122: 0 | R122: 0 | S122: 0 | T122: 0
G123: 0 | H123: 0 | I123: 0 | J123: 0 | K123: 0 | L123: 0 | M123: 0 | N123: 0 | O123: 0 | P123: 0 | Q123: 0 | R123: 0 | S123: 0 | T123: 0
G124: 0 | H124: 0 | I124: 0 | J124: 0 | K124: 0 | L124: 0 | M124: 0 | N124: 0 | O124: 0 | P124: 0 | Q124: 0 | R124: 0 | S124: 0 | T124: 0
G125: 0 | H125: 0 | I125: 0 | J125: 0 | K125: 0 | L125: 0 | M125: 0 | N125: 0 | O125: 0 | P125: 0 | Q125: 0 | R125: 0 | S125: 0 | T125: 0
G126: 0 | H126: 0 | I126: 0 | J126: 0 | K126: 0 | L126: 0 | M126: 0 | N126: 0 | O126: 0 | P126: 0 | Q126: 0 | R126: 0 | S126: 0 | T126: 0
G127: 0 | H127: 0 | I127: 0 | J127: 0 | K127: 0 | L127: 0 | M127: 0 | N127: 0 | O127: 0 | P127: 0 | Q127: 0 | R127: 0 | S127: 0 | T127: 0
G128: 0 | H128: 0 | I128: 0 | J128: 0 | K128: 0 | L128: 0 | M128: 0 | N128: 0 | O128: 0 | P128: 0 | Q128: 0 | R128: 0 | S128: 0 | T128: 0
G129: 0 | H129: 0 | I129: 0 | J129: 0 | K129: 0 | L129: 0 | M129: 0 | N129: 0 | O129: 0 | P129: 0 | Q129: 0 | R129: 0 | S129: 0 | T129: 0
G130: 0 | H130: 0 | I130: 0 | J130: 0 | K130: 0 | L130: 0 | M130: 0 | N130: 0 | O130: 0 | P130: 0 | Q130: 0 | R130: 0 | S130: 0 | T130: 0
G131: 0 | H131: 0 | I131: 0 | J131: 0 | K131: 0 | L131: 0 | M131: 0 | N131: 0 | O131: 0 | P131: 0 | Q131: 0 | R131: 0 | S131: 0 | T131: 0
G132: =IFERROR(VLOOKUP(dfenum&D132,rates,2,0),0) -> 0 | H132: 0 | I132: 0 | J132: 0 | K132: 0 | L132: 0 | M132: 0 | N132: 0 | O132: 0 | P132: 0 | Q132: 0 | R132: 0 | S132: 0 | T132: =SUM(H132:S132) -> 0
G133: 0 | H133: =IF(AND($E133<DATE(2023,4,1),$F133>DATE(2023,2,28)),$G133/12,0) -> 0 | I133: =IF(AND($E133<DATE(2023,5,1),$F133>DATE(2023,3,31)),$G133/12,0) -> 0 | J133: =IF(AND($E133<DATE(2023,6,1),$F133>DATE(2023,4,30)),$G133/12,0) -> 0 | K133: =IF(AND($E133<DATE(2023,7,1),$F133>DATE(2023,5,31)),$G133/12,0) -> 0 | L133: =IF(AND($E133<DATE(2023,8,1),$F133>DATE(2023,6,30)),$G133/12,0) -> 0 | M133: 0 | N133: =IF(AND($E133<DATE(2023,10,1),$F133>DATE(2023,8,31)),$G133/12,0) -> 0 | O133: =IF(AND($E133<DATE(2023,11,1),$F133>DATE(2023,9,30)),$G133/12,0) -> 0 | P133: =IF(AND($E133<DATE(2023,12,1),$F133>DATE(2023,10,31)),$G133/12,0) -> 0 | Q133: =IF(AND($E133<DATE(2024,1,1),$F133>DATE(2023,11,30)),$G133/12,0) -> 0 | R133: =IF(AND($E133<DATE(2024,2,1),$F133>DATE(2023,12,31)),$G133/12,0) -> 0 | S133: =IF(AND($E133<DATE(2024,3,1),$F133>DATE(2024,1,31)),$G133/12,0) -> 0 | T133: 0
G134: 0 | H134: 0 | I134: 0 | J134: 0 | K134: 0 | L134: 0 | M134: 0 | N134: 0 | O134: 0 | P134: 0 | Q134: 0 | R134: 0 | S134: 0 | T134: 0
G135: 0 | H135: 0 | I135: 0 | J135: 0 | K135: 0 | L135: 0 | M135: 0 | N135: 0 | O135: 0 | P135: 0 | Q135: 0 | R135: 0 | S135: 0 | T135: 0
G136: 0 | H136: 0 | I136: 0 | J136: 0 | K136: 0 | L136: 0 | M136: 0 | N136: 0 | O136: 0 | P136: 0 | Q136: 0 | R136: 0 | S136: 0 | T136: 0
G137: 0 | H137: 0 | I137: 0 | J137: 0 | K137: 0 | L137: 0 | M137: 0 | N137: 0 | O137: 0 | P137: 0 | Q137: 0 | R137: 0 | S137: 0 | T137: 0
G138: 0 | H138: 0 | I138: 0 | J138: 0 | K138: 0 | L138: 0 | M138: 0 | N138: 0 | O138: 0 | P138: 0 | Q138: 0 | R138: 0 | S138: 0 | T138: 0
G139: 0 | H139: 0 | I139: 0 | J139: 0 | K139: 0 | L139: 0 | M139: 0 | N139: 0 | O139: 0 | P139: 0 | Q139: 0 | R139: 0 | S139: 0 | T139: 0
G140: 0 | H140: 0 | I140: 0 | J140: 0 | K140: 0 | L140: 0 | M140: 0 | N140: 0 | O140: 0 | P140: 0 | Q140: 0 | R140: 0 | S140: 0 | T140: 0
G141: 0 | H141: 0 | I141: 0 | J141: 0 | K141: 0 | L141: 0 | M141: 0 | N141: 0 | O141: 0 | P141: 0 | Q141: 0 | R141: 0 | S141: 0 | T141: 0
G142: 0 | H142: 0 | I142: 0 | J142: 0 | K142: 0 | L142: 0 | M142: 0 | N142: 0 | O142: 0 | P142: 0 | Q142: 0 | R142: 0 | S142: 0 | T142: 0
G143: 0 | H143: 0 | I143: 0 | J143: 0 | K143: 0 | L143: 0 | M143: 0 | N143: 0 | O143: 0 | P143: 0 | Q143: 0 | R143: 0 | S143: 0 | T143: 0
G144: 0 | H144: 0 | I144: 0 | J144: 0 | K144: 0 | L144: 0 | M144: 0 | N144: 0 | O144: 0 | P144: 0 | Q144: 0 | R144: 0 | S144: 0 | T144: 0
G145: 0 | H145: 0 | I145: 0 | J145: 0 | K145: 0 | L145: 0 | M145: 0 | N145: 0 | O145: 0 | P145: 0 | Q145: 0 | R145: 0 | S145: 0 | T145: 0
G146: 0 | H146: 0 | I146: 0 | J146: 0 | K146: 0 | L146: 0 | M146: 0 | N146: 0 | O146: 0 | P146: 0 | Q146: 0 | R146: 0 | S146: 0 | T146: 0
G147: 0 | H147: 0 | I147: 0 | J147: 0 | K147: 0 | L147: 0 | M147: 0 | N147: 0 | O147: 0 | P147: 0 | Q147: 0 | R147: 0 | S147: 0 | T147: 0
G148: 0 | H148: 0 | I148: 0 | J148: 0 | K148: 0 | L148: 0 | M148: 0 | N148: 0 | O148: 0 | P148: 0 | Q148: 0 | R148: 0 | S148: 0 | T148: 0
G149: 0 | H149: 0 | I149: 0 | J149: 0 | K149: 0 | L149: 0 | M149: 0 | N149: 0 | O149: 0 | P149: 0 | Q149: 0 | R149: 0 | S149: 0 | T149: 0
G150: 0 | H150: 0 | I150: 0 | J150: 0 | K150: 0 | L150: 0 | M150: 0 | N150: 0 | O150: 0 | P150: 0 | Q150: 0 | R150: 0 | S150: 0 | T150: 0
G151: 0 | H151: 0 | I151: 0 | J151: 0 | K151: 0 | L151: 0 | M151: 0 | N151: 0 | O151: 0 | P151: 0 | Q151: 0 | R151: 0 | S151: 0 | T151: 0
G152: 0 | H152: 0 | I152: 0 | J152: 0 | K152: 0 | L152: 0 | M152: 0 | N152: 0 | O152: 0 | P152: 0 | Q152: 0 | R152: 0 | S152: 0 | T152: 0
G153: 0 | H153: 0 | I153: 0 | J153: 0 | K153: 0 | L153: 0 | M153: 0 | N153: 0 | O153: 0 | P153: 0 | Q153: 0 | R153: 0 | S153: 0 | T153: 0
G154: 0 | H154: 0 | I154: 0 | J154: 0 | K154: 0 | L154: 0 | M154: 0 | N154: 0 | O154: 0 | P154: 0 | Q154: 0 | R154: 0 | S154: 0 | T154: 0
G155: 0 | H155: 0 | I155: 0 | J155: 0 | K155: 0 | L155: 0 | M155: 0 | N155: 0 | O155: 0 | P155: 0 | Q155: 0 | R155: 0 | S155: 0 | T155: 0
G156: 0 | H156: 0 | I156: 0 | J156: 0 | K156: 0 | L156: 0 | M156: 0 | N156: 0 | O156: 0 | P156: 0 | Q156: 0 | R156: 0 | S156: 0 | T156: 0
G157: 0 | H157: 0 | I157: 0 | J157: 0 | K157: 0 | L157: 0 | M157: 0 | N157: 0 | O157: 0 | P157: 0 | Q157: 0 | R157: 0 | S157: 0 | T157: 0
G158: 0 | H158: 0 | I158: 0 | J158: 0 | K158: 0 | L158: 0 | M158: 0 | N158: 0 | O158: 0 | P158: 0 | Q158: 0 | R158: 0 | S158: 0 | T158: 0
G159: 0 | H159: 0 | I159: 0 | J159: 0 | K159: 0 | L159: 0 | M159: 0 | N159: 0 | O159: 0 | P159: 0 | Q159: 0 | R159: 0 | S159: 0 | T159: 0
G160: 0 | H160: 0 | I160: 0 | J160: 0 | K160: 0 | L160: 0 | M160: 0 | N160: 0 | O160: 0 | P160: 0 | Q160: 0 | R160: 0 | S160: 0 | T160: 0
G161: 0 | H161: 0 | I161: 0 | J161: 0 | K161: 0 | L161: 0 | M161: 0 | N161: 0 | O161: 0 | P161: 0 | Q161: 0 | R161: 0 | S161: 0 | T161: 0
G162: 0 | H162: 0 | I162: 0 | J162: 0 | K162: 0 | L162: 0 | M162: 0 | N162: 0 | O162: 0 | P162: 0 | Q162: 0 | R162: 0 | S162: 0 | T162: 0
G163: 0 | H163: 0 | I163: 0 | J163: 0 | K163: 0 | L163: 0 | M163: 0 | N163: 0 | O163: 0 | P163: 0 | Q163: 0 | R163: 0 | S163: 0 | T163: 0
G164: 0 | H164: 0 | I164: 0 | J164: 0 | K164: 0 | L164: 0 | M164: 0 | N164: 0 | O164: 0 | P164: 0 | Q164: 0 | R164: 0 | S164: 0 | T164: 0
G165: 0 | H165: 0 | I165: 0 | J165: 0 | K165: 0 | L165: 0 | M165: 0 | N165: 0 | O165: 0 | P165: 0 | Q165: 0 | R165: 0 | S165: 0 | T165: 0
G166: 0 | H166: 0 | I166: 0 | J166: 0 | K166: 0 | L166: 0 | M166: 0 | N166: 0 | O166: 0 | P166: 0 | Q166: 0 | R166: 0 | S166: 0 | T166: 0
G167: 0 | H167: 0 | I167: 0 | J167: 0 | K167: 0 | L167: 0 | M167: 0 | N167: 0 | O167: 0 | P167: 0 | Q167: 0 | R167: 0 | S167: 0 | T167: 0
G168: 0 | H168: 0 | I168: 0 | J168: 0 | K168: 0 | L168: 0 | M168: 0 | N168: 0 | O168: 0 | P168: 0 | Q168: 0 | R168: 0 | S168: 0 | T168: 0
G169: 0 | H169: 0 | I169: 0 | J169: 0 | K169: 0 | L169: 0 | M169: 0 | N169: 0 | O169: 0 | P169: 0 | Q169: 0 | R169: 0 | S169: 0 | T169: 0
G170: 0 | H170: 0 | I170: 0 | J170: 0 | K170: 0 | L170: 0 | M170: 0 | N170: 0 | O170: 0 | P170: 0 | Q170: 0 | R170: 0 | S170: 0 | T170: 0
G171: 0 | H171: 0 | I171: 0 | J171: 0 | K171: 0 | L171: 0 | M171: 0 | N171: 0 | O171: 0 | P171: 0 | Q171: 0 | R171: 0 | S171: 0 | T171: 0
G172: 0 | H172: 0 | I172: 0 | J172: 0 | K172: 0 | L172: 0 | M172: 0 | N172: 0 | O172: 0 | P172: 0 | Q172: 0 | R172: 0 | S172: 0 | T172: 0
G173: 0 | H173: 0 | I173: 0 | J173: 0 | K173: 0 | L173: 0 | M173: 0 | N173: 0 | O173: 0 | P173: 0 | Q173: 0 | R173: 0 | S173: 0 | T173: 0
G174: 0 | H174: 0 | I174: 0 | J174: 0 | K174: 0 | L174: 0 | M174: 0 | N174: 0 | O174: 0 | P174: 0 | Q174: 0 | R174: 0 | S174: 0 | T174: 0
G175: 0 | H175: 0 | I175: 0 | J175: 0 | K175: 0 | L175: 0 | M175: 0 | N175: 0 | O175: 0 | P175: 0 | Q175: 0 | R175: 0 | S175: 0 | T175: 0
G176: 0 | H176: 0 | I176: 0 | J176: 0 | K176: 0 | L176: 0 | M176: 0 | N176: 0 | O176: 0 | P176: 0 | Q176: 0 | R176: 0 | S176: 0 | T176: 0
G177: 0 | H177: 0 | I177: 0 | J177: 0 | K177: 0 | L177: 0 | M177: 0 | N177: 0 | O177: 0 | P177: 0 | Q177: 0 | R177: 0 | S177: 0 | T177: 0
G178: 0 | H178: 0 | I178: 0 | J178: 0 | K178: 0 | L178: 0 | M178: 0 | N178: 0 | O178: 0 | P178: 0 | Q178: 0 | R178: 0 | S178: 0 | T178: 0
G179: 0 | H179: 0 | I179: 0 | J179: 0 | K179: 0 | L179: 0 | M179: 0 | N179: 0 | O179: 0 | P179: 0 | Q179: 0 | R179: 0 | S179: 0 | T179: 0
G180: 0 | H180: 0 | I180: 0 | J180: 0 | K180: 0 | L180: 0 | M180: 0 | N180: 0 | O180: 0 | P180: 0 | Q180: 0 | R180: 0 | S180: 0 | T180: 0
G181: 0 | H181: 0 | I181: 0 | J181: 0 | K181: 0 | L181: 0 | M181: 0 | N181: 0 | O181: 0 | P181: 0 | Q181: 0 | R181: 0 | S181: 0 | T181: 0
G182: 0 | H182: 0 | I182: 0 | J182: 0 | K182: 0 | L182: 0 | M182: 0 | N182: 0 | O182: 0 | P182: 0 | Q182: 0 | R182: 0 | S182: 0 | T182: 0
G183: 0 | H183: 0 | I183: 0 | J183: 0 | K183: 0 | L183: 0 | M183: 0 | N183: 0 | O183: 0 | P183: 0 | Q183: 0 | R183: 0 | S183: 0 | T183: 0
G184: 0 | H184: 0 | I184: 0 | J184: 0 | K184: 0 | L184: 0 | M184: 0 | N184: 0 | O184: 0 | P184: 0 | Q184: 0 | R184: 0 | S184: 0 | T184: 0
G185: 0 | H185: 0 | I185: 0 | J185: 0 | K185: 0 | L185: 0 | M185: 0 | N185: 0 | O185: 0 | P185: 0 | Q185: 0 | R185: 0 | S185: 0 | T185: 0
G186: 0 | H186: 0 | I186: 0 | J186: 0 | K186: 0 | L186: 0 | M186: 0 | N186: 0 | O186: 0 | P186: 0 | Q186: 0 | R186: 0 | S186: 0 | T186: 0
G187: 0 | H187: 0 | I187: 0 | J187: 0 | K187: 0 | L187: 0 | M187: 0 | N187: 0 | O187: 0 | P187: 0 | Q187: 0 | R187: 0 | S187: 0 | T187: 0
G188: 0 | H188: 0 | I188: 0 | J188: 0 | K188: 0 | L188: 0 | M188: 0 | N188: 0 | O188: 0 | P188: 0 | Q188: 0 | R188: 0 | S188: 0 | T188: 0
G189: 0 | H189: 0 | I189: 0 | J189: 0 | K189: 0 | L189: 0 | M189: 0 | N189: 0 | O189: 0 | P189: 0 | Q189: 0 | R189: 0 | S189: 0 | T189: 0
G190: 0 | H190: 0 | I190: 0 | J190: 0 | K190: 0 | L190: 0 | M190: 0 | N190: 0 | O190: 0 | P190: 0 | Q190: 0 | R190: 0 | S190: 0 | T190: 0
G191: 0 | H191: 0 | I191: 0 | J191: 0 | K191: 0 | L191: 0 | M191: 0 | N191: 0 | O191: 0 | P191: 0 | Q191: 0 | R191: 0 | S191: 0 | T191: 0
G192: 0 | H192: 0 | I192: 0 | J192: 0 | K192: 0 | L192: 0 | M192: 0 | N192: 0 | O192: 0 | P192: 0 | Q192: 0 | R192: 0 | S192: 0 | T192: 0
G193: 0 | H193: 0 | I193: 0 | J193: 0 | K193: 0 | L193: 0 | M193: 0 | N193: 0 | O193: 0 | P193: 0 | Q193: 0 | R193: 0 | S193: 0 | T193: 0
G194: 0 | H194: 0 | I194: 0 | J194: 0 | K194: 0 | L194: 0 | M194: 0 | N194: 0 | O194: 0 | P194: 0 | Q194: 0 | R194: 0 | S194: 0 | T194: 0
G195: 0 | H195: 0 | I195: 0 | J195: 0 | K195: 0 | L195: 0 | M195: 0 | N195: 0 | O195: 0 | P195: 0 | Q195: 0 | R195: 0 | S195: 0 | T195: 0
G196: =IFERROR(VLOOKUP(dfenum&D196,rates,2,0),0) -> 0 | H196: 0 | I196: 0 | J196: 0 | K196: 0 | L196: 0 | M196: 0 | N196: 0 | O196: 0 | P196: 0 | Q196: 0 | R196: 0 | S196: 0 | T196: =SUM(H196:S196) -> 0
G197: 0 | H197: =IF(AND($E197<DATE(2023,4,1),$F197>DATE(2023,2,28)),$G197/12,0) -> 0 | I197: =IF(AND($E197<DATE(2023,5,1),$F197>DATE(2023,3,31)),$G197/12,0) -> 0 | J197: =IF(AND($E197<DATE(2023,6,1),$F197>DATE(2023,4,30)),$G197/12,0) -> 0 | K197: =IF(AND($E197<DATE(2023,7,1),$F197>DATE(2023,5,31)),$G197/12,0) -> 0 | L197: =IF(AND($E197<DATE(2023,8,1),$F197>DATE(2023,6,30)),$G197/12,0) -> 0 | M197: 0 | N197: =IF(AND($E197<DATE(2023,10,1),$F197>DATE(2023,8,31)),$G197/12,0) -> 0 | O197: =IF(AND($E197<DATE(2023,11,1),$F197>DATE(2023,9,30)),$G197/12,0) -> 0 | P197: =IF(AND($E197<DATE(2023,12,1),$F197>DATE(2023,10,31)),$G197/12,0) -> 0 | Q197: =IF(AND($E197<DATE(2024,1,1),$F197>DATE(2023,11,30)),$G197/12,0) -> 0 | R197: =IF(AND($E197<DATE(2024,2,1),$F197>DATE(2023,12,31)),$G197/12,0) -> 0 | S197: =IF(AND($E197<DATE(2024,3,1),$F197>DATE(2024,1,31)),$G197/12,0) -> 0 | T197: 0
G198: 0 | H198: 0 | I198: 0 | J198: 0 | K198: 0 | L198: 0 | M198: 0 | N198: 0 | O198: 0 | P198: 0 | Q198: 0 | R198: 0 | S198: 0 | T198: 0
G199: 0 | H199: 0 | I199: 0 | J199: 0 | K199: 0 | L199: 0 | M199: 0 | N199: 0 | O199: 0 | P199: 0 | Q199: 0 | R199: 0 | S199: 0 | T199: 0
G200: 0 | H200: 0 | I200: 0 | J200: 0 | K200: 0 | L200: 0 | M200: 0 | N200: 0 | O200: 0 | P200: 0 | Q200: 0 | R200: 0 | S200: 0 | T200: 0
G201: 0 | H201: 0 | I201: 0 | J201: 0 | K201: 0 | L201: 0 | M201: 0 | N201: 0 | O201: 0 | P201: 0 | Q201: 0 | R201: 0 | S201: 0 | T201: 0
... 2799 more rows

Sheet Year 1
H2: DFE number:
I5: =IFERROR(VLOOKUP(dfenum,Lookups!$B:$C,2,0),"") -> 
B12: Place Plus Funding 2023/2024
D13: =IFERROR(IF(VLOOKUP(dfenum,fundbod,6,0)="ESFA","Place funding provided by ESFA for this institution",""),"") -> 
C14: Pre-16
G15: Places | H15: Rate | I15: Total
D16: Element 1 | F16: Apr to Aug | G16: =IF(LEN($D$13)=0,IFERROR(VLOOKUP(dfenum,places,9,0),0),0) -> 0 | H16: =4000*(5/12) -> 1666.666667 | I16: =G16*H16 -> 0
F17: Sep to Mar | G17: =IF(LEN($D$13)=0,IFERROR(VLOOKUP(dfenum,places,11,0),0),0) -> 0 | H17: =4000*(7/12) -> 2333.333333 | I17: =G17*H17 -> 0
I18: =SUM(I16:I17) -> 0
D20: Element 2 | F20: Apr to Aug | G20: =IF(LEN($D$13)=0,IFERROR(VLOOKUP(dfenum,places,9,0),0),0) -> 0 | H20: =6000*(5/12) -> 2500 | I20: =G20*H20 -> 0
F21: Sep to Mar | G21: =IF(LEN($D$13)=0,IFERROR(VLOOKUP(dfenum,places,11,0),0),0) -> 0 | H21: =6000*(7/12) -> 3500 | I21: =G21*H21 -> 0
I22: =SUM(I20:I21) -> 0
H24: =SUM(H16:H21) -> 10000 | I24: =SUM(I18+I22) -> 0
C26: Post-16 | G26: Places | H26: Rate | I26: Total
D27: Element 1 | F27: Apr to Jul | G27: =IF(LEN($D$13)=0,IFERROR(VLOOKUP(dfenum,places,10,0),0),0) -> 0 | H27: =4000*(4/12) -> 1333.333333 | I27: =G27*H27 -> 0
F28: Aug to Mar | G28: =IF(LEN($D$13)=0,IFERROR(VLOOKUP(dfenum,places,12,0),0),0) -> 0 | H28: =4000*(8/12) -> 2666.666667 | I28: =G28*H28 -> 0
I29: =SUM(I27:I28) -> 0
D31: Element 2 | F31: Apr to Jul | G31: =IF(LEN($D$13)=0,IFERROR(VLOOKUP(dfenum,places,10,0),0),0) -> 0 | H31: =6000*(4/12) -> 2000 | I31: =G31*H31 -> 0
F32: Aug to Mar | G32: =IF(LEN($D$13)=0,IFERROR(VLOOKUP(dfenum,places,12,0),0),0) -> 0 | H32: =6000*(8/12) -> 4000 | I32: =G32*H32 -> 0
I33: =SUM(I31:I32) -> 0
H35: =SUM(H27:H32) -> 10000 | I35: =SUM(I29+I33) -> 0
C37: Excess Element 1 & 2 Funding | I37: ='Excess E1&E2'!P18 -> 0
C39: Element 3 | I39: Total
H40: April | I40: =Pupils!$H$1 -> 0
H41: May | I41: =Pupils!$I$1 -> 0
H42: June | I42: =Pupils!$J$1 -> 0
H43: July | I43: =Pupils!$K$1 -> 0
H44: August | I44: =Pupils!$L$1 -> 0
H45: September | I45: =Pupils!$M$1 -> 0
H46: October | I46: =Pupils!$N$1 -> 0
H47: November | I47: =Pupils!$O$1 -> 0
H48: December | I48: =Pupils!$P$1 -> 0
H49: January | I49: =Pupils!$Q$1 -> 0
H50: February | I50: =Pupils!$R$1 -> 0
H51: March | I51: =Pupils!$S$1 -> 0
I52: =SUM(I40:I51) -> 0
C54: Total Place Plus Funding 2023/24 | I54: =SUM(I52,I35,I24,I37) -> 0
B57: Other Grants
C59: PE & Sport Premium Grant | I59: ='Other Grants'!K40 -> 0
C60: Pupil Premium (PP) | I60: ='Other Grants'!K13 -> 0
C61: Special Nursery (Observation and Assessment Centre) | I61: ='Other Grants'!K19 -> 0
C62: Teachers Pay Grant | I62: ='Other Grants'!K37 -> 0
C63: Teacher's Pension Grant - School | I63: ='Other Grants'!K38 -> 0
C64: Teacher's Pension Grant - STLS | I64: ='Other Grants'!K39 -> 0
C65: Universal Infant Free School Meal (UIFSM) | I65: ='Other Grants'!K34 -> 0
C66: COVID-19 Recovery Premium | I66: ='Other Grants'!K41 -> 0
C67: COVID-19 School-led Tutoring grant | I67: ='Other Grants'!K42 -> 0
C68: Special School Supplementary Fund (Place Funding) | I68: ='Other Grants'!K43 -> 
C69: Special School Supplementary Fund (Top-up Funding) | I69: ='Other Grants'!K44 -> 
C70: Other | I70: =SUM('Other Grants'!K45:K64) -> 0
C72: Other Grants | I72: =SUM(I59:I71) -> 0
C74: Overall total estimated funding 2023/24 | I74: =I72+I54 -> 0
B77: Pooled Funding Arrangement
G78: Rate | H78: Places
C79: Schools in financial difficulties | G79: 17.81 | H79: =(G16*(5/12))+(G17*(7/12))+(G27*(4/12))+(G28*(8/12)) -> 0 | I79: =G79*H79 -> 0
C80: Free School Meals Eligibility | G80: 0.62 | H80: =(G16*(5/12))+(G17*(7/12))+(G27*(4/12))+(G28*(8/12)) -> 0 | I80: =G80*H80 -> 0
C81: Licences and Subscriptions (SIMS) | G81: 4.84 | H81: =(G16*(5/12))+(G17*(7/12))+(G27*(4/12))+(G28*(8/12)) -> 0 | I81: 0
C82: Trade Union Duties | G82: 2 | H82: =(G16*(5/12))+(G17*(7/12))+(G27*(4/12))+(G28*(8/12)) -> 0 | I82: 0
C83: Schools Personnel Service | G83: 0.86 | H83: =(G16*(5/12))+(G17*(7/12))+(G27*(4/12))+(G28*(8/12)) -> 0 | I83: 0
I85: =SUM(I79:I83) -> 0

Sheet Other Grants
B2: Other Grants
D5: Units | I5: Rate | K5: Total Funding
B6: Grant | D6: 2022/23 | E6: 2023/24 | F6: 2024/25 | G6: 2025/26 | K6: 2023/24 | L6: 2024/25 | M6: 2025/26
B7: Pupil Premium | E7: 2022-10-01 | F7: 2023-10-01 | G7: 2024-10-01
B8: Free School Meals Ever 6 Primary (See Guidance) | I8: =IFERROR(IF(VLOOKUP(dfenum,Lookups!B:G,6,0)="KCC",1455,0),0) -> 0 | K8: =E8*$I8 -> 0 | L8: 0 | M8: 0
B9: Free School Meals Ever 6 Secondary (See Guidance) | I9: =IFERROR(IF(VLOOKUP(dfenum,Lookups!B:G,6,0)="KCC",1035,0),0) -> 0 | K9: 0 | L9: 0 | M9: 0
B10: Adopted (Post-LAC) pupils (October census) | I10: =IFERROR(IF(VLOOKUP(dfenum,Lookups!B:G,6,0)="KCC",2530,0),0) -> 0 | K10: 0 | L10: 0 | M10: 0
B11: Children in Care (CiC)
B12: Service Children Ever 6 (October census) | I12: =IFERROR(IF(VLOOKUP(dfenum,Lookups!B:G,6,0)="KCC",335,0),0) -> 0 | K12: =E12*$I12 -> 0 | L12: =F12*$I12 -> 0 | M12: =G12*$I12 -> 0
B13: Total Pupil Premium | K13: =SUM(K8:K12) -> 0 | L13: =SUM(L8:L12) -> 0 | M13: =SUM(M8:M12) -> 0
B15: Observation & Assessment
B17: Leadership Lump Sum | E17: =IF(E18>9,2,IF(E18>0,1,0)) -> 0 | F17: =IF(F18>9,2,IF(F18>0,1,0)) -> 0 | G17: 0 | I17: 58097.6032 | K17: =E17*I17 -> 0 | L17: =F17*I17 -> 0 | M17: =G17*I17 -> 0
B18: Day Rate | E18: =IFERROR(VLOOKUP(dfenum,Lookups!B:E,4,0),0) -> 0 | F18: =E18 -> 0 | G18: =F18 -> 0 | I18: 10087.75499 | K18: =E18*I18 -> 0 | L18: =F18*I18 -> 0 | M18: =G18*I18 -> 0
B19: Total Observation & Assessment | K19: =ROUND(K18+K17,0) -> 0 | L19: =ROUND(L18+L17,0) -> 0 | M19: 0
B21: Universal Infant Free School Meals
B22: The DfE have not yet confirmed how this will be calculated. However, we have assumed this is on the same basis as 2022/23 guidance.
D23: Academic Year
B24: October Taken meals year R
B25: January Taken meals year R
B26: October Taken meals years 1 & 2
B27: January Taken meals years 1 & 2
B28: Qualifying pupils | D28: =((D26+D27)/2)+MAX(D25,((D24+D25)/2)) -> 0 | E28: =((E26+E27)/2)+MAX(E25,((E24+E25)/2)) -> 0 | F28: =((F26+F27)/2)+MAX(F25,((F24+F25)/2)) -> 0 | G28: =((G26+G27)/2)+MAX(G25,((G24+G25)/2)) -> 0
B29: *190 meals (qualifying pupils X 190) | D29: =D28*190 -> 0 | E29: =E28*190 -> 0 | F29: =F28*190 -> 0 | G29: =G28*190 -> 0
B30: Rate per meal | D30: =IFERROR(IF(VLOOKUP(dfenum,Lookups!B:G,6,0)="KCC",2.41,0),0) -> 0 | E30: =IFERROR(IF(VLOOKUP(dfenum,Lookups!B:G,6,0)="KCC",2.41,0),0) -> 0 | F30: =IFERROR(IF(VLOOKUP(dfenum,Lookups!B:G,6,0)="KCC",2.41,0),0) -> 0 | G30: =IFERROR(IF(VLOOKUP(dfenum,Lookups!B:G,6,0)="KCC",2.41,0),0) -> 0
B31: Academic Year Allocation | D31: =D30*D29 -> 0 | E31: =E30*E29 -> 0 | F31: =F30*F29 -> 0 | G31: =G30*G29 -> 0
B32: UIFSM's April to August | K32: =(D31/12*5) -> 0 | L32: =(E31/12*5) -> 0 | M32: =(F31/12*5) -> 0
B33: UIFSM's September to March | K33: =(E31/12*7) -> 0 | L33: =(F31/12*7) -> 0 | M33: =(G31/12*7) -> 0 | Q33: Special
B34: Total Universal Infant Free School Meals | K34: =(D31/12*5)+(E31/12*7) -> 0 | L34: =(E31/12*5)+(F31/12*7) -> 0 | M34: =(F31/12*5)+(G31/12*7) -> 0 | P34: Kent | Q34: =IFERROR(IF(VLOOKUP(dfenum,Lookups!B:G,6,0)="KCC",14.58,0),0) -> 0
B36: Additional Grants | C36: Code | P36: Teachers Pay | U36: Teachers Pension
B37: Teachers Pay Grant | C37: I01 | K37: =S38+S39 -> 0 | L37: =S40+S41 -> 0 | M37: =S42+S43 -> 0 | P37: Period | Q37: Rate | R37: Places | S37: Total | U37: Rate - School | V37: Total | W37: STLS | X37: STLS Valence adj | Y37: School Total
B38: Teachers Pension Grant - School | C38: I01 | K38: =Y38+Y39 -> 0 | L38: =Y40+Y41 -> 0 | M38: =Y42+Y43 -> 0 | P38: Apr 23 - Aug 2023 | Q38: =IFERROR(VLOOKUP(dfenum,Lookups!B:R,15,0),0) -> 0 | R38: =IFERROR(VLOOKUP(dfenum,Lookups!B:M,9,0)+VLOOKUP(dfenum,Lookups!B:M,10,0),0) -> 0 | S38: =Q38*R38*5/12 -> 0 | U38: =IFERROR(VLOOKUP(dfenum,Lookups!B:R,17,0),0) -> 0 | V38: =R38*U38*5/12 -> 0 | W38: =IFERROR(VLOOKUP(dfenum,Lookups!B:R,16,0),0)*5/12 -> 0 | X38: =IFERROR(VLOOKUP(dfenum,Lookups!B:U,20,0),0)*5/12 -> 0 | Y38: =V38-W38-X38 -> 0
B39: Teachers Pension Grant - STLS | C39: I01-50 | K39: =W38+W39 -> 0 | L39: =K39 -> 0 | M39: =K39 -> 0 | P39: Sep 23 - Mar 2024 | Q39: =IFERROR(VLOOKUP(dfenum,Lookups!B:R,15,0),0) -> 0 | R39: =IFERROR(VLOOKUP(dfenum,Lookups!B:M,11,0)+VLOOKUP(dfenum,Lookups!B:M,12,0),0) -> 0 | S39: =Q39*R39*7/12 -> 0 | U39: =IFERROR(VLOOKUP(dfenum,Lookups!B:R,17,0),0) -> 0 | V39: =R39*U39*7/12 -> 0 | W39: =IFERROR(VLOOKUP(dfenum,Lookups!B:R,16,0),0)*7/12 -> 0 | X39: =IFERROR(VLOOKUP(dfenum,Lookups!B:U,20,0),0)*7/12 -> 0 | Y39: =V39-W39-X39 -> 0
B40: PE & Sport Premium Grant | C40: I18 | P40: Apr 24- Aug 2024 | Q40: =IFERROR(VLOOKUP(dfenum,Lookups!B:R,15,0),0) -> 0 | R40: ='Year 2'!G16+'Year 2'!G28 -> 0 | S40: =Q40*R40*5/12 -> 0 | U40: =IFERROR(VLOOKUP(dfenum,Lookups!B:R,17,0),0) -> 0 | V40: =R40*U40*5/12 -> 0 | W40: =IFERROR(VLOOKUP(dfenum,Lookups!B:R,16,0),0)*5/12 -> 0 | X40: =IFERROR(VLOOKUP(dfenum,Lookups!B:U,20,0),0)*5/12 -> 0 | Y40: 0
B41: COVID-19 Recovery Premium | C41: I18C | P41: Sep 24 - Mar 2025 | Q41: =IFERROR(VLOOKUP(dfenum,Lookups!B:R,15,0),0) -> 0 | R41: ='Year 2'!G17+'Year 2'!G29 -> 0 | S41: =Q41*R41*7/12 -> 0 | U41: =IFERROR(VLOOKUP(dfenum,Lookups!B:R,17,0),0) -> 0 | V41: =R41*U41*7/12 -> 0 | W41: =IFERROR(VLOOKUP(dfenum,Lookups!B:R,16,0),0)*7/12 -> 0 | X41: =IFERROR(VLOOKUP(dfenum,Lookups!B:U,20,0),0)*7/12 -> 0 | Y41: 0
B42: COVID-19 School-led Tutoring grant | C42: I18C | P42: Apr 25 - Aug 2025 | Q42: =IFERROR(VLOOKUP(dfenum,Lookups!B:R,15,0),0) -> 0 | R42: ='Year 3'!G16+'Year 3'!G28 -> 0 | S42: =Q42*R42*5/12 -> 0 | U42: =IFERROR(VLOOKUP(dfenum,Lookups!B:R,17,0),0) -> 0 | V42: =R42*U42*5/12 -> 0 | W42: =IFERROR(VLOOKUP(dfenum,Lookups!B:R,16,0),0)*5/12 -> 0 | X42: =IFERROR(VLOOKUP(dfenum,Lookups!B:U,20,0),0)*5/12 -> 0 | Y42: 0
B43: Special School Supplementary Fund (Place Funding) | C43: I01 | D43: This is currently a provisional figure | K43: =IFERROR(VLOOKUP(dfenum,Lookups!$B:$T,18,0),"") ->  | L43: =K43 ->  | M43: =K43 ->  | P43: Sep 25 - Mar 2026 | Q43: =IFERROR(VLOOKUP(dfenum,Lookups!B:R,15,0),0) -> 0 | R43: ='Year 3'!G17+'Year 3'!G29 -> 0 | S43: =Q43*R43*7/12 -> 0 | U43: =IFERROR(VLOOKUP(dfenum,Lookups!B:R,17,0),0) -> 0 | V43: =R43*U43*7/12 -> 0 | W43: =IFERROR(VLOOKUP(dfenum,Lookups!B:R,16,0),0)*7/12 -> 0 | X43: =IFERROR(VLOOKUP(dfenum,Lookups!B:U,20,0),0)*7/12 -> 0 | Y43: 0
B44: Special School Supplementary Fund (Top-up Funding) | C44: I03 | D44: This is currently a provisional figure | K44: =IFERROR(VLOOKUP(dfenum,Lookups!$B:$T,19,0),"") ->  | L44: =K44 ->  | M44: =K44 -> 
P63: I01
P64: I01-50
B65: Total Additional Grants | K65: =SUM(K37:K64) -> 0 | L65: =SUM(L37:L64) -> 0 | M65: =SUM(M37:M64) -> 0 | P65: I02
P66: I03
P67: I04
P68: I05
P69: I06
P70: I06-50
P71: I06-80
P72: I07
P73: I07-50
P74: I08
P75: I09
P76: I10
P77: I11
P78: I12
P79: I13
P80: I15
P81: I16
P82: I18
P83: I18A
P84: I18B
P85: I18C
P86: I18D

Sheet Excess E1&E2
B2: Year 1 Excess Element 1 and 2
B4: Protected Cash Advance | C4: 0
C6: April 2023 - March 2024
C7: April | D7: May | E7: June | F7: July | G7: August | H7: September | I7: October | J7: November | K7: December | L7: January | M7: February | N7: March
B8: Places - Pre-16 | C8: =IFERROR(VLOOKUP(dfenum,places,9,0),0) -> 0 | D8: 0 | E8: 0 | F8: 0 | G8: 0 | H8: 0 | I8: =IFERROR(VLOOKUP(dfenum,places,11,0),0) -> 0 | J8: 0 | K8: 0 | L8: 0 | M8: 0 | N8: 0
B9: Places - Post-16 | C9: =IFERROR(VLOOKUP(dfenum,places,10,0),0) -> 0 | D9: 0 | E9: 0 | F9: 0 | G9: 0 | H9: =IFERROR(VLOOKUP(dfenum,places,12,0),0) -> 0 | I9: =IFERROR(VLOOKUP(dfenum,places,12,0),0) -> 0 | J9: 0 | K9: 0 | L9: 0 | M9: 0 | N9: 0
B10: Total Commissioned Places | C10: =SUM(C8:C9) -> 0 | D10: =SUM(D8:D9) -> 0 | E10: 0 | F10: 0 | G10: 0 | H10: 0 | I10: 0 | J10: 0 | K10: 0 | L10: 0 | M10: 0 | N10: 0
B11: Actual | C11: =COUNTIF(Pupils!H4:H3000,">0") -> 0 | D11: =COUNTIF(Pupils!I4:I3000,">0") -> 0 | E11: =COUNTIF(Pupils!J4:J3000,">0") -> 0 | F11: =COUNTIF(Pupils!K4:K3000,">0") -> 0 | G11: =COUNTIF(Pupils!L4:L3000,">0") -> 0 | H11: =COUNTIF(Pupils!M4:M3000,">0") -> 0 | I11: =COUNTIF(Pupils!N4:N3000,">0") -> 0 | J11: =COUNTIF(Pupils!O4:O3000,">0") -> 0 | K11: =COUNTIF(Pupils!P4:P3000,">0") -> 0 | L11: =COUNTIF(Pupils!Q4:Q3000,">0") -> 0 | M11: =COUNTIF(Pupils!R4:R3000,">0") -> 0 | N11: =COUNTIF(Pupils!S4:S3000,">0") -> 0
B12: Excess places | C12: =IF(C11<=C10,0,C11-C10) -> 0 | D12: =IF(D11<=D10,0,D11-D10) -> 0 | E12: 0 | F12: 0 | G12: 0 | H12: 0 | I12: 0 | J12: 0 | K12: 0 | L12: 0 | M12: 0 | N12: 0
P14: Total
B15: Excess place unit cost (£) | C15: 833.33 | D15: 833.33 | E15: 833.33 | F15: 833.33 | G15: 833.33 | H15: 833.33 | I15: 833.33 | J15: 833.33 | K15: 833.33 | L15: 833.33 | M15: 833.33 | N15: 833.37 | P15: =SUM(C15:N15) -> 10000
B16: Excess places Total (£) | C16: =C12*C15 -> 0 | D16: =D12*D15 -> 0 | E16: 0 | F16: 0 | G16: 0 | H16: 0 | I16: 0 | J16: 0 | K16: 0 | L16: 0 | M16: 0 | N16: 0 | P16: =SUM(C16:N16) -> 0
B17: Protection period | C17: March to July actuals | I17: September to February actuals
B18: Protected balance (£) | C18: =IF(C16>C4,C16,C4) -> 0 | D18: =IF(D16>C18,D16,C18) -> 0 | E18: =IF(E16>D18,E16,D18) -> 0 | F18: 0 | G18: 0 | H18: 0 | I18: =I16 -> 0 | J18: =IF(J16>I18,J16,I18) -> 0 | K18: 0 | L18: 0 | M18: 0 | N18: 0 | P18: =SUM(C18:N18) -> 0

Sheet Year 2 & 3 Pupils
B2: Year 2 Element 3 pupil data
B3: * Each month's pupil numbers generates funding in the following month
C4: March 2024 - February 2025
B5: Need Type | C5: March | D5: April | E5: May | F5: June | G5: July | H5: August | I5: September | J5: October | K5: November | L5: December | M5: January | N5: February | O5: FTE Pupils
B6: MLD&SLCN | H6: =G6 -> 0 | O6: =SUM(C6:N6)/12 -> 0
B7: SEMH | H7: =G7 -> 0 | O7: =SUM(C7:N7)/12 -> 0
B8: SLD | H8: 0 | O8: 0
B9: PD&PMLD | H9: 0 | O9: 0
B10: ASD | H10: 0 | O10: 0
B11: WeekdayPD&PMLD | H11: 0 | O11: 0
B12: WeekdayASD | H12: 0 | O12: 0
B13: WeekendPD&PMLD | H13: 0 | O13: 0
C14: =SUM(C6:C13) -> 0 | D14: =SUM(D6:D13) -> 0 | E14: 0 | F14: 0 | G14: 0 | H14: 0 | I14: 0 | J14: 0 | K14: 0 | L14: 0 | M14: 0 | N14: 0
B16: Year 3 Element 3 pupil data
B17: * Each month's pupil numbers generates funding in the following month
C18: March 2025 - February 2026
B19: Need Type | C19: March | D19: April | E19: May | F19: June | G19: July | H19: August | I19: September | J19: October | K19: November | L19: December | M19: January | N19: February | O19: FTE Pupils
B20: MLD&SLCN | H20: =G20 -> 0 | O20: =SUM(C20:N20)/12 -> 0
B21: SEMH | H21: =G21 -> 0 | O21: 0
B22: SLD | H22: 0 | O22: 0
B23: PD&PMLD | H23: 0 | O23: 0
B24: ASD | H24: 0 | O24: 0
B25: WeekdayPD&PMLD | H25: 0 | O25: 0
B26: WeekdayASD | H26: 0 | O26: 0
B27: WeekendPD&PMLD | H27: 0 | O27: 0
C28: =SUM(C20:C27) -> 0 | D28: =SUM(D20:D27) -> 0 | E28: 0 | F28: 0 | G28: 0 | H28: 0 | I28: 0 | J28: 0 | K28: 0 | L28: 0 | M28: 0 | N28: 0

Sheet Year 2
H2: DFE number: | I2: =dfenum -> 0
I5: =IFERROR(VLOOKUP(dfenum,Lookups!$B:$C,2,0),"") -> 
B12: Place Plus Funding 2024/25
C14: Pre-16
G15: Places | H15: Rate | I15: Total
D16: Element 1 | F16: Apr to Aug | G16: ='Year 1'!G17 -> 0 | H16: =4000*(5/12) -> 1666.666667 | I16: =G16*H16 -> 0 | K16: =IF('Year 2 & 3 Pupils'!D14=0,"",IF(G16+G28='Year 2 & 3 Pupils'!D14,"","Check - Total places are not equal to pupil numbers in April")) -> 
F17: Sep to Mar | G17: =G16 -> 0 | H17: =4000*(7/12) -> 2333.333333 | I17: =G17*H17 -> 0 | K17: =IF('Year 2 & 3 Pupils'!I14=0,"",IF(G17+G29='Year 2 & 3 Pupils'!I14,"","Check - Total places are not equal to pupil numbers in September")) -> 
I18: =SUM(I16:I17) -> 0
F19: =IF(OR(G17>'Year 2'!G16*1.2,G17<G16*0.8),"Places numbers changed by more than 20% check this is correct","") -> 
D20: Element 2 | F20: Apr to Aug | G20: =G16 -> 0 | H20: =6000*(5/12) -> 2500 | I20: =G20*H20 -> 0
F21: Sep to Mar | G21: =G17 -> 0 | H21: =6000*(7/12) -> 3500 | I21: =G21*H21 -> 0
I22: =SUM(I20:I21) -> 0
H24: =SUM(H16:H21) -> 10000 | I24: =I18+I22 -> 0
C26: Post-16
G27: Places | H27: Rate | I27: Total
D28: Element 1 | F28: Apr to Jul | G28: ='Year 1'!G28 -> 0 | H28: =4000*(4/12) -> 1333.333333 | I28: =G28*H28 -> 0
F29: Aug to Mar | G29: =G28 -> 0 | H29: =4000*(8/12) -> 2666.666667 | I29: =G29*H29 -> 0
I30: =SUM(I28:I29) -> 0
F31: =IF(OR(G29>'Year 2'!G28*1.2,G29<G28*0.8),"Places numbers changed by more than 20% check this is correct","") -> 
D32: Element 2 | F32: Apr to Jul | G32: =G28 -> 0 | H32: =6000*(4/12) -> 2000 | I32: =G32*H32 -> 0
F33: Aug to Mar | G33: =G29 -> 0 | H33: =6000*(8/12) -> 4000 | I33: =G33*H33 -> 0
I34: =SUM(I32:I33) -> 0
H36: =SUM(H28:H33) -> 10000 | I36: =I30+I34 -> 0
C38: Element 3 | E38: Future years' top-up rates are indicative
G39: Pupils | H39: Rate | I39: Total
E40: MLD&SLCN | G40: ='Year 2 & 3 Pupils'!O6 -> 0 | H40: =IFERROR(MAX(VLOOKUP(dfenum&E40,'Yr2&3'!F:R,9,0)-10000,VLOOKUP(dfenum&E40,Lookups!$Y:$Z,2,0)),0) -> 0 | I40: =G40*H40 -> 0
E41: SEMH | G41: ='Year 2 & 3 Pupils'!O7 -> 0 | H41: =IFERROR(MAX(VLOOKUP(dfenum&E41,'Yr2&3'!F:R,9,0)-10000,VLOOKUP(dfenum&E41,Lookups!$Y:$Z,2,0)),0) -> 0 | I41: 0
E42: SLD | G42: ='Year 2 & 3 Pupils'!O8 -> 0 | H42: =IFERROR(MAX(VLOOKUP(dfenum&E42,'Yr2&3'!F:R,9,0)-10000,VLOOKUP(dfenum&E42,Lookups!$Y:$Z,2,0)),0) -> 0 | I42: 0
E43: PD&PMLD | G43: ='Year 2 & 3 Pupils'!O9 -> 0 | H43: =IFERROR(MAX(VLOOKUP(dfenum&E43,'Yr2&3'!F:R,9,0)-10000,VLOOKUP(dfenum&E43,Lookups!$Y:$Z,2,0)),0) -> 0 | I43: 0
E44: ASD | G44: ='Year 2 & 3 Pupils'!O10 -> 0 | H44: =IFERROR(MAX(VLOOKUP(dfenum&E44,'Yr2&3'!F:R,9,0)-10000,VLOOKUP(dfenum&E44,Lookups!$Y:$Z,2,0)),0) -> 0 | I44: 0
E45: WeekdayPD&PMLD | G45: ='Year 2 & 3 Pupils'!O11 -> 0 | H45: =IFERROR(MAX(VLOOKUP(dfenum&E45,'Yr2&3'!F:R,9,0)-10000,VLOOKUP(dfenum&E45,Lookups!$Y:$Z,2,0)),0) -> 0 | I45: 0
E46: WeekdayASD | G46: ='Year 2 & 3 Pupils'!O12 -> 0 | H46: =IFERROR(MAX(VLOOKUP(dfenum&E46,'Yr2&3'!F:R,9,0)-10000,VLOOKUP(dfenum&E46,Lookups!$Y:$Z,2,0)),0) -> 0 | I46: 0
E47: WeekendPD&PMLD | G47: ='Year 2 & 3 Pupils'!O13 -> 0 | H47: =IFERROR(MAX(VLOOKUP(dfenum&E47,'Yr2&3'!F:R,9,0)-10000,VLOOKUP(dfenum&E47,Lookups!$Y:$Z,2,0)),0) -> 0 | I47: 0
I48: =SUM(I40:I47) -> 0
C50: Total Place Plus Funding 2024/25 | I50: =I36+I24+I48 -> 0
B53: Other Grants
C55: PE & Sport Premium Grant | I55: ='Other Grants'!L40 -> 0
C56: Pupil Premium (PP) | I56: ='Other Grants'!L13 -> 0
C57: Special Nursery (Observation and Assessment Centre) | I57: ='Other Grants'!L19 -> 0
C58: Teachers Pay Grant | I58: ='Other Grants'!L37 -> 0
C59: Teacher's Pension Grant - School | I59: ='Other Grants'!L38 -> 0
C60: Teacher's Pension Grant - STLS | I60: ='Other Grants'!L39 -> 0
C61: Universal Infant Free School Meal (UIFSM) | I61: ='Other Grants'!L34 -> 0
C62: COVID-19 Recovery Premium | I62: ='Other Grants'!L41 -> 0
C63: COVID-19 School-led Tutoring grant | I63: ='Other Grants'!L42 -> 0
C64: Special School Supplementary Fund (Place Funding) | I64: ='Other Grants'!L43 -> 
C65: Special School Supplementary Fund (Top-up Funding) | I65: ='Other Grants'!L44 -> 
C66: Other | I66: =SUM('Other Grants'!L45:L64) -> 0
C68: Other Grants | I68: =SUM(I55:I67) -> 0
C70: Overall total estimated funding 2024/25 | I70: =I50+I68 -> 0
B73: Pooled Funding Arrangement
G74: Rate | H74: Places
C75: Schools in financial difficulties | G75: ='Year 1'!G79 -> 17.81 | H75: =(G16*(5/12))+(G17*(7/12))+(G28*(4/12))+(G29*(8/12)) -> 0 | I75: =G75*H75 -> 0
C76: Free School Meals Eligibility | G76: ='Year 1'!G80 -> 0.62 | H76: =(G16*(5/12))+(G17*(7/12))+(G28*(4/12))+(G29*(8/12)) -> 0 | I76: =G76*H76 -> 0
C77: Licences and Subscriptions (SIMS) | G77: 4.31 | H77: =(G16*(5/12))+(G17*(7/12))+(G28*(4/12))+(G29*(8/12)) -> 0 | I77: =G77*H77 -> 0
C78: Trade Union Duties | G78: ='Year 1'!G82 -> 2 | H78: =(G16*(5/12))+(G17*(7/12))+(G28*(4/12))+(G29*(8/12)) -> 0 | I78: =G78*H78 -> 0
C79: Schools Personnel Service | G79: ='Year 1'!G83 -> 0.86 | H79: =(G16*(5/12))+(G17*(7/12))+(G28*(4/12))+(G29*(8/12)) -> 0 | I79: =G79*H79 -> 0
I81: =SUM(I75:I79) -> 0

Sheet Year 3
H2: DFE number: | I2: =dfenum -> 0
I5: =IFERROR(VLOOKUP(dfenum,Lookups!$B:$C,2,0),"") -> 
B12: Place Plus Funding 2025/26
C14: Pre-16
G15: Places | H15: Rate | I15: Total
D16: Element 1 | F16: Apr to Aug | G16: ='Year 2'!G17 -> 0 | H16: 1666.666667 | I16: =G16*H16 -> 0 | K16: =IF('Year 2 & 3 Pupils'!D28=0,"",IF(G16+G28='Year 2 & 3 Pupils'!D28,"","Check - Total places are not equal to pupil numbers in April")) -> 
F17: Sep to Mar | G17: =G16 -> 0 | H17: 2333.333333 | I17: =G17*H17 -> 0 | K17: =IF('Year 2 & 3 Pupils'!I28=0,"",IF(G17+G29='Year 2 & 3 Pupils'!I28,"","Check - Total places are not equal to pupil numbers in September")) -> 
I18: =SUM(I16:I17) -> 0
F19: =IF(OR(G17>G16*1.2,G17<G16*0.8),"Places numbers changed by more than 20% check this is correct","") -> 
D20: Element 2 | F20: Apr to Aug | G20: =G16 -> 0 | H20: 2500 | I20: =G20*H20 -> 0
F21: Sep to Mar | G21: =G17 -> 0 | H21: 3500 | I21: =G21*H21 -> 0
I22: =SUM(I20:I21) -> 0
H24: =SUM(H16:H21) -> 10000 | I24: =I18+I22 -> 0
C26: Post-16
G27: Places | H27: Rate | I27: Total
D28: Element 1 | F28: Apr to Jul | G28: ='Year 2'!G29 -> 0 | H28: 1333.333333 | I28: =G28*H28 -> 0
F29: Aug to Mar | G29: =G28 -> 0 | H29: 2666.666667 | I29: =G29*H29 -> 0
I30: =SUM(I28:I29) -> 0
F31: =IF(OR(G29>G28*1.2,G29<G28*0.8),"Places numbers changed by more than 20% check this is correct","") -> 
D32: Element 2 | F32: Apr to Jul | G32: =G28 -> 0 | H32: 2000 | I32: =G32*H32 -> 0
F33: Aug to Mar | G33: =G29 -> 0 | H33: 4000 | I33: =G33*H33 -> 0
I34: =SUM(I32:I33) -> 0
H36: =SUM(H28:H33) -> 10000 | I36: =I30+I34 -> 0
C38: Element 3 | E38: Future years' top-up rates are indicative
G39: Pupils | H39: Rate | I39: Total
E40: MLD&SLCN | G40: ='Year 2 & 3 Pupils'!O20 -> 0 | H40: =IFERROR(MAX(VLOOKUP(dfenum&E40,'Yr2&3'!$F:$R,13,0)-10000,'Year 2'!H40),0) -> 0 | I40: =G40*H40 -> 0
E41: SEMH | G41: ='Year 2 & 3 Pupils'!O21 -> 0 | H41: =IFERROR(MAX(VLOOKUP(dfenum&E41,'Yr2&3'!$F:$R,13,0)-10000,'Year 2'!H41),0) -> 0 | I41: 0
E42: SLD | G42: ='Year 2 & 3 Pupils'!O22 -> 0 | H42: =IFERROR(MAX(VLOOKUP(dfenum&E42,'Yr2&3'!$F:$R,13,0)-10000,'Year 2'!H42),0) -> 0 | I42: 0
E43: PD&PMLD | G43: ='Year 2 & 3 Pupils'!O23 -> 0 | H43: =IFERROR(MAX(VLOOKUP(dfenum&E43,'Yr2&3'!$F:$R,13,0)-10000,'Year 2'!H43),0) -> 0 | I43: 0
E44: ASD | G44: ='Year 2 & 3 Pupils'!O24 -> 0 | H44: =IFERROR(MAX(VLOOKUP(dfenum&E44,'Yr2&3'!$F:$R,13,0)-10000,'Year 2'!H44),0) -> 0 | I44: 0
E45: WeekdayPD&PMLD | G45: ='Year 2 & 3 Pupils'!O25 -> 0 | H45: =IFERROR(MAX(VLOOKUP(dfenum&E45,'Yr2&3'!$F:$R,13,0)-10000,'Year 2'!H45),0) -> 0 | I45: 0
E46: WeekdayASD | G46: ='Year 2 & 3 Pupils'!O26 -> 0 | H46: =IFERROR(MAX(VLOOKUP(dfenum&E46,'Yr2&3'!$F:$R,13,0)-10000,'Year 2'!H46),0) -> 0 | I46: 0
E47: WeekendPD&PMLD | G47: ='Year 2 & 3 Pupils'!O27 -> 0 | H47: =IFERROR(MAX(VLOOKUP(dfenum&E47,'Yr2&3'!$F:$R,13,0)-10000,'Year 2'!H47),0) -> 0 | I47: 0
I48: =SUM(I40:I47) -> 0
C50: Total Place Plus Funding 2025/26 | I50: =I36+I24+I48 -> 0
B53: Other Grants
C55: PE & Sport Premium Grant | I55: ='Other Grants'!M40 -> 0
C56: Pupil Premium (PP) | I56: ='Other Grants'!M13 -> 0
C57: Special Nursery (Observation and Assessment Centre) | I57: ='Other Grants'!M19 -> 0
C58: Teachers Pay Grant | I58: ='Other Grants'!M37 -> 0
C59: Teacher's Pension Grant - School | I59: ='Other Grants'!M38 -> 0
C60: Teacher's Pension Grant - STLS | I60: ='Other Grants'!M39 -> 0
C61: Universal Infant Free School Meal (UIFSM) | I61: ='Other Grants'!M34 -> 0
C62: COVID-19 Recovery Premium | I62: ='Other Grants'!M41 -> 0
C63: COVID-19 School-led Tutoring grant | I63: ='Other Grants'!M42 -> 0
C64: Special School Supplementary Fund (Place Funding) | I64: ='Other Grants'!M43 -> 
C65: Special School Supplementary Fund (Top-up Funding) | I65: ='Other Grants'!M44 -> 
C66: Other | I66: =SUM('Other Grants'!M45:M64) -> 0
C68: Other Grants | I68: =SUM(I55:I67) -> 0
C70: Overall total estimated funding 2025/26 | I70: =I50+I68 -> 0
B73: Pooled Funding Arrangement
G74: Rate | H74: Places
C75: Schools in financial difficulties | G75: ='Year 1'!G79 -> 17.81 | H75: =(G16*(5/12))+(G17*(7/12))+(G28*(4/12))+(G29*(8/12)) -> 0 | I75: =G75*H75 -> 0
C76: Free School Meals Eligibility | G76: ='Year 1'!G80 -> 0.62 | H76: =(G16*(5/12))+(G17*(7/12))+(G28*(4/12))+(G29*(8/12)) -> 0 | I76: =G76*H76 -> 0
C77: Licences and Subscriptions (SIMS) | G77: 4.31 | H77: =(G16*(5/12))+(G17*(7/12))+(G28*(4/12))+(G29*(8/12)) -> 0 | I77: =G77*H77 -> 0
C78: Trade Union Duties | G78: ='Year 1'!G82 -> 2 | H78: =(G16*(5/12))+(G17*(7/12))+(G28*(4/12))+(G29*(8/12)) -> 0 | I78: =G78*H78 -> 0
C79: Schools Personnel Service | G79: ='Year 1'!G83 -> 0.86 | H79: =(G16*(5/12))+(G17*(7/12))+(G28*(4/12))+(G29*(8/12)) -> 0 | I79: =G79*H79 -> 0
I81: =SUM(I75:I79) -> 0

Sheet Monthly Statement

Sheet Reconciliation
F1: Number of pupils entered on Pupils tab by school: | G1: =COUNTA(Pupils!B4:B3000) -> 0
A2: Select statement month: | F2: Number of pupils on reconciliation sheet: | G2: =COUNTIF(A7:A3005,"<>0") -> 0
A3: April | F3: Number of pupils on latest statement: | G3: =COUNTA('Monthly Statement'!B2:B3000) -> 0 | H3: April | K3: May | N3: June | Q3: July | T3: August | W3: September | Z3: October | AC3: November | AF3: December | AI3: January | AL3: February | AO3: March
H4: =SUM(H7:H3005) -> 0 | I4: =SUM(I7:I3005) -> 0 | J4: 0 | K4: 0 | L4: 0 | M4: 0 | N4: 0 | O4: 0 | P4: 0 | Q4: 0 | R4: 0 | S4: 0 | T4: 0 | U4: 0 | V4: 0 | W4: 0 | X4: 0 | Y4: 0 | Z4: 0 | AA4: 0 | AB4: 0 | AC4: 0 | AD4: 0 | AE4: 0 | AF4: 0 | AG4: 0 | AH4: 0 | AI4: 0 | AJ4: 0 | AK4: 0 | AL4: 0 | AM4: 0 | AN4: 0 | AO4: 0 | AP4: 0 | AQ4: 0
C5: =IF(A3="April",1, IF(A3="May",2, IF(A3="June",3, IF(A3="July",4, IF(A3="August",5, IF(A3="September",6, IF(A3="October",7, IF(A3="November",8, IF(A3="December",9, IF(A3="January",10, IF(A3="February",11, IF(A3="March",12,)))))))))))) -> 1
A6: Pupil Key | B6: Pupil Surname | C6: Pupil Forename | D6: Need Type | E6: Placement START Date | F6: Placement END Date | G6: Variance to date | H6: Forecast | I6: Actual | J6: Variance | K6: Forecast | L6: Actual | M6: Variance | N6: Forecast | O6: Actual | P6: Variance | Q6: Forecast | R6: Actual | S6: Variance | T6: Forecast | U6: Actual | V6: Variance | W6: Forecast | X6: Actual | Y6: Variance | Z6: Forecast | AA6: Actual | AB6: Variance | AC6: Forecast | AD6: Actual | AE6: Variance | AF6: Forecast | AG6: Actual | AH6: Variance | AI6: Forecast | AJ6: Actual | AK6: Variance | AL6: Forecast | AM6: Actual | AN6: Variance | AO6: Forecast | AP6: Actual | AQ6: Variance
A7: ='Monthly Statement'!A2 -> 0 | B7: =IFERROR(VLOOKUP(A7,'Monthly Statement'!A:X,4,0),"") ->  | C7: =IFERROR(VLOOKUP(A7,'Monthly Statement'!A:X,5,0),"") ->  | D7: =IFERROR(VLOOKUP(A7,'Monthly Statement'!A:X,7,0),"") ->  | E7: =IFERROR(VLOOKUP(A7,'Monthly Statement'!A:X,9,0),"") ->  | F7: =IFERROR(VLOOKUP(A7,'Monthly Statement'!A:X,10,0),"") ->  | G7: =J7+M7+P7+S7+V7+Y7+AB7+AE7+AH7+AK7+AN7+AQ7 -> 0 | H7: =IFERROR(VLOOKUP($A7,Pupils!$A$4:$T$3000,8,0),0) -> 0 | I7: =IFERROR(VLOOKUP($A7,'Monthly Statement'!$A$2:$V$3000,13,0),0) -> 0 | J7: =IF($C$5>0,ROUND(SUM(I7-H7),2),0) -> 0 | K7: =IFERROR(VLOOKUP($A7,Pupils!$A$4:$T$3000,9,0),0) -> 0 | L7: =IFERROR(VLOOKUP($A7,'Monthly Statement'!$A$2:$V$3000,14,0),0) -> 0 | M7: =IF($C$5>1,ROUND(SUM(L7-K7),2),0) -> 0 | N7: =IFERROR(VLOOKUP($A7,Pupils!$A$4:$T$3000,10,0),0) -> 0 | O7: =IFERROR(VLOOKUP($A7,'Monthly Statement'!$A$2:$V$3000,15,0),0) -> 0 | P7: =IF($C$5>2,ROUND(SUM(O7-N7),2),0) -> 0 | Q7: =IFERROR(VLOOKUP($A7,Pupils!$A$4:$T$3000,11,0),0) -> 0 | R7: =IFERROR(VLOOKUP($A7,'Monthly Statement'!$A$2:$V$3000,16,0),0) -> 0 | S7: =IF($C$5>3,ROUND(SUM(R7-Q7),2),0) -> 0 | T7: =IFERROR(VLOOKUP($A7,Pupils!$A$4:$T$3000,12,0),0) -> 0 | U7: =IFERROR(VLOOKUP($A7,'Monthly Statement'!$A$2:$V$3000,17,0),0) -> 0 | V7: =IF($C$5>4,ROUND(SUM(U7-T7),2),0) -> 0 | W7: =IFERROR(VLOOKUP($A7,Pupils!$A$4:$T$3000,13,0),0) -> 0 | X7: =IFERROR(VLOOKUP($A7,'Monthly Statement'!$A$2:$V$3000,18,0),0) -> 0 | Y7: =IF($C$5>5,ROUND(SUM(X7-W7),2),0) -> 0 | Z7: =IFERROR(VLOOKUP($A7,Pupils!$A$4:$T$3000,14,0),0) -> 0 | AA7: =IFERROR(VLOOKUP($A7,'Monthly Statement'!$A$2:$V$3000,19,0),0) -> 0 | AB7: =IF($C$5>6,ROUND(SUM(AA7-Z7),2),0) -> 0 | AC7: =IFERROR(VLOOKUP($A7,Pupils!$A$4:$T$3000,15,0),0) -> 0 | AD7: =IFERROR(VLOOKUP($A7,'Monthly Statement'!$A$2:$V$3000,20,0),0) -> 0 | AE7: =IF($C$5>7,ROUND(SUM(AD7-AC7),2),0) -> 0 | AF7: =IFERROR(VLOOKUP($A7,Pupils!$A$4:$T$3000,16,0),0) -> 0 | AG7: =IFERROR(VLOOKUP($A7,'Monthly Statement'!$A$2:$V$3000,21,0),0) -> 0 | AH7: =IF($C$5>8,ROUND(SUM(AG7-AF7),2),0) -> 0 | AI7: =IFERROR(VLOOKUP($A7,Pupils!$A$4:$T$3000,17,0),0) -> 0 | AJ7: =IFERROR(VLOOKUP($A7,'Monthly Statement'!$A$2:$V$3000,22,0),0) -> 0 | AK7: =IF($C$5>9,ROUND(SUM(AJ7-AI7),2),0) -> 0 | AL7: =IFERROR(VLOOKUP($A7,Pupils!$A$4:$T$3000,18,0),0) -> 0 | AM7: =IFERROR(VLOOKUP($A7,'Monthly Statement'!$A$2:$W$3000,23,0),0) -> 0 | AN7: =IF($C$5>10,ROUND(SUM(AM7-AL7),2),0) -> 0 | AO7: =IFERROR(VLOOKUP($A7,Pupils!$A$4:$T$3000,19,0),0) -> 0 | AP7: =IFERROR(VLOOKUP($A7,'Monthly Statement'!$A$2:$X$3000,24,0),0) -> 0 | AQ7: =IF($C$5>11,ROUND(SUM(AP7-AO7),2),0) -> 0
A8: ='Monthly Statement'!A3 -> 0 | B8: =IFERROR(VLOOKUP(A8,'Monthly Statement'!A:X,4,0),"") ->  | C8: =IFERROR(VLOOKUP(A8,'Monthly Statement'!A:X,5,0),"") ->  | D8: =IFERROR(VLOOKUP(A8,'Monthly Statement'!A:X,7,0),"") ->  | E8: =IFERROR(VLOOKUP(A8,'Monthly Statement'!A:X,9,0),"") ->  | F8: =IFERROR(VLOOKUP(A8,'Monthly Statement'!A:X,10,0),"") ->  | G8: =J8+M8+P8+S8+V8+Y8+AB8+AE8+AH8+AK8+AN8+AQ8 -> 0 | H8: =IFERROR(VLOOKUP($A8,Pupils!$A$4:$T$3000,8,0),0) -> 0 | I8: =IFERROR(VLOOKUP($A8,'Monthly Statement'!$A$2:$V$3000,13,0),0) -> 0 | J8: =IF($C$5>0,ROUND(SUM(I8-H8),2),0) -> 0 | K8: =IFERROR(VLOOKUP($A8,Pupils!$A$4:$T$3000,9,0),0) -> 0 | L8: =IFERROR(VLOOKUP($A8,'Monthly Statement'!$A$2:$V$3000,14,0),0) -> 0 | M8: =IF($C$5>1,ROUND(SUM(L8-K8),2),0) -> 0 | N8: =IFERROR(VLOOKUP($A8,Pupils!$A$4:$T$3000,10,0),0) -> 0 | O8: =IFERROR(VLOOKUP($A8,'Monthly Statement'!$A$2:$V$3000,15,0),0) -> 0 | P8: =IF($C$5>2,ROUND(SUM(O8-N8),2),0) -> 0 | Q8: =IFERROR(VLOOKUP($A8,Pupils!$A$4:$T$3000,11,0),0) -> 0 | R8: =IFERROR(VLOOKUP($A8,'Monthly Statement'!$A$2:$V$3000,16,0),0) -> 0 | S8: =IF($C$5>3,ROUND(SUM(R8-Q8),2),0) -> 0 | T8: =IFERROR(VLOOKUP($A8,Pupils!$A$4:$T$3000,12,0),0) -> 0 | U8: =IFERROR(VLOOKUP($A8,'Monthly Statement'!$A$2:$V$3000,17,0),0) -> 0 | V8: =IF($C$5>4,ROUND(SUM(U8-T8),2),0) -> 0 | W8: =IFERROR(VLOOKUP($A8,Pupils!$A$4:$T$3000,13,0),0) -> 0 | X8: =IFERROR(VLOOKUP($A8,'Monthly Statement'!$A$2:$V$3000,18,0),0) -> 0 | Y8: =IF($C$5>5,ROUND(SUM(X8-W8),2),0) -> 0 | Z8: =IFERROR(VLOOKUP($A8,Pupils!$A$4:$T$3000,14,0),0) -> 0 | AA8: =IFERROR(VLOOKUP($A8,'Monthly Statement'!$A$2:$V$3000,19,0),0) -> 0 | AB8: =IF($C$5>6,ROUND(SUM(AA8-Z8),2),0) -> 0 | AC8: =IFERROR(VLOOKUP($A8,Pupils!$A$4:$T$3000,15,0),0) -> 0 | AD8: =IFERROR(VLOOKUP($A8,'Monthly Statement'!$A$2:$V$3000,20,0),0) -> 0 | AE8: =IF($C$5>7,ROUND(SUM(AD8-AC8),2),0) -> 0 | AF8: =IFERROR(VLOOKUP($A8,Pupils!$A$4:$T$3000,16,0),0) -> 0 | AG8: =IFERROR(VLOOKUP($A8,'Monthly Statement'!$A$2:$V$3000,21,0),0) -> 0 | AH8: =IF($C$5>8,ROUND(SUM(AG8-AF8),2),0) -> 0 | AI8: =IFERROR(VLOOKUP($A8,Pupils!$A$4:$T$3000,17,0),0) -> 0 | AJ8: =IFERROR(VLOOKUP($A8,'Monthly Statement'!$A$2:$V$3000,22,0),0) -> 0 | AK8: =IF($C$5>9,ROUND(SUM(AJ8-AI8),2),0) -> 0 | AL8: =IFERROR(VLOOKUP($A8,Pupils!$A$4:$T$3000,18,0),0) -> 0 | AM8: =IFERROR(VLOOKUP($A8,'Monthly Statement'!$A$2:$W$3000,23,0),0) -> 0 | AN8: =IF($C$5>10,ROUND(SUM(AM8-AL8),2),0) -> 0 | AO8: =IFERROR(VLOOKUP($A8,Pupils!$A$4:$T$3000,19,0),0) -> 0 | AP8: =IFERROR(VLOOKUP($A8,'Monthly Statement'!$A$2:$X$3000,24,0),0) -> 0 | AQ8: =IF($C$5>11,ROUND(SUM(AP8-AO8),2),0) -> 0
A9: ='Monthly Statement'!A4 -> 0 | B9: =IFERROR(VLOOKUP(A9,'Monthly Statement'!A:X,4,0),"") ->  | C9: =IFERROR(VLOOKUP(A9,'Monthly Statement'!A:X,5,0),"") ->  | D9: =IFERROR(VLOOKUP(A9,'Monthly Statement'!A:X,7,0),"") ->  | E9: =IFERROR(VLOOKUP(A9,'Monthly Statement'!A:X,9,0),"") ->  | F9: =IFERROR(VLOOKUP(A9,'Monthly Statement'!A:X,10,0),"") ->  | G9: 0 | H9: =IFERROR(VLOOKUP($A9,Pupils!$A$4:$T$3000,8,0),0) -> 0 | I9: =IFERROR(VLOOKUP($A9,'Monthly Statement'!$A$2:$V$3000,13,0),0) -> 0 | J9: 0 | K9: =IFERROR(VLOOKUP($A9,Pupils!$A$4:$T$3000,9,0),0) -> 0 | L9: =IFERROR(VLOOKUP($A9,'Monthly Statement'!$A$2:$V$3000,14,0),0) -> 0 | M9: 0 | N9: =IFERROR(VLOOKUP($A9,Pupils!$A$4:$T$3000,10,0),0) -> 0 | O9: =IFERROR(VLOOKUP($A9,'Monthly Statement'!$A$2:$V$3000,15,0),0) -> 0 | P9: 0 | Q9: =IFERROR(VLOOKUP($A9,Pupils!$A$4:$T$3000,11,0),0) -> 0 | R9: =IFERROR(VLOOKUP($A9,'Monthly Statement'!$A$2:$V$3000,16,0),0) -> 0 | S9: 0 | T9: =IFERROR(VLOOKUP($A9,Pupils!$A$4:$T$3000,12,0),0) -> 0 | U9: =IFERROR(VLOOKUP($A9,'Monthly Statement'!$A$2:$V$3000,17,0),0) -> 0 | V9: 0 | W9: =IFERROR(VLOOKUP($A9,Pupils!$A$4:$T$3000,13,0),0) -> 0 | X9: =IFERROR(VLOOKUP($A9,'Monthly Statement'!$A$2:$V$3000,18,0),0) -> 0 | Y9: 0 | Z9: =IFERROR(VLOOKUP($A9,Pupils!$A$4:$T$3000,14,0),0) -> 0 | AA9: =IFERROR(VLOOKUP($A9,'Monthly Statement'!$A$2:$V$3000,19,0),0) -> 0 | AB9: 0 | AC9: =IFERROR(VLOOKUP($A9,Pupils!$A$4:$T$3000,15,0),0) -> 0 | AD9: =IFERROR(VLOOKUP($A9,'Monthly Statement'!$A$2:$V$3000,20,0),0) -> 0 | AE9: 0 | AF9: =IFERROR(VLOOKUP($A9,Pupils!$A$4:$T$3000,16,0),0) -> 0 | AG9: =IFERROR(VLOOKUP($A9,'Monthly Statement'!$A$2:$V$3000,21,0),0) -> 0 | AH9: 0 | AI9: =IFERROR(VLOOKUP($A9,Pupils!$A$4:$T$3000,17,0),0) -> 0 | AJ9: =IFERROR(VLOOKUP($A9,'Monthly Statement'!$A$2:$V$3000,22,0),0) -> 0 | AK9: 0 | AL9: =IFERROR(VLOOKUP($A9,Pupils!$A$4:$T$3000,18,0),0) -> 0 | AM9: =IFERROR(VLOOKUP($A9,'Monthly Statement'!$A$2:$W$3000,23,0),0) -> 0 | AN9: 0 | AO9: =IFERROR(VLOOKUP($A9,Pupils!$A$4:$T$3000,19,0),0) -> 0 | AP9: =IFERROR(VLOOKUP($A9,'Monthly Statement'!$A$2:$X$3000,24,0),0) -> 0 | AQ9: 0
A10: ='Monthly Statement'!A5 -> 0 | B10: =IFERROR(VLOOKUP(A10,'Monthly Statement'!A:X,4,0),"") ->  | C10: =IFERROR(VLOOKUP(A10,'Monthly Statement'!A:X,5,0),"") ->  | D10: =IFERROR(VLOOKUP(A10,'Monthly Statement'!A:X,7,0),"") ->  | E10: =IFERROR(VLOOKUP(A10,'Monthly Statement'!A:X,9,0),"") ->  | F10: =IFERROR(VLOOKUP(A10,'Monthly Statement'!A:X,10,0),"") ->  | G10: 0 | H10: =IFERROR(VLOOKUP($A10,Pupils!$A$4:$T$3000,8,0),0) -> 0 | I10: =IFERROR(VLOOKUP($A10,'Monthly Statement'!$A$2:$V$3000,13,0),0) -> 0 | J10: 0 | K10: =IFERROR(VLOOKUP($A10,Pupils!$A$4:$T$3000,9,0),0) -> 0 | L10: =IFERROR(VLOOKUP($A10,'Monthly Statement'!$A$2:$V$3000,14,0),0) -> 0 | M10: 0 | N10: =IFERROR(VLOOKUP($A10,Pupils!$A$4:$T$3000,10,0),0) -> 0 | O10: =IFERROR(VLOOKUP($A10,'Monthly Statement'!$A$2:$V$3000,15,0),0) -> 0 | P10: 0 | Q10: =IFERROR(VLOOKUP($A10,Pupils!$A$4:$T$3000,11,0),0) -> 0 | R10: =IFERROR(VLOOKUP($A10,'Monthly Statement'!$A$2:$V$3000,16,0),0) -> 0 | S10: 0 | T10: =IFERROR(VLOOKUP($A10,Pupils!$A$4:$T$3000,12,0),0) -> 0 | U10: =IFERROR(VLOOKUP($A10,'Monthly Statement'!$A$2:$V$3000,17,0),0) -> 0 | V10: 0 | W10: =IFERROR(VLOOKUP($A10,Pupils!$A$4:$T$3000,13,0),0) -> 0 | X10: =IFERROR(VLOOKUP($A10,'Monthly Statement'!$A$2:$V$3000,18,0),0) -> 0 | Y10: 0 | Z10: =IFERROR(VLOOKUP($A10,Pupils!$A$4:$T$3000,14,0),0) -> 0 | AA10: =IFERROR(VLOOKUP($A10,'Monthly Statement'!$A$2:$V$3000,19,0),0) -> 0 | AB10: 0 | AC10: =IFERROR(VLOOKUP($A10,Pupils!$A$4:$T$3000,15,0),0) -> 0 | AD10: =IFERROR(VLOOKUP($A10,'Monthly Statement'!$A$2:$V$3000,20,0),0) -> 0 | AE10: 0 | AF10: =IFERROR(VLOOKUP($A10,Pupils!$A$4:$T$3000,16,0),0) -> 0 | AG10: =IFERROR(VLOOKUP($A10,'Monthly Statement'!$A$2:$V$3000,21,0),0) -> 0 | AH10: 0 | AI10: =IFERROR(VLOOKUP($A10,Pupils!$A$4:$T$3000,17,0),0) -> 0 | AJ10: =IFERROR(VLOOKUP($A10,'Monthly Statement'!$A$2:$V$3000,22,0),0) -> 0 | AK10: 0 | AL10: =IFERROR(VLOOKUP($A10,Pupils!$A$4:$T$3000,18,0),0) -> 0 | AM10: =IFERROR(VLOOKUP($A10,'Monthly Statement'!$A$2:$W$3000,23,0),0) -> 0 | AN10: 0 | AO10: =IFERROR(VLOOKUP($A10,Pupils!$A$4:$T$3000,19,0),0) -> 0 | AP10: =IFERROR(VLOOKUP($A10,'Monthly Statement'!$A$2:$X$3000,24,0),0) -> 0 | AQ10: 0
A11: ='Monthly Statement'!A6 -> 0 | B11: =IFERROR(VLOOKUP(A11,'Monthly Statement'!A:X,4,0),"") ->  | C11: =IFERROR(VLOOKUP(A11,'Monthly Statement'!A:X,5,0),"") ->  | D11: =IFERROR(VLOOKUP(A11,'Monthly Statement'!A:X,7,0),"") ->  | E11: =IFERROR(VLOOKUP(A11,'Monthly Statement'!A:X,9,0),"") ->  | F11: =IFERROR(VLOOKUP(A11,'Monthly Statement'!A:X,10,0),"") ->  | G11: 0 | H11: =IFERROR(VLOOKUP($A11,Pupils!$A$4:$T$3000,8,0),0) -> 0 | I11: =IFERROR(VLOOKUP($A11,'Monthly Statement'!$A$2:$V$3000,13,0),0) -> 0 | J11: 0 | K11: =IFERROR(VLOOKUP($A11,Pupils!$A$4:$T$3000,9,0),0) -> 0 | L11: =IFERROR(VLOOKUP($A11,'Monthly Statement'!$A$2:$V$3000,14,0),0) -> 0 | M11: 0 | N11: =IFERROR(VLOOKUP($A11,Pupils!$A$4:$T$3000,10,0),0) -> 0 | O11: =IFERROR(VLOOKUP($A11,'Monthly Statement'!$A$2:$V$3000,15,0),0) -> 0 | P11: 0 | Q11: =IFERROR(VLOOKUP($A11,Pupils!$A$4:$T$3000,11,0),0) -> 0 | R11: =IFERROR(VLOOKUP($A11,'Monthly Statement'!$A$2:$V$3000,16,0),0) -> 0 | S11: 0 | T11: =IFERROR(VLOOKUP($A11,Pupils!$A$4:$T$3000,12,0),0) -> 0 | U11: =IFERROR(VLOOKUP($A11,'Monthly Statement'!$A$2:$V$3000,17,0),0) -> 0 | V11: 0 | W11: =IFERROR(VLOOKUP($A11,Pupils!$A$4:$T$3000,13,0),0) -> 0 | X11: =IFERROR(VLOOKUP($A11,'Monthly Statement'!$A$2:$V$3000,18,0),0) -> 0 | Y11: 0 | Z11: =IFERROR(VLOOKUP($A11,Pupils!$A$4:$T$3000,14,0),0) -> 0 | AA11: =IFERROR(VLOOKUP($A11,'Monthly Statement'!$A$2:$V$3000,19,0),0) -> 0 | AB11: 0 | AC11: =IFERROR(VLOOKUP($A11,Pupils!$A$4:$T$3000,15,0),0) -> 0 | AD11: =IFERROR(VLOOKUP($A11,'Monthly Statement'!$A$2:$V$3000,20,0),0) -> 0 | AE11: 0 | AF11: =IFERROR(VLOOKUP($A11,Pupils!$A$4:$T$3000,16,0),0) -> 0 | AG11: =IFERROR(VLOOKUP($A11,'Monthly Statement'!$A$2:$V$3000,21,0),0) -> 0 | AH11: 0 | AI11: =IFERROR(VLOOKUP($A11,Pupils!$A$4:$T$3000,17,0),0) -> 0 | AJ11: =IFERROR(VLOOKUP($A11,'Monthly Statement'!$A$2:$V$3000,22,0),0) -> 0 | AK11: 0 | AL11: =IFERROR(VLOOKUP($A11,Pupils!$A$4:$T$3000,18,0),0) -> 0 | AM11: =IFERROR(VLOOKUP($A11,'Monthly Statement'!$A$2:$W$3000,23,0),0) -> 0 | AN11: 0 | AO11: =IFERROR(VLOOKUP($A11,Pupils!$A$4:$T$3000,19,0),0) -> 0 | AP11: =IFERROR(VLOOKUP($A11,'Monthly Statement'!$A$2:$X$3000,24,0),0) -> 0 | AQ11: 0
A12: ='Monthly Statement'!A7 -> 0 | B12: =IFERROR(VLOOKUP(A12,'Monthly Statement'!A:X,4,0),"") ->  | C12: =IFERROR(VLOOKUP(A12,'Monthly Statement'!A:X,5,0),"") ->  | D12: =IFERROR(VLOOKUP(A12,'Monthly Statement'!A:X,7,0),"") ->  | E12: =IFERROR(VLOOKUP(A12,'Monthly Statement'!A:X,9,0),"") ->  | F12: =IFERROR(VLOOKUP(A12,'Monthly Statement'!A:X,10,0),"") ->  | G12: 0 | H12: =IFERROR(VLOOKUP($A12,Pupils!$A$4:$T$3000,8,0),0) -> 0 | I12: =IFERROR(VLOOKUP($A12,'Monthly Statement'!$A$2:$V$3000,13,0),0) -> 0 | J12: 0 | K12: =IFERROR(VLOOKUP($A12,Pupils!$A$4:$T$3000,9,0),0) -> 0 | L12: =IFERROR(VLOOKUP($A12,'Monthly Statement'!$A$2:$V$3000,14,0),0) -> 0 | M12: 0 | N12: =IFERROR(VLOOKUP($A12,Pupils!$A$4:$T$3000,10,0),0) -> 0 | O12: =IFERROR(VLOOKUP($A12,'Monthly Statement'!$A$2:$V$3000,15,0),0) -> 0 | P12: 0 | Q12: =IFERROR(VLOOKUP($A12,Pupils!$A$4:$T$3000,11,0),0) -> 0 | R12: =IFERROR(VLOOKUP($A12,'Monthly Statement'!$A$2:$V$3000,16,0),0) -> 0 | S12: 0 | T12: =IFERROR(VLOOKUP($A12,Pupils!$A$4:$T$3000,12,0),0) -> 0 | U12: =IFERROR(VLOOKUP($A12,'Monthly Statement'!$A$2:$V$3000,17,0),0) -> 0 | V12: 0 | W12: =IFERROR(VLOOKUP($A12,Pupils!$A$4:$T$3000,13,0),0) -> 0 | X12: =IFERROR(VLOOKUP($A12,'Monthly Statement'!$A$2:$V$3000,18,0),0) -> 0 | Y12: 0 | Z12: =IFERROR(VLOOKUP($A12,Pupils!$A$4:$T$3000,14,0),0) -> 0 | AA12: =IFERROR(VLOOKUP($A12,'Monthly Statement'!$A$2:$V$3000,19,0),0) -> 0 | AB12: 0 | AC12: =IFERROR(VLOOKUP($A12,Pupils!$A$4:$T$3000,15,0),0) -> 0 | AD12: =IFERROR(VLOOKUP($A12,'Monthly Statement'!$A$2:$V$3000,20,0),0) -> 0 | AE12: 0 | AF12: =IFERROR(VLOOKUP($A12,Pupils!$A$4:$T$3000,16,0),0) -> 0 | AG12: =IFERROR(VLOOKUP($A12,'Monthly Statement'!$A$2:$V$3000,21,0),0) -> 0 | AH12: 0 | AI12: =IFERROR(VLOOKUP($A12,Pupils!$A$4:$T$3000,17,0),0) -> 0 | AJ12: =IFERROR(VLOOKUP($A12,'Monthly Statement'!$A$2:$V$3000,22,0),0) -> 0 | AK12: 0 | AL12: =IFERROR(VLOOKUP($A12,Pupils!$A$4:$T$3000,18,0),0) -> 0 | AM12: =IFERROR(VLOOKUP($A12,'Monthly Statement'!$A$2:$W$3000,23,0),0) -> 0 | AN12: 0 | AO12: =IFERROR(VLOOKUP($A12,Pupils!$A$4:$T$3000,19,0),0) -> 0 | AP12: =IFERROR(VLOOKUP($A12,'Monthly Statement'!$A$2:$X$3000,24,0),0) -> 0 | AQ12: 0
A13: ='Monthly Statement'!A8 -> 0 | B13: =IFERROR(VLOOKUP(A13,'Monthly Statement'!A:X,4,0),"") ->  | C13: =IFERROR(VLOOKUP(A13,'Monthly Statement'!A:X,5,0),"") ->  | D13: =IFERROR(VLOOKUP(A13,'Monthly Statement'!A:X,7,0),"") ->  | E13: =IFERROR(VLOOKUP(A13,'Monthly Statement'!A:X,9,0),"") ->  | F13: =IFERROR(VLOOKUP(A13,'Monthly Statement'!A:X,10,0),"") ->  | G13: 0 | H13: =IFERROR(VLOOKUP($A13,Pupils!$A$4:$T$3000,8,0),0) -> 0 | I13: =IFERROR(VLOOKUP($A13,'Monthly Statement'!$A$2:$V$3000,13,0),0) -> 0 | J13: 0 | K13: =IFERROR(VLOOKUP($A13,Pupils!$A$4:$T$3000,9,0),0) -> 0 | L13: =IFERROR(VLOOKUP($A13,'Monthly Statement'!$A$2:$V$3000,14,0),0) -> 0 | M13: 0 | N13: =IFERROR(VLOOKUP($A13,Pupils!$A$4:$T$3000,10,0),0) -> 0 | O13: =IFERROR(VLOOKUP($A13,'Monthly Statement'!$A$2:$V$3000,15,0),0) -> 0 | P13: 0 | Q13: =IFERROR(VLOOKUP($A13,Pupils!$A$4:$T$3000,11,0),0) -> 0 | R13: =IFERROR(VLOOKUP($A13,'Monthly Statement'!$A$2:$V$3000,16,0),0) -> 0 | S13: 0 | T13: =IFERROR(VLOOKUP($A13,Pupils!$A$4:$T$3000,12,0),0) -> 0 | U13: =IFERROR(VLOOKUP($A13,'Monthly Statement'!$A$2:$V$3000,17,0),0) -> 0 | V13: 0 | W13: =IFERROR(VLOOKUP($A13,Pupils!$A$4:$T$3000,13,0),0) -> 0 | X13: =IFERROR(VLOOKUP($A13,'Monthly Statement'!$A$2:$V$3000,18,0),0) -> 0 | Y13: 0 | Z13: =IFERROR(VLOOKUP($A13,Pupils!$A$4:$T$3000,14,0),0) -> 0 | AA13: =IFERROR(VLOOKUP($A13,'Monthly Statement'!$A$2:$V$3000,19,0),0) -> 0 | AB13: 0 | AC13: =IFERROR(VLOOKUP($A13,Pupils!$A$4:$T$3000,15,0),0) -> 0 | AD13: =IFERROR(VLOOKUP($A13,'Monthly Statement'!$A$2:$V$3000,20,0),0) -> 0 | AE13: 0 | AF13: =IFERROR(VLOOKUP($A13,Pupils!$A$4:$T$3000,16,0),0) -> 0 | AG13: =IFERROR(VLOOKUP($A13,'Monthly Statement'!$A$2:$V$3000,21,0),0) -> 0 | AH13: 0 | AI13: =IFERROR(VLOOKUP($A13,Pupils!$A$4:$T$3000,17,0),0) -> 0 | AJ13: =IFERROR(VLOOKUP($A13,'Monthly Statement'!$A$2:$V$3000,22,0),0) -> 0 | AK13: 0 | AL13: =IFERROR(VLOOKUP($A13,Pupils!$A$4:$T$3000,18,0),0) -> 0 | AM13: =IFERROR(VLOOKUP($A13,'Monthly Statement'!$A$2:$W$3000,23,0),0) -> 0 | AN13: 0 | AO13: =IFERROR(VLOOKUP($A13,Pupils!$A$4:$T$3000,19,0),0) -> 0 | AP13: =IFERROR(VLOOKUP($A13,'Monthly Statement'!$A$2:$X$3000,24,0),0) -> 0 | AQ13: 0
A14: ='Monthly Statement'!A9 -> 0 | B14: =IFERROR(VLOOKUP(A14,'Monthly Statement'!A:X,4,0),"") ->  | C14: =IFERROR(VLOOKUP(A14,'Monthly Statement'!A:X,5,0),"") ->  | D14: =IFERROR(VLOOKUP(A14,'Monthly Statement'!A:X,7,0),"") ->  | E14: =IFERROR(VLOOKUP(A14,'Monthly Statement'!A:X,9,0),"") ->  | F14: =IFERROR(VLOOKUP(A14,'Monthly Statement'!A:X,10,0),"") ->  | G14: 0 | H14: =IFERROR(VLOOKUP($A14,Pupils!$A$4:$T$3000,8,0),0) -> 0 | I14: =IFERROR(VLOOKUP($A14,'Monthly Statement'!$A$2:$V$3000,13,0),0) -> 0 | J14: 0 | K14: =IFERROR(VLOOKUP($A14,Pupils!$A$4:$T$3000,9,0),0) -> 0 | L14: =IFERROR(VLOOKUP($A14,'Monthly Statement'!$A$2:$V$3000,14,0),0) -> 0 | M14: 0 | N14: =IFERROR(VLOOKUP($A14,Pupils!$A$4:$T$3000,10,0),0) -> 0 | O14: =IFERROR(VLOOKUP($A14,'Monthly Statement'!$A$2:$V$3000,15,0),0) -> 0 | P14: 0 | Q14: =IFERROR(VLOOKUP($A14,Pupils!$A$4:$T$3000,11,0),0) -> 0 | R14: =IFERROR(VLOOKUP($A14,'Monthly Statement'!$A$2:$V$3000,16,0),0) -> 0 | S14: 0 | T14: =IFERROR(VLOOKUP($A14,Pupils!$A$4:$T$3000,12,0),0) -> 0 | U14: =IFERROR(VLOOKUP($A14,'Monthly Statement'!$A$2:$V$3000,17,0),0) -> 0 | V14: 0 | W14: =IFERROR(VLOOKUP($A14,Pupils!$A$4:$T$3000,13,0),0) -> 0 | X14: =IFERROR(VLOOKUP($A14,'Monthly Statement'!$A$2:$V$3000,18,0),0) -> 0 | Y14: 0 | Z14: =IFERROR(VLOOKUP($A14,Pupils!$A$4:$T$3000,14,0),0) -> 0 | AA14: =IFERROR(VLOOKUP($A14,'Monthly Statement'!$A$2:$V$3000,19,0),0) -> 0 | AB14: 0 | AC14: =IFERROR(VLOOKUP($A14,Pupils!$A$4:$T$3000,15,0),0) -> 0 | AD14: =IFERROR(VLOOKUP($A14,'Monthly Statement'!$A$2:$V$3000,20,0),0) -> 0 | AE14: 0 | AF14: =IFERROR(VLOOKUP($A14,Pupils!$A$4:$T$3000,16,0),0) -> 0 | AG14: =IFERROR(VLOOKUP($A14,'Monthly Statement'!$A$2:$V$3000,21,0),0) -> 0 | AH14: 0 | AI14: =IFERROR(VLOOKUP($A14,Pupils!$A$4:$T$3000,17,0),0) -> 0 | AJ14: =IFERROR(VLOOKUP($A14,'Monthly Statement'!$A$2:$V$3000,22,0),0) -> 0 | AK14: 0 | AL14: =IFERROR(VLOOKUP($A14,Pupils!$A$4:$T$3000,18,0),0) -> 0 | AM14: =IFERROR(VLOOKUP($A14,'Monthly Statement'!$A$2:$W$3000,23,0),0) -> 0 | AN14: 0 | AO14: =IFERROR(VLOOKUP($A14,Pupils!$A$4:$T$3000,19,0),0) -> 0 | AP14: =IFERROR(VLOOKUP($A14,'Monthly Statement'!$A$2:$X$3000,24,0),0) -> 0 | AQ14: 0
A15: ='Monthly Statement'!A10 -> 0 | B15: =IFERROR(VLOOKUP(A15,'Monthly Statement'!A:X,4,0),"") ->  | C15: =IFERROR(VLOOKUP(A15,'Monthly Statement'!A:X,5,0),"") ->  | D15: =IFERROR(VLOOKUP(A15,'Monthly Statement'!A:X,7,0),"") ->  | E15: =IFERROR(VLOOKUP(A15,'Monthly Statement'!A:X,9,0),"") ->  | F15: =IFERROR(VLOOKUP(A15,'Monthly Statement'!A:X,10,0),"") ->  | G15: 0 | H15: =IFERROR(VLOOKUP($A15,Pupils!$A$4:$T$3000,8,0),0) -> 0 | I15: =IFERROR(VLOOKUP($A15,'Monthly Statement'!$A$2:$V$3000,13,0),0) -> 0 | J15: 0 | K15: =IFERROR(VLOOKUP($A15,Pupils!$A$4:$T$3000,9,0),0) -> 0 | L15: =IFERROR(VLOOKUP($A15,'Monthly Statement'!$A$2:$V$3000,14,0),0) -> 0 | M15: 0 | N15: =IFERROR(VLOOKUP($A15,Pupils!$A$4:$T$3000,10,0),0) -> 0 | O15: =IFERROR(VLOOKUP($A15,'Monthly Statement'!$A$2:$V$3000,15,0),0) -> 0 | P15: 0 | Q15: =IFERROR(VLOOKUP($A15,Pupils!$A$4:$T$3000,11,0),0) -> 0 | R15: =IFERROR(VLOOKUP($A15,'Monthly Statement'!$A$2:$V$3000,16,0),0) -> 0 | S15: 0 | T15: =IFERROR(VLOOKUP($A15,Pupils!$A$4:$T$3000,12,0),0) -> 0 | U15: =IFERROR(VLOOKUP($A15,'Monthly Statement'!$A$2:$V$3000,17,0),0) -> 0 | V15: 0 | W15: =IFERROR(VLOOKUP($A15,Pupils!$A$4:$T$3000,13,0),0) -> 0 | X15: =IFERROR(VLOOKUP($A15,'Monthly Statement'!$A$2:$V$3000,18,0),0) -> 0 | Y15: 0 | Z15: =IFERROR(VLOOKUP($A15,Pupils!$A$4:$T$3000,14,0),0) -> 0 | AA15: =IFERROR(VLOOKUP($A15,'Monthly Statement'!$A$2:$V$3000,19,0),0) -> 0 | AB15: 0 | AC15: =IFERROR(VLOOKUP($A15,Pupils!$A$4:$T$3000,15,0),0) -> 0 | AD15: =IFERROR(VLOOKUP($A15,'Monthly Statement'!$A$2:$V$3000,20,0),0) -> 0 | AE15: 0 | AF15: =IFERROR(VLOOKUP($A15,Pupils!$A$4:$T$3000,16,0),0) -> 0 | AG15: =IFERROR(VLOOKUP($A15,'Monthly Statement'!$A$2:$V$3000,21,0),0) -> 0 | AH15: 0 | AI15: =IFERROR(VLOOKUP($A15,Pupils!$A$4:$T$3000,17,0),0) -> 0 | AJ15: =IFERROR(VLOOKUP($A15,'Monthly Statement'!$A$2:$V$3000,22,0),0) -> 0 | AK15: 0 | AL15: =IFERROR(VLOOKUP($A15,Pupils!$A$4:$T$3000,18,0),0) -> 0 | AM15: =IFERROR(VLOOKUP($A15,'Monthly Statement'!$A$2:$W$3000,23,0),0) -> 0 | AN15: 0 | AO15: =IFERROR(VLOOKUP($A15,Pupils!$A$4:$T$3000,19,0),0) -> 0 | AP15: =IFERROR(VLOOKUP($A15,'Monthly Statement'!$A$2:$X$3000,24,0),0) -> 0 | AQ15: 0
A16: ='Monthly Statement'!A11 -> 0 | B16: =IFERROR(VLOOKUP(A16,'Monthly Statement'!A:X,4,0),"") ->  | C16: =IFERROR(VLOOKUP(A16,'Monthly Statement'!A:X,5,0),"") ->  | D16: =IFERROR(VLOOKUP(A16,'Monthly Statement'!A:X,7,0),"") ->  | E16: =IFERROR(VLOOKUP(A16,'Monthly Statement'!A:X,9,0),"") ->  | F16: =IFERROR(VLOOKUP(A16,'Monthly Statement'!A:X,10,0),"") ->  | G16: 0 | H16: =IFERROR(VLOOKUP($A16,Pupils!$A$4:$T$3000,8,0),0) -> 0 | I16: =IFERROR(VLOOKUP($A16,'Monthly Statement'!$A$2:$V$3000,13,0),0) -> 0 | J16: 0 | K16: =IFERROR(VLOOKUP($A16,Pupils!$A$4:$T$3000,9,0),0) -> 0 | L16: =IFERROR(VLOOKUP($A16,'Monthly Statement'!$A$2:$V$3000,14,0),0) -> 0 | M16: 0 | N16: =IFERROR(VLOOKUP($A16,Pupils!$A$4:$T$3000,10,0),0) -> 0 | O16: =IFERROR(VLOOKUP($A16,'Monthly Statement'!$A$2:$V$3000,15,0),0) -> 0 | P16: 0 | Q16: =IFERROR(VLOOKUP($A16,Pupils!$A$4:$T$3000,11,0),0) -> 0 | R16: =IFERROR(VLOOKUP($A16,'Monthly Statement'!$A$2:$V$3000,16,0),0) -> 0 | S16: 0 | T16: =IFERROR(VLOOKUP($A16,Pupils!$A$4:$T$3000,12,0),0) -> 0 | U16: =IFERROR(VLOOKUP($A16,'Monthly Statement'!$A$2:$V$3000,17,0),0) -> 0 | V16: 0 | W16: =IFERROR(VLOOKUP($A16,Pupils!$A$4:$T$3000,13,0),0) -> 0 | X16: =IFERROR(VLOOKUP($A16,'Monthly Statement'!$A$2:$V$3000,18,0),0) -> 0 | Y16: 0 | Z16: =IFERROR(VLOOKUP($A16,Pupils!$A$4:$T$3000,14,0),0) -> 0 | AA16: =IFERROR(VLOOKUP($A16,'Monthly Statement'!$A$2:$V$3000,19,0),0) -> 0 | AB16: 0 | AC16: =IFERROR(VLOOKUP($A16,Pupils!$A$4:$T$3000,15,0),0) -> 0 | AD16: =IFERROR(VLOOKUP($A16,'Monthly Statement'!$A$2:$V$3000,20,0),0) -> 0 | AE16: 0 | AF16: =IFERROR(VLOOKUP($A16,Pupils!$A$4:$T$3000,16,0),0) -> 0 | AG16: =IFERROR(VLOOKUP($A16,'Monthly Statement'!$A$2:$V$3000,21,0),0) -> 0 | AH16: 0 | AI16: =IFERROR(VLOOKUP($A16,Pupils!$A$4:$T$3000,17,0),0) -> 0 | AJ16: =IFERROR(VLOOKUP($A16,'Monthly Statement'!$A$2:$V$3000,22,0),0) -> 0 | AK16: 0 | AL16: =IFERROR(VLOOKUP($A16,Pupils!$A$4:$T$3000,18,0),0) -> 0 | AM16: =IFERROR(VLOOKUP($A16,'Monthly Statement'!$A$2:$W$3000,23,0),0) -> 0 | AN16: 0 | AO16: =IFERROR(VLOOKUP($A16,Pupils!$A$4:$T$3000,19,0),0) -> 0 | AP16: =IFERROR(VLOOKUP($A16,'Monthly Statement'!$A$2:$X$3000,24,0),0) -> 0 | AQ16: 0
A17: ='Monthly Statement'!A12 -> 0 | B17: =IFERROR(VLOOKUP(A17,'Monthly Statement'!A:X,4,0),"") ->  | C17: =IFERROR(VLOOKUP(A17,'Monthly Statement'!A:X,5,0),"") ->  | D17: =IFERROR(VLOOKUP(A17,'Monthly Statement'!A:X,7,0),"") ->  | E17: =IFERROR(VLOOKUP(A17,'Monthly Statement'!A:X,9,0),"") ->  | F17: =IFERROR(VLOOKUP(A17,'Monthly Statement'!A:X,10,0),"") ->  | G17: 0 | H17: =IFERROR(VLOOKUP($A17,Pupils!$A$4:$T$3000,8,0),0) -> 0 | I17: =IFERROR(VLOOKUP($A17,'Monthly Statement'!$A$2:$V$3000,13,0),0) -> 0 | J17: 0 | K17: =IFERROR(VLOOKUP($A17,Pupils!$A$4:$T$3000,9,0),0) -> 0 | L17: =IFERROR(VLOOKUP($A17,'Monthly Statement'!$A$2:$V$3000,14,0),0) -> 0 | M17: 0 | N17: =IFERROR(VLOOKUP($A17,Pupils!$A$4:$T$3000,10,0),0) -> 0 | O17: =IFERROR(VLOOKUP($A17,'Monthly Statement'!$A$2:$V$3000,15,0),0) -> 0 | P17: 0 | Q17: =IFERROR(VLOOKUP($A17,Pupils!$A$4:$T$3000,11,0),0) -> 0 | R17: =IFERROR(VLOOKUP($A17,'Monthly Statement'!$A$2:$V$3000,16,0),0) -> 0 | S17: 0 | T17: =IFERROR(VLOOKUP($A17,Pupils!$A$4:$T$3000,12,0),0) -> 0 | U17: =IFERROR(VLOOKUP($A17,'Monthly Statement'!$A$2:$V$3000,17,0),0) -> 0 | V17: 0 | W17: =IFERROR(VLOOKUP($A17,Pupils!$A$4:$T$3000,13,0),0) -> 0 | X17: =IFERROR(VLOOKUP($A17,'Monthly Statement'!$A$2:$V$3000,18,0),0) -> 0 | Y17: 0 | Z17: =IFERROR(VLOOKUP($A17,Pupils!$A$4:$T$3000,14,0),0) -> 0 | AA17: =IFERROR(VLOOKUP($A17,'Monthly Statement'!$A$2:$V$3000,19,0),0) -> 0 | AB17: 0 | AC17: =IFERROR(VLOOKUP($A17,Pupils!$A$4:$T$3000,15,0),0) -> 0 | AD17: =IFERROR(VLOOKUP($A17,'Monthly Statement'!$A$2:$V$3000,20,0),0) -> 0 | AE17: 0 | AF17: =IFERROR(VLOOKUP($A17,Pupils!$A$4:$T$3000,16,0),0) -> 0 | AG17: =IFERROR(VLOOKUP($A17,'Monthly Statement'!$A$2:$V$3000,21,0),0) -> 0 | AH17: 0 | AI17: =IFERROR(VLOOKUP($A17,Pupils!$A$4:$T$3000,17,0),0) -> 0 | AJ17: =IFERROR(VLOOKUP($A17,'Monthly Statement'!$A$2:$V$3000,22,0),0) -> 0 | AK17: 0 | AL17: =IFERROR(VLOOKUP($A17,Pupils!$A$4:$T$3000,18,0),0) -> 0 | AM17: =IFERROR(VLOOKUP($A17,'Monthly Statement'!$A$2:$W$3000,23,0),0) -> 0 | AN17: 0 | AO17: =IFERROR(VLOOKUP($A17,Pupils!$A$4:$T$3000,19,0),0) -> 0 | AP17: =IFERROR(VLOOKUP($A17,'Monthly Statement'!$A$2:$X$3000,24,0),0) -> 0 | AQ17: 0
A18: ='Monthly Statement'!A13 -> 0 | B18: =IFERROR(VLOOKUP(A18,'Monthly Statement'!A:X,4,0),"") ->  | C18: =IFERROR(VLOOKUP(A18,'Monthly Statement'!A:X,5,0),"") ->  | D18: =IFERROR(VLOOKUP(A18,'Monthly Statement'!A:X,7,0),"") ->  | E18: =IFERROR(VLOOKUP(A18,'Monthly Statement'!A:X,9,0),"") ->  | F18: =IFERROR(VLOOKUP(A18,'Monthly Statement'!A:X,10,0),"") ->  | G18: 0 | H18: =IFERROR(VLOOKUP($A18,Pupils!$A$4:$T$3000,8,0),0) -> 0 | I18: =IFERROR(VLOOKUP($A18,'Monthly Statement'!$A$2:$V$3000,13,0),0) -> 0 | J18: 0 | K18: =IFERROR(VLOOKUP($A18,Pupils!$A$4:$T$3000,9,0),0) -> 0 | L18: =IFERROR(VLOOKUP($A18,'Monthly Statement'!$A$2:$V$3000,14,0),0) -> 0 | M18: 0 | N18: =IFERROR(VLOOKUP($A18,Pupils!$A$4:$T$3000,10,0),0) -> 0 | O18: =IFERROR(VLOOKUP($A18,'Monthly Statement'!$A$2:$V$3000,15,0),0) -> 0 | P18: 0 | Q18: =IFERROR(VLOOKUP($A18,Pupils!$A$4:$T$3000,11,0),0) -> 0 | R18: =IFERROR(VLOOKUP($A18,'Monthly Statement'!$A$2:$V$3000,16,0),0) -> 0 | S18: 0 | T18: =IFERROR(VLOOKUP($A18,Pupils!$A$4:$T$3000,12,0),0) -> 0 | U18: =IFERROR(VLOOKUP($A18,'Monthly Statement'!$A$2:$V$3000,17,0),0) -> 0 | V18: 0 | W18: =IFERROR(VLOOKUP($A18,Pupils!$A$4:$T$3000,13,0),0) -> 0 | X18: =IFERROR(VLOOKUP($A18,'Monthly Statement'!$A$2:$V$3000,18,0),0) -> 0 | Y18: 0 | Z18: =IFERROR(VLOOKUP($A18,Pupils!$A$4:$T$3000,14,0),0) -> 0 | AA18: =IFERROR(VLOOKUP($A18,'Monthly Statement'!$A$2:$V$3000,19,0),0) -> 0 | AB18: 0 | AC18: =IFERROR(VLOOKUP($A18,Pupils!$A$4:$T$3000,15,0),0) -> 0 | AD18: =IFERROR(VLOOKUP($A18,'Monthly Statement'!$A$2:$V$3000,20,0),0) -> 0 | AE18: 0 | AF18: =IFERROR(VLOOKUP($A18,Pupils!$A$4:$T$3000,16,0),0) -> 0 | AG18: =IFERROR(VLOOKUP($A18,'Monthly Statement'!$A$2:$V$3000,21,0),0) -> 0 | AH18: 0 | AI18: =IFERROR(VLOOKUP($A18,Pupils!$A$4:$T$3000,17,0),0) -> 0 | AJ18: =IFERROR(VLOOKUP($A18,'Monthly Statement'!$A$2:$V$3000,22,0),0) -> 0 | AK18: 0 | AL18: =IFERROR(VLOOKUP($A18,Pupils!$A$4:$T$3000,18,0),0) -> 0 | AM18: =IFERROR(VLOOKUP($A18,'Monthly Statement'!$A$2:$W$3000,23,0),0) -> 0 | AN18: 0 | AO18: =IFERROR(VLOOKUP($A18,Pupils!$A$4:$T$3000,19,0),0) -> 0 | AP18: =IFERROR(VLOOKUP($A18,'Monthly Statement'!$A$2:$X$3000,24,0),0) -> 0 | AQ18: 0
A19: ='Monthly Statement'!A14 -> 0 | B19: =IFERROR(VLOOKUP(A19,'Monthly Statement'!A:X,4,0),"") ->  | C19: =IFERROR(VLOOKUP(A19,'Monthly Statement'!A:X,5,0),"") ->  | D19: =IFERROR(VLOOKUP(A19,'Monthly Statement'!A:X,7,0),"") ->  | E19: =IFERROR(VLOOKUP(A19,'Monthly Statement'!A:X,9,0),"") ->  | F19: =IFERROR(VLOOKUP(A19,'Monthly Statement'!A:X,10,0),"") ->  | G19: 0 | H19: =IFERROR(VLOOKUP($A19,Pupils!$A$4:$T$3000,8,0),0) -> 0 | I19: =IFERROR(VLOOKUP($A19,'Monthly Statement'!$A$2:$V$3000,13,0),0) -> 0 | J19: 0 | K19: =IFERROR(VLOOKUP($A19,Pupils!$A$4:$T$3000,9,0),0) -> 0 | L19: =IFERROR(VLOOKUP($A19,'Monthly Statement'!$A$2:$V$3000,14,0),0) -> 0 | M19: 0 | N19: =IFERROR(VLOOKUP($A19,Pupils!$A$4:$T$3000,10,0),0) -> 0 | O19: =IFERROR(VLOOKUP($A19,'Monthly Statement'!$A$2:$V$3000,15,0),0) -> 0 | P19: 0 | Q19: =IFERROR(VLOOKUP($A19,Pupils!$A$4:$T$3000,11,0),0) -> 0 | R19: =IFERROR(VLOOKUP($A19,'Monthly Statement'!$A$2:$V$3000,16,0),0) -> 0 | S19: 0 | T19: =IFERROR(VLOOKUP($A19,Pupils!$A$4:$T$3000,12,0),0) -> 0 | U19: =IFERROR(VLOOKUP($A19,'Monthly Statement'!$A$2:$V$3000,17,0),0) -> 0 | V19: 0 | W19: =IFERROR(VLOOKUP($A19,Pupils!$A$4:$T$3000,13,0),0) -> 0 | X19: =IFERROR(VLOOKUP($A19,'Monthly Statement'!$A$2:$V$3000,18,0),0) -> 0 | Y19: 0 | Z19: =IFERROR(VLOOKUP($A19,Pupils!$A$4:$T$3000,14,0),0) -> 0 | AA19: =IFERROR(VLOOKUP($A19,'Monthly Statement'!$A$2:$V$3000,19,0),0) -> 0 | AB19: 0 | AC19: =IFERROR(VLOOKUP($A19,Pupils!$A$4:$T$3000,15,0),0) -> 0 | AD19: =IFERROR(VLOOKUP($A19,'Monthly Statement'!$A$2:$V$3000,20,0),0) -> 0 | AE19: 0 | AF19: =IFERROR(VLOOKUP($A19,Pupils!$A$4:$T$3000,16,0),0) -> 0 | AG19: =IFERROR(VLOOKUP($A19,'Monthly Statement'!$A$2:$V$3000,21,0),0) -> 0 | AH19: 0 | AI19: =IFERROR(VLOOKUP($A19,Pupils!$A$4:$T$3000,17,0),0) -> 0 | AJ19: =IFERROR(VLOOKUP($A19,'Monthly Statement'!$A$2:$V$3000,22,0),0) -> 0 | AK19: 0 | AL19: =IFERROR(VLOOKUP($A19,Pupils!$A$4:$T$3000,18,0),0) -> 0 | AM19: =IFERROR(VLOOKUP($A19,'Monthly Statement'!$A$2:$W$3000,23,0),0) -> 0 | AN19: 0 | AO19: =IFERROR(VLOOKUP($A19,Pupils!$A$4:$T$3000,19,0),0) -> 0 | AP19: =IFERROR(VLOOKUP($A19,'Monthly Statement'!$A$2:$X$3000,24,0),0) -> 0 | AQ19: 0
A20: ='Monthly Statement'!A15 -> 0 | B20: =IFERROR(VLOOKUP(A20,'Monthly Statement'!A:X,4,0),"") ->  | C20: =IFERROR(VLOOKUP(A20,'Monthly Statement'!A:X,5,0),"") ->  | D20: =IFERROR(VLOOKUP(A20,'Monthly Statement'!A:X,7,0),"") ->  | E20: =IFERROR(VLOOKUP(A20,'Monthly Statement'!A:X,9,0),"") ->  | F20: =IFERROR(VLOOKUP(A20,'Monthly Statement'!A:X,10,0),"") ->  | G20: 0 | H20: =IFERROR(VLOOKUP($A20,Pupils!$A$4:$T$3000,8,0),0) -> 0 | I20: =IFERROR(VLOOKUP($A20,'Monthly Statement'!$A$2:$V$3000,13,0),0) -> 0 | J20: 0 | K20: =IFERROR(VLOOKUP($A20,Pupils!$A$4:$T$3000,9,0),0) -> 0 | L20: =IFERROR(VLOOKUP($A20,'Monthly Statement'!$A$2:$V$3000,14,0),0) -> 0 | M20: 0 | N20: =IFERROR(VLOOKUP($A20,Pupils!$A$4:$T$3000,10,0),0) -> 0 | O20: =IFERROR(VLOOKUP($A20,'Monthly Statement'!$A$2:$V$3000,15,0),0) -> 0 | P20: 0 | Q20: =IFERROR(VLOOKUP($A20,Pupils!$A$4:$T$3000,11,0),0) -> 0 | R20: =IFERROR(VLOOKUP($A20,'Monthly Statement'!$A$2:$V$3000,16,0),0) -> 0 | S20: 0 | T20: =IFERROR(VLOOKUP($A20,Pupils!$A$4:$T$3000,12,0),0) -> 0 | U20: =IFERROR(VLOOKUP($A20,'Monthly Statement'!$A$2:$V$3000,17,0),0) -> 0 | V20: 0 | W20: =IFERROR(VLOOKUP($A20,Pupils!$A$4:$T$3000,13,0),0) -> 0 | X20: =IFERROR(VLOOKUP($A20,'Monthly Statement'!$A$2:$V$3000,18,0),0) -> 0 | Y20: 0 | Z20: =IFERROR(VLOOKUP($A20,Pupils!$A$4:$T$3000,14,0),0) -> 0 | AA20: =IFERROR(VLOOKUP($A20,'Monthly Statement'!$A$2:$V$3000,19,0),0) -> 0 | AB20: 0 | AC20: =IFERROR(VLOOKUP($A20,Pupils!$A$4:$T$3000,15,0),0) -> 0 | AD20: =IFERROR(VLOOKUP($A20,'Monthly Statement'!$A$2:$V$3000,20,0),0) -> 0 | AE20: 0 | AF20: =IFERROR(VLOOKUP($A20,Pupils!$A$4:$T$3000,16,0),0) -> 0 | AG20: =IFERROR(VLOOKUP($A20,'Monthly Statement'!$A$2:$V$3000,21,0),0) -> 0 | AH20: 0 | AI20: =IFERROR(VLOOKUP($A20,Pupils!$A$4:$T$3000,17,0),0) -> 0 | AJ20: =IFERROR(VLOOKUP($A20,'Monthly Statement'!$A$2:$V$3000,22,0),0) -> 0 | AK20: 0 | AL20: =IFERROR(VLOOKUP($A20,Pupils!$A$4:$T$3000,18,0),0) -> 0 | AM20: =IFERROR(VLOOKUP($A20,'Monthly Statement'!$A$2:$W$3000,23,0),0) -> 0 | AN20: 0 | AO20: =IFERROR(VLOOKUP($A20,Pupils!$A$4:$T$3000,19,0),0) -> 0 | AP20: =IFERROR(VLOOKUP($A20,'Monthly Statement'!$A$2:$X$3000,24,0),0) -> 0 | AQ20: 0
A21: ='Monthly Statement'!A16 -> 0 | B21: =IFERROR(VLOOKUP(A21,'Monthly Statement'!A:X,4,0),"") ->  | C21: =IFERROR(VLOOKUP(A21,'Monthly Statement'!A:X,5,0),"") ->  | D21: =IFERROR(VLOOKUP(A21,'Monthly Statement'!A:X,7,0),"") ->  | E21: =IFERROR(VLOOKUP(A21,'Monthly Statement'!A:X,9,0),"") ->  | F21: =IFERROR(VLOOKUP(A21,'Monthly Statement'!A:X,10,0),"") ->  | G21: 0 | H21: =IFERROR(VLOOKUP($A21,Pupils!$A$4:$T$3000,8,0),0) -> 0 | I21: =IFERROR(VLOOKUP($A21,'Monthly Statement'!$A$2:$V$3000,13,0),0) -> 0 | J21: 0 | K21: =IFERROR(VLOOKUP($A21,Pupils!$A$4:$T$3000,9,0),0) -> 0 | L21: =IFERROR(VLOOKUP($A21,'Monthly Statement'!$A$2:$V$3000,14,0),0) -> 0 | M21: 0 | N21: =IFERROR(VLOOKUP($A21,Pupils!$A$4:$T$3000,10,0),0) -> 0 | O21: =IFERROR(VLOOKUP($A21,'Monthly Statement'!$A$2:$V$3000,15,0),0) -> 0 | P21: 0 | Q21: =IFERROR(VLOOKUP($A21,Pupils!$A$4:$T$3000,11,0),0) -> 0 | R21: =IFERROR(VLOOKUP($A21,'Monthly Statement'!$A$2:$V$3000,16,0),0) -> 0 | S21: 0 | T21: =IFERROR(VLOOKUP($A21,Pupils!$A$4:$T$3000,12,0),0) -> 0 | U21: =IFERROR(VLOOKUP($A21,'Monthly Statement'!$A$2:$V$3000,17,0),0) -> 0 | V21: 0 | W21: =IFERROR(VLOOKUP($A21,Pupils!$A$4:$T$3000,13,0),0) -> 0 | X21: =IFERROR(VLOOKUP($A21,'Monthly Statement'!$A$2:$V$3000,18,0),0) -> 0 | Y21: 0 | Z21: =IFERROR(VLOOKUP($A21,Pupils!$A$4:$T$3000,14,0),0) -> 0 | AA21: =IFERROR(VLOOKUP($A21,'Monthly Statement'!$A$2:$V$3000,19,0),0) -> 0 | AB21: 0 | AC21: =IFERROR(VLOOKUP($A21,Pupils!$A$4:$T$3000,15,0),0) -> 0 | AD21: =IFERROR(VLOOKUP($A21,'Monthly Statement'!$A$2:$V$3000,20,0),0) -> 0 | AE21: 0 | AF21: =IFERROR(VLOOKUP($A21,Pupils!$A$4:$T$3000,16,0),0) -> 0 | AG21: =IFERROR(VLOOKUP($A21,'Monthly Statement'!$A$2:$V$3000,21,0),0) -> 0 | AH21: 0 | AI21: =IFERROR(VLOOKUP($A21,Pupils!$A$4:$T$3000,17,0),0) -> 0 | AJ21: =IFERROR(VLOOKUP($A21,'Monthly Statement'!$A$2:$V$3000,22,0),0) -> 0 | AK21: 0 | AL21: =IFERROR(VLOOKUP($A21,Pupils!$A$4:$T$3000,18,0),0) -> 0 | AM21: =IFERROR(VLOOKUP($A21,'Monthly Statement'!$A$2:$W$3000,23,0),0) -> 0 | AN21: 0 | AO21: =IFERROR(VLOOKUP($A21,Pupils!$A$4:$T$3000,19,0),0) -> 0 | AP21: =IFERROR(VLOOKUP($A21,'Monthly Statement'!$A$2:$X$3000,24,0),0) -> 0 | AQ21: 0
A22: ='Monthly Statement'!A17 -> 0 | B22: =IFERROR(VLOOKUP(A22,'Monthly Statement'!A:X,4,0),"") ->  | C22: =IFERROR(VLOOKUP(A22,'Monthly Statement'!A:X,5,0),"") ->  | D22: =IFERROR(VLOOKUP(A22,'Monthly Statement'!A:X,7,0),"") ->  | E22: =IFERROR(VLOOKUP(A22,'Monthly Statement'!A:X,9,0),"") ->  | F22: =IFERROR(VLOOKUP(A22,'Monthly Statement'!A:X,10,0),"") ->  | G22: 0 | H22: =IFERROR(VLOOKUP($A22,Pupils!$A$4:$T$3000,8,0),0) -> 0 | I22: =IFERROR(VLOOKUP($A22,'Monthly Statement'!$A$2:$V$3000,13,0),0) -> 0 | J22: 0 | K22: =IFERROR(VLOOKUP($A22,Pupils!$A$4:$T$3000,9,0),0) -> 0 | L22: =IFERROR(VLOOKUP($A22,'Monthly Statement'!$A$2:$V$3000,14,0),0) -> 0 | M22: 0 | N22: =IFERROR(VLOOKUP($A22,Pupils!$A$4:$T$3000,10,0),0) -> 0 | O22: =IFERROR(VLOOKUP($A22,'Monthly Statement'!$A$2:$V$3000,15,0),0) -> 0 | P22: 0 | Q22: =IFERROR(VLOOKUP($A22,Pupils!$A$4:$T$3000,11,0),0) -> 0 | R22: =IFERROR(VLOOKUP($A22,'Monthly Statement'!$A$2:$V$3000,16,0),0) -> 0 | S22: 0 | T22: =IFERROR(VLOOKUP($A22,Pupils!$A$4:$T$3000,12,0),0) -> 0 | U22: =IFERROR(VLOOKUP($A22,'Monthly Statement'!$A$2:$V$3000,17,0),0) -> 0 | V22: 0 | W22: =IFERROR(VLOOKUP($A22,Pupils!$A$4:$T$3000,13,0),0) -> 0 | X22: =IFERROR(VLOOKUP($A22,'Monthly Statement'!$A$2:$V$3000,18,0),0) -> 0 | Y22: 0 | Z22: =IFERROR(VLOOKUP($A22,Pupils!$A$4:$T$3000,14,0),0) -> 0 | AA22: =IFERROR(VLOOKUP($A22,'Monthly Statement'!$A$2:$V$3000,19,0),0) -> 0 | AB22: 0 | AC22: =IFERROR(VLOOKUP($A22,Pupils!$A$4:$T$3000,15,0),0) -> 0 | AD22: =IFERROR(VLOOKUP($A22,'Monthly Statement'!$A$2:$V$3000,20,0),0) -> 0 | AE22: 0 | AF22: =IFERROR(VLOOKUP($A22,Pupils!$A$4:$T$3000,16,0),0) -> 0 | AG22: =IFERROR(VLOOKUP($A22,'Monthly Statement'!$A$2:$V$3000,21,0),0) -> 0 | AH22: 0 | AI22: =IFERROR(VLOOKUP($A22,Pupils!$A$4:$T$3000,17,0),0) -> 0 | AJ22: =IFERROR(VLOOKUP($A22,'Monthly Statement'!$A$2:$V$3000,22,0),0) -> 0 | AK22: 0 | AL22: =IFERROR(VLOOKUP($A22,Pupils!$A$4:$T$3000,18,0),0) -> 0 | AM22: =IFERROR(VLOOKUP($A22,'Monthly Statement'!$A$2:$W$3000,23,0),0) -> 0 | AN22: 0 | AO22: =IFERROR(VLOOKUP($A22,Pupils!$A$4:$T$3000,19,0),0) -> 0 | AP22: =IFERROR(VLOOKUP($A22,'Monthly Statement'!$A$2:$X$3000,24,0),0) -> 0 | AQ22: 0
A23: ='Monthly Statement'!A18 -> 0 | B23: =IFERROR(VLOOKUP(A23,'Monthly Statement'!A:X,4,0),"") ->  | C23: =IFERROR(VLOOKUP(A23,'Monthly Statement'!A:X,5,0),"") ->  | D23: =IFERROR(VLOOKUP(A23,'Monthly Statement'!A:X,7,0),"") ->  | E23: =IFERROR(VLOOKUP(A23,'Monthly Statement'!A:X,9,0),"") ->  | F23: =IFERROR(VLOOKUP(A23,'Monthly Statement'!A:X,10,0),"") ->  | G23: 0 | H23: =IFERROR(VLOOKUP($A23,Pupils!$A$4:$T$3000,8,0),0) -> 0 | I23: =IFERROR(VLOOKUP($A23,'Monthly Statement'!$A$2:$V$3000,13,0),0) -> 0 | J23: 0 | K23: =IFERROR(VLOOKUP($A23,Pupils!$A$4:$T$3000,9,0),0) -> 0 | L23: =IFERROR(VLOOKUP($A23,'Monthly Statement'!$A$2:$V$3000,14,0),0) -> 0 | M23: 0 | N23: =IFERROR(VLOOKUP($A23,Pupils!$A$4:$T$3000,10,0),0) -> 0 | O23: =IFERROR(VLOOKUP($A23,'Monthly Statement'!$A$2:$V$3000,15,0),0) -> 0 | P23: 0 | Q23: =IFERROR(VLOOKUP($A23,Pupils!$A$4:$T$3000,11,0),0) -> 0 | R23: =IFERROR(VLOOKUP($A23,'Monthly Statement'!$A$2:$V$3000,16,0),0) -> 0 | S23: 0 | T23: =IFERROR(VLOOKUP($A23,Pupils!$A$4:$T$3000,12,0),0) -> 0 | U23: =IFERROR(VLOOKUP($A23,'Monthly Statement'!$A$2:$V$3000,17,0),0) -> 0 | V23: 0 | W23: =IFERROR(VLOOKUP($A23,Pupils!$A$4:$T$3000,13,0),0) -> 0 | X23: =IFERROR(VLOOKUP($A23,'Monthly Statement'!$A$2:$V$3000,18,0),0) -> 0 | Y23: 0 | Z23: =IFERROR(VLOOKUP($A23,Pupils!$A$4:$T$3000,14,0),0) -> 0 | AA23: =IFERROR(VLOOKUP($A23,'Monthly Statement'!$A$2:$V$3000,19,0),0) -> 0 | AB23: 0 | AC23: =IFERROR(VLOOKUP($A23,Pupils!$A$4:$T$3000,15,0),0) -> 0 | AD23: =IFERROR(VLOOKUP($A23,'Monthly Statement'!$A$2:$V$3000,20,0),0) -> 0 | AE23: 0 | AF23: =IFERROR(VLOOKUP($A23,Pupils!$A$4:$T$3000,16,0),0) -> 0 | AG23: =IFERROR(VLOOKUP($A23,'Monthly Statement'!$A$2:$V$3000,21,0),0) -> 0 | AH23: 0 | AI23: =IFERROR(VLOOKUP($A23,Pupils!$A$4:$T$3000,17,0),0) -> 0 | AJ23: =IFERROR(VLOOKUP($A23,'Monthly Statement'!$A$2:$V$3000,22,0),0) -> 0 | AK23: 0 | AL23: =IFERROR(VLOOKUP($A23,Pupils!$A$4:$T$3000,18,0),0) -> 0 | AM23: =IFERROR(VLOOKUP($A23,'Monthly Statement'!$A$2:$W$3000,23,0),0) -> 0 | AN23: 0 | AO23: =IFERROR(VLOOKUP($A23,Pupils!$A$4:$T$3000,19,0),0) -> 0 | AP23: =IFERROR(VLOOKUP($A23,'Monthly Statement'!$A$2:$X$3000,24,0),0) -> 0 | AQ23: 0
A24: ='Monthly Statement'!A19 -> 0 | B24: =IFERROR(VLOOKUP(A24,'Monthly Statement'!A:X,4,0),"") ->  | C24: =IFERROR(VLOOKUP(A24,'Monthly Statement'!A:X,5,0),"") ->  | D24: =IFERROR(VLOOKUP(A24,'Monthly Statement'!A:X,7,0),"") ->  | E24: =IFERROR(VLOOKUP(A24,'Monthly Statement'!A:X,9,0),"") ->  | F24: =IFERROR(VLOOKUP(A24,'Monthly Statement'!A:X,10,0),"") ->  | G24: 0 | H24: =IFERROR(VLOOKUP($A24,Pupils!$A$4:$T$3000,8,0),0) -> 0 | I24: =IFERROR(VLOOKUP($A24,'Monthly Statement'!$A$2:$V$3000,13,0),0) -> 0 | J24: 0 | K24: =IFERROR(VLOOKUP($A24,Pupils!$A$4:$T$3000,9,0),0) -> 0 | L24: =IFERROR(VLOOKUP($A24,'Monthly Statement'!$A$2:$V$3000,14,0),0) -> 0 | M24: 0 | N24: =IFERROR(VLOOKUP($A24,Pupils!$A$4:$T$3000,10,0),0) -> 0 | O24: =IFERROR(VLOOKUP($A24,'Monthly Statement'!$A$2:$V$3000,15,0),0) -> 0 | P24: 0 | Q24: =IFERROR(VLOOKUP($A24,Pupils!$A$4:$T$3000,11,0),0) -> 0 | R24: =IFERROR(VLOOKUP($A24,'Monthly Statement'!$A$2:$V$3000,16,0),0) -> 0 | S24: 0 | T24: =IFERROR(VLOOKUP($A24,Pupils!$A$4:$T$3000,12,0),0) -> 0 | U24: =IFERROR(VLOOKUP($A24,'Monthly Statement'!$A$2:$V$3000,17,0),0) -> 0 | V24: 0 | W24: =IFERROR(VLOOKUP($A24,Pupils!$A$4:$T$3000,13,0),0) -> 0 | X24: =IFERROR(VLOOKUP($A24,'Monthly Statement'!$A$2:$V$3000,18,0),0) -> 0 | Y24: 0 | Z24: =IFERROR(VLOOKUP($A24,Pupils!$A$4:$T$3000,14,0),0) -> 0 | AA24: =IFERROR(VLOOKUP($A24,'Monthly Statement'!$A$2:$V$3000,19,0),0) -> 0 | AB24: 0 | AC24: =IFERROR(VLOOKUP($A24,Pupils!$A$4:$T$3000,15,0),0) -> 0 | AD24: =IFERROR(VLOOKUP($A24,'Monthly Statement'!$A$2:$V$3000,20,0),0) -> 0 | AE24: 0 | AF24: =IFERROR(VLOOKUP($A24,Pupils!$A$4:$T$3000,16,0),0) -> 0 | AG24: =IFERROR(VLOOKUP($A24,'Monthly Statement'!$A$2:$V$3000,21,0),0) -> 0 | AH24: 0 | AI24: =IFERROR(VLOOKUP($A24,Pupils!$A$4:$T$3000,17,0),0) -> 0 | AJ24: =IFERROR(VLOOKUP($A24,'Monthly Statement'!$A$2:$V$3000,22,0),0) -> 0 | AK24: 0 | AL24: =IFERROR(VLOOKUP($A24,Pupils!$A$4:$T$3000,18,0),0) -> 0 | AM24: =IFERROR(VLOOKUP($A24,'Monthly Statement'!$A$2:$W$3000,23,0),0) -> 0 | AN24: 0 | AO24: =IFERROR(VLOOKUP($A24,Pupils!$A$4:$T$3000,19,0),0) -> 0 | AP24: =IFERROR(VLOOKUP($A24,'Monthly Statement'!$A$2:$X$3000,24,0),0) -> 0 | AQ24: 0
A25: ='Monthly Statement'!A20 -> 0 | B25: =IFERROR(VLOOKUP(A25,'Monthly Statement'!A:X,4,0),"") ->  | C25: =IFERROR(VLOOKUP(A25,'Monthly Statement'!A:X,5,0),"") ->  | D25: =IFERROR(VLOOKUP(A25,'Monthly Statement'!A:X,7,0),"") ->  | E25: =IFERROR(VLOOKUP(A25,'Monthly Statement'!A:X,9,0),"") ->  | F25: =IFERROR(VLOOKUP(A25,'Monthly Statement'!A:X,10,0),"") ->  | G25: 0 | H25: =IFERROR(VLOOKUP($A25,Pupils!$A$4:$T$3000,8,0),0) -> 0 | I25: =IFERROR(VLOOKUP($A25,'Monthly Statement'!$A$2:$V$3000,13,0),0) -> 0 | J25: 0 | K25: =IFERROR(VLOOKUP($A25,Pupils!$A$4:$T$3000,9,0),0) -> 0 | L25: =IFERROR(VLOOKUP($A25,'Monthly Statement'!$A$2:$V$3000,14,0),0) -> 0 | M25: 0 | N25: =IFERROR(VLOOKUP($A25,Pupils!$A$4:$T$3000,10,0),0) -> 0 | O25: =IFERROR(VLOOKUP($A25,'Monthly Statement'!$A$2:$V$3000,15,0),0) -> 0 | P25: 0 | Q25: =IFERROR(VLOOKUP($A25,Pupils!$A$4:$T$3000,11,0),0) -> 0 | R25: =IFERROR(VLOOKUP($A25,'Monthly Statement'!$A$2:$V$3000,16,0),0) -> 0 | S25: 0 | T25: =IFERROR(VLOOKUP($A25,Pupils!$A$4:$T$3000,12,0),0) -> 0 | U25: =IFERROR(VLOOKUP($A25,'Monthly Statement'!$A$2:$V$3000,17,0),0) -> 0 | V25: 0 | W25: =IFERROR(VLOOKUP($A25,Pupils!$A$4:$T$3000,13,0),0) -> 0 | X25: =IFERROR(VLOOKUP($A25,'Monthly Statement'!$A$2:$V$3000,18,0),0) -> 0 | Y25: 0 | Z25: =IFERROR(VLOOKUP($A25,Pupils!$A$4:$T$3000,14,0),0) -> 0 | AA25: =IFERROR(VLOOKUP($A25,'Monthly Statement'!$A$2:$V$3000,19,0),0) -> 0 | AB25: 0 | AC25: =IFERROR(VLOOKUP($A25,Pupils!$A$4:$T$3000,15,0),0) -> 0 | AD25: =IFERROR(VLOOKUP($A25,'Monthly Statement'!$A$2:$V$3000,20,0),0) -> 0 | AE25: 0 | AF25: =IFERROR(VLOOKUP($A25,Pupils!$A$4:$T$3000,16,0),0) -> 0 | AG25: =IFERROR(VLOOKUP($A25,'Monthly Statement'!$A$2:$V$3000,21,0),0) -> 0 | AH25: 0 | AI25: =IFERROR(VLOOKUP($A25,Pupils!$A$4:$T$3000,17,0),0) -> 0 | AJ25: =IFERROR(VLOOKUP($A25,'Monthly Statement'!$A$2:$V$3000,22,0),0) -> 0 | AK25: 0 | AL25: =IFERROR(VLOOKUP($A25,Pupils!$A$4:$T$3000,18,0),0) -> 0 | AM25: =IFERROR(VLOOKUP($A25,'Monthly Statement'!$A$2:$W$3000,23,0),0) -> 0 | AN25: 0 | AO25: =IFERROR(VLOOKUP($A25,Pupils!$A$4:$T$3000,19,0),0) -> 0 | AP25: =IFERROR(VLOOKUP($A25,'Monthly Statement'!$A$2:$X$3000,24,0),0) -> 0 | AQ25: 0
A26: ='Monthly Statement'!A21 -> 0 | B26: =IFERROR(VLOOKUP(A26,'Monthly Statement'!A:X,4,0),"") ->  | C26: =IFERROR(VLOOKUP(A26,'Monthly Statement'!A:X,5,0),"") ->  | D26: =IFERROR(VLOOKUP(A26,'Monthly Statement'!A:X,7,0),"") ->  | E26: =IFERROR(VLOOKUP(A26,'Monthly Statement'!A:X,9,0),"") ->  | F26: =IFERROR(VLOOKUP(A26,'Monthly Statement'!A:X,10,0),"") ->  | G26: 0 | H26: =IFERROR(VLOOKUP($A26,Pupils!$A$4:$T$3000,8,0),0) -> 0 | I26: =IFERROR(VLOOKUP($A26,'Monthly Statement'!$A$2:$V$3000,13,0),0) -> 0 | J26: 0 | K26: =IFERROR(VLOOKUP($A26,Pupils!$A$4:$T$3000,9,0),0) -> 0 | L26: =IFERROR(VLOOKUP($A26,'Monthly Statement'!$A$2:$V$3000,14,0),0) -> 0 | M26: 0 | N26: =IFERROR(VLOOKUP($A26,Pupils!$A$4:$T$3000,10,0),0) -> 0 | O26: =IFERROR(VLOOKUP($A26,'Monthly Statement'!$A$2:$V$3000,15,0),0) -> 0 | P26: 0 | Q26: =IFERROR(VLOOKUP($A26,Pupils!$A$4:$T$3000,11,0),0) -> 0 | R26: =IFERROR(VLOOKUP($A26,'Monthly Statement'!$A$2:$V$3000,16,0),0) -> 0 | S26: 0 | T26: =IFERROR(VLOOKUP($A26,Pupils!$A$4:$T$3000,12,0),0) -> 0 | U26: =IFERROR(VLOOKUP($A26,'Monthly Statement'!$A$2:$V$3000,17,0),0) -> 0 | V26: 0 | W26: =IFERROR(VLOOKUP($A26,Pupils!$A$4:$T$3000,13,0),0) -> 0 | X26: =IFERROR(VLOOKUP($A26,'Monthly Statement'!$A$2:$V$3000,18,0),0) -> 0 | Y26: 0 | Z26: =IFERROR(VLOOKUP($A26,Pupils!$A$4:$T$3000,14,0),0) -> 0 | AA26: =IFERROR(VLOOKUP($A26,'Monthly Statement'!$A$2:$V$3000,19,0),0) -> 0 | AB26: 0 | AC26: =IFERROR(VLOOKUP($A26,Pupils!$A$4:$T$3000,15,0),0) -> 0 | AD26: =IFERROR(VLOOKUP($A26,'Monthly Statement'!$A$2:$V$3000,20,0),0) -> 0 | AE26: 0 | AF26: =IFERROR(VLOOKUP($A26,Pupils!$A$4:$T$3000,16,0),0) -> 0 | AG26: =IFERROR(VLOOKUP($A26,'Monthly Statement'!$A$2:$V$3000,21,0),0) -> 0 | AH26: 0 | AI26: =IFERROR(VLOOKUP($A26,Pupils!$A$4:$T$3000,17,0),0) -> 0 | AJ26: =IFERROR(VLOOKUP($A26,'Monthly Statement'!$A$2:$V$3000,22,0),0) -> 0 | AK26: 0 | AL26: =IFERROR(VLOOKUP($A26,Pupils!$A$4:$T$3000,18,0),0) -> 0 | AM26: =IFERROR(VLOOKUP($A26,'Monthly Statement'!$A$2:$W$3000,23,0),0) -> 0 | AN26: 0 | AO26: =IFERROR(VLOOKUP($A26,Pupils!$A$4:$T$3000,19,0),0) -> 0 | AP26: =IFERROR(VLOOKUP($A26,'Monthly Statement'!$A$2:$X$3000,24,0),0) -> 0 | AQ26: 0
A27: ='Monthly Statement'!A22 -> 0 | B27: =IFERROR(VLOOKUP(A27,'Monthly Statement'!A:X,4,0),"") ->  | C27: =IFERROR(VLOOKUP(A27,'Monthly Statement'!A:X,5,0),"") ->  | D27: =IFERROR(VLOOKUP(A27,'Monthly Statement'!A:X,7,0),"") ->  | E27: =IFERROR(VLOOKUP(A27,'Monthly Statement'!A:X,9,0),"") ->  | F27: =IFERROR(VLOOKUP(A27,'Monthly Statement'!A:X,10,0),"") ->  | G27: 0 | H27: =IFERROR(VLOOKUP($A27,Pupils!$A$4:$T$3000,8,0),0) -> 0 | I27: =IFERROR(VLOOKUP($A27,'Monthly Statement'!$A$2:$V$3000,13,0),0) -> 0 | J27: 0 | K27: =IFERROR(VLOOKUP($A27,Pupils!$A$4:$T$3000,9,0),0) -> 0 | L27: =IFERROR(VLOOKUP($A27,'Monthly Statement'!$A$2:$V$3000,14,0),0) -> 0 | M27: 0 | N27: =IFERROR(VLOOKUP($A27,Pupils!$A$4:$T$3000,10,0),0) -> 0 | O27: =IFERROR(VLOOKUP($A27,'Monthly Statement'!$A$2:$V$3000,15,0),0) -> 0 | P27: 0 | Q27: =IFERROR(VLOOKUP($A27,Pupils!$A$4:$T$3000,11,0),0) -> 0 | R27: =IFERROR(VLOOKUP($A27,'Monthly Statement'!$A$2:$V$3000,16,0),0) -> 0 | S27: 0 | T27: =IFERROR(VLOOKUP($A27,Pupils!$A$4:$T$3000,12,0),0) -> 0 | U27: =IFERROR(VLOOKUP($A27,'Monthly Statement'!$A$2:$V$3000,17,0),0) -> 0 | V27: 0 | W27: =IFERROR(VLOOKUP($A27,Pupils!$A$4:$T$3000,13,0),0) -> 0 | X27: =IFERROR(VLOOKUP($A27,'Monthly Statement'!$A$2:$V$3000,18,0),0) -> 0 | Y27: 0 | Z27: =IFERROR(VLOOKUP($A27,Pupils!$A$4:$T$3000,14,0),0) -> 0 | AA27: =IFERROR(VLOOKUP($A27,'Monthly Statement'!$A$2:$V$3000,19,0),0) -> 0 | AB27: 0 | AC27: =IFERROR(VLOOKUP($A27,Pupils!$A$4:$T$3000,15,0),0) -> 0 | AD27: =IFERROR(VLOOKUP($A27,'Monthly Statement'!$A$2:$V$3000,20,0),0) -> 0 | AE27: 0 | AF27: =IFERROR(VLOOKUP($A27,Pupils!$A$4:$T$3000,16,0),0) -> 0 | AG27: =IFERROR(VLOOKUP($A27,'Monthly Statement'!$A$2:$V$3000,21,0),0) -> 0 | AH27: 0 | AI27: =IFERROR(VLOOKUP($A27,Pupils!$A$4:$T$3000,17,0),0) -> 0 | AJ27: =IFERROR(VLOOKUP($A27,'Monthly Statement'!$A$2:$V$3000,22,0),0) -> 0 | AK27: 0 | AL27: =IFERROR(VLOOKUP($A27,Pupils!$A$4:$T$3000,18,0),0) -> 0 | AM27: =IFERROR(VLOOKUP($A27,'Monthly Statement'!$A$2:$W$3000,23,0),0) -> 0 | AN27: 0 | AO27: =IFERROR(VLOOKUP($A27,Pupils!$A$4:$T$3000,19,0),0) -> 0 | AP27: =IFERROR(VLOOKUP($A27,'Monthly Statement'!$A$2:$X$3000,24,0),0) -> 0 | AQ27: 0
A28: ='Monthly Statement'!A23 -> 0 | B28: =IFERROR(VLOOKUP(A28,'Monthly Statement'!A:X,4,0),"") ->  | C28: =IFERROR(VLOOKUP(A28,'Monthly Statement'!A:X,5,0),"") ->  | D28: =IFERROR(VLOOKUP(A28,'Monthly Statement'!A:X,7,0),"") ->  | E28: =IFERROR(VLOOKUP(A28,'Monthly Statement'!A:X,9,0),"") ->  | F28: =IFERROR(VLOOKUP(A28,'Monthly Statement'!A:X,10,0),"") ->  | G28: 0 | H28: =IFERROR(VLOOKUP($A28,Pupils!$A$4:$T$3000,8,0),0) -> 0 | I28: =IFERROR(VLOOKUP($A28,'Monthly Statement'!$A$2:$V$3000,13,0),0) -> 0 | J28: 0 | K28: =IFERROR(VLOOKUP($A28,Pupils!$A$4:$T$3000,9,0),0) -> 0 | L28: =IFERROR(VLOOKUP($A28,'Monthly Statement'!$A$2:$V$3000,14,0),0) -> 0 | M28: 0 | N28: =IFERROR(VLOOKUP($A28,Pupils!$A$4:$T$3000,10,0),0) -> 0 | O28: =IFERROR(VLOOKUP($A28,'Monthly Statement'!$A$2:$V$3000,15,0),0) -> 0 | P28: 0 | Q28: =IFERROR(VLOOKUP($A28,Pupils!$A$4:$T$3000,11,0),0) -> 0 | R28: =IFERROR(VLOOKUP($A28,'Monthly Statement'!$A$2:$V$3000,16,0),0) -> 0 | S28: 0 | T28: =IFERROR(VLOOKUP($A28,Pupils!$A$4:$T$3000,12,0),0) -> 0 | U28: =IFERROR(VLOOKUP($A28,'Monthly Statement'!$A$2:$V$3000,17,0),0) -> 0 | V28: 0 | W28: =IFERROR(VLOOKUP($A28,Pupils!$A$4:$T$3000,13,0),0) -> 0 | X28: =IFERROR(VLOOKUP($A28,'Monthly Statement'!$A$2:$V$3000,18,0),0) -> 0 | Y28: 0 | Z28: =IFERROR(VLOOKUP($A28,Pupils!$A$4:$T$3000,14,0),0) -> 0 | AA28: =IFERROR(VLOOKUP($A28,'Monthly Statement'!$A$2:$V$3000,19,0),0) -> 0 | AB28: 0 | AC28: =IFERROR(VLOOKUP($A28,Pupils!$A$4:$T$3000,15,0),0) -> 0 | AD28: =IFERROR(VLOOKUP($A28,'Monthly Statement'!$A$2:$V$3000,20,0),0) -> 0 | AE28: 0 | AF28: =IFERROR(VLOOKUP($A28,Pupils!$A$4:$T$3000,16,0),0) -> 0 | AG28: =IFERROR(VLOOKUP($A28,'Monthly Statement'!$A$2:$V$3000,21,0),0) -> 0 | AH28: 0 | AI28: =IFERROR(VLOOKUP($A28,Pupils!$A$4:$T$3000,17,0),0) -> 0 | AJ28: =IFERROR(VLOOKUP($A28,'Monthly Statement'!$A$2:$V$3000,22,0),0) -> 0 | AK28: 0 | AL28: =IFERROR(VLOOKUP($A28,Pupils!$A$4:$T$3000,18,0),0) -> 0 | AM28: =IFERROR(VLOOKUP($A28,'Monthly Statement'!$A$2:$W$3000,23,0),0) -> 0 | AN28: 0 | AO28: =IFERROR(VLOOKUP($A28,Pupils!$A$4:$T$3000,19,0),0) -> 0 | AP28: =IFERROR(VLOOKUP($A28,'Monthly Statement'!$A$2:$X$3000,24,0),0) -> 0 | AQ28: 0
A29: ='Monthly Statement'!A24 -> 0 | B29: =IFERROR(VLOOKUP(A29,'Monthly Statement'!A:X,4,0),"") ->  | C29: =IFERROR(VLOOKUP(A29,'Monthly Statement'!A:X,5,0),"") ->  | D29: =IFERROR(VLOOKUP(A29,'Monthly Statement'!A:X,7,0),"") ->  | E29: =IFERROR(VLOOKUP(A29,'Monthly Statement'!A:X,9,0),"") ->  | F29: =IFERROR(VLOOKUP(A29,'Monthly Statement'!A:X,10,0),"") ->  | G29: 0 | H29: =IFERROR(VLOOKUP($A29,Pupils!$A$4:$T$3000,8,0),0) -> 0 | I29: =IFERROR(VLOOKUP($A29,'Monthly Statement'!$A$2:$V$3000,13,0),0) -> 0 | J29: 0 | K29: =IFERROR(VLOOKUP($A29,Pupils!$A$4:$T$3000,9,0),0) -> 0 | L29: =IFERROR(VLOOKUP($A29,'Monthly Statement'!$A$2:$V$3000,14,0),0) -> 0 | M29: 0 | N29: =IFERROR(VLOOKUP($A29,Pupils!$A$4:$T$3000,10,0),0) -> 0 | O29: =IFERROR(VLOOKUP($A29,'Monthly Statement'!$A$2:$V$3000,15,0),0) -> 0 | P29: 0 | Q29: =IFERROR(VLOOKUP($A29,Pupils!$A$4:$T$3000,11,0),0) -> 0 | R29: =IFERROR(VLOOKUP($A29,'Monthly Statement'!$A$2:$V$3000,16,0),0) -> 0 | S29: 0 | T29: =IFERROR(VLOOKUP($A29,Pupils!$A$4:$T$3000,12,0),0) -> 0 | U29: =IFERROR(VLOOKUP($A29,'Monthly Statement'!$A$2:$V$3000,17,0),0) -> 0 | V29: 0 | W29: =IFERROR(VLOOKUP($A29,Pupils!$A$4:$T$3000,13,0),0) -> 0 | X29: =IFERROR(VLOOKUP($A29,'Monthly Statement'!$A$2:$V$3000,18,0),0) -> 0 | Y29: 0 | Z29: =IFERROR(VLOOKUP($A29,Pupils!$A$4:$T$3000,14,0),0) -> 0 | AA29: =IFERROR(VLOOKUP($A29,'Monthly Statement'!$A$2:$V$3000,19,0),0) -> 0 | AB29: 0 | AC29: =IFERROR(VLOOKUP($A29,Pupils!$A$4:$T$3000,15,0),0) -> 0 | AD29: =IFERROR(VLOOKUP($A29,'Monthly Statement'!$A$2:$V$3000,20,0),0) -> 0 | AE29: 0 | AF29: =IFERROR(VLOOKUP($A29,Pupils!$A$4:$T$3000,16,0),0) -> 0 | AG29: =IFERROR(VLOOKUP($A29,'Monthly Statement'!$A$2:$V$3000,21,0),0) -> 0 | AH29: 0 | AI29: =IFERROR(VLOOKUP($A29,Pupils!$A$4:$T$3000,17,0),0) -> 0 | AJ29: =IFERROR(VLOOKUP($A29,'Monthly Statement'!$A$2:$V$3000,22,0),0) -> 0 | AK29: 0 | AL29: =IFERROR(VLOOKUP($A29,Pupils!$A$4:$T$3000,18,0),0) -> 0 | AM29: =IFERROR(VLOOKUP($A29,'Monthly Statement'!$A$2:$W$3000,23,0),0) -> 0 | AN29: 0 | AO29: =IFERROR(VLOOKUP($A29,Pupils!$A$4:$T$3000,19,0),0) -> 0 | AP29: =IFERROR(VLOOKUP($A29,'Monthly Statement'!$A$2:$X$3000,24,0),0) -> 0 | AQ29: 0
A30: ='Monthly Statement'!A25 -> 0 | B30: =IFERROR(VLOOKUP(A30,'Monthly Statement'!A:X,4,0),"") ->  | C30: =IFERROR(VLOOKUP(A30,'Monthly Statement'!A:X,5,0),"") ->  | D30: =IFERROR(VLOOKUP(A30,'Monthly Statement'!A:X,7,0),"") ->  | E30: =IFERROR(VLOOKUP(A30,'Monthly Statement'!A:X,9,0),"") ->  | F30: =IFERROR(VLOOKUP(A30,'Monthly Statement'!A:X,10,0),"") ->  | G30: 0 | H30: =IFERROR(VLOOKUP($A30,Pupils!$A$4:$T$3000,8,0),0) -> 0 | I30: =IFERROR(VLOOKUP($A30,'Monthly Statement'!$A$2:$V$3000,13,0),0) -> 0 | J30: 0 | K30: =IFERROR(VLOOKUP($A30,Pupils!$A$4:$T$3000,9,0),0) -> 0 | L30: =IFERROR(VLOOKUP($A30,'Monthly Statement'!$A$2:$V$3000,14,0),0) -> 0 | M30: 0 | N30: =IFERROR(VLOOKUP($A30,Pupils!$A$4:$T$3000,10,0),0) -> 0 | O30: =IFERROR(VLOOKUP($A30,'Monthly Statement'!$A$2:$V$3000,15,0),0) -> 0 | P30: 0 | Q30: =IFERROR(VLOOKUP($A30,Pupils!$A$4:$T$3000,11,0),0) -> 0 | R30: =IFERROR(VLOOKUP($A30,'Monthly Statement'!$A$2:$V$3000,16,0),0) -> 0 | S30: 0 | T30: =IFERROR(VLOOKUP($A30,Pupils!$A$4:$T$3000,12,0),0) -> 0 | U30: =IFERROR(VLOOKUP($A30,'Monthly Statement'!$A$2:$V$3000,17,0),0) -> 0 | V30: 0 | W30: =IFERROR(VLOOKUP($A30,Pupils!$A$4:$T$3000,13,0),0) -> 0 | X30: =IFERROR(VLOOKUP($A30,'Monthly Statement'!$A$2:$V$3000,18,0),0) -> 0 | Y30: 0 | Z30: =IFERROR(VLOOKUP($A30,Pupils!$A$4:$T$3000,14,0),0) -> 0 | AA30: =IFERROR(VLOOKUP($A30,'Monthly Statement'!$A$2:$V$3000,19,0),0) -> 0 | AB30: 0 | AC30: =IFERROR(VLOOKUP($A30,Pupils!$A$4:$T$3000,15,0),0) -> 0 | AD30: =IFERROR(VLOOKUP($A30,'Monthly Statement'!$A$2:$V$3000,20,0),0) -> 0 | AE30: 0 | AF30: =IFERROR(VLOOKUP($A30,Pupils!$A$4:$T$3000,16,0),0) -> 0 | AG30: =IFERROR(VLOOKUP($A30,'Monthly Statement'!$A$2:$V$3000,21,0),0) -> 0 | AH30: 0 | AI30: =IFERROR(VLOOKUP($A30,Pupils!$A$4:$T$3000,17,0),0) -> 0 | AJ30: =IFERROR(VLOOKUP($A30,'Monthly Statement'!$A$2:$V$3000,22,0),0) -> 0 | AK30: 0 | AL30: =IFERROR(VLOOKUP($A30,Pupils!$A$4:$T$3000,18,0),0) -> 0 | AM30: =IFERROR(VLOOKUP($A30,'Monthly Statement'!$A$2:$W$3000,23,0),0) -> 0 | AN30: 0 | AO30: =IFERROR(VLOOKUP($A30,Pupils!$A$4:$T$3000,19,0),0) -> 0 | AP30: =IFERROR(VLOOKUP($A30,'Monthly Statement'!$A$2:$X$3000,24,0),0) -> 0 | AQ30: 0
A31: ='Monthly Statement'!A26 -> 0 | B31: =IFERROR(VLOOKUP(A31,'Monthly Statement'!A:X,4,0),"") ->  | C31: =IFERROR(VLOOKUP(A31,'Monthly Statement'!A:X,5,0),"") ->  | D31: =IFERROR(VLOOKUP(A31,'Monthly Statement'!A:X,7,0),"") ->  | E31: =IFERROR(VLOOKUP(A31,'Monthly Statement'!A:X,9,0),"") ->  | F31: =IFERROR(VLOOKUP(A31,'Monthly Statement'!A:X,10,0),"") ->  | G31: 0 | H31: =IFERROR(VLOOKUP($A31,Pupils!$A$4:$T$3000,8,0),0) -> 0 | I31: =IFERROR(VLOOKUP($A31,'Monthly Statement'!$A$2:$V$3000,13,0),0) -> 0 | J31: 0 | K31: =IFERROR(VLOOKUP($A31,Pupils!$A$4:$T$3000,9,0),0) -> 0 | L31: =IFERROR(VLOOKUP($A31,'Monthly Statement'!$A$2:$V$3000,14,0),0) -> 0 | M31: 0 | N31: =IFERROR(VLOOKUP($A31,Pupils!$A$4:$T$3000,10,0),0) -> 0 | O31: =IFERROR(VLOOKUP($A31,'Monthly Statement'!$A$2:$V$3000,15,0),0) -> 0 | P31: 0 | Q31: =IFERROR(VLOOKUP($A31,Pupils!$A$4:$T$3000,11,0),0) -> 0 | R31: =IFERROR(VLOOKUP($A31,'Monthly Statement'!$A$2:$V$3000,16,0),0) -> 0 | S31: 0 | T31: =IFERROR(VLOOKUP($A31,Pupils!$A$4:$T$3000,12,0),0) -> 0 | U31: =IFERROR(VLOOKUP($A31,'Monthly Statement'!$A$2:$V$3000,17,0),0) -> 0 | V31: 0 | W31: =IFERROR(VLOOKUP($A31,Pupils!$A$4:$T$3000,13,0),0) -> 0 | X31: =IFERROR(VLOOKUP($A31,'Monthly Statement'!$A$2:$V$3000,18,0),0) -> 0 | Y31: 0 | Z31: =IFERROR(VLOOKUP($A31,Pupils!$A$4:$T$3000,14,0),0) -> 0 | AA31: =IFERROR(VLOOKUP($A31,'Monthly Statement'!$A$2:$V$3000,19,0),0) -> 0 | AB31: 0 | AC31: =IFERROR(VLOOKUP($A31,Pupils!$A$4:$T$3000,15,0),0) -> 0 | AD31: =IFERROR(VLOOKUP($A31,'Monthly Statement'!$A$2:$V$3000,20,0),0) -> 0 | AE31: 0 | AF31: =IFERROR(VLOOKUP($A31,Pupils!$A$4:$T$3000,16,0),0) -> 0 | AG31: =IFERROR(VLOOKUP($A31,'Monthly Statement'!$A$2:$V$3000,21,0),0) -> 0 | AH31: 0 | AI31: =IFERROR(VLOOKUP($A31,Pupils!$A$4:$T$3000,17,0),0) -> 0 | AJ31: =IFERROR(VLOOKUP($A31,'Monthly Statement'!$A$2:$V$3000,22,0),0) -> 0 | AK31: 0 | AL31: =IFERROR(VLOOKUP($A31,Pupils!$A$4:$T$3000,18,0),0) -> 0 | AM31: =IFERROR(VLOOKUP($A31,'Monthly Statement'!$A$2:$W$3000,23,0),0) -> 0 | AN31: 0 | AO31: =IFERROR(VLOOKUP($A31,Pupils!$A$4:$T$3000,19,0),0) -> 0 | AP31: =IFERROR(VLOOKUP($A31,'Monthly Statement'!$A$2:$X$3000,24,0),0) -> 0 | AQ31: 0
A32: ='Monthly Statement'!A27 -> 0 | B32: =IFERROR(VLOOKUP(A32,'Monthly Statement'!A:X,4,0),"") ->  | C32: =IFERROR(VLOOKUP(A32,'Monthly Statement'!A:X,5,0),"") ->  | D32: =IFERROR(VLOOKUP(A32,'Monthly Statement'!A:X,7,0),"") ->  | E32: =IFERROR(VLOOKUP(A32,'Monthly Statement'!A:X,9,0),"") ->  | F32: =IFERROR(VLOOKUP(A32,'Monthly Statement'!A:X,10,0),"") ->  | G32: 0 | H32: =IFERROR(VLOOKUP($A32,Pupils!$A$4:$T$3000,8,0),0) -> 0 | I32: =IFERROR(VLOOKUP($A32,'Monthly Statement'!$A$2:$V$3000,13,0),0) -> 0 | J32: 0 | K32: =IFERROR(VLOOKUP($A32,Pupils!$A$4:$T$3000,9,0),0) -> 0 | L32: =IFERROR(VLOOKUP($A32,'Monthly Statement'!$A$2:$V$3000,14,0),0) -> 0 | M32: 0 | N32: =IFERROR(VLOOKUP($A32,Pupils!$A$4:$T$3000,10,0),0) -> 0 | O32: =IFERROR(VLOOKUP($A32,'Monthly Statement'!$A$2:$V$3000,15,0),0) -> 0 | P32: 0 | Q32: =IFERROR(VLOOKUP($A32,Pupils!$A$4:$T$3000,11,0),0) -> 0 | R32: =IFERROR(VLOOKUP($A32,'Monthly Statement'!$A$2:$V$3000,16,0),0) -> 0 | S32: 0 | T32: =IFERROR(VLOOKUP($A32,Pupils!$A$4:$T$3000,12,0),0) -> 0 | U32: =IFERROR(VLOOKUP($A32,'Monthly Statement'!$A$2:$V$3000,17,0),0) -> 0 | V32: 0 | W32: =IFERROR(VLOOKUP($A32,Pupils!$A$4:$T$3000,13,0),0) -> 0 | X32: =IFERROR(VLOOKUP($A32,'Monthly Statement'!$A$2:$V$3000,18,0),0) -> 0 | Y32: 0 | Z32: =IFERROR(VLOOKUP($A32,Pupils!$A$4:$T$3000,14,0),0) -> 0 | AA32: =IFERROR(VLOOKUP($A32,'Monthly Statement'!$A$2:$V$3000,19,0),0) -> 0 | AB32: 0 | AC32: =IFERROR(VLOOKUP($A32,Pupils!$A$4:$T$3000,15,0),0) -> 0 | AD32: =IFERROR(VLOOKUP($A32,'Monthly Statement'!$A$2:$V$3000,20,0),0) -> 0 | AE32: 0 | AF32: =IFERROR(VLOOKUP($A32,Pupils!$A$4:$T$3000,16,0),0) -> 0 | AG32: =IFERROR(VLOOKUP($A32,'Monthly Statement'!$A$2:$V$3000,21,0),0) -> 0 | AH32: 0 | AI32: =IFERROR(VLOOKUP($A32,Pupils!$A$4:$T$3000,17,0),0) -> 0 | AJ32: =IFERROR(VLOOKUP($A32,'Monthly Statement'!$A$2:$V$3000,22,0),0) -> 0 | AK32: 0 | AL32: =IFERROR(VLOOKUP($A32,Pupils!$A$4:$T$3000,18,0),0) -> 0 | AM32: =IFERROR(VLOOKUP($A32,'Monthly Statement'!$A$2:$W$3000,23,0),0) -> 0 | AN32: 0 | AO32: =IFERROR(VLOOKUP($A32,Pupils!$A$4:$T$3000,19,0),0) -> 0 | AP32: =IFERROR(VLOOKUP($A32,'Monthly Statement'!$A$2:$X$3000,24,0),0) -> 0 | AQ32: 0
A33: ='Monthly Statement'!A28 -> 0 | B33: =IFERROR(VLOOKUP(A33,'Monthly Statement'!A:X,4,0),"") ->  | C33: =IFERROR(VLOOKUP(A33,'Monthly Statement'!A:X,5,0),"") ->  | D33: =IFERROR(VLOOKUP(A33,'Monthly Statement'!A:X,7,0),"") ->  | E33: =IFERROR(VLOOKUP(A33,'Monthly Statement'!A:X,9,0),"") ->  | F33: =IFERROR(VLOOKUP(A33,'Monthly Statement'!A:X,10,0),"") ->  | G33: 0 | H33: =IFERROR(VLOOKUP($A33,Pupils!$A$4:$T$3000,8,0),0) -> 0 | I33: =IFERROR(VLOOKUP($A33,'Monthly Statement'!$A$2:$V$3000,13,0),0) -> 0 | J33: 0 | K33: =IFERROR(VLOOKUP($A33,Pupils!$A$4:$T$3000,9,0),0) -> 0 | L33: =IFERROR(VLOOKUP($A33,'Monthly Statement'!$A$2:$V$3000,14,0),0) -> 0 | M33: 0 | N33: =IFERROR(VLOOKUP($A33,Pupils!$A$4:$T$3000,10,0),0) -> 0 | O33: =IFERROR(VLOOKUP($A33,'Monthly Statement'!$A$2:$V$3000,15,0),0) -> 0 | P33: 0 | Q33: =IFERROR(VLOOKUP($A33,Pupils!$A$4:$T$3000,11,0),0) -> 0 | R33: =IFERROR(VLOOKUP($A33,'Monthly Statement'!$A$2:$V$3000,16,0),0) -> 0 | S33: 0 | T33: =IFERROR(VLOOKUP($A33,Pupils!$A$4:$T$3000,12,0),0) -> 0 | U33: =IFERROR(VLOOKUP($A33,'Monthly Statement'!$A$2:$V$3000,17,0),0) -> 0 | V33: 0 | W33: =IFERROR(VLOOKUP($A33,Pupils!$A$4:$T$3000,13,0),0) -> 0 | X33: =IFERROR(VLOOKUP($A33,'Monthly Statement'!$A$2:$V$3000,18,0),0) -> 0 | Y33: 0 | Z33: =IFERROR(VLOOKUP($A33,Pupils!$A$4:$T$3000,14,0),0) -> 0 | AA33: =IFERROR(VLOOKUP($A33,'Monthly Statement'!$A$2:$V$3000,19,0),0) -> 0 | AB33: 0 | AC33: =IFERROR(VLOOKUP($A33,Pupils!$A$4:$T$3000,15,0),0) -> 0 | AD33: =IFERROR(VLOOKUP($A33,'Monthly Statement'!$A$2:$V$3000,20,0),0) -> 0 | AE33: 0 | AF33: =IFERROR(VLOOKUP($A33,Pupils!$A$4:$T$3000,16,0),0) -> 0 | AG33: =IFERROR(VLOOKUP($A33,'Monthly Statement'!$A$2:$V$3000,21,0),0) -> 0 | AH33: 0 | AI33: =IFERROR(VLOOKUP($A33,Pupils!$A$4:$T$3000,17,0),0) -> 0 | AJ33: =IFERROR(VLOOKUP($A33,'Monthly Statement'!$A$2:$V$3000,22,0),0) -> 0 | AK33: 0 | AL33: =IFERROR(VLOOKUP($A33,Pupils!$A$4:$T$3000,18,0),0) -> 0 | AM33: =IFERROR(VLOOKUP($A33,'Monthly Statement'!$A$2:$W$3000,23,0),0) -> 0 | AN33: 0 | AO33: =IFERROR(VLOOKUP($A33,Pupils!$A$4:$T$3000,19,0),0) -> 0 | AP33: =IFERROR(VLOOKUP($A33,'Monthly Statement'!$A$2:$X$3000,24,0),0) -> 0 | AQ33: 0
A34: ='Monthly Statement'!A29 -> 0 | B34: =IFERROR(VLOOKUP(A34,'Monthly Statement'!A:X,4,0),"") ->  | C34: =IFERROR(VLOOKUP(A34,'Monthly Statement'!A:X,5,0),"") ->  | D34: =IFERROR(VLOOKUP(A34,'Monthly Statement'!A:X,7,0),"") ->  | E34: =IFERROR(VLOOKUP(A34,'Monthly Statement'!A:X,9,0),"") ->  | F34: =IFERROR(VLOOKUP(A34,'Monthly Statement'!A:X,10,0),"") ->  | G34: 0 | H34: =IFERROR(VLOOKUP($A34,Pupils!$A$4:$T$3000,8,0),0) -> 0 | I34: =IFERROR(VLOOKUP($A34,'Monthly Statement'!$A$2:$V$3000,13,0),0) -> 0 | J34: 0 | K34: =IFERROR(VLOOKUP($A34,Pupils!$A$4:$T$3000,9,0),0) -> 0 | L34: =IFERROR(VLOOKUP($A34,'Monthly Statement'!$A$2:$V$3000,14,0),0) -> 0 | M34: 0 | N34: =IFERROR(VLOOKUP($A34,Pupils!$A$4:$T$3000,10,0),0) -> 0 | O34: =IFERROR(VLOOKUP($A34,'Monthly Statement'!$A$2:$V$3000,15,0),0) -> 0 | P34: 0 | Q34: =IFERROR(VLOOKUP($A34,Pupils!$A$4:$T$3000,11,0),0) -> 0 | R34: =IFERROR(VLOOKUP($A34,'Monthly Statement'!$A$2:$V$3000,16,0),0) -> 0 | S34: 0 | T34: =IFERROR(VLOOKUP($A34,Pupils!$A$4:$T$3000,12,0),0) -> 0 | U34: =IFERROR(VLOOKUP($A34,'Monthly Statement'!$A$2:$V$3000,17,0),0) -> 0 | V34: 0 | W34: =IFERROR(VLOOKUP($A34,Pupils!$A$4:$T$3000,13,0),0) -> 0 | X34: =IFERROR(VLOOKUP($A34,'Monthly Statement'!$A$2:$V$3000,18,0),0) -> 0 | Y34: 0 | Z34: =IFERROR(VLOOKUP($A34,Pupils!$A$4:$T$3000,14,0),0) -> 0 | AA34: =IFERROR(VLOOKUP($A34,'Monthly Statement'!$A$2:$V$3000,19,0),0) -> 0 | AB34: 0 | AC34: =IFERROR(VLOOKUP($A34,Pupils!$A$4:$T$3000,15,0),0) -> 0 | AD34: =IFERROR(VLOOKUP($A34,'Monthly Statement'!$A$2:$V$3000,20,0),0) -> 0 | AE34: 0 | AF34: =IFERROR(VLOOKUP($A34,Pupils!$A$4:$T$3000,16,0),0) -> 0 | AG34: =IFERROR(VLOOKUP($A34,'Monthly Statement'!$A$2:$V$3000,21,0),0) -> 0 | AH34: 0 | AI34: =IFERROR(VLOOKUP($A34,Pupils!$A$4:$T$3000,17,0),0) -> 0 | AJ34: =IFERROR(VLOOKUP($A34,'Monthly Statement'!$A$2:$V$3000,22,0),0) -> 0 | AK34: 0 | AL34: =IFERROR(VLOOKUP($A34,Pupils!$A$4:$T$3000,18,0),0) -> 0 | AM34: =IFERROR(VLOOKUP($A34,'Monthly Statement'!$A$2:$W$3000,23,0),0) -> 0 | AN34: 0 | AO34: =IFERROR(VLOOKUP($A34,Pupils!$A$4:$T$3000,19,0),0) -> 0 | AP34: =IFERROR(VLOOKUP($A34,'Monthly Statement'!$A$2:$X$3000,24,0),0) -> 0 | AQ34: 0
A35: ='Monthly Statement'!A30 -> 0 | B35: =IFERROR(VLOOKUP(A35,'Monthly Statement'!A:X,4,0),"") ->  | C35: =IFERROR(VLOOKUP(A35,'Monthly Statement'!A:X,5,0),"") ->  | D35: =IFERROR(VLOOKUP(A35,'Monthly Statement'!A:X,7,0),"") ->  | E35: =IFERROR(VLOOKUP(A35,'Monthly Statement'!A:X,9,0),"") ->  | F35: =IFERROR(VLOOKUP(A35,'Monthly Statement'!A:X,10,0),"") ->  | G35: 0 | H35: =IFERROR(VLOOKUP($A35,Pupils!$A$4:$T$3000,8,0),0) -> 0 | I35: =IFERROR(VLOOKUP($A35,'Monthly Statement'!$A$2:$V$3000,13,0),0) -> 0 | J35: 0 | K35: =IFERROR(VLOOKUP($A35,Pupils!$A$4:$T$3000,9,0),0) -> 0 | L35: =IFERROR(VLOOKUP($A35,'Monthly Statement'!$A$2:$V$3000,14,0),0) -> 0 | M35: 0 | N35: =IFERROR(VLOOKUP($A35,Pupils!$A$4:$T$3000,10,0),0) -> 0 | O35: =IFERROR(VLOOKUP($A35,'Monthly Statement'!$A$2:$V$3000,15,0),0) -> 0 | P35: 0 | Q35: =IFERROR(VLOOKUP($A35,Pupils!$A$4:$T$3000,11,0),0) -> 0 | R35: =IFERROR(VLOOKUP($A35,'Monthly Statement'!$A$2:$V$3000,16,0),0) -> 0 | S35: 0 | T35: =IFERROR(VLOOKUP($A35,Pupils!$A$4:$T$3000,12,0),0) -> 0 | U35: =IFERROR(VLOOKUP($A35,'Monthly Statement'!$A$2:$V$3000,17,0),0) -> 0 | V35: 0 | W35: =IFERROR(VLOOKUP($A35,Pupils!$A$4:$T$3000,13,0),0) -> 0 | X35: =IFERROR(VLOOKUP($A35,'Monthly Statement'!$A$2:$V$3000,18,0),0) -> 0 | Y35: 0 | Z35: =IFERROR(VLOOKUP($A35,Pupils!$A$4:$T$3000,14,0),0) -> 0 | AA35: =IFERROR(VLOOKUP($A35,'Monthly Statement'!$A$2:$V$3000,19,0),0) -> 0 | AB35: 0 | AC35: =IFERROR(VLOOKUP($A35,Pupils!$A$4:$T$3000,15,0),0) -> 0 | AD35: =IFERROR(VLOOKUP($A35,'Monthly Statement'!$A$2:$V$3000,20,0),0) -> 0 | AE35: 0 | AF35: =IFERROR(VLOOKUP($A35,Pupils!$A$4:$T$3000,16,0),0) -> 0 | AG35: =IFERROR(VLOOKUP($A35,'Monthly Statement'!$A$2:$V$3000,21,0),0) -> 0 | AH35: 0 | AI35: =IFERROR(VLOOKUP($A35,Pupils!$A$4:$T$3000,17,0),0) -> 0 | AJ35: =IFERROR(VLOOKUP($A35,'Monthly Statement'!$A$2:$V$3000,22,0),0) -> 0 | AK35: 0 | AL35: =IFERROR(VLOOKUP($A35,Pupils!$A$4:$T$3000,18,0),0) -> 0 | AM35: =IFERROR(VLOOKUP($A35,'Monthly Statement'!$A$2:$W$3000,23,0),0) -> 0 | AN35: 0 | AO35: =IFERROR(VLOOKUP($A35,Pupils!$A$4:$T$3000,19,0),0) -> 0 | AP35: =IFERROR(VLOOKUP($A35,'Monthly Statement'!$A$2:$X$3000,24,0),0) -> 0 | AQ35: 0
A36: ='Monthly Statement'!A31 -> 0 | B36: =IFERROR(VLOOKUP(A36,'Monthly Statement'!A:X,4,0),"") ->  | C36: =IFERROR(VLOOKUP(A36,'Monthly Statement'!A:X,5,0),"") ->  | D36: =IFERROR(VLOOKUP(A36,'Monthly Statement'!A:X,7,0),"") ->  | E36: =IFERROR(VLOOKUP(A36,'Monthly Statement'!A:X,9,0),"") ->  | F36: =IFERROR(VLOOKUP(A36,'Monthly Statement'!A:X,10,0),"") ->  | G36: 0 | H36: =IFERROR(VLOOKUP($A36,Pupils!$A$4:$T$3000,8,0),0) -> 0 | I36: =IFERROR(VLOOKUP($A36,'Monthly Statement'!$A$2:$V$3000,13,0),0) -> 0 | J36: 0 | K36: =IFERROR(VLOOKUP($A36,Pupils!$A$4:$T$3000,9,0),0) -> 0 | L36: =IFERROR(VLOOKUP($A36,'Monthly Statement'!$A$2:$V$3000,14,0),0) -> 0 | M36: 0 | N36: =IFERROR(VLOOKUP($A36,Pupils!$A$4:$T$3000,10,0),0) -> 0 | O36: =IFERROR(VLOOKUP($A36,'Monthly Statement'!$A$2:$V$3000,15,0),0) -> 0 | P36: 0 | Q36: =IFERROR(VLOOKUP($A36,Pupils!$A$4:$T$3000,11,0),0) -> 0 | R36: =IFERROR(VLOOKUP($A36,'Monthly Statement'!$A$2:$V$3000,16,0),0) -> 0 | S36: 0 | T36: =IFERROR(VLOOKUP($A36,Pupils!$A$4:$T$3000,12,0),0) -> 0 | U36: =IFERROR(VLOOKUP($A36,'Monthly Statement'!$A$2:$V$3000,17,0),0) -> 0 | V36: 0 | W36: =IFERROR(VLOOKUP($A36,Pupils!$A$4:$T$3000,13,0),0) -> 0 | X36: =IFERROR(VLOOKUP($A36,'Monthly Statement'!$A$2:$V$3000,18,0),0) -> 0 | Y36: 0 | Z36: =IFERROR(VLOOKUP($A36,Pupils!$A$4:$T$3000,14,0),0) -> 0 | AA36: =IFERROR(VLOOKUP($A36,'Monthly Statement'!$A$2:$V$3000,19,0),0) -> 0 | AB36: 0 | AC36: =IFERROR(VLOOKUP($A36,Pupils!$A$4:$T$3000,15,0),0) -> 0 | AD36: =IFERROR(VLOOKUP($A36,'Monthly Statement'!$A$2:$V$3000,20,0),0) -> 0 | AE36: 0 | AF36: =IFERROR(VLOOKUP($A36,Pupils!$A$4:$T$3000,16,0),0) -> 0 | AG36: =IFERROR(VLOOKUP($A36,'Monthly Statement'!$A$2:$V$3000,21,0),0) -> 0 | AH36: 0 | AI36: =IFERROR(VLOOKUP($A36,Pupils!$A$4:$T$3000,17,0),0) -> 0 | AJ36: =IFERROR(VLOOKUP($A36,'Monthly Statement'!$A$2:$V$3000,22,0),0) -> 0 | AK36: 0 | AL36: =IFERROR(VLOOKUP($A36,Pupils!$A$4:$T$3000,18,0),0) -> 0 | AM36: =IFERROR(VLOOKUP($A36,'Monthly Statement'!$A$2:$W$3000,23,0),0) -> 0 | AN36: 0 | AO36: =IFERROR(VLOOKUP($A36,Pupils!$A$4:$T$3000,19,0),0) -> 0 | AP36: =IFERROR(VLOOKUP($A36,'Monthly Statement'!$A$2:$X$3000,24,0),0) -> 0 | AQ36: 0
A37: ='Monthly Statement'!A32 -> 0 | B37: =IFERROR(VLOOKUP(A37,'Monthly Statement'!A:X,4,0),"") ->  | C37: =IFERROR(VLOOKUP(A37,'Monthly Statement'!A:X,5,0),"") ->  | D37: =IFERROR(VLOOKUP(A37,'Monthly Statement'!A:X,7,0),"") ->  | E37: =IFERROR(VLOOKUP(A37,'Monthly Statement'!A:X,9,0),"") ->  | F37: =IFERROR(VLOOKUP(A37,'Monthly Statement'!A:X,10,0),"") ->  | G37: 0 | H37: =IFERROR(VLOOKUP($A37,Pupils!$A$4:$T$3000,8,0),0) -> 0 | I37: =IFERROR(VLOOKUP($A37,'Monthly Statement'!$A$2:$V$3000,13,0),0) -> 0 | J37: 0 | K37: =IFERROR(VLOOKUP($A37,Pupils!$A$4:$T$3000,9,0),0) -> 0 | L37: =IFERROR(VLOOKUP($A37,'Monthly Statement'!$A$2:$V$3000,14,0),0) -> 0 | M37: 0 | N37: =IFERROR(VLOOKUP($A37,Pupils!$A$4:$T$3000,10,0),0) -> 0 | O37: =IFERROR(VLOOKUP($A37,'Monthly Statement'!$A$2:$V$3000,15,0),0) -> 0 | P37: 0 | Q37: =IFERROR(VLOOKUP($A37,Pupils!$A$4:$T$3000,11,0),0) -> 0 | R37: =IFERROR(VLOOKUP($A37,'Monthly Statement'!$A$2:$V$3000,16,0),0) -> 0 | S37: 0 | T37: =IFERROR(VLOOKUP($A37,Pupils!$A$4:$T$3000,12,0),0) -> 0 | U37: =IFERROR(VLOOKUP($A37,'Monthly Statement'!$A$2:$V$3000,17,0),0) -> 0 | V37: 0 | W37: =IFERROR(VLOOKUP($A37,Pupils!$A$4:$T$3000,13,0),0) -> 0 | X37: =IFERROR(VLOOKUP($A37,'Monthly Statement'!$A$2:$V$3000,18,0),0) -> 0 | Y37: 0 | Z37: =IFERROR(VLOOKUP($A37,Pupils!$A$4:$T$3000,14,0),0) -> 0 | AA37: =IFERROR(VLOOKUP($A37,'Monthly Statement'!$A$2:$V$3000,19,0),0) -> 0 | AB37: 0 | AC37: =IFERROR(VLOOKUP($A37,Pupils!$A$4:$T$3000,15,0),0) -> 0 | AD37: =IFERROR(VLOOKUP($A37,'Monthly Statement'!$A$2:$V$3000,20,0),0) -> 0 | AE37: 0 | AF37: =IFERROR(VLOOKUP($A37,Pupils!$A$4:$T$3000,16,0),0) -> 0 | AG37: =IFERROR(VLOOKUP($A37,'Monthly Statement'!$A$2:$V$3000,21,0),0) -> 0 | AH37: 0 | AI37: =IFERROR(VLOOKUP($A37,Pupils!$A$4:$T$3000,17,0),0) -> 0 | AJ37: =IFERROR(VLOOKUP($A37,'Monthly Statement'!$A$2:$V$3000,22,0),0) -> 0 | AK37: 0 | AL37: =IFERROR(VLOOKUP($A37,Pupils!$A$4:$T$3000,18,0),0) -> 0 | AM37: =IFERROR(VLOOKUP($A37,'Monthly Statement'!$A$2:$W$3000,23,0),0) -> 0 | AN37: 0 | AO37: =IFERROR(VLOOKUP($A37,Pupils!$A$4:$T$3000,19,0),0) -> 0 | AP37: =IFERROR(VLOOKUP($A37,'Monthly Statement'!$A$2:$X$3000,24,0),0) -> 0 | AQ37: 0
A38: ='Monthly Statement'!A33 -> 0 | B38: =IFERROR(VLOOKUP(A38,'Monthly Statement'!A:X,4,0),"") ->  | C38: =IFERROR(VLOOKUP(A38,'Monthly Statement'!A:X,5,0),"") ->  | D38: =IFERROR(VLOOKUP(A38,'Monthly Statement'!A:X,7,0),"") ->  | E38: =IFERROR(VLOOKUP(A38,'Monthly Statement'!A:X,9,0),"") ->  | F38: =IFERROR(VLOOKUP(A38,'Monthly Statement'!A:X,10,0),"") ->  | G38: 0 | H38: =IFERROR(VLOOKUP($A38,Pupils!$A$4:$T$3000,8,0),0) -> 0 | I38: =IFERROR(VLOOKUP($A38,'Monthly Statement'!$A$2:$V$3000,13,0),0) -> 0 | J38: 0 | K38: =IFERROR(VLOOKUP($A38,Pupils!$A$4:$T$3000,9,0),0) -> 0 | L38: =IFERROR(VLOOKUP($A38,'Monthly Statement'!$A$2:$V$3000,14,0),0) -> 0 | M38: 0 | N38: =IFERROR(VLOOKUP($A38,Pupils!$A$4:$T$3000,10,0),0) -> 0 | O38: =IFERROR(VLOOKUP($A38,'Monthly Statement'!$A$2:$V$3000,15,0),0) -> 0 | P38: 0 | Q38: =IFERROR(VLOOKUP($A38,Pupils!$A$4:$T$3000,11,0),0) -> 0 | R38: =IFERROR(VLOOKUP($A38,'Monthly Statement'!$A$2:$V$3000,16,0),0) -> 0 | S38: 0 | T38: =IFERROR(VLOOKUP($A38,Pupils!$A$4:$T$3000,12,0),0) -> 0 | U38: =IFERROR(VLOOKUP($A38,'Monthly Statement'!$A$2:$V$3000,17,0),0) -> 0 | V38: 0 | W38: =IFERROR(VLOOKUP($A38,Pupils!$A$4:$T$3000,13,0),0) -> 0 | X38: =IFERROR(VLOOKUP($A38,'Monthly Statement'!$A$2:$V$3000,18,0),0) -> 0 | Y38: 0 | Z38: =IFERROR(VLOOKUP($A38,Pupils!$A$4:$T$3000,14,0),0) -> 0 | AA38: =IFERROR(VLOOKUP($A38,'Monthly Statement'!$A$2:$V$3000,19,0),0) -> 0 | AB38: 0 | AC38: =IFERROR(VLOOKUP($A38,Pupils!$A$4:$T$3000,15,0),0) -> 0 | AD38: =IFERROR(VLOOKUP($A38,'Monthly Statement'!$A$2:$V$3000,20,0),0) -> 0 | AE38: 0 | AF38: =IFERROR(VLOOKUP($A38,Pupils!$A$4:$T$3000,16,0),0) -> 0 | AG38: =IFERROR(VLOOKUP($A38,'Monthly Statement'!$A$2:$V$3000,21,0),0) -> 0 | AH38: 0 | AI38: =IFERROR(VLOOKUP($A38,Pupils!$A$4:$T$3000,17,0),0) -> 0 | AJ38: =IFERROR(VLOOKUP($A38,'Monthly Statement'!$A$2:$V$3000,22,0),0) -> 0 | AK38: 0 | AL38: =IFERROR(VLOOKUP($A38,Pupils!$A$4:$T$3000,18,0),0) -> 0 | AM38: =IFERROR(VLOOKUP($A38,'Monthly Statement'!$A$2:$W$3000,23,0),0) -> 0 | AN38: 0 | AO38: =IFERROR(VLOOKUP($A38,Pupils!$A$4:$T$3000,19,0),0) -> 0 | AP38: =IFERROR(VLOOKUP($A38,'Monthly Statement'!$A$2:$X$3000,24,0),0) -> 0 | AQ38: 0
A39: ='Monthly Statement'!A34 -> 0 | B39: =IFERROR(VLOOKUP(A39,'Monthly Statement'!A:X,4,0),"") ->  | C39: =IFERROR(VLOOKUP(A39,'Monthly Statement'!A:X,5,0),"") ->  | D39: =IFERROR(VLOOKUP(A39,'Monthly Statement'!A:X,7,0),"") ->  | E39: =IFERROR(VLOOKUP(A39,'Monthly Statement'!A:X,9,0),"") ->  | F39: =IFERROR(VLOOKUP(A39,'Monthly Statement'!A:X,10,0),"") ->  | G39: 0 | H39: =IFERROR(VLOOKUP($A39,Pupils!$A$4:$T$3000,8,0),0) -> 0 | I39: =IFERROR(VLOOKUP($A39,'Monthly Statement'!$A$2:$V$3000,13,0),0) -> 0 | J39: 0 | K39: =IFERROR(VLOOKUP($A39,Pupils!$A$4:$T$3000,9,0),0) -> 0 | L39: =IFERROR(VLOOKUP($A39,'Monthly Statement'!$A$2:$V$3000,14,0),0) -> 0 | M39: 0 | N39: =IFERROR(VLOOKUP($A39,Pupils!$A$4:$T$3000,10,0),0) -> 0 | O39: =IFERROR(VLOOKUP($A39,'Monthly Statement'!$A$2:$V$3000,15,0),0) -> 0 | P39: 0 | Q39: =IFERROR(VLOOKUP($A39,Pupils!$A$4:$T$3000,11,0),0) -> 0 | R39: =IFERROR(VLOOKUP($A39,'Monthly Statement'!$A$2:$V$3000,16,0),0) -> 0 | S39: 0 | T39: =IFERROR(VLOOKUP($A39,Pupils!$A$4:$T$3000,12,0),0) -> 0 | U39: =IFERROR(VLOOKUP($A39,'Monthly Statement'!$A$2:$V$3000,17,0),0) -> 0 | V39: 0 | W39: =IFERROR(VLOOKUP($A39,Pupils!$A$4:$T$3000,13,0),0) -> 0 | X39: =IFERROR(VLOOKUP($A39,'Monthly Statement'!$A$2:$V$3000,18,0),0) -> 0 | Y39: 0 | Z39: =IFERROR(VLOOKUP($A39,Pupils!$A$4:$T$3000,14,0),0) -> 0 | AA39: =IFERROR(VLOOKUP($A39,'Monthly Statement'!$A$2:$V$3000,19,0),0) -> 0 | AB39: 0 | AC39: =IFERROR(VLOOKUP($A39,Pupils!$A$4:$T$3000,15,0),0) -> 0 | AD39: =IFERROR(VLOOKUP($A39,'Monthly Statement'!$A$2:$V$3000,20,0),0) -> 0 | AE39: 0 | AF39: =IFERROR(VLOOKUP($A39,Pupils!$A$4:$T$3000,16,0),0) -> 0 | AG39: =IFERROR(VLOOKUP($A39,'Monthly Statement'!$A$2:$V$3000,21,0),0) -> 0 | AH39: 0 | AI39: =IFERROR(VLOOKUP($A39,Pupils!$A$4:$T$3000,17,0),0) -> 0 | AJ39: =IFERROR(VLOOKUP($A39,'Monthly Statement'!$A$2:$V$3000,22,0),0) -> 0 | AK39: 0 | AL39: =IFERROR(VLOOKUP($A39,Pupils!$A$4:$T$3000,18,0),0) -> 0 | AM39: =IFERROR(VLOOKUP($A39,'Monthly Statement'!$A$2:$W$3000,23,0),0) -> 0 | AN39: 0 | AO39: =IFERROR(VLOOKUP($A39,Pupils!$A$4:$T$3000,19,0),0) -> 0 | AP39: =IFERROR(VLOOKUP($A39,'Monthly Statement'!$A$2:$X$3000,24,0),0) -> 0 | AQ39: 0
A40: ='Monthly Statement'!A35 -> 0 | B40: =IFERROR(VLOOKUP(A40,'Monthly Statement'!A:X,4,0),"") ->  | C40: =IFERROR(VLOOKUP(A40,'Monthly Statement'!A:X,5,0),"") ->  | D40: =IFERROR(VLOOKUP(A40,'Monthly Statement'!A:X,7,0),"") ->  | E40: =IFERROR(VLOOKUP(A40,'Monthly Statement'!A:X,9,0),"") ->  | F40: =IFERROR(VLOOKUP(A40,'Monthly Statement'!A:X,10,0),"") ->  | G40: 0 | H40: =IFERROR(VLOOKUP($A40,Pupils!$A$4:$T$3000,8,0),0) -> 0 | I40: =IFERROR(VLOOKUP($A40,'Monthly Statement'!$A$2:$V$3000,13,0),0) -> 0 | J40: 0 | K40: =IFERROR(VLOOKUP($A40,Pupils!$A$4:$T$3000,9,0),0) -> 0 | L40: =IFERROR(VLOOKUP($A40,'Monthly Statement'!$A$2:$V$3000,14,0),0) -> 0 | M40: 0 | N40: =IFERROR(VLOOKUP($A40,Pupils!$A$4:$T$3000,10,0),0) -> 0 | O40: =IFERROR(VLOOKUP($A40,'Monthly Statement'!$A$2:$V$3000,15,0),0) -> 0 | P40: 0 | Q40: =IFERROR(VLOOKUP($A40,Pupils!$A$4:$T$3000,11,0),0) -> 0 | R40: =IFERROR(VLOOKUP($A40,'Monthly Statement'!$A$2:$V$3000,16,0),0) -> 0 | S40: 0 | T40: =IFERROR(VLOOKUP($A40,Pupils!$A$4:$T$3000,12,0),0) -> 0 | U40: =IFERROR(VLOOKUP($A40,'Monthly Statement'!$A$2:$V$3000,17,0),0) -> 0 | V40: 0 | W40: =IFERROR(VLOOKUP($A40,Pupils!$A$4:$T$3000,13,0),0) -> 0 | X40: =IFERROR(VLOOKUP($A40,'Monthly Statement'!$A$2:$V$3000,18,0),0) -> 0 | Y40: 0 | Z40: =IFERROR(VLOOKUP($A40,Pupils!$A$4:$T$3000,14,0),0) -> 0 | AA40: =IFERROR(VLOOKUP($A40,'Monthly Statement'!$A$2:$V$3000,19,0),0) -> 0 | AB40: 0 | AC40: =IFERROR(VLOOKUP($A40,Pupils!$A$4:$T$3000,15,0),0) -> 0 | AD40: =IFERROR(VLOOKUP($A40,'Monthly Statement'!$A$2:$V$3000,20,0),0) -> 0 | AE40: 0 | AF40: =IFERROR(VLOOKUP($A40,Pupils!$A$4:$T$3000,16,0),0) -> 0 | AG40: =IFERROR(VLOOKUP($A40,'Monthly Statement'!$A$2:$V$3000,21,0),0) -> 0 | AH40: 0 | AI40: =IFERROR(VLOOKUP($A40,Pupils!$A$4:$T$3000,17,0),0) -> 0 | AJ40: =IFERROR(VLOOKUP($A40,'Monthly Statement'!$A$2:$V$3000,22,0),0) -> 0 | AK40: 0 | AL40: =IFERROR(VLOOKUP($A40,Pupils!$A$4:$T$3000,18,0),0) -> 0 | AM40: =IFERROR(VLOOKUP($A40,'Monthly Statement'!$A$2:$W$3000,23,0),0) -> 0 | AN40: 0 | AO40: =IFERROR(VLOOKUP($A40,Pupils!$A$4:$T$3000,19,0),0) -> 0 | AP40: =IFERROR(VLOOKUP($A40,'Monthly Statement'!$A$2:$X$3000,24,0),0) -> 0 | AQ40: 0
A41: ='Monthly Statement'!A36 -> 0 | B41: =IFERROR(VLOOKUP(A41,'Monthly Statement'!A:X,4,0),"") ->  | C41: =IFERROR(VLOOKUP(A41,'Monthly Statement'!A:X,5,0),"") ->  | D41: =IFERROR(VLOOKUP(A41,'Monthly Statement'!A:X,7,0),"") ->  | E41: =IFERROR(VLOOKUP(A41,'Monthly Statement'!A:X,9,0),"") ->  | F41: =IFERROR(VLOOKUP(A41,'Monthly Statement'!A:X,10,0),"") ->  | G41: 0 | H41: =IFERROR(VLOOKUP($A41,Pupils!$A$4:$T$3000,8,0),0) -> 0 | I41: =IFERROR(VLOOKUP($A41,'Monthly Statement'!$A$2:$V$3000,13,0),0) -> 0 | J41: 0 | K41: =IFERROR(VLOOKUP($A41,Pupils!$A$4:$T$3000,9,0),0) -> 0 | L41: =IFERROR(VLOOKUP($A41,'Monthly Statement'!$A$2:$V$3000,14,0),0) -> 0 | M41: 0 | N41: =IFERROR(VLOOKUP($A41,Pupils!$A$4:$T$3000,10,0),0) -> 0 | O41: =IFERROR(VLOOKUP($A41,'Monthly Statement'!$A$2:$V$3000,15,0),0) -> 0 | P41: 0 | Q41: =IFERROR(VLOOKUP($A41,Pupils!$A$4:$T$3000,11,0),0) -> 0 | R41: =IFERROR(VLOOKUP($A41,'Monthly Statement'!$A$2:$V$3000,16,0),0) -> 0 | S41: 0 | T41: =IFERROR(VLOOKUP($A41,Pupils!$A$4:$T$3000,12,0),0) -> 0 | U41: =IFERROR(VLOOKUP($A41,'Monthly Statement'!$A$2:$V$3000,17,0),0) -> 0 | V41: 0 | W41: =IFERROR(VLOOKUP($A41,Pupils!$A$4:$T$3000,13,0),0) -> 0 | X41: =IFERROR(VLOOKUP($A41,'Monthly Statement'!$A$2:$V$3000,18,0),0) -> 0 | Y41: 0 | Z41: =IFERROR(VLOOKUP($A41,Pupils!$A$4:$T$3000,14,0),0) -> 0 | AA41: =IFERROR(VLOOKUP($A41,'Monthly Statement'!$A$2:$V$3000,19,0),0) -> 0 | AB41: 0 | AC41: =IFERROR(VLOOKUP($A41,Pupils!$A$4:$T$3000,15,0),0) -> 0 | AD41: =IFERROR(VLOOKUP($A41,'Monthly Statement'!$A$2:$V$3000,20,0),0) -> 0 | AE41: 0 | AF41: =IFERROR(VLOOKUP($A41,Pupils!$A$4:$T$3000,16,0),0) -> 0 | AG41: =IFERROR(VLOOKUP($A41,'Monthly Statement'!$A$2:$V$3000,21,0),0) -> 0 | AH41: 0 | AI41: =IFERROR(VLOOKUP($A41,Pupils!$A$4:$T$3000,17,0),0) -> 0 | AJ41: =IFERROR(VLOOKUP($A41,'Monthly Statement'!$A$2:$V$3000,22,0),0) -> 0 | AK41: 0 | AL41: =IFERROR(VLOOKUP($A41,Pupils!$A$4:$T$3000,18,0),0) -> 0 | AM41: =IFERROR(VLOOKUP($A41,'Monthly Statement'!$A$2:$W$3000,23,0),0) -> 0 | AN41: 0 | AO41: =IFERROR(VLOOKUP($A41,Pupils!$A$4:$T$3000,19,0),0) -> 0 | AP41: =IFERROR(VLOOKUP($A41,'Monthly Statement'!$A$2:$X$3000,24,0),0) -> 0 | AQ41: 0
A42: ='Monthly Statement'!A37 -> 0 | B42: =IFERROR(VLOOKUP(A42,'Monthly Statement'!A:X,4,0),"") ->  | C42: =IFERROR(VLOOKUP(A42,'Monthly Statement'!A:X,5,0),"") ->  | D42: =IFERROR(VLOOKUP(A42,'Monthly Statement'!A:X,7,0),"") ->  | E42: =IFERROR(VLOOKUP(A42,'Monthly Statement'!A:X,9,0),"") ->  | F42: =IFERROR(VLOOKUP(A42,'Monthly Statement'!A:X,10,0),"") ->  | G42: 0 | H42: =IFERROR(VLOOKUP($A42,Pupils!$A$4:$T$3000,8,0),0) -> 0 | I42: =IFERROR(VLOOKUP($A42,'Monthly Statement'!$A$2:$V$3000,13,0),0) -> 0 | J42: 0 | K42: =IFERROR(VLOOKUP($A42,Pupils!$A$4:$T$3000,9,0),0) -> 0 | L42: =IFERROR(VLOOKUP($A42,'Monthly Statement'!$A$2:$V$3000,14,0),0) -> 0 | M42: 0 | N42: =IFERROR(VLOOKUP($A42,Pupils!$A$4:$T$3000,10,0),0) -> 0 | O42: =IFERROR(VLOOKUP($A42,'Monthly Statement'!$A$2:$V$3000,15,0),0) -> 0 | P42: 0 | Q42: =IFERROR(VLOOKUP($A42,Pupils!$A$4:$T$3000,11,0),0) -> 0 | R42: =IFERROR(VLOOKUP($A42,'Monthly Statement'!$A$2:$V$3000,16,0),0) -> 0 | S42: 0 | T42: =IFERROR(VLOOKUP($A42,Pupils!$A$4:$T$3000,12,0),0) -> 0 | U42: =IFERROR(VLOOKUP($A42,'Monthly Statement'!$A$2:$V$3000,17,0),0) -> 0 | V42: 0 | W42: =IFERROR(VLOOKUP($A42,Pupils!$A$4:$T$3000,13,0),0) -> 0 | X42: =IFERROR(VLOOKUP($A42,'Monthly Statement'!$A$2:$V$3000,18,0),0) -> 0 | Y42: 0 | Z42: =IFERROR(VLOOKUP($A42,Pupils!$A$4:$T$3000,14,0),0) -> 0 | AA42: =IFERROR(VLOOKUP($A42,'Monthly Statement'!$A$2:$V$3000,19,0),0) -> 0 | AB42: 0 | AC42: =IFERROR(VLOOKUP($A42,Pupils!$A$4:$T$3000,15,0),0) -> 0 | AD42: =IFERROR(VLOOKUP($A42,'Monthly Statement'!$A$2:$V$3000,20,0),0) -> 0 | AE42: 0 | AF42: =IFERROR(VLOOKUP($A42,Pupils!$A$4:$T$3000,16,0),0) -> 0 | AG42: =IFERROR(VLOOKUP($A42,'Monthly Statement'!$A$2:$V$3000,21,0),0) -> 0 | AH42: 0 | AI42: =IFERROR(VLOOKUP($A42,Pupils!$A$4:$T$3000,17,0),0) -> 0 | AJ42: =IFERROR(VLOOKUP($A42,'Monthly Statement'!$A$2:$V$3000,22,0),0) -> 0 | AK42: 0 | AL42: =IFERROR(VLOOKUP($A42,Pupils!$A$4:$T$3000,18,0),0) -> 0 | AM42: =IFERROR(VLOOKUP($A42,'Monthly Statement'!$A$2:$W$3000,23,0),0) -> 0 | AN42: 0 | AO42: =IFERROR(VLOOKUP($A42,Pupils!$A$4:$T$3000,19,0),0) -> 0 | AP42: =IFERROR(VLOOKUP($A42,'Monthly Statement'!$A$2:$X$3000,24,0),0) -> 0 | AQ42: 0
A43: ='Monthly Statement'!A38 -> 0 | B43: =IFERROR(VLOOKUP(A43,'Monthly Statement'!A:X,4,0),"") ->  | C43: =IFERROR(VLOOKUP(A43,'Monthly Statement'!A:X,5,0),"") ->  | D43: =IFERROR(VLOOKUP(A43,'Monthly Statement'!A:X,7,0),"") ->  | E43: =IFERROR(VLOOKUP(A43,'Monthly Statement'!A:X,9,0),"") ->  | F43: =IFERROR(VLOOKUP(A43,'Monthly Statement'!A:X,10,0),"") ->  | G43: 0 | H43: =IFERROR(VLOOKUP($A43,Pupils!$A$4:$T$3000,8,0),0) -> 0 | I43: =IFERROR(VLOOKUP($A43,'Monthly Statement'!$A$2:$V$3000,13,0),0) -> 0 | J43: 0 | K43: =IFERROR(VLOOKUP($A43,Pupils!$A$4:$T$3000,9,0),0) -> 0 | L43: =IFERROR(VLOOKUP($A43,'Monthly Statement'!$A$2:$V$3000,14,0),0) -> 0 | M43: 0 | N43: =IFERROR(VLOOKUP($A43,Pupils!$A$4:$T$3000,10,0),0) -> 0 | O43: =IFERROR(VLOOKUP($A43,'Monthly Statement'!$A$2:$V$3000,15,0),0) -> 0 | P43: 0 | Q43: =IFERROR(VLOOKUP($A43,Pupils!$A$4:$T$3000,11,0),0) -> 0 | R43: =IFERROR(VLOOKUP($A43,'Monthly Statement'!$A$2:$V$3000,16,0),0) -> 0 | S43: 0 | T43: =IFERROR(VLOOKUP($A43,Pupils!$A$4:$T$3000,12,0),0) -> 0 | U43: =IFERROR(VLOOKUP($A43,'Monthly Statement'!$A$2:$V$3000,17,0),0) -> 0 | V43: 0 | W43: =IFERROR(VLOOKUP($A43,Pupils!$A$4:$T$3000,13,0),0) -> 0 | X43: =IFERROR(VLOOKUP($A43,'Monthly Statement'!$A$2:$V$3000,18,0),0) -> 0 | Y43: 0 | Z43: =IFERROR(VLOOKUP($A43,Pupils!$A$4:$T$3000,14,0),0) -> 0 | AA43: =IFERROR(VLOOKUP($A43,'Monthly Statement'!$A$2:$V$3000,19,0),0) -> 0 | AB43: 0 | AC43: =IFERROR(VLOOKUP($A43,Pupils!$A$4:$T$3000,15,0),0) -> 0 | AD43: =IFERROR(VLOOKUP($A43,'Monthly Statement'!$A$2:$V$3000,20,0),0) -> 0 | AE43: 0 | AF43: =IFERROR(VLOOKUP($A43,Pupils!$A$4:$T$3000,16,0),0) -> 0 | AG43: =IFERROR(VLOOKUP($A43,'Monthly Statement'!$A$2:$V$3000,21,0),0) -> 0 | AH43: 0 | AI43: =IFERROR(VLOOKUP($A43,Pupils!$A$4:$T$3000,17,0),0) -> 0 | AJ43: =IFERROR(VLOOKUP($A43,'Monthly Statement'!$A$2:$V$3000,22,0),0) -> 0 | AK43: 0 | AL43: =IFERROR(VLOOKUP($A43,Pupils!$A$4:$T$3000,18,0),0) -> 0 | AM43: =IFERROR(VLOOKUP($A43,'Monthly Statement'!$A$2:$W$3000,23,0),0) -> 0 | AN43: 0 | AO43: =IFERROR(VLOOKUP($A43,Pupils!$A$4:$T$3000,19,0),0) -> 0 | AP43: =IFERROR(VLOOKUP($A43,'Monthly Statement'!$A$2:$X$3000,24,0),0) -> 0 | AQ43: 0
A44: ='Monthly Statement'!A39 -> 0 | B44: =IFERROR(VLOOKUP(A44,'Monthly Statement'!A:X,4,0),"") ->  | C44: =IFERROR(VLOOKUP(A44,'Monthly Statement'!A:X,5,0),"") ->  | D44: =IFERROR(VLOOKUP(A44,'Monthly Statement'!A:X,7,0),"") ->  | E44: =IFERROR(VLOOKUP(A44,'Monthly Statement'!A:X,9,0),"") ->  | F44: =IFERROR(VLOOKUP(A44,'Monthly Statement'!A:X,10,0),"") ->  | G44: 0 | H44: =IFERROR(VLOOKUP($A44,Pupils!$A$4:$T$3000,8,0),0) -> 0 | I44: =IFERROR(VLOOKUP($A44,'Monthly Statement'!$A$2:$V$3000,13,0),0) -> 0 | J44: 0 | K44: =IFERROR(VLOOKUP($A44,Pupils!$A$4:$T$3000,9,0),0) -> 0 | L44: =IFERROR(VLOOKUP($A44,'Monthly Statement'!$A$2:$V$3000,14,0),0) -> 0 | M44: 0 | N44: =IFERROR(VLOOKUP($A44,Pupils!$A$4:$T$3000,10,0),0) -> 0 | O44: =IFERROR(VLOOKUP($A44,'Monthly Statement'!$A$2:$V$3000,15,0),0) -> 0 | P44: 0 | Q44: =IFERROR(VLOOKUP($A44,Pupils!$A$4:$T$3000,11,0),0) -> 0 | R44: =IFERROR(VLOOKUP($A44,'Monthly Statement'!$A$2:$V$3000,16,0),0) -> 0 | S44: 0 | T44: =IFERROR(VLOOKUP($A44,Pupils!$A$4:$T$3000,12,0),0) -> 0 | U44: =IFERROR(VLOOKUP($A44,'Monthly Statement'!$A$2:$V$3000,17,0),0) -> 0 | V44: 0 | W44: =IFERROR(VLOOKUP($A44,Pupils!$A$4:$T$3000,13,0),0) -> 0 | X44: =IFERROR(VLOOKUP($A44,'Monthly Statement'!$A$2:$V$3000,18,0),0) -> 0 | Y44: 0 | Z44: =IFERROR(VLOOKUP($A44,Pupils!$A$4:$T$3000,14,0),0) -> 0 | AA44: =IFERROR(VLOOKUP($A44,'Monthly Statement'!$A$2:$V$3000,19,0),0) -> 0 | AB44: 0 | AC44: =IFERROR(VLOOKUP($A44,Pupils!$A$4:$T$3000,15,0),0) -> 0 | AD44: =IFERROR(VLOOKUP($A44,'Monthly Statement'!$A$2:$V$3000,20,0),0) -> 0 | AE44: 0 | AF44: =IFERROR(VLOOKUP($A44,Pupils!$A$4:$T$3000,16,0),0) -> 0 | AG44: =IFERROR(VLOOKUP($A44,'Monthly Statement'!$A$2:$V$3000,21,0),0) -> 0 | AH44: 0 | AI44: =IFERROR(VLOOKUP($A44,Pupils!$A$4:$T$3000,17,0),0) -> 0 | AJ44: =IFERROR(VLOOKUP($A44,'Monthly Statement'!$A$2:$V$3000,22,0),0) -> 0 | AK44: 0 | AL44: =IFERROR(VLOOKUP($A44,Pupils!$A$4:$T$3000,18,0),0) -> 0 | AM44: =IFERROR(VLOOKUP($A44,'Monthly Statement'!$A$2:$W$3000,23,0),0) -> 0 | AN44: 0 | AO44: =IFERROR(VLOOKUP($A44,Pupils!$A$4:$T$3000,19,0),0) -> 0 | AP44: =IFERROR(VLOOKUP($A44,'Monthly Statement'!$A$2:$X$3000,24,0),0) -> 0 | AQ44: 0
A45: ='Monthly Statement'!A40 -> 0 | B45: =IFERROR(VLOOKUP(A45,'Monthly Statement'!A:X,4,0),"") ->  | C45: =IFERROR(VLOOKUP(A45,'Monthly Statement'!A:X,5,0),"") ->  | D45: =IFERROR(VLOOKUP(A45,'Monthly Statement'!A:X,7,0),"") ->  | E45: =IFERROR(VLOOKUP(A45,'Monthly Statement'!A:X,9,0),"") ->  | F45: =IFERROR(VLOOKUP(A45,'Monthly Statement'!A:X,10,0),"") ->  | G45: 0 | H45: =IFERROR(VLOOKUP($A45,Pupils!$A$4:$T$3000,8,0),0) -> 0 | I45: =IFERROR(VLOOKUP($A45,'Monthly Statement'!$A$2:$V$3000,13,0),0) -> 0 | J45: 0 | K45: =IFERROR(VLOOKUP($A45,Pupils!$A$4:$T$3000,9,0),0) -> 0 | L45: =IFERROR(VLOOKUP($A45,'Monthly Statement'!$A$2:$V$3000,14,0),0) -> 0 | M45: 0 | N45: =IFERROR(VLOOKUP($A45,Pupils!$A$4:$T$3000,10,0),0) -> 0 | O45: =IFERROR(VLOOKUP($A45,'Monthly Statement'!$A$2:$V$3000,15,0),0) -> 0 | P45: 0 | Q45: =IFERROR(VLOOKUP($A45,Pupils!$A$4:$T$3000,11,0),0) -> 0 | R45: =IFERROR(VLOOKUP($A45,'Monthly Statement'!$A$2:$V$3000,16,0),0) -> 0 | S45: 0 | T45: =IFERROR(VLOOKUP($A45,Pupils!$A$4:$T$3000,12,0),0) -> 0 | U45: =IFERROR(VLOOKUP($A45,'Monthly Statement'!$A$2:$V$3000,17,0),0) -> 0 | V45: 0 | W45: =IFERROR(VLOOKUP($A45,Pupils!$A$4:$T$3000,13,0),0) -> 0 | X45: =IFERROR(VLOOKUP($A45,'Monthly Statement'!$A$2:$V$3000,18,0),0) -> 0 | Y45: 0 | Z45: =IFERROR(VLOOKUP($A45,Pupils!$A$4:$T$3000,14,0),0) -> 0 | AA45: =IFERROR(VLOOKUP($A45,'Monthly Statement'!$A$2:$V$3000,19,0),0) -> 0 | AB45: 0 | AC45: =IFERROR(VLOOKUP($A45,Pupils!$A$4:$T$3000,15,0),0) -> 0 | AD45: =IFERROR(VLOOKUP($A45,'Monthly Statement'!$A$2:$V$3000,20,0),0) -> 0 | AE45: 0 | AF45: =IFERROR(VLOOKUP($A45,Pupils!$A$4:$T$3000,16,0),0) -> 0 | AG45: =IFERROR(VLOOKUP($A45,'Monthly Statement'!$A$2:$V$3000,21,0),0) -> 0 | AH45: 0 | AI45: =IFERROR(VLOOKUP($A45,Pupils!$A$4:$T$3000,17,0),0) -> 0 | AJ45: =IFERROR(VLOOKUP($A45,'Monthly Statement'!$A$2:$V$3000,22,0),0) -> 0 | AK45: 0 | AL45: =IFERROR(VLOOKUP($A45,Pupils!$A$4:$T$3000,18,0),0) -> 0 | AM45: =IFERROR(VLOOKUP($A45,'Monthly Statement'!$A$2:$W$3000,23,0),0) -> 0 | AN45: 0 | AO45: =IFERROR(VLOOKUP($A45,Pupils!$A$4:$T$3000,19,0),0) -> 0 | AP45: =IFERROR(VLOOKUP($A45,'Monthly Statement'!$A$2:$X$3000,24,0),0) -> 0 | AQ45: 0
A46: ='Monthly Statement'!A41 -> 0 | B46: =IFERROR(VLOOKUP(A46,'Monthly Statement'!A:X,4,0),"") ->  | C46: =IFERROR(VLOOKUP(A46,'Monthly Statement'!A:X,5,0),"") ->  | D46: =IFERROR(VLOOKUP(A46,'Monthly Statement'!A:X,7,0),"") ->  | E46: =IFERROR(VLOOKUP(A46,'Monthly Statement'!A:X,9,0),"") ->  | F46: =IFERROR(VLOOKUP(A46,'Monthly Statement'!A:X,10,0),"") ->  | G46: 0 | H46: =IFERROR(VLOOKUP($A46,Pupils!$A$4:$T$3000,8,0),0) -> 0 | I46: =IFERROR(VLOOKUP($A46,'Monthly Statement'!$A$2:$V$3000,13,0),0) -> 0 | J46: 0 | K46: =IFERROR(VLOOKUP($A46,Pupils!$A$4:$T$3000,9,0),0) -> 0 | L46: =IFERROR(VLOOKUP($A46,'Monthly Statement'!$A$2:$V$3000,14,0),0) -> 0 | M46: 0 | N46: =IFERROR(VLOOKUP($A46,Pupils!$A$4:$T$3000,10,0),0) -> 0 | O46: =IFERROR(VLOOKUP($A46,'Monthly Statement'!$A$2:$V$3000,15,0),0) -> 0 | P46: 0 | Q46: =IFERROR(VLOOKUP($A46,Pupils!$A$4:$T$3000,11,0),0) -> 0 | R46: =IFERROR(VLOOKUP($A46,'Monthly Statement'!$A$2:$V$3000,16,0),0) -> 0 | S46: 0 | T46: =IFERROR(VLOOKUP($A46,Pupils!$A$4:$T$3000,12,0),0) -> 0 | U46: =IFERROR(VLOOKUP($A46,'Monthly Statement'!$A$2:$V$3000,17,0),0) -> 0 | V46: 0 | W46: =IFERROR(VLOOKUP($A46,Pupils!$A$4:$T$3000,13,0),0) -> 0 | X46: =IFERROR(VLOOKUP($A46,'Monthly Statement'!$A$2:$V$3000,18,0),0) -> 0 | Y46: 0 | Z46: =IFERROR(VLOOKUP($A46,Pupils!$A$4:$T$3000,14,0),0) -> 0 | AA46: =IFERROR(VLOOKUP($A46,'Monthly Statement'!$A$2:$V$3000,19,0),0) -> 0 | AB46: 0 | AC46: =IFERROR(VLOOKUP($A46,Pupils!$A$4:$T$3000,15,0),0) -> 0 | AD46: =IFERROR(VLOOKUP($A46,'Monthly Statement'!$A$2:$V$3000,20,0),0) -> 0 | AE46: 0 | AF46: =IFERROR(VLOOKUP($A46,Pupils!$A$4:$T$3000,16,0),0) -> 0 | AG46: =IFERROR(VLOOKUP($A46,'Monthly Statement'!$A$2:$V$3000,21,0),0) -> 0 | AH46: 0 | AI46: =IFERROR(VLOOKUP($A46,Pupils!$A$4:$T$3000,17,0),0) -> 0 | AJ46: =IFERROR(VLOOKUP($A46,'Monthly Statement'!$A$2:$V$3000,22,0),0) -> 0 | AK46: 0 | AL46: =IFERROR(VLOOKUP($A46,Pupils!$A$4:$T$3000,18,0),0) -> 0 | AM46: =IFERROR(VLOOKUP($A46,'Monthly Statement'!$A$2:$W$3000,23,0),0) -> 0 | AN46: 0 | AO46: =IFERROR(VLOOKUP($A46,Pupils!$A$4:$T$3000,19,0),0) -> 0 | AP46: =IFERROR(VLOOKUP($A46,'Monthly Statement'!$A$2:$X$3000,24,0),0) -> 0 | AQ46: 0
A47: ='Monthly Statement'!A42 -> 0 | B47: =IFERROR(VLOOKUP(A47,'Monthly Statement'!A:X,4,0),"") ->  | C47: =IFERROR(VLOOKUP(A47,'Monthly Statement'!A:X,5,0),"") ->  | D47: =IFERROR(VLOOKUP(A47,'Monthly Statement'!A:X,7,0),"") ->  | E47: =IFERROR(VLOOKUP(A47,'Monthly Statement'!A:X,9,0),"") ->  | F47: =IFERROR(VLOOKUP(A47,'Monthly Statement'!A:X,10,0),"") ->  | G47: 0 | H47: =IFERROR(VLOOKUP($A47,Pupils!$A$4:$T$3000,8,0),0) -> 0 | I47: =IFERROR(VLOOKUP($A47,'Monthly Statement'!$A$2:$V$3000,13,0),0) -> 0 | J47: 0 | K47: =IFERROR(VLOOKUP($A47,Pupils!$A$4:$T$3000,9,0),0) -> 0 | L47: =IFERROR(VLOOKUP($A47,'Monthly Statement'!$A$2:$V$3000,14,0),0) -> 0 | M47: 0 | N47: =IFERROR(VLOOKUP($A47,Pupils!$A$4:$T$3000,10,0),0) -> 0 | O47: =IFERROR(VLOOKUP($A47,'Monthly Statement'!$A$2:$V$3000,15,0),0) -> 0 | P47: 0 | Q47: =IFERROR(VLOOKUP($A47,Pupils!$A$4:$T$3000,11,0),0) -> 0 | R47: =IFERROR(VLOOKUP($A47,'Monthly Statement'!$A$2:$V$3000,16,0),0) -> 0 | S47: 0 | T47: =IFERROR(VLOOKUP($A47,Pupils!$A$4:$T$3000,12,0),0) -> 0 | U47: =IFERROR(VLOOKUP($A47,'Monthly Statement'!$A$2:$V$3000,17,0),0) -> 0 | V47: 0 | W47: =IFERROR(VLOOKUP($A47,Pupils!$A$4:$T$3000,13,0),0) -> 0 | X47: =IFERROR(VLOOKUP($A47,'Monthly Statement'!$A$2:$V$3000,18,0),0) -> 0 | Y47: 0 | Z47: =IFERROR(VLOOKUP($A47,Pupils!$A$4:$T$3000,14,0),0) -> 0 | AA47: =IFERROR(VLOOKUP($A47,'Monthly Statement'!$A$2:$V$3000,19,0),0) -> 0 | AB47: 0 | AC47: =IFERROR(VLOOKUP($A47,Pupils!$A$4:$T$3000,15,0),0) -> 0 | AD47: =IFERROR(VLOOKUP($A47,'Monthly Statement'!$A$2:$V$3000,20,0),0) -> 0 | AE47: 0 | AF47: =IFERROR(VLOOKUP($A47,Pupils!$A$4:$T$3000,16,0),0) -> 0 | AG47: =IFERROR(VLOOKUP($A47,'Monthly Statement'!$A$2:$V$3000,21,0),0) -> 0 | AH47: 0 | AI47: =IFERROR(VLOOKUP($A47,Pupils!$A$4:$T$3000,17,0),0) -> 0 | AJ47: =IFERROR(VLOOKUP($A47,'Monthly Statement'!$A$2:$V$3000,22,0),0) -> 0 | AK47: 0 | AL47: =IFERROR(VLOOKUP($A47,Pupils!$A$4:$T$3000,18,0),0) -> 0 | AM47: =IFERROR(VLOOKUP($A47,'Monthly Statement'!$A$2:$W$3000,23,0),0) -> 0 | AN47: 0 | AO47: =IFERROR(VLOOKUP($A47,Pupils!$A$4:$T$3000,19,0),0) -> 0 | AP47: =IFERROR(VLOOKUP($A47,'Monthly Statement'!$A$2:$X$3000,24,0),0) -> 0 | AQ47: 0
A48: ='Monthly Statement'!A43 -> 0 | B48: =IFERROR(VLOOKUP(A48,'Monthly Statement'!A:X,4,0),"") ->  | C48: =IFERROR(VLOOKUP(A48,'Monthly Statement'!A:X,5,0),"") ->  | D48: =IFERROR(VLOOKUP(A48,'Monthly Statement'!A:X,7,0),"") ->  | E48: =IFERROR(VLOOKUP(A48,'Monthly Statement'!A:X,9,0),"") ->  | F48: =IFERROR(VLOOKUP(A48,'Monthly Statement'!A:X,10,0),"") ->  | G48: 0 | H48: =IFERROR(VLOOKUP($A48,Pupils!$A$4:$T$3000,8,0),0) -> 0 | I48: =IFERROR(VLOOKUP($A48,'Monthly Statement'!$A$2:$V$3000,13,0),0) -> 0 | J48: 0 | K48: =IFERROR(VLOOKUP($A48,Pupils!$A$4:$T$3000,9,0),0) -> 0 | L48: =IFERROR(VLOOKUP($A48,'Monthly Statement'!$A$2:$V$3000,14,0),0) -> 0 | M48: 0 | N48: =IFERROR(VLOOKUP($A48,Pupils!$A$4:$T$3000,10,0),0) -> 0 | O48: =IFERROR(VLOOKUP($A48,'Monthly Statement'!$A$2:$V$3000,15,0),0) -> 0 | P48: 0 | Q48: =IFERROR(VLOOKUP($A48,Pupils!$A$4:$T$3000,11,0),0) -> 0 | R48: =IFERROR(VLOOKUP($A48,'Monthly Statement'!$A$2:$V$3000,16,0),0) -> 0 | S48: 0 | T48: =IFERROR(VLOOKUP($A48,Pupils!$A$4:$T$3000,12,0),0) -> 0 | U48: =IFERROR(VLOOKUP($A48,'Monthly Statement'!$A$2:$V$3000,17,0),0) -> 0 | V48: 0 | W48: =IFERROR(VLOOKUP($A48,Pupils!$A$4:$T$3000,13,0),0) -> 0 | X48: =IFERROR(VLOOKUP($A48,'Monthly Statement'!$A$2:$V$3000,18,0),0) -> 0 | Y48: 0 | Z48: =IFERROR(VLOOKUP($A48,Pupils!$A$4:$T$3000,14,0),0) -> 0 | AA48: =IFERROR(VLOOKUP($A48,'Monthly Statement'!$A$2:$V$3000,19,0),0) -> 0 | AB48: 0 | AC48: =IFERROR(VLOOKUP($A48,Pupils!$A$4:$T$3000,15,0),0) -> 0 | AD48: =IFERROR(VLOOKUP($A48,'Monthly Statement'!$A$2:$V$3000,20,0),0) -> 0 | AE48: 0 | AF48: =IFERROR(VLOOKUP($A48,Pupils!$A$4:$T$3000,16,0),0) -> 0 | AG48: =IFERROR(VLOOKUP($A48,'Monthly Statement'!$A$2:$V$3000,21,0),0) -> 0 | AH48: 0 | AI48: =IFERROR(VLOOKUP($A48,Pupils!$A$4:$T$3000,17,0),0) -> 0 | AJ48: =IFERROR(VLOOKUP($A48,'Monthly Statement'!$A$2:$V$3000,22,0),0) -> 0 | AK48: 0 | AL48: =IFERROR(VLOOKUP($A48,Pupils!$A$4:$T$3000,18,0),0) -> 0 | AM48: =IFERROR(VLOOKUP($A48,'Monthly Statement'!$A$2:$W$3000,23,0),0) -> 0 | AN48: 0 | AO48: =IFERROR(VLOOKUP($A48,Pupils!$A$4:$T$3000,19,0),0) -> 0 | AP48: =IFERROR(VLOOKUP($A48,'Monthly Statement'!$A$2:$X$3000,24,0),0) -> 0 | AQ48: 0
A49: ='Monthly Statement'!A44 -> 0 | B49: =IFERROR(VLOOKUP(A49,'Monthly Statement'!A:X,4,0),"") ->  | C49: =IFERROR(VLOOKUP(A49,'Monthly Statement'!A:X,5,0),"") ->  | D49: =IFERROR(VLOOKUP(A49,'Monthly Statement'!A:X,7,0),"") ->  | E49: =IFERROR(VLOOKUP(A49,'Monthly Statement'!A:X,9,0),"") ->  | F49: =IFERROR(VLOOKUP(A49,'Monthly Statement'!A:X,10,0),"") ->  | G49: 0 | H49: =IFERROR(VLOOKUP($A49,Pupils!$A$4:$T$3000,8,0),0) -> 0 | I49: =IFERROR(VLOOKUP($A49,'Monthly Statement'!$A$2:$V$3000,13,0),0) -> 0 | J49: 0 | K49: =IFERROR(VLOOKUP($A49,Pupils!$A$4:$T$3000,9,0),0) -> 0 | L49: =IFERROR(VLOOKUP($A49,'Monthly Statement'!$A$2:$V$3000,14,0),0) -> 0 | M49: 0 | N49: =IFERROR(VLOOKUP($A49,Pupils!$A$4:$T$3000,10,0),0) -> 0 | O49: =IFERROR(VLOOKUP($A49,'Monthly Statement'!$A$2:$V$3000,15,0),0) -> 0 | P49: 0 | Q49: =IFERROR(VLOOKUP($A49,Pupils!$A$4:$T$3000,11,0),0) -> 0 | R49: =IFERROR(VLOOKUP($A49,'Monthly Statement'!$A$2:$V$3000,16,0),0) -> 0 | S49: 0 | T49: =IFERROR(VLOOKUP($A49,Pupils!$A$4:$T$3000,12,0),0) -> 0 | U49: =IFERROR(VLOOKUP($A49,'Monthly Statement'!$A$2:$V$3000,17,0),0) -> 0 | V49: 0 | W49: =IFERROR(VLOOKUP($A49,Pupils!$A$4:$T$3000,13,0),0) -> 0 | X49: =IFERROR(VLOOKUP($A49,'Monthly Statement'!$A$2:$V$3000,18,0),0) -> 0 | Y49: 0 | Z49: =IFERROR(VLOOKUP($A49,Pupils!$A$4:$T$3000,14,0),0) -> 0 | AA49: =IFERROR(VLOOKUP($A49,'Monthly Statement'!$A$2:$V$3000,19,0),0) -> 0 | AB49: 0 | AC49: =IFERROR(VLOOKUP($A49,Pupils!$A$4:$T$3000,15,0),0) -> 0 | AD49: =IFERROR(VLOOKUP($A49,'Monthly Statement'!$A$2:$V$3000,20,0),0) -> 0 | AE49: 0 | AF49: =IFERROR(VLOOKUP($A49,Pupils!$A$4:$T$3000,16,0),0) -> 0 | AG49: =IFERROR(VLOOKUP($A49,'Monthly Statement'!$A$2:$V$3000,21,0),0) -> 0 | AH49: 0 | AI49: =IFERROR(VLOOKUP($A49,Pupils!$A$4:$T$3000,17,0),0) -> 0 | AJ49: =IFERROR(VLOOKUP($A49,'Monthly Statement'!$A$2:$V$3000,22,0),0) -> 0 | AK49: 0 | AL49: =IFERROR(VLOOKUP($A49,Pupils!$A$4:$T$3000,18,0),0) -> 0 | AM49: =IFERROR(VLOOKUP($A49,'Monthly Statement'!$A$2:$W$3000,23,0),0) -> 0 | AN49: 0 | AO49: =IFERROR(VLOOKUP($A49,Pupils!$A$4:$T$3000,19,0),0) -> 0 | AP49: =IFERROR(VLOOKUP($A49,'Monthly Statement'!$A$2:$X$3000,24,0),0) -> 0 | AQ49: 0
A50: ='Monthly Statement'!A45 -> 0 | B50: =IFERROR(VLOOKUP(A50,'Monthly Statement'!A:X,4,0),"") ->  | C50: =IFERROR(VLOOKUP(A50,'Monthly Statement'!A:X,5,0),"") ->  | D50: =IFERROR(VLOOKUP(A50,'Monthly Statement'!A:X,7,0),"") ->  | E50: =IFERROR(VLOOKUP(A50,'Monthly Statement'!A:X,9,0),"") ->  | F50: =IFERROR(VLOOKUP(A50,'Monthly Statement'!A:X,10,0),"") ->  | G50: 0 | H50: =IFERROR(VLOOKUP($A50,Pupils!$A$4:$T$3000,8,0),0) -> 0 | I50: =IFERROR(VLOOKUP($A50,'Monthly Statement'!$A$2:$V$3000,13,0),0) -> 0 | J50: 0 | K50: =IFERROR(VLOOKUP($A50,Pupils!$A$4:$T$3000,9,0),0) -> 0 | L50: =IFERROR(VLOOKUP($A50,'Monthly Statement'!$A$2:$V$3000,14,0),0) -> 0 | M50: 0 | N50: =IFERROR(VLOOKUP($A50,Pupils!$A$4:$T$3000,10,0),0) -> 0 | O50: =IFERROR(VLOOKUP($A50,'Monthly Statement'!$A$2:$V$3000,15,0),0) -> 0 | P50: 0 | Q50: =IFERROR(VLOOKUP($A50,Pupils!$A$4:$T$3000,11,0),0) -> 0 | R50: =IFERROR(VLOOKUP($A50,'Monthly Statement'!$A$2:$V$3000,16,0),0) -> 0 | S50: 0 | T50: =IFERROR(VLOOKUP($A50,Pupils!$A$4:$T$3000,12,0),0) -> 0 | U50: =IFERROR(VLOOKUP($A50,'Monthly Statement'!$A$2:$V$3000,17,0),0) -> 0 | V50: 0 | W50: =IFERROR(VLOOKUP($A50,Pupils!$A$4:$T$3000,13,0),0) -> 0 | X50: =IFERROR(VLOOKUP($A50,'Monthly Statement'!$A$2:$V$3000,18,0),0) -> 0 | Y50: 0 | Z50: =IFERROR(VLOOKUP($A50,Pupils!$A$4:$T$3000,14,0),0) -> 0 | AA50: =IFERROR(VLOOKUP($A50,'Monthly Statement'!$A$2:$V$3000,19,0),0) -> 0 | AB50: 0 | AC50: =IFERROR(VLOOKUP($A50,Pupils!$A$4:$T$3000,15,0),0) -> 0 | AD50: =IFERROR(VLOOKUP($A50,'Monthly Statement'!$A$2:$V$3000,20,0),0) -> 0 | AE50: 0 | AF50: =IFERROR(VLOOKUP($A50,Pupils!$A$4:$T$3000,16,0),0) -> 0 | AG50: =IFERROR(VLOOKUP($A50,'Monthly Statement'!$A$2:$V$3000,21,0),0) -> 0 | AH50: 0 | AI50: =IFERROR(VLOOKUP($A50,Pupils!$A$4:$T$3000,17,0),0) -> 0 | AJ50: =IFERROR(VLOOKUP($A50,'Monthly Statement'!$A$2:$V$3000,22,0),0) -> 0 | AK50: 0 | AL50: =IFERROR(VLOOKUP($A50,Pupils!$A$4:$T$3000,18,0),0) -> 0 | AM50: =IFERROR(VLOOKUP($A50,'Monthly Statement'!$A$2:$W$3000,23,0),0) -> 0 | AN50: 0 | AO50: =IFERROR(VLOOKUP($A50,Pupils!$A$4:$T$3000,19,0),0) -> 0 | AP50: =IFERROR(VLOOKUP($A50,'Monthly Statement'!$A$2:$X$3000,24,0),0) -> 0 | AQ50: 0
A51: ='Monthly Statement'!A46 -> 0 | B51: =IFERROR(VLOOKUP(A51,'Monthly Statement'!A:X,4,0),"") ->  | C51: =IFERROR(VLOOKUP(A51,'Monthly Statement'!A:X,5,0),"") ->  | D51: =IFERROR(VLOOKUP(A51,'Monthly Statement'!A:X,7,0),"") ->  | E51: =IFERROR(VLOOKUP(A51,'Monthly Statement'!A:X,9,0),"") ->  | F51: =IFERROR(VLOOKUP(A51,'Monthly Statement'!A:X,10,0),"") ->  | G51: 0 | H51: =IFERROR(VLOOKUP($A51,Pupils!$A$4:$T$3000,8,0),0) -> 0 | I51: =IFERROR(VLOOKUP($A51,'Monthly Statement'!$A$2:$V$3000,13,0),0) -> 0 | J51: 0 | K51: =IFERROR(VLOOKUP($A51,Pupils!$A$4:$T$3000,9,0),0) -> 0 | L51: =IFERROR(VLOOKUP($A51,'Monthly Statement'!$A$2:$V$3000,14,0),0) -> 0 | M51: 0 | N51: =IFERROR(VLOOKUP($A51,Pupils!$A$4:$T$3000,10,0),0) -> 0 | O51: =IFERROR(VLOOKUP($A51,'Monthly Statement'!$A$2:$V$3000,15,0),0) -> 0 | P51: 0 | Q51: =IFERROR(VLOOKUP($A51,Pupils!$A$4:$T$3000,11,0),0) -> 0 | R51: =IFERROR(VLOOKUP($A51,'Monthly Statement'!$A$2:$V$3000,16,0),0) -> 0 | S51: 0 | T51: =IFERROR(VLOOKUP($A51,Pupils!$A$4:$T$3000,12,0),0) -> 0 | U51: =IFERROR(VLOOKUP($A51,'Monthly Statement'!$A$2:$V$3000,17,0),0) -> 0 | V51: 0 | W51: =IFERROR(VLOOKUP($A51,Pupils!$A$4:$T$3000,13,0),0) -> 0 | X51: =IFERROR(VLOOKUP($A51,'Monthly Statement'!$A$2:$V$3000,18,0),0) -> 0 | Y51: 0 | Z51: =IFERROR(VLOOKUP($A51,Pupils!$A$4:$T$3000,14,0),0) -> 0 | AA51: =IFERROR(VLOOKUP($A51,'Monthly Statement'!$A$2:$V$3000,19,0),0) -> 0 | AB51: 0 | AC51: =IFERROR(VLOOKUP($A51,Pupils!$A$4:$T$3000,15,0),0) -> 0 | AD51: =IFERROR(VLOOKUP($A51,'Monthly Statement'!$A$2:$V$3000,20,0),0) -> 0 | AE51: 0 | AF51: =IFERROR(VLOOKUP($A51,Pupils!$A$4:$T$3000,16,0),0) -> 0 | AG51: =IFERROR(VLOOKUP($A51,'Monthly Statement'!$A$2:$V$3000,21,0),0) -> 0 | AH51: 0 | AI51: =IFERROR(VLOOKUP($A51,Pupils!$A$4:$T$3000,17,0),0) -> 0 | AJ51: =IFERROR(VLOOKUP($A51,'Monthly Statement'!$A$2:$V$3000,22,0),0) -> 0 | AK51: 0 | AL51: =IFERROR(VLOOKUP($A51,Pupils!$A$4:$T$3000,18,0),0) -> 0 | AM51: =IFERROR(VLOOKUP($A51,'Monthly Statement'!$A$2:$W$3000,23,0),0) -> 0 | AN51: 0 | AO51: =IFERROR(VLOOKUP($A51,Pupils!$A$4:$T$3000,19,0),0) -> 0 | AP51: =IFERROR(VLOOKUP($A51,'Monthly Statement'!$A$2:$X$3000,24,0),0) -> 0 | AQ51: 0
A52: ='Monthly Statement'!A47 -> 0 | B52: =IFERROR(VLOOKUP(A52,'Monthly Statement'!A:X,4,0),"") ->  | C52: =IFERROR(VLOOKUP(A52,'Monthly Statement'!A:X,5,0),"") ->  | D52: =IFERROR(VLOOKUP(A52,'Monthly Statement'!A:X,7,0),"") ->  | E52: =IFERROR(VLOOKUP(A52,'Monthly Statement'!A:X,9,0),"") ->  | F52: =IFERROR(VLOOKUP(A52,'Monthly Statement'!A:X,10,0),"") ->  | G52: 0 | H52: =IFERROR(VLOOKUP($A52,Pupils!$A$4:$T$3000,8,0),0) -> 0 | I52: =IFERROR(VLOOKUP($A52,'Monthly Statement'!$A$2:$V$3000,13,0),0) -> 0 | J52: 0 | K52: =IFERROR(VLOOKUP($A52,Pupils!$A$4:$T$3000,9,0),0) -> 0 | L52: =IFERROR(VLOOKUP($A52,'Monthly Statement'!$A$2:$V$3000,14,0),0) -> 0 | M52: 0 | N52: =IFERROR(VLOOKUP($A52,Pupils!$A$4:$T$3000,10,0),0) -> 0 | O52: =IFERROR(VLOOKUP($A52,'Monthly Statement'!$A$2:$V$3000,15,0),0) -> 0 | P52: 0 | Q52: =IFERROR(VLOOKUP($A52,Pupils!$A$4:$T$3000,11,0),0) -> 0 | R52: =IFERROR(VLOOKUP($A52,'Monthly Statement'!$A$2:$V$3000,16,0),0) -> 0 | S52: 0 | T52: =IFERROR(VLOOKUP($A52,Pupils!$A$4:$T$3000,12,0),0) -> 0 | U52: =IFERROR(VLOOKUP($A52,'Monthly Statement'!$A$2:$V$3000,17,0),0) -> 0 | V52: 0 | W52: =IFERROR(VLOOKUP($A52,Pupils!$A$4:$T$3000,13,0),0) -> 0 | X52: =IFERROR(VLOOKUP($A52,'Monthly Statement'!$A$2:$V$3000,18,0),0) -> 0 | Y52: 0 | Z52: =IFERROR(VLOOKUP($A52,Pupils!$A$4:$T$3000,14,0),0) -> 0 | AA52: =IFERROR(VLOOKUP($A52,'Monthly Statement'!$A$2:$V$3000,19,0),0) -> 0 | AB52: 0 | AC52: =IFERROR(VLOOKUP($A52,Pupils!$A$4:$T$3000,15,0),0) -> 0 | AD52: =IFERROR(VLOOKUP($A52,'Monthly Statement'!$A$2:$V$3000,20,0),0) -> 0 | AE52: 0 | AF52: =IFERROR(VLOOKUP($A52,Pupils!$A$4:$T$3000,16,0),0) -> 0 | AG52: =IFERROR(VLOOKUP($A52,'Monthly Statement'!$A$2:$V$3000,21,0),0) -> 0 | AH52: 0 | AI52: =IFERROR(VLOOKUP($A52,Pupils!$A$4:$T$3000,17,0),0) -> 0 | AJ52: =IFERROR(VLOOKUP($A52,'Monthly Statement'!$A$2:$V$3000,22,0),0) -> 0 | AK52: 0 | AL52: =IFERROR(VLOOKUP($A52,Pupils!$A$4:$T$3000,18,0),0) -> 0 | AM52: =IFERROR(VLOOKUP($A52,'Monthly Statement'!$A$2:$W$3000,23,0),0) -> 0 | AN52: 0 | AO52: =IFERROR(VLOOKUP($A52,Pupils!$A$4:$T$3000,19,0),0) -> 0 | AP52: =IFERROR(VLOOKUP($A52,'Monthly Statement'!$A$2:$X$3000,24,0),0) -> 0 | AQ52: 0
A53: ='Monthly Statement'!A48 -> 0 | B53: =IFERROR(VLOOKUP(A53,'Monthly Statement'!A:X,4,0),"") ->  | C53: =IFERROR(VLOOKUP(A53,'Monthly Statement'!A:X,5,0),"") ->  | D53: =IFERROR(VLOOKUP(A53,'Monthly Statement'!A:X,7,0),"") ->  | E53: =IFERROR(VLOOKUP(A53,'Monthly Statement'!A:X,9,0),"") ->  | F53: =IFERROR(VLOOKUP(A53,'Monthly Statement'!A:X,10,0),"") ->  | G53: 0 | H53: =IFERROR(VLOOKUP($A53,Pupils!$A$4:$T$3000,8,0),0) -> 0 | I53: =IFERROR(VLOOKUP($A53,'Monthly Statement'!$A$2:$V$3000,13,0),0) -> 0 | J53: 0 | K53: =IFERROR(VLOOKUP($A53,Pupils!$A$4:$T$3000,9,0),0) -> 0 | L53: =IFERROR(VLOOKUP($A53,'Monthly Statement'!$A$2:$V$3000,14,0),0) -> 0 | M53: 0 | N53: =IFERROR(VLOOKUP($A53,Pupils!$A$4:$T$3000,10,0),0) -> 0 | O53: =IFERROR(VLOOKUP($A53,'Monthly Statement'!$A$2:$V$3000,15,0),0) -> 0 | P53: 0 | Q53: =IFERROR(VLOOKUP($A53,Pupils!$A$4:$T$3000,11,0),0) -> 0 | R53: =IFERROR(VLOOKUP($A53,'Monthly Statement'!$A$2:$V$3000,16,0),0) -> 0 | S53: 0 | T53: =IFERROR(VLOOKUP($A53,Pupils!$A$4:$T$3000,12,0),0) -> 0 | U53: =IFERROR(VLOOKUP($A53,'Monthly Statement'!$A$2:$V$3000,17,0),0) -> 0 | V53: 0 | W53: =IFERROR(VLOOKUP($A53,Pupils!$A$4:$T$3000,13,0),0) -> 0 | X53: =IFERROR(VLOOKUP($A53,'Monthly Statement'!$A$2:$V$3000,18,0),0) -> 0 | Y53: 0 | Z53: =IFERROR(VLOOKUP($A53,Pupils!$A$4:$T$3000,14,0),0) -> 0 | AA53: =IFERROR(VLOOKUP($A53,'Monthly Statement'!$A$2:$V$3000,19,0),0) -> 0 | AB53: 0 | AC53: =IFERROR(VLOOKUP($A53,Pupils!$A$4:$T$3000,15,0),0) -> 0 | AD53: =IFERROR(VLOOKUP($A53,'Monthly Statement'!$A$2:$V$3000,20,0),0) -> 0 | AE53: 0 | AF53: =IFERROR(VLOOKUP($A53,Pupils!$A$4:$T$3000,16,0),0) -> 0 | AG53: =IFERROR(VLOOKUP($A53,'Monthly Statement'!$A$2:$V$3000,21,0),0) -> 0 | AH53: 0 | AI53: =IFERROR(VLOOKUP($A53,Pupils!$A$4:$T$3000,17,0),0) -> 0 | AJ53: =IFERROR(VLOOKUP($A53,'Monthly Statement'!$A$2:$V$3000,22,0),0) -> 0 | AK53: 0 | AL53: =IFERROR(VLOOKUP($A53,Pupils!$A$4:$T$3000,18,0),0) -> 0 | AM53: =IFERROR(VLOOKUP($A53,'Monthly Statement'!$A$2:$W$3000,23,0),0) -> 0 | AN53: 0 | AO53: =IFERROR(VLOOKUP($A53,Pupils!$A$4:$T$3000,19,0),0) -> 0 | AP53: =IFERROR(VLOOKUP($A53,'Monthly Statement'!$A$2:$X$3000,24,0),0) -> 0 | AQ53: 0
A54: ='Monthly Statement'!A49 -> 0 | B54: =IFERROR(VLOOKUP(A54,'Monthly Statement'!A:X,4,0),"") ->  | C54: =IFERROR(VLOOKUP(A54,'Monthly Statement'!A:X,5,0),"") ->  | D54: =IFERROR(VLOOKUP(A54,'Monthly Statement'!A:X,7,0),"") ->  | E54: =IFERROR(VLOOKUP(A54,'Monthly Statement'!A:X,9,0),"") ->  | F54: =IFERROR(VLOOKUP(A54,'Monthly Statement'!A:X,10,0),"") ->  | G54: 0 | H54: =IFERROR(VLOOKUP($A54,Pupils!$A$4:$T$3000,8,0),0) -> 0 | I54: =IFERROR(VLOOKUP($A54,'Monthly Statement'!$A$2:$V$3000,13,0),0) -> 0 | J54: 0 | K54: =IFERROR(VLOOKUP($A54,Pupils!$A$4:$T$3000,9,0),0) -> 0 | L54: =IFERROR(VLOOKUP($A54,'Monthly Statement'!$A$2:$V$3000,14,0),0) -> 0 | M54: 0 | N54: =IFERROR(VLOOKUP($A54,Pupils!$A$4:$T$3000,10,0),0) -> 0 | O54: =IFERROR(VLOOKUP($A54,'Monthly Statement'!$A$2:$V$3000,15,0),0) -> 0 | P54: 0 | Q54: =IFERROR(VLOOKUP($A54,Pupils!$A$4:$T$3000,11,0),0) -> 0 | R54: =IFERROR(VLOOKUP($A54,'Monthly Statement'!$A$2:$V$3000,16,0),0) -> 0 | S54: 0 | T54: =IFERROR(VLOOKUP($A54,Pupils!$A$4:$T$3000,12,0),0) -> 0 | U54: =IFERROR(VLOOKUP($A54,'Monthly Statement'!$A$2:$V$3000,17,0),0) -> 0 | V54: 0 | W54: =IFERROR(VLOOKUP($A54,Pupils!$A$4:$T$3000,13,0),0) -> 0 | X54: =IFERROR(VLOOKUP($A54,'Monthly Statement'!$A$2:$V$3000,18,0),0) -> 0 | Y54: 0 | Z54: =IFERROR(VLOOKUP($A54,Pupils!$A$4:$T$3000,14,0),0) -> 0 | AA54: =IFERROR(VLOOKUP($A54,'Monthly Statement'!$A$2:$V$3000,19,0),0) -> 0 | AB54: 0 | AC54: =IFERROR(VLOOKUP($A54,Pupils!$A$4:$T$3000,15,0),0) -> 0 | AD54: =IFERROR(VLOOKUP($A54,'Monthly Statement'!$A$2:$V$3000,20,0),0) -> 0 | AE54: 0 | AF54: =IFERROR(VLOOKUP($A54,Pupils!$A$4:$T$3000,16,0),0) -> 0 | AG54: =IFERROR(VLOOKUP($A54,'Monthly Statement'!$A$2:$V$3000,21,0),0) -> 0 | AH54: 0 | AI54: =IFERROR(VLOOKUP($A54,Pupils!$A$4:$T$3000,17,0),0) -> 0 | AJ54: =IFERROR(VLOOKUP($A54,'Monthly Statement'!$A$2:$V$3000,22,0),0) -> 0 | AK54: 0 | AL54: =IFERROR(VLOOKUP($A54,Pupils!$A$4:$T$3000,18,0),0) -> 0 | AM54: =IFERROR(VLOOKUP($A54,'Monthly Statement'!$A$2:$W$3000,23,0),0) -> 0 | AN54: 0 | AO54: =IFERROR(VLOOKUP($A54,Pupils!$A$4:$T$3000,19,0),0) -> 0 | AP54: =IFERROR(VLOOKUP($A54,'Monthly Statement'!$A$2:$X$3000,24,0),0) -> 0 | AQ54: 0
A55: ='Monthly Statement'!A50 -> 0 | B55: =IFERROR(VLOOKUP(A55,'Monthly Statement'!A:X,4,0),"") ->  | C55: =IFERROR(VLOOKUP(A55,'Monthly Statement'!A:X,5,0),"") ->  | D55: =IFERROR(VLOOKUP(A55,'Monthly Statement'!A:X,7,0),"") ->  | E55: =IFERROR(VLOOKUP(A55,'Monthly Statement'!A:X,9,0),"") ->  | F55: =IFERROR(VLOOKUP(A55,'Monthly Statement'!A:X,10,0),"") ->  | G55: 0 | H55: =IFERROR(VLOOKUP($A55,Pupils!$A$4:$T$3000,8,0),0) -> 0 | I55: =IFERROR(VLOOKUP($A55,'Monthly Statement'!$A$2:$V$3000,13,0),0) -> 0 | J55: 0 | K55: =IFERROR(VLOOKUP($A55,Pupils!$A$4:$T$3000,9,0),0) -> 0 | L55: =IFERROR(VLOOKUP($A55,'Monthly Statement'!$A$2:$V$3000,14,0),0) -> 0 | M55: 0 | N55: =IFERROR(VLOOKUP($A55,Pupils!$A$4:$T$3000,10,0),0) -> 0 | O55: =IFERROR(VLOOKUP($A55,'Monthly Statement'!$A$2:$V$3000,15,0),0) -> 0 | P55: 0 | Q55: =IFERROR(VLOOKUP($A55,Pupils!$A$4:$T$3000,11,0),0) -> 0 | R55: =IFERROR(VLOOKUP($A55,'Monthly Statement'!$A$2:$V$3000,16,0),0) -> 0 | S55: 0 | T55: =IFERROR(VLOOKUP($A55,Pupils!$A$4:$T$3000,12,0),0) -> 0 | U55: =IFERROR(VLOOKUP($A55,'Monthly Statement'!$A$2:$V$3000,17,0),0) -> 0 | V55: 0 | W55: =IFERROR(VLOOKUP($A55,Pupils!$A$4:$T$3000,13,0),0) -> 0 | X55: =IFERROR(VLOOKUP($A55,'Monthly Statement'!$A$2:$V$3000,18,0),0) -> 0 | Y55: 0 | Z55: =IFERROR(VLOOKUP($A55,Pupils!$A$4:$T$3000,14,0),0) -> 0 | AA55: =IFERROR(VLOOKUP($A55,'Monthly Statement'!$A$2:$V$3000,19,0),0) -> 0 | AB55: 0 | AC55: =IFERROR(VLOOKUP($A55,Pupils!$A$4:$T$3000,15,0),0) -> 0 | AD55: =IFERROR(VLOOKUP($A55,'Monthly Statement'!$A$2:$V$3000,20,0),0) -> 0 | AE55: 0 | AF55: =IFERROR(VLOOKUP($A55,Pupils!$A$4:$T$3000,16,0),0) -> 0 | AG55: =IFERROR(VLOOKUP($A55,'Monthly Statement'!$A$2:$V$3000,21,0),0) -> 0 | AH55: 0 | AI55: =IFERROR(VLOOKUP($A55,Pupils!$A$4:$T$3000,17,0),0) -> 0 | AJ55: =IFERROR(VLOOKUP($A55,'Monthly Statement'!$A$2:$V$3000,22,0),0) -> 0 | AK55: 0 | AL55: =IFERROR(VLOOKUP($A55,Pupils!$A$4:$T$3000,18,0),0) -> 0 | AM55: =IFERROR(VLOOKUP($A55,'Monthly Statement'!$A$2:$W$3000,23,0),0) -> 0 | AN55: 0 | AO55: =IFERROR(VLOOKUP($A55,Pupils!$A$4:$T$3000,19,0),0) -> 0 | AP55: =IFERROR(VLOOKUP($A55,'Monthly Statement'!$A$2:$X$3000,24,0),0) -> 0 | AQ55: 0
A56: ='Monthly Statement'!A51 -> 0 | B56: =IFERROR(VLOOKUP(A56,'Monthly Statement'!A:X,4,0),"") ->  | C56: =IFERROR(VLOOKUP(A56,'Monthly Statement'!A:X,5,0),"") ->  | D56: =IFERROR(VLOOKUP(A56,'Monthly Statement'!A:X,7,0),"") ->  | E56: =IFERROR(VLOOKUP(A56,'Monthly Statement'!A:X,9,0),"") ->  | F56: =IFERROR(VLOOKUP(A56,'Monthly Statement'!A:X,10,0),"") ->  | G56: 0 | H56: =IFERROR(VLOOKUP($A56,Pupils!$A$4:$T$3000,8,0),0) -> 0 | I56: =IFERROR(VLOOKUP($A56,'Monthly Statement'!$A$2:$V$3000,13,0),0) -> 0 | J56: 0 | K56: =IFERROR(VLOOKUP($A56,Pupils!$A$4:$T$3000,9,0),0) -> 0 | L56: =IFERROR(VLOOKUP($A56,'Monthly Statement'!$A$2:$V$3000,14,0),0) -> 0 | M56: 0 | N56: =IFERROR(VLOOKUP($A56,Pupils!$A$4:$T$3000,10,0),0) -> 0 | O56: =IFERROR(VLOOKUP($A56,'Monthly Statement'!$A$2:$V$3000,15,0),0) -> 0 | P56: 0 | Q56: =IFERROR(VLOOKUP($A56,Pupils!$A$4:$T$3000,11,0),0) -> 0 | R56: =IFERROR(VLOOKUP($A56,'Monthly Statement'!$A$2:$V$3000,16,0),0) -> 0 | S56: 0 | T56: =IFERROR(VLOOKUP($A56,Pupils!$A$4:$T$3000,12,0),0) -> 0 | U56: =IFERROR(VLOOKUP($A56,'Monthly Statement'!$A$2:$V$3000,17,0),0) -> 0 | V56: 0 | W56: =IFERROR(VLOOKUP($A56,Pupils!$A$4:$T$3000,13,0),0) -> 0 | X56: =IFERROR(VLOOKUP($A56,'Monthly Statement'!$A$2:$V$3000,18,0),0) -> 0 | Y56: 0 | Z56: =IFERROR(VLOOKUP($A56,Pupils!$A$4:$T$3000,14,0),0) -> 0 | AA56: =IFERROR(VLOOKUP($A56,'Monthly Statement'!$A$2:$V$3000,19,0),0) -> 0 | AB56: 0 | AC56: =IFERROR(VLOOKUP($A56,Pupils!$A$4:$T$3000,15,0),0) -> 0 | AD56: =IFERROR(VLOOKUP($A56,'Monthly Statement'!$A$2:$V$3000,20,0),0) -> 0 | AE56: 0 | AF56: =IFERROR(VLOOKUP($A56,Pupils!$A$4:$T$3000,16,0),0) -> 0 | AG56: =IFERROR(VLOOKUP($A56,'Monthly Statement'!$A$2:$V$3000,21,0),0) -> 0 | AH56: 0 | AI56: =IFERROR(VLOOKUP($A56,Pupils!$A$4:$T$3000,17,0),0) -> 0 | AJ56: =IFERROR(VLOOKUP($A56,'Monthly Statement'!$A$2:$V$3000,22,0),0) -> 0 | AK56: 0 | AL56: =IFERROR(VLOOKUP($A56,Pupils!$A$4:$T$3000,18,0),0) -> 0 | AM56: =IFERROR(VLOOKUP($A56,'Monthly Statement'!$A$2:$W$3000,23,0),0) -> 0 | AN56: 0 | AO56: =IFERROR(VLOOKUP($A56,Pupils!$A$4:$T$3000,19,0),0) -> 0 | AP56: =IFERROR(VLOOKUP($A56,'Monthly Statement'!$A$2:$X$3000,24,0),0) -> 0 | AQ56: 0
A57: ='Monthly Statement'!A52 -> 0 | B57: =IFERROR(VLOOKUP(A57,'Monthly Statement'!A:X,4,0),"") ->  | C57: =IFERROR(VLOOKUP(A57,'Monthly Statement'!A:X,5,0),"") ->  | D57: =IFERROR(VLOOKUP(A57,'Monthly Statement'!A:X,7,0),"") ->  | E57: =IFERROR(VLOOKUP(A57,'Monthly Statement'!A:X,9,0),"") ->  | F57: =IFERROR(VLOOKUP(A57,'Monthly Statement'!A:X,10,0),"") ->  | G57: 0 | H57: =IFERROR(VLOOKUP($A57,Pupils!$A$4:$T$3000,8,0),0) -> 0 | I57: =IFERROR(VLOOKUP($A57,'Monthly Statement'!$A$2:$V$3000,13,0),0) -> 0 | J57: 0 | K57: =IFERROR(VLOOKUP($A57,Pupils!$A$4:$T$3000,9,0),0) -> 0 | L57: =IFERROR(VLOOKUP($A57,'Monthly Statement'!$A$2:$V$3000,14,0),0) -> 0 | M57: 0 | N57: =IFERROR(VLOOKUP($A57,Pupils!$A$4:$T$3000,10,0),0) -> 0 | O57: =IFERROR(VLOOKUP($A57,'Monthly Statement'!$A$2:$V$3000,15,0),0) -> 0 | P57: 0 | Q57: =IFERROR(VLOOKUP($A57,Pupils!$A$4:$T$3000,11,0),0) -> 0 | R57: =IFERROR(VLOOKUP($A57,'Monthly Statement'!$A$2:$V$3000,16,0),0) -> 0 | S57: 0 | T57: =IFERROR(VLOOKUP($A57,Pupils!$A$4:$T$3000,12,0),0) -> 0 | U57: =IFERROR(VLOOKUP($A57,'Monthly Statement'!$A$2:$V$3000,17,0),0) -> 0 | V57: 0 | W57: =IFERROR(VLOOKUP($A57,Pupils!$A$4:$T$3000,13,0),0) -> 0 | X57: =IFERROR(VLOOKUP($A57,'Monthly Statement'!$A$2:$V$3000,18,0),0) -> 0 | Y57: 0 | Z57: =IFERROR(VLOOKUP($A57,Pupils!$A$4:$T$3000,14,0),0) -> 0 | AA57: =IFERROR(VLOOKUP($A57,'Monthly Statement'!$A$2:$V$3000,19,0),0) -> 0 | AB57: 0 | AC57: =IFERROR(VLOOKUP($A57,Pupils!$A$4:$T$3000,15,0),0) -> 0 | AD57: =IFERROR(VLOOKUP($A57,'Monthly Statement'!$A$2:$V$3000,20,0),0) -> 0 | AE57: 0 | AF57: =IFERROR(VLOOKUP($A57,Pupils!$A$4:$T$3000,16,0),0) -> 0 | AG57: =IFERROR(VLOOKUP($A57,'Monthly Statement'!$A$2:$V$3000,21,0),0) -> 0 | AH57: 0 | AI57: =IFERROR(VLOOKUP($A57,Pupils!$A$4:$T$3000,17,0),0) -> 0 | AJ57: =IFERROR(VLOOKUP($A57,'Monthly Statement'!$A$2:$V$3000,22,0),0) -> 0 | AK57: 0 | AL57: =IFERROR(VLOOKUP($A57,Pupils!$A$4:$T$3000,18,0),0) -> 0 | AM57: =IFERROR(VLOOKUP($A57,'Monthly Statement'!$A$2:$W$3000,23,0),0) -> 0 | AN57: 0 | AO57: =IFERROR(VLOOKUP($A57,Pupils!$A$4:$T$3000,19,0),0) -> 0 | AP57: =IFERROR(VLOOKUP($A57,'Monthly Statement'!$A$2:$X$3000,24,0),0) -> 0 | AQ57: 0
A58: ='Monthly Statement'!A53 -> 0 | B58: =IFERROR(VLOOKUP(A58,'Monthly Statement'!A:X,4,0),"") ->  | C58: =IFERROR(VLOOKUP(A58,'Monthly Statement'!A:X,5,0),"") ->  | D58: =IFERROR(VLOOKUP(A58,'Monthly Statement'!A:X,7,0),"") ->  | E58: =IFERROR(VLOOKUP(A58,'Monthly Statement'!A:X,9,0),"") ->  | F58: =IFERROR(VLOOKUP(A58,'Monthly Statement'!A:X,10,0),"") ->  | G58: 0 | H58: =IFERROR(VLOOKUP($A58,Pupils!$A$4:$T$3000,8,0),0) -> 0 | I58: =IFERROR(VLOOKUP($A58,'Monthly Statement'!$A$2:$V$3000,13,0),0) -> 0 | J58: 0 | K58: =IFERROR(VLOOKUP($A58,Pupils!$A$4:$T$3000,9,0),0) -> 0 | L58: =IFERROR(VLOOKUP($A58,'Monthly Statement'!$A$2:$V$3000,14,0),0) -> 0 | M58: 0 | N58: =IFERROR(VLOOKUP($A58,Pupils!$A$4:$T$3000,10,0),0) -> 0 | O58: =IFERROR(VLOOKUP($A58,'Monthly Statement'!$A$2:$V$3000,15,0),0) -> 0 | P58: 0 | Q58: =IFERROR(VLOOKUP($A58,Pupils!$A$4:$T$3000,11,0),0) -> 0 | R58: =IFERROR(VLOOKUP($A58,'Monthly Statement'!$A$2:$V$3000,16,0),0) -> 0 | S58: 0 | T58: =IFERROR(VLOOKUP($A58,Pupils!$A$4:$T$3000,12,0),0) -> 0 | U58: =IFERROR(VLOOKUP($A58,'Monthly Statement'!$A$2:$V$3000,17,0),0) -> 0 | V58: 0 | W58: =IFERROR(VLOOKUP($A58,Pupils!$A$4:$T$3000,13,0),0) -> 0 | X58: =IFERROR(VLOOKUP($A58,'Monthly Statement'!$A$2:$V$3000,18,0),0) -> 0 | Y58: 0 | Z58: =IFERROR(VLOOKUP($A58,Pupils!$A$4:$T$3000,14,0),0) -> 0 | AA58: =IFERROR(VLOOKUP($A58,'Monthly Statement'!$A$2:$V$3000,19,0),0) -> 0 | AB58: 0 | AC58: =IFERROR(VLOOKUP($A58,Pupils!$A$4:$T$3000,15,0),0) -> 0 | AD58: =IFERROR(VLOOKUP($A58,'Monthly Statement'!$A$2:$V$3000,20,0),0) -> 0 | AE58: 0 | AF58: =IFERROR(VLOOKUP($A58,Pupils!$A$4:$T$3000,16,0),0) -> 0 | AG58: =IFERROR(VLOOKUP($A58,'Monthly Statement'!$A$2:$V$3000,21,0),0) -> 0 | AH58: 0 | AI58: =IFERROR(VLOOKUP($A58,Pupils!$A$4:$T$3000,17,0),0) -> 0 | AJ58: =IFERROR(VLOOKUP($A58,'Monthly Statement'!$A$2:$V$3000,22,0),0) -> 0 | AK58: 0 | AL58: =IFERROR(VLOOKUP($A58,Pupils!$A$4:$T$3000,18,0),0) -> 0 | AM58: =IFERROR(VLOOKUP($A58,'Monthly Statement'!$A$2:$W$3000,23,0),0) -> 0 | AN58: 0 | AO58: =IFERROR(VLOOKUP($A58,Pupils!$A$4:$T$3000,19,0),0) -> 0 | AP58: =IFERROR(VLOOKUP($A58,'Monthly Statement'!$A$2:$X$3000,24,0),0) -> 0 | AQ58: 0
A59: ='Monthly Statement'!A54 -> 0 | B59: =IFERROR(VLOOKUP(A59,'Monthly Statement'!A:X,4,0),"") ->  | C59: =IFERROR(VLOOKUP(A59,'Monthly Statement'!A:X,5,0),"") ->  | D59: =IFERROR(VLOOKUP(A59,'Monthly Statement'!A:X,7,0),"") ->  | E59: =IFERROR(VLOOKUP(A59,'Monthly Statement'!A:X,9,0),"") ->  | F59: =IFERROR(VLOOKUP(A59,'Monthly Statement'!A:X,10,0),"") ->  | G59: 0 | H59: =IFERROR(VLOOKUP($A59,Pupils!$A$4:$T$3000,8,0),0) -> 0 | I59: =IFERROR(VLOOKUP($A59,'Monthly Statement'!$A$2:$V$3000,13,0),0) -> 0 | J59: 0 | K59: =IFERROR(VLOOKUP($A59,Pupils!$A$4:$T$3000,9,0),0) -> 0 | L59: =IFERROR(VLOOKUP($A59,'Monthly Statement'!$A$2:$V$3000,14,0),0) -> 0 | M59: 0 | N59: =IFERROR(VLOOKUP($A59,Pupils!$A$4:$T$3000,10,0),0) -> 0 | O59: =IFERROR(VLOOKUP($A59,'Monthly Statement'!$A$2:$V$3000,15,0),0) -> 0 | P59: 0 | Q59: =IFERROR(VLOOKUP($A59,Pupils!$A$4:$T$3000,11,0),0) -> 0 | R59: =IFERROR(VLOOKUP($A59,'Monthly Statement'!$A$2:$V$3000,16,0),0) -> 0 | S59: 0 | T59: =IFERROR(VLOOKUP($A59,Pupils!$A$4:$T$3000,12,0),0) -> 0 | U59: =IFERROR(VLOOKUP($A59,'Monthly Statement'!$A$2:$V$3000,17,0),0) -> 0 | V59: 0 | W59: =IFERROR(VLOOKUP($A59,Pupils!$A$4:$T$3000,13,0),0) -> 0 | X59: =IFERROR(VLOOKUP($A59,'Monthly Statement'!$A$2:$V$3000,18,0),0) -> 0 | Y59: 0 | Z59: =IFERROR(VLOOKUP($A59,Pupils!$A$4:$T$3000,14,0),0) -> 0 | AA59: =IFERROR(VLOOKUP($A59,'Monthly Statement'!$A$2:$V$3000,19,0),0) -> 0 | AB59: 0 | AC59: =IFERROR(VLOOKUP($A59,Pupils!$A$4:$T$3000,15,0),0) -> 0 | AD59: =IFERROR(VLOOKUP($A59,'Monthly Statement'!$A$2:$V$3000,20,0),0) -> 0 | AE59: 0 | AF59: =IFERROR(VLOOKUP($A59,Pupils!$A$4:$T$3000,16,0),0) -> 0 | AG59: =IFERROR(VLOOKUP($A59,'Monthly Statement'!$A$2:$V$3000,21,0),0) -> 0 | AH59: 0 | AI59: =IFERROR(VLOOKUP($A59,Pupils!$A$4:$T$3000,17,0),0) -> 0 | AJ59: =IFERROR(VLOOKUP($A59,'Monthly Statement'!$A$2:$V$3000,22,0),0) -> 0 | AK59: 0 | AL59: =IFERROR(VLOOKUP($A59,Pupils!$A$4:$T$3000,18,0),0) -> 0 | AM59: =IFERROR(VLOOKUP($A59,'Monthly Statement'!$A$2:$W$3000,23,0),0) -> 0 | AN59: 0 | AO59: =IFERROR(VLOOKUP($A59,Pupils!$A$4:$T$3000,19,0),0) -> 0 | AP59: =IFERROR(VLOOKUP($A59,'Monthly Statement'!$A$2:$X$3000,24,0),0) -> 0 | AQ59: 0
A60: ='Monthly Statement'!A55 -> 0 | B60: =IFERROR(VLOOKUP(A60,'Monthly Statement'!A:X,4,0),"") ->  | C60: =IFERROR(VLOOKUP(A60,'Monthly Statement'!A:X,5,0),"") ->  | D60: =IFERROR(VLOOKUP(A60,'Monthly Statement'!A:X,7,0),"") ->  | E60: =IFERROR(VLOOKUP(A60,'Monthly Statement'!A:X,9,0),"") ->  | F60: =IFERROR(VLOOKUP(A60,'Monthly Statement'!A:X,10,0),"") ->  | G60: 0 | H60: =IFERROR(VLOOKUP($A60,Pupils!$A$4:$T$3000,8,0),0) -> 0 | I60: =IFERROR(VLOOKUP($A60,'Monthly Statement'!$A$2:$V$3000,13,0),0) -> 0 | J60: 0 | K60: =IFERROR(VLOOKUP($A60,Pupils!$A$4:$T$3000,9,0),0) -> 0 | L60: =IFERROR(VLOOKUP($A60,'Monthly Statement'!$A$2:$V$3000,14,0),0) -> 0 | M60: 0 | N60: =IFERROR(VLOOKUP($A60,Pupils!$A$4:$T$3000,10,0),0) -> 0 | O60: =IFERROR(VLOOKUP($A60,'Monthly Statement'!$A$2:$V$3000,15,0),0) -> 0 | P60: 0 | Q60: =IFERROR(VLOOKUP($A60,Pupils!$A$4:$T$3000,11,0),0) -> 0 | R60: =IFERROR(VLOOKUP($A60,'Monthly Statement'!$A$2:$V$3000,16,0),0) -> 0 | S60: 0 | T60: =IFERROR(VLOOKUP($A60,Pupils!$A$4:$T$3000,12,0),0) -> 0 | U60: =IFERROR(VLOOKUP($A60,'Monthly Statement'!$A$2:$V$3000,17,0),0) -> 0 | V60: 0 | W60: =IFERROR(VLOOKUP($A60,Pupils!$A$4:$T$3000,13,0),0) -> 0 | X60: =IFERROR(VLOOKUP($A60,'Monthly Statement'!$A$2:$V$3000,18,0),0) -> 0 | Y60: 0 | Z60: =IFERROR(VLOOKUP($A60,Pupils!$A$4:$T$3000,14,0),0) -> 0 | AA60: =IFERROR(VLOOKUP($A60,'Monthly Statement'!$A$2:$V$3000,19,0),0) -> 0 | AB60: 0 | AC60: =IFERROR(VLOOKUP($A60,Pupils!$A$4:$T$3000,15,0),0) -> 0 | AD60: =IFERROR(VLOOKUP($A60,'Monthly Statement'!$A$2:$V$3000,20,0),0) -> 0 | AE60: 0 | AF60: =IFERROR(VLOOKUP($A60,Pupils!$A$4:$T$3000,16,0),0) -> 0 | AG60: =IFERROR(VLOOKUP($A60,'Monthly Statement'!$A$2:$V$3000,21,0),0) -> 0 | AH60: 0 | AI60: =IFERROR(VLOOKUP($A60,Pupils!$A$4:$T$3000,17,0),0) -> 0 | AJ60: =IFERROR(VLOOKUP($A60,'Monthly Statement'!$A$2:$V$3000,22,0),0) -> 0 | AK60: 0 | AL60: =IFERROR(VLOOKUP($A60,Pupils!$A$4:$T$3000,18,0),0) -> 0 | AM60: =IFERROR(VLOOKUP($A60,'Monthly Statement'!$A$2:$W$3000,23,0),0) -> 0 | AN60: 0 | AO60: =IFERROR(VLOOKUP($A60,Pupils!$A$4:$T$3000,19,0),0) -> 0 | AP60: =IFERROR(VLOOKUP($A60,'Monthly Statement'!$A$2:$X$3000,24,0),0) -> 0 | AQ60: 0
A61: ='Monthly Statement'!A56 -> 0 | B61: =IFERROR(VLOOKUP(A61,'Monthly Statement'!A:X,4,0),"") ->  | C61: =IFERROR(VLOOKUP(A61,'Monthly Statement'!A:X,5,0),"") ->  | D61: =IFERROR(VLOOKUP(A61,'Monthly Statement'!A:X,7,0),"") ->  | E61: =IFERROR(VLOOKUP(A61,'Monthly Statement'!A:X,9,0),"") ->  | F61: =IFERROR(VLOOKUP(A61,'Monthly Statement'!A:X,10,0),"") ->  | G61: 0 | H61: =IFERROR(VLOOKUP($A61,Pupils!$A$4:$T$3000,8,0),0) -> 0 | I61: =IFERROR(VLOOKUP($A61,'Monthly Statement'!$A$2:$V$3000,13,0),0) -> 0 | J61: 0 | K61: =IFERROR(VLOOKUP($A61,Pupils!$A$4:$T$3000,9,0),0) -> 0 | L61: =IFERROR(VLOOKUP($A61,'Monthly Statement'!$A$2:$V$3000,14,0),0) -> 0 | M61: 0 | N61: =IFERROR(VLOOKUP($A61,Pupils!$A$4:$T$3000,10,0),0) -> 0 | O61: =IFERROR(VLOOKUP($A61,'Monthly Statement'!$A$2:$V$3000,15,0),0) -> 0 | P61: 0 | Q61: =IFERROR(VLOOKUP($A61,Pupils!$A$4:$T$3000,11,0),0) -> 0 | R61: =IFERROR(VLOOKUP($A61,'Monthly Statement'!$A$2:$V$3000,16,0),0) -> 0 | S61: 0 | T61: =IFERROR(VLOOKUP($A61,Pupils!$A$4:$T$3000,12,0),0) -> 0 | U61: =IFERROR(VLOOKUP($A61,'Monthly Statement'!$A$2:$V$3000,17,0),0) -> 0 | V61: 0 | W61: =IFERROR(VLOOKUP($A61,Pupils!$A$4:$T$3000,13,0),0) -> 0 | X61: =IFERROR(VLOOKUP($A61,'Monthly Statement'!$A$2:$V$3000,18,0),0) -> 0 | Y61: 0 | Z61: =IFERROR(VLOOKUP($A61,Pupils!$A$4:$T$3000,14,0),0) -> 0 | AA61: =IFERROR(VLOOKUP($A61,'Monthly Statement'!$A$2:$V$3000,19,0),0) -> 0 | AB61: 0 | AC61: =IFERROR(VLOOKUP($A61,Pupils!$A$4:$T$3000,15,0),0) -> 0 | AD61: =IFERROR(VLOOKUP($A61,'Monthly Statement'!$A$2:$V$3000,20,0),0) -> 0 | AE61: 0 | AF61: =IFERROR(VLOOKUP($A61,Pupils!$A$4:$T$3000,16,0),0) -> 0 | AG61: =IFERROR(VLOOKUP($A61,'Monthly Statement'!$A$2:$V$3000,21,0),0) -> 0 | AH61: 0 | AI61: =IFERROR(VLOOKUP($A61,Pupils!$A$4:$T$3000,17,0),0) -> 0 | AJ61: =IFERROR(VLOOKUP($A61,'Monthly Statement'!$A$2:$V$3000,22,0),0) -> 0 | AK61: 0 | AL61: =IFERROR(VLOOKUP($A61,Pupils!$A$4:$T$3000,18,0),0) -> 0 | AM61: =IFERROR(VLOOKUP($A61,'Monthly Statement'!$A$2:$W$3000,23,0),0) -> 0 | AN61: 0 | AO61: =IFERROR(VLOOKUP($A61,Pupils!$A$4:$T$3000,19,0),0) -> 0 | AP61: =IFERROR(VLOOKUP($A61,'Monthly Statement'!$A$2:$X$3000,24,0),0) -> 0 | AQ61: 0
A62: ='Monthly Statement'!A57 -> 0 | B62: =IFERROR(VLOOKUP(A62,'Monthly Statement'!A:X,4,0),"") ->  | C62: =IFERROR(VLOOKUP(A62,'Monthly Statement'!A:X,5,0),"") ->  | D62: =IFERROR(VLOOKUP(A62,'Monthly Statement'!A:X,7,0),"") ->  | E62: =IFERROR(VLOOKUP(A62,'Monthly Statement'!A:X,9,0),"") ->  | F62: =IFERROR(VLOOKUP(A62,'Monthly Statement'!A:X,10,0),"") ->  | G62: 0 | H62: =IFERROR(VLOOKUP($A62,Pupils!$A$4:$T$3000,8,0),0) -> 0 | I62: =IFERROR(VLOOKUP($A62,'Monthly Statement'!$A$2:$V$3000,13,0),0) -> 0 | J62: 0 | K62: =IFERROR(VLOOKUP($A62,Pupils!$A$4:$T$3000,9,0),0) -> 0 | L62: =IFERROR(VLOOKUP($A62,'Monthly Statement'!$A$2:$V$3000,14,0),0) -> 0 | M62: 0 | N62: =IFERROR(VLOOKUP($A62,Pupils!$A$4:$T$3000,10,0),0) -> 0 | O62: =IFERROR(VLOOKUP($A62,'Monthly Statement'!$A$2:$V$3000,15,0),0) -> 0 | P62: 0 | Q62: =IFERROR(VLOOKUP($A62,Pupils!$A$4:$T$3000,11,0),0) -> 0 | R62: =IFERROR(VLOOKUP($A62,'Monthly Statement'!$A$2:$V$3000,16,0),0) -> 0 | S62: 0 | T62: =IFERROR(VLOOKUP($A62,Pupils!$A$4:$T$3000,12,0),0) -> 0 | U62: =IFERROR(VLOOKUP($A62,'Monthly Statement'!$A$2:$V$3000,17,0),0) -> 0 | V62: 0 | W62: =IFERROR(VLOOKUP($A62,Pupils!$A$4:$T$3000,13,0),0) -> 0 | X62: =IFERROR(VLOOKUP($A62,'Monthly Statement'!$A$2:$V$3000,18,0),0) -> 0 | Y62: 0 | Z62: =IFERROR(VLOOKUP($A62,Pupils!$A$4:$T$3000,14,0),0) -> 0 | AA62: =IFERROR(VLOOKUP($A62,'Monthly Statement'!$A$2:$V$3000,19,0),0) -> 0 | AB62: 0 | AC62: =IFERROR(VLOOKUP($A62,Pupils!$A$4:$T$3000,15,0),0) -> 0 | AD62: =IFERROR(VLOOKUP($A62,'Monthly Statement'!$A$2:$V$3000,20,0),0) -> 0 | AE62: 0 | AF62: =IFERROR(VLOOKUP($A62,Pupils!$A$4:$T$3000,16,0),0) -> 0 | AG62: =IFERROR(VLOOKUP($A62,'Monthly Statement'!$A$2:$V$3000,21,0),0) -> 0 | AH62: 0 | AI62: =IFERROR(VLOOKUP($A62,Pupils!$A$4:$T$3000,17,0),0) -> 0 | AJ62: =IFERROR(VLOOKUP($A62,'Monthly Statement'!$A$2:$V$3000,22,0),0) -> 0 | AK62: 0 | AL62: =IFERROR(VLOOKUP($A62,Pupils!$A$4:$T$3000,18,0),0) -> 0 | AM62: =IFERROR(VLOOKUP($A62,'Monthly Statement'!$A$2:$W$3000,23,0),0) -> 0 | AN62: 0 | AO62: =IFERROR(VLOOKUP($A62,Pupils!$A$4:$T$3000,19,0),0) -> 0 | AP62: =IFERROR(VLOOKUP($A62,'Monthly Statement'!$A$2:$X$3000,24,0),0) -> 0 | AQ62: 0
A63: ='Monthly Statement'!A58 -> 0 | B63: =IFERROR(VLOOKUP(A63,'Monthly Statement'!A:X,4,0),"") ->  | C63: =IFERROR(VLOOKUP(A63,'Monthly Statement'!A:X,5,0),"") ->  | D63: =IFERROR(VLOOKUP(A63,'Monthly Statement'!A:X,7,0),"") ->  | E63: =IFERROR(VLOOKUP(A63,'Monthly Statement'!A:X,9,0),"") ->  | F63: =IFERROR(VLOOKUP(A63,'Monthly Statement'!A:X,10,0),"") ->  | G63: 0 | H63: =IFERROR(VLOOKUP($A63,Pupils!$A$4:$T$3000,8,0),0) -> 0 | I63: =IFERROR(VLOOKUP($A63,'Monthly Statement'!$A$2:$V$3000,13,0),0) -> 0 | J63: 0 | K63: =IFERROR(VLOOKUP($A63,Pupils!$A$4:$T$3000,9,0),0) -> 0 | L63: =IFERROR(VLOOKUP($A63,'Monthly Statement'!$A$2:$V$3000,14,0),0) -> 0 | M63: 0 | N63: =IFERROR(VLOOKUP($A63,Pupils!$A$4:$T$3000,10,0),0) -> 0 | O63: =IFERROR(VLOOKUP($A63,'Monthly Statement'!$A$2:$V$3000,15,0),0) -> 0 | P63: 0 | Q63: =IFERROR(VLOOKUP($A63,Pupils!$A$4:$T$3000,11,0),0) -> 0 | R63: =IFERROR(VLOOKUP($A63,'Monthly Statement'!$A$2:$V$3000,16,0),0) -> 0 | S63: 0 | T63: =IFERROR(VLOOKUP($A63,Pupils!$A$4:$T$3000,12,0),0) -> 0 | U63: =IFERROR(VLOOKUP($A63,'Monthly Statement'!$A$2:$V$3000,17,0),0) -> 0 | V63: 0 | W63: =IFERROR(VLOOKUP($A63,Pupils!$A$4:$T$3000,13,0),0) -> 0 | X63: =IFERROR(VLOOKUP($A63,'Monthly Statement'!$A$2:$V$3000,18,0),0) -> 0 | Y63: 0 | Z63: =IFERROR(VLOOKUP($A63,Pupils!$A$4:$T$3000,14,0),0) -> 0 | AA63: =IFERROR(VLOOKUP($A63,'Monthly Statement'!$A$2:$V$3000,19,0),0) -> 0 | AB63: 0 | AC63: =IFERROR(VLOOKUP($A63,Pupils!$A$4:$T$3000,15,0),0) -> 0 | AD63: =IFERROR(VLOOKUP($A63,'Monthly Statement'!$A$2:$V$3000,20,0),0) -> 0 | AE63: 0 | AF63: =IFERROR(VLOOKUP($A63,Pupils!$A$4:$T$3000,16,0),0) -> 0 | AG63: =IFERROR(VLOOKUP($A63,'Monthly Statement'!$A$2:$V$3000,21,0),0) -> 0 | AH63: 0 | AI63: =IFERROR(VLOOKUP($A63,Pupils!$A$4:$T$3000,17,0),0) -> 0 | AJ63: =IFERROR(VLOOKUP($A63,'Monthly Statement'!$A$2:$V$3000,22,0),0) -> 0 | AK63: 0 | AL63: =IFERROR(VLOOKUP($A63,Pupils!$A$4:$T$3000,18,0),0) -> 0 | AM63: =IFERROR(VLOOKUP($A63,'Monthly Statement'!$A$2:$W$3000,23,0),0) -> 0 | AN63: 0 | AO63: =IFERROR(VLOOKUP($A63,Pupils!$A$4:$T$3000,19,0),0) -> 0 | AP63: =IFERROR(VLOOKUP($A63,'Monthly Statement'!$A$2:$X$3000,24,0),0) -> 0 | AQ63: 0
A64: ='Monthly Statement'!A59 -> 0 | B64: =IFERROR(VLOOKUP(A64,'Monthly Statement'!A:X,4,0),"") ->  | C64: =IFERROR(VLOOKUP(A64,'Monthly Statement'!A:X,5,0),"") ->  | D64: =IFERROR(VLOOKUP(A64,'Monthly Statement'!A:X,7,0),"") ->  | E64: =IFERROR(VLOOKUP(A64,'Monthly Statement'!A:X,9,0),"") ->  | F64: =IFERROR(VLOOKUP(A64,'Monthly Statement'!A:X,10,0),"") ->  | G64: 0 | H64: =IFERROR(VLOOKUP($A64,Pupils!$A$4:$T$3000,8,0),0) -> 0 | I64: =IFERROR(VLOOKUP($A64,'Monthly Statement'!$A$2:$V$3000,13,0),0) -> 0 | J64: 0 | K64: =IFERROR(VLOOKUP($A64,Pupils!$A$4:$T$3000,9,0),0) -> 0 | L64: =IFERROR(VLOOKUP($A64,'Monthly Statement'!$A$2:$V$3000,14,0),0) -> 0 | M64: 0 | N64: =IFERROR(VLOOKUP($A64,Pupils!$A$4:$T$3000,10,0),0) -> 0 | O64: =IFERROR(VLOOKUP($A64,'Monthly Statement'!$A$2:$V$3000,15,0),0) -> 0 | P64: 0 | Q64: =IFERROR(VLOOKUP($A64,Pupils!$A$4:$T$3000,11,0),0) -> 0 | R64: =IFERROR(VLOOKUP($A64,'Monthly Statement'!$A$2:$V$3000,16,0),0) -> 0 | S64: 0 | T64: =IFERROR(VLOOKUP($A64,Pupils!$A$4:$T$3000,12,0),0) -> 0 | U64: =IFERROR(VLOOKUP($A64,'Monthly Statement'!$A$2:$V$3000,17,0),0) -> 0 | V64: 0 | W64: =IFERROR(VLOOKUP($A64,Pupils!$A$4:$T$3000,13,0),0) -> 0 | X64: =IFERROR(VLOOKUP($A64,'Monthly Statement'!$A$2:$V$3000,18,0),0) -> 0 | Y64: 0 | Z64: =IFERROR(VLOOKUP($A64,Pupils!$A$4:$T$3000,14,0),0) -> 0 | AA64: =IFERROR(VLOOKUP($A64,'Monthly Statement'!$A$2:$V$3000,19,0),0) -> 0 | AB64: 0 | AC64: =IFERROR(VLOOKUP($A64,Pupils!$A$4:$T$3000,15,0),0) -> 0 | AD64: =IFERROR(VLOOKUP($A64,'Monthly Statement'!$A$2:$V$3000,20,0),0) -> 0 | AE64: 0 | AF64: =IFERROR(VLOOKUP($A64,Pupils!$A$4:$T$3000,16,0),0) -> 0 | AG64: =IFERROR(VLOOKUP($A64,'Monthly Statement'!$A$2:$V$3000,21,0),0) -> 0 | AH64: 0 | AI64: =IFERROR(VLOOKUP($A64,Pupils!$A$4:$T$3000,17,0),0) -> 0 | AJ64: =IFERROR(VLOOKUP($A64,'Monthly Statement'!$A$2:$V$3000,22,0),0) -> 0 | AK64: 0 | AL64: =IFERROR(VLOOKUP($A64,Pupils!$A$4:$T$3000,18,0),0) -> 0 | AM64: =IFERROR(VLOOKUP($A64,'Monthly Statement'!$A$2:$W$3000,23,0),0) -> 0 | AN64: 0 | AO64: =IFERROR(VLOOKUP($A64,Pupils!$A$4:$T$3000,19,0),0) -> 0 | AP64: =IFERROR(VLOOKUP($A64,'Monthly Statement'!$A$2:$X$3000,24,0),0) -> 0 | AQ64: 0
A65: ='Monthly Statement'!A60 -> 0 | B65: =IFERROR(VLOOKUP(A65,'Monthly Statement'!A:X,4,0),"") ->  | C65: =IFERROR(VLOOKUP(A65,'Monthly Statement'!A:X,5,0),"") ->  | D65: =IFERROR(VLOOKUP(A65,'Monthly Statement'!A:X,7,0),"") ->  | E65: =IFERROR(VLOOKUP(A65,'Monthly Statement'!A:X,9,0),"") ->  | F65: =IFERROR(VLOOKUP(A65,'Monthly Statement'!A:X,10,0),"") ->  | G65: 0 | H65: =IFERROR(VLOOKUP($A65,Pupils!$A$4:$T$3000,8,0),0) -> 0 | I65: =IFERROR(VLOOKUP($A65,'Monthly Statement'!$A$2:$V$3000,13,0),0) -> 0 | J65: 0 | K65: =IFERROR(VLOOKUP($A65,Pupils!$A$4:$T$3000,9,0),0) -> 0 | L65: =IFERROR(VLOOKUP($A65,'Monthly Statement'!$A$2:$V$3000,14,0),0) -> 0 | M65: 0 | N65: =IFERROR(VLOOKUP($A65,Pupils!$A$4:$T$3000,10,0),0) -> 0 | O65: =IFERROR(VLOOKUP($A65,'Monthly Statement'!$A$2:$V$3000,15,0),0) -> 0 | P65: 0 | Q65: =IFERROR(VLOOKUP($A65,Pupils!$A$4:$T$3000,11,0),0) -> 0 | R65: =IFERROR(VLOOKUP($A65,'Monthly Statement'!$A$2:$V$3000,16,0),0) -> 0 | S65: 0 | T65: =IFERROR(VLOOKUP($A65,Pupils!$A$4:$T$3000,12,0),0) -> 0 | U65: =IFERROR(VLOOKUP($A65,'Monthly Statement'!$A$2:$V$3000,17,0),0) -> 0 | V65: 0 | W65: =IFERROR(VLOOKUP($A65,Pupils!$A$4:$T$3000,13,0),0) -> 0 | X65: =IFERROR(VLOOKUP($A65,'Monthly Statement'!$A$2:$V$3000,18,0),0) -> 0 | Y65: 0 | Z65: =IFERROR(VLOOKUP($A65,Pupils!$A$4:$T$3000,14,0),0) -> 0 | AA65: =IFERROR(VLOOKUP($A65,'Monthly Statement'!$A$2:$V$3000,19,0),0) -> 0 | AB65: 0 | AC65: =IFERROR(VLOOKUP($A65,Pupils!$A$4:$T$3000,15,0),0) -> 0 | AD65: =IFERROR(VLOOKUP($A65,'Monthly Statement'!$A$2:$V$3000,20,0),0) -> 0 | AE65: 0 | AF65: =IFERROR(VLOOKUP($A65,Pupils!$A$4:$T$3000,16,0),0) -> 0 | AG65: =IFERROR(VLOOKUP($A65,'Monthly Statement'!$A$2:$V$3000,21,0),0) -> 0 | AH65: 0 | AI65: =IFERROR(VLOOKUP($A65,Pupils!$A$4:$T$3000,17,0),0) -> 0 | AJ65: =IFERROR(VLOOKUP($A65,'Monthly Statement'!$A$2:$V$3000,22,0),0) -> 0 | AK65: 0 | AL65: =IFERROR(VLOOKUP($A65,Pupils!$A$4:$T$3000,18,0),0) -> 0 | AM65: =IFERROR(VLOOKUP($A65,'Monthly Statement'!$A$2:$W$3000,23,0),0) -> 0 | AN65: 0 | AO65: =IFERROR(VLOOKUP($A65,Pupils!$A$4:$T$3000,19,0),0) -> 0 | AP65: =IFERROR(VLOOKUP($A65,'Monthly Statement'!$A$2:$X$3000,24,0),0) -> 0 | AQ65: 0
A66: ='Monthly Statement'!A61 -> 0 | B66: =IFERROR(VLOOKUP(A66,'Monthly Statement'!A:X,4,0),"") ->  | C66: =IFERROR(VLOOKUP(A66,'Monthly Statement'!A:X,5,0),"") ->  | D66: =IFERROR(VLOOKUP(A66,'Monthly Statement'!A:X,7,0),"") ->  | E66: =IFERROR(VLOOKUP(A66,'Monthly Statement'!A:X,9,0),"") ->  | F66: =IFERROR(VLOOKUP(A66,'Monthly Statement'!A:X,10,0),"") ->  | G66: 0 | H66: =IFERROR(VLOOKUP($A66,Pupils!$A$4:$T$3000,8,0),0) -> 0 | I66: =IFERROR(VLOOKUP($A66,'Monthly Statement'!$A$2:$V$3000,13,0),0) -> 0 | J66: 0 | K66: =IFERROR(VLOOKUP($A66,Pupils!$A$4:$T$3000,9,0),0) -> 0 | L66: =IFERROR(VLOOKUP($A66,'Monthly Statement'!$A$2:$V$3000,14,0),0) -> 0 | M66: 0 | N66: =IFERROR(VLOOKUP($A66,Pupils!$A$4:$T$3000,10,0),0) -> 0 | O66: =IFERROR(VLOOKUP($A66,'Monthly Statement'!$A$2:$V$3000,15,0),0) -> 0 | P66: 0 | Q66: =IFERROR(VLOOKUP($A66,Pupils!$A$4:$T$3000,11,0),0) -> 0 | R66: =IFERROR(VLOOKUP($A66,'Monthly Statement'!$A$2:$V$3000,16,0),0) -> 0 | S66: 0 | T66: =IFERROR(VLOOKUP($A66,Pupils!$A$4:$T$3000,12,0),0) -> 0 | U66: =IFERROR(VLOOKUP($A66,'Monthly Statement'!$A$2:$V$3000,17,0),0) -> 0 | V66: 0 | W66: =IFERROR(VLOOKUP($A66,Pupils!$A$4:$T$3000,13,0),0) -> 0 | X66: =IFERROR(VLOOKUP($A66,'Monthly Statement'!$A$2:$V$3000,18,0),0) -> 0 | Y66: 0 | Z66: =IFERROR(VLOOKUP($A66,Pupils!$A$4:$T$3000,14,0),0) -> 0 | AA66: =IFERROR(VLOOKUP($A66,'Monthly Statement'!$A$2:$V$3000,19,0),0) -> 0 | AB66: 0 | AC66: =IFERROR(VLOOKUP($A66,Pupils!$A$4:$T$3000,15,0),0) -> 0 | AD66: =IFERROR(VLOOKUP($A66,'Monthly Statement'!$A$2:$V$3000,20,0),0) -> 0 | AE66: 0 | AF66: =IFERROR(VLOOKUP($A66,Pupils!$A$4:$T$3000,16,0),0) -> 0 | AG66: =IFERROR(VLOOKUP($A66,'Monthly Statement'!$A$2:$V$3000,21,0),0) -> 0 | AH66: 0 | AI66: =IFERROR(VLOOKUP($A66,Pupils!$A$4:$T$3000,17,0),0) -> 0 | AJ66: =IFERROR(VLOOKUP($A66,'Monthly Statement'!$A$2:$V$3000,22,0),0) -> 0 | AK66: 0 | AL66: =IFERROR(VLOOKUP($A66,Pupils!$A$4:$T$3000,18,0),0) -> 0 | AM66: =IFERROR(VLOOKUP($A66,'Monthly Statement'!$A$2:$W$3000,23,0),0) -> 0 | AN66: 0 | AO66: =IFERROR(VLOOKUP($A66,Pupils!$A$4:$T$3000,19,0),0) -> 0 | AP66: =IFERROR(VLOOKUP($A66,'Monthly Statement'!$A$2:$X$3000,24,0),0) -> 0 | AQ66: 0
A67: ='Monthly Statement'!A62 -> 0 | B67: =IFERROR(VLOOKUP(A67,'Monthly Statement'!A:X,4,0),"") ->  | C67: =IFERROR(VLOOKUP(A67,'Monthly Statement'!A:X,5,0),"") ->  | D67: =IFERROR(VLOOKUP(A67,'Monthly Statement'!A:X,7,0),"") ->  | E67: =IFERROR(VLOOKUP(A67,'Monthly Statement'!A:X,9,0),"") ->  | F67: =IFERROR(VLOOKUP(A67,'Monthly Statement'!A:X,10,0),"") ->  | G67: 0 | H67: =IFERROR(VLOOKUP($A67,Pupils!$A$4:$T$3000,8,0),0) -> 0 | I67: =IFERROR(VLOOKUP($A67,'Monthly Statement'!$A$2:$V$3000,13,0),0) -> 0 | J67: 0 | K67: =IFERROR(VLOOKUP($A67,Pupils!$A$4:$T$3000,9,0),0) -> 0 | L67: =IFERROR(VLOOKUP($A67,'Monthly Statement'!$A$2:$V$3000,14,0),0) -> 0 | M67: 0 | N67: =IFERROR(VLOOKUP($A67,Pupils!$A$4:$T$3000,10,0),0) -> 0 | O67: =IFERROR(VLOOKUP($A67,'Monthly Statement'!$A$2:$V$3000,15,0),0) -> 0 | P67: 0 | Q67: =IFERROR(VLOOKUP($A67,Pupils!$A$4:$T$3000,11,0),0) -> 0 | R67: =IFERROR(VLOOKUP($A67,'Monthly Statement'!$A$2:$V$3000,16,0),0) -> 0 | S67: 0 | T67: =IFERROR(VLOOKUP($A67,Pupils!$A$4:$T$3000,12,0),0) -> 0 | U67: =IFERROR(VLOOKUP($A67,'Monthly Statement'!$A$2:$V$3000,17,0),0) -> 0 | V67: 0 | W67: =IFERROR(VLOOKUP($A67,Pupils!$A$4:$T$3000,13,0),0) -> 0 | X67: =IFERROR(VLOOKUP($A67,'Monthly Statement'!$A$2:$V$3000,18,0),0) -> 0 | Y67: 0 | Z67: =IFERROR(VLOOKUP($A67,Pupils!$A$4:$T$3000,14,0),0) -> 0 | AA67: =IFERROR(VLOOKUP($A67,'Monthly Statement'!$A$2:$V$3000,19,0),0) -> 0 | AB67: 0 | AC67: =IFERROR(VLOOKUP($A67,Pupils!$A$4:$T$3000,15,0),0) -> 0 | AD67: =IFERROR(VLOOKUP($A67,'Monthly Statement'!$A$2:$V$3000,20,0),0) -> 0 | AE67: 0 | AF67: =IFERROR(VLOOKUP($A67,Pupils!$A$4:$T$3000,16,0),0) -> 0 | AG67: =IFERROR(VLOOKUP($A67,'Monthly Statement'!$A$2:$V$3000,21,0),0) -> 0 | AH67: 0 | AI67: =IFERROR(VLOOKUP($A67,Pupils!$A$4:$T$3000,17,0),0) -> 0 | AJ67: =IFERROR(VLOOKUP($A67,'Monthly Statement'!$A$2:$V$3000,22,0),0) -> 0 | AK67: 0 | AL67: =IFERROR(VLOOKUP($A67,Pupils!$A$4:$T$3000,18,0),0) -> 0 | AM67: =IFERROR(VLOOKUP($A67,'Monthly Statement'!$A$2:$W$3000,23,0),0) -> 0 | AN67: 0 | AO67: =IFERROR(VLOOKUP($A67,Pupils!$A$4:$T$3000,19,0),0) -> 0 | AP67: =IFERROR(VLOOKUP($A67,'Monthly Statement'!$A$2:$X$3000,24,0),0) -> 0 | AQ67: 0
A68: ='Monthly Statement'!A63 -> 0 | B68: =IFERROR(VLOOKUP(A68,'Monthly Statement'!A:X,4,0),"") ->  | C68: =IFERROR(VLOOKUP(A68,'Monthly Statement'!A:X,5,0),"") ->  | D68: =IFERROR(VLOOKUP(A68,'Monthly Statement'!A:X,7,0),"") ->  | E68: =IFERROR(VLOOKUP(A68,'Monthly Statement'!A:X,9,0),"") ->  | F68: =IFERROR(VLOOKUP(A68,'Monthly Statement'!A:X,10,0),"") ->  | G68: 0 | H68: =IFERROR(VLOOKUP($A68,Pupils!$A$4:$T$3000,8,0),0) -> 0 | I68: =IFERROR(VLOOKUP($A68,'Monthly Statement'!$A$2:$V$3000,13,0),0) -> 0 | J68: 0 | K68: =IFERROR(VLOOKUP($A68,Pupils!$A$4:$T$3000,9,0),0) -> 0 | L68: =IFERROR(VLOOKUP($A68,'Monthly Statement'!$A$2:$V$3000,14,0),0) -> 0 | M68: 0 | N68: =IFERROR(VLOOKUP($A68,Pupils!$A$4:$T$3000,10,0),0) -> 0 | O68: =IFERROR(VLOOKUP($A68,'Monthly Statement'!$A$2:$V$3000,15,0),0) -> 0 | P68: 0 | Q68: =IFERROR(VLOOKUP($A68,Pupils!$A$4:$T$3000,11,0),0) -> 0 | R68: =IFERROR(VLOOKUP($A68,'Monthly Statement'!$A$2:$V$3000,16,0),0) -> 0 | S68: 0 | T68: =IFERROR(VLOOKUP($A68,Pupils!$A$4:$T$3000,12,0),0) -> 0 | U68: =IFERROR(VLOOKUP($A68,'Monthly Statement'!$A$2:$V$3000,17,0),0) -> 0 | V68: 0 | W68: =IFERROR(VLOOKUP($A68,Pupils!$A$4:$T$3000,13,0),0) -> 0 | X68: =IFERROR(VLOOKUP($A68,'Monthly Statement'!$A$2:$V$3000,18,0),0) -> 0 | Y68: 0 | Z68: =IFERROR(VLOOKUP($A68,Pupils!$A$4:$T$3000,14,0),0) -> 0 | AA68: =IFERROR(VLOOKUP($A68,'Monthly Statement'!$A$2:$V$3000,19,0),0) -> 0 | AB68: 0 | AC68: =IFERROR(VLOOKUP($A68,Pupils!$A$4:$T$3000,15,0),0) -> 0 | AD68: =IFERROR(VLOOKUP($A68,'Monthly Statement'!$A$2:$V$3000,20,0),0) -> 0 | AE68: 0 | AF68: =IFERROR(VLOOKUP($A68,Pupils!$A$4:$T$3000,16,0),0) -> 0 | AG68: =IFERROR(VLOOKUP($A68,'Monthly Statement'!$A$2:$V$3000,21,0),0) -> 0 | AH68: 0 | AI68: =IFERROR(VLOOKUP($A68,Pupils!$A$4:$T$3000,17,0),0) -> 0 | AJ68: =IFERROR(VLOOKUP($A68,'Monthly Statement'!$A$2:$V$3000,22,0),0) -> 0 | AK68: 0 | AL68: =IFERROR(VLOOKUP($A68,Pupils!$A$4:$T$3000,18,0),0) -> 0 | AM68: =IFERROR(VLOOKUP($A68,'Monthly Statement'!$A$2:$W$3000,23,0),0) -> 0 | AN68: 0 | AO68: =IFERROR(VLOOKUP($A68,Pupils!$A$4:$T$3000,19,0),0) -> 0 | AP68: =IFERROR(VLOOKUP($A68,'Monthly Statement'!$A$2:$X$3000,24,0),0) -> 0 | AQ68: 0
A69: ='Monthly Statement'!A64 -> 0 | B69: =IFERROR(VLOOKUP(A69,'Monthly Statement'!A:X,4,0),"") ->  | C69: =IFERROR(VLOOKUP(A69,'Monthly Statement'!A:X,5,0),"") ->  | D69: =IFERROR(VLOOKUP(A69,'Monthly Statement'!A:X,7,0),"") ->  | E69: =IFERROR(VLOOKUP(A69,'Monthly Statement'!A:X,9,0),"") ->  | F69: =IFERROR(VLOOKUP(A69,'Monthly Statement'!A:X,10,0),"") ->  | G69: 0 | H69: =IFERROR(VLOOKUP($A69,Pupils!$A$4:$T$3000,8,0),0) -> 0 | I69: =IFERROR(VLOOKUP($A69,'Monthly Statement'!$A$2:$V$3000,13,0),0) -> 0 | J69: 0 | K69: =IFERROR(VLOOKUP($A69,Pupils!$A$4:$T$3000,9,0),0) -> 0 | L69: =IFERROR(VLOOKUP($A69,'Monthly Statement'!$A$2:$V$3000,14,0),0) -> 0 | M69: 0 | N69: =IFERROR(VLOOKUP($A69,Pupils!$A$4:$T$3000,10,0),0) -> 0 | O69: =IFERROR(VLOOKUP($A69,'Monthly Statement'!$A$2:$V$3000,15,0),0) -> 0 | P69: 0 | Q69: =IFERROR(VLOOKUP($A69,Pupils!$A$4:$T$3000,11,0),0) -> 0 | R69: =IFERROR(VLOOKUP($A69,'Monthly Statement'!$A$2:$V$3000,16,0),0) -> 0 | S69: 0 | T69: =IFERROR(VLOOKUP($A69,Pupils!$A$4:$T$3000,12,0),0) -> 0 | U69: =IFERROR(VLOOKUP($A69,'Monthly Statement'!$A$2:$V$3000,17,0),0) -> 0 | V69: 0 | W69: =IFERROR(VLOOKUP($A69,Pupils!$A$4:$T$3000,13,0),0) -> 0 | X69: =IFERROR(VLOOKUP($A69,'Monthly Statement'!$A$2:$V$3000,18,0),0) -> 0 | Y69: 0 | Z69: =IFERROR(VLOOKUP($A69,Pupils!$A$4:$T$3000,14,0),0) -> 0 | AA69: =IFERROR(VLOOKUP($A69,'Monthly Statement'!$A$2:$V$3000,19,0),0) -> 0 | AB69: 0 | AC69: =IFERROR(VLOOKUP($A69,Pupils!$A$4:$T$3000,15,0),0) -> 0 | AD69: =IFERROR(VLOOKUP($A69,'Monthly Statement'!$A$2:$V$3000,20,0),0) -> 0 | AE69: 0 | AF69: =IFERROR(VLOOKUP($A69,Pupils!$A$4:$T$3000,16,0),0) -> 0 | AG69: =IFERROR(VLOOKUP($A69,'Monthly Statement'!$A$2:$V$3000,21,0),0) -> 0 | AH69: 0 | AI69: =IFERROR(VLOOKUP($A69,Pupils!$A$4:$T$3000,17,0),0) -> 0 | AJ69: =IFERROR(VLOOKUP($A69,'Monthly Statement'!$A$2:$V$3000,22,0),0) -> 0 | AK69: 0 | AL69: =IFERROR(VLOOKUP($A69,Pupils!$A$4:$T$3000,18,0),0) -> 0 | AM69: =IFERROR(VLOOKUP($A69,'Monthly Statement'!$A$2:$W$3000,23,0),0) -> 0 | AN69: 0 | AO69: =IFERROR(VLOOKUP($A69,Pupils!$A$4:$T$3000,19,0),0) -> 0 | AP69: =IFERROR(VLOOKUP($A69,'Monthly Statement'!$A$2:$X$3000,24,0),0) -> 0 | AQ69: 0
A70: ='Monthly Statement'!A65 -> 0 | B70: =IFERROR(VLOOKUP(A70,'Monthly Statement'!A:X,4,0),"") ->  | C70: =IFERROR(VLOOKUP(A70,'Monthly Statement'!A:X,5,0),"") ->  | D70: =IFERROR(VLOOKUP(A70,'Monthly Statement'!A:X,7,0),"") ->  | E70: =IFERROR(VLOOKUP(A70,'Monthly Statement'!A:X,9,0),"") ->  | F70: =IFERROR(VLOOKUP(A70,'Monthly Statement'!A:X,10,0),"") ->  | G70: 0 | H70: =IFERROR(VLOOKUP($A70,Pupils!$A$4:$T$3000,8,0),0) -> 0 | I70: =IFERROR(VLOOKUP($A70,'Monthly Statement'!$A$2:$V$3000,13,0),0) -> 0 | J70: 0 | K70: =IFERROR(VLOOKUP($A70,Pupils!$A$4:$T$3000,9,0),0) -> 0 | L70: =IFERROR(VLOOKUP($A70,'Monthly Statement'!$A$2:$V$3000,14,0),0) -> 0 | M70: 0 | N70: =IFERROR(VLOOKUP($A70,Pupils!$A$4:$T$3000,10,0),0) -> 0 | O70: =IFERROR(VLOOKUP($A70,'Monthly Statement'!$A$2:$V$3000,15,0),0) -> 0 | P70: 0 | Q70: =IFERROR(VLOOKUP($A70,Pupils!$A$4:$T$3000,11,0),0) -> 0 | R70: =IFERROR(VLOOKUP($A70,'Monthly Statement'!$A$2:$V$3000,16,0),0) -> 0 | S70: 0 | T70: =IFERROR(VLOOKUP($A70,Pupils!$A$4:$T$3000,12,0),0) -> 0 | U70: =IFERROR(VLOOKUP($A70,'Monthly Statement'!$A$2:$V$3000,17,0),0) -> 0 | V70: 0 | W70: =IFERROR(VLOOKUP($A70,Pupils!$A$4:$T$3000,13,0),0) -> 0 | X70: =IFERROR(VLOOKUP($A70,'Monthly Statement'!$A$2:$V$3000,18,0),0) -> 0 | Y70: 0 | Z70: =IFERROR(VLOOKUP($A70,Pupils!$A$4:$T$3000,14,0),0) -> 0 | AA70: =IFERROR(VLOOKUP($A70,'Monthly Statement'!$A$2:$V$3000,19,0),0) -> 0 | AB70: 0 | AC70: =IFERROR(VLOOKUP($A70,Pupils!$A$4:$T$3000,15,0),0) -> 0 | AD70: =IFERROR(VLOOKUP($A70,'Monthly Statement'!$A$2:$V$3000,20,0),0) -> 0 | AE70: 0 | AF70: =IFERROR(VLOOKUP($A70,Pupils!$A$4:$T$3000,16,0),0) -> 0 | AG70: =IFERROR(VLOOKUP($A70,'Monthly Statement'!$A$2:$V$3000,21,0),0) -> 0 | AH70: 0 | AI70: =IFERROR(VLOOKUP($A70,Pupils!$A$4:$T$3000,17,0),0) -> 0 | AJ70: =IFERROR(VLOOKUP($A70,'Monthly Statement'!$A$2:$V$3000,22,0),0) -> 0 | AK70: 0 | AL70: =IFERROR(VLOOKUP($A70,Pupils!$A$4:$T$3000,18,0),0) -> 0 | AM70: =IFERROR(VLOOKUP($A70,'Monthly Statement'!$A$2:$W$3000,23,0),0) -> 0 | AN70: 0 | AO70: =IFERROR(VLOOKUP($A70,Pupils!$A$4:$T$3000,19,0),0) -> 0 | AP70: =IFERROR(VLOOKUP($A70,'Monthly Statement'!$A$2:$X$3000,24,0),0) -> 0 | AQ70: 0
A71: ='Monthly Statement'!A66 -> 0 | B71: =IFERROR(VLOOKUP(A71,'Monthly Statement'!A:X,4,0),"") ->  | C71: =IFERROR(VLOOKUP(A71,'Monthly Statement'!A:X,5,0),"") ->  | D71: =IFERROR(VLOOKUP(A71,'Monthly Statement'!A:X,7,0),"") ->  | E71: =IFERROR(VLOOKUP(A71,'Monthly Statement'!A:X,9,0),"") ->  | F71: =IFERROR(VLOOKUP(A71,'Monthly Statement'!A:X,10,0),"") ->  | G71: 0 | H71: =IFERROR(VLOOKUP($A71,Pupils!$A$4:$T$3000,8,0),0) -> 0 | I71: =IFERROR(VLOOKUP($A71,'Monthly Statement'!$A$2:$V$3000,13,0),0) -> 0 | J71: 0 | K71: =IFERROR(VLOOKUP($A71,Pupils!$A$4:$T$3000,9,0),0) -> 0 | L71: =IFERROR(VLOOKUP($A71,'Monthly Statement'!$A$2:$V$3000,14,0),0) -> 0 | M71: 0 | N71: =IFERROR(VLOOKUP($A71,Pupils!$A$4:$T$3000,10,0),0) -> 0 | O71: =IFERROR(VLOOKUP($A71,'Monthly Statement'!$A$2:$V$3000,15,0),0) -> 0 | P71: 0 | Q71: =IFERROR(VLOOKUP($A71,Pupils!$A$4:$T$3000,11,0),0) -> 0 | R71: =IFERROR(VLOOKUP($A71,'Monthly Statement'!$A$2:$V$3000,16,0),0) -> 0 | S71: 0 | T71: =IFERROR(VLOOKUP($A71,Pupils!$A$4:$T$3000,12,0),0) -> 0 | U71: =IFERROR(VLOOKUP($A71,'Monthly Statement'!$A$2:$V$3000,17,0),0) -> 0 | V71: 0 | W71: =IFERROR(VLOOKUP($A71,Pupils!$A$4:$T$3000,13,0),0) -> 0 | X71: =IFERROR(VLOOKUP($A71,'Monthly Statement'!$A$2:$V$3000,18,0),0) -> 0 | Y71: 0 | Z71: =IFERROR(VLOOKUP($A71,Pupils!$A$4:$T$3000,14,0),0) -> 0 | AA71: =IFERROR(VLOOKUP($A71,'Monthly Statement'!$A$2:$V$3000,19,0),0) -> 0 | AB71: 0 | AC71: =IFERROR(VLOOKUP($A71,Pupils!$A$4:$T$3000,15,0),0) -> 0 | AD71: =IFERROR(VLOOKUP($A71,'Monthly Statement'!$A$2:$V$3000,20,0),0) -> 0 | AE71: 0 | AF71: =IFERROR(VLOOKUP($A71,Pupils!$A$4:$T$3000,16,0),0) -> 0 | AG71: =IFERROR(VLOOKUP($A71,'Monthly Statement'!$A$2:$V$3000,21,0),0) -> 0 | AH71: 0 | AI71: =IFERROR(VLOOKUP($A71,Pupils!$A$4:$T$3000,17,0),0) -> 0 | AJ71: =IFERROR(VLOOKUP($A71,'Monthly Statement'!$A$2:$V$3000,22,0),0) -> 0 | AK71: 0 | AL71: =IFERROR(VLOOKUP($A71,Pupils!$A$4:$T$3000,18,0),0) -> 0 | AM71: =IFERROR(VLOOKUP($A71,'Monthly Statement'!$A$2:$W$3000,23,0),0) -> 0 | AN71: 0 | AO71: =IFERROR(VLOOKUP($A71,Pupils!$A$4:$T$3000,19,0),0) -> 0 | AP71: =IFERROR(VLOOKUP($A71,'Monthly Statement'!$A$2:$X$3000,24,0),0) -> 0 | AQ71: 0
A72: ='Monthly Statement'!A67 -> 0 | B72: =IFERROR(VLOOKUP(A72,'Monthly Statement'!A:X,4,0),"") ->  | C72: =IFERROR(VLOOKUP(A72,'Monthly Statement'!A:X,5,0),"") ->  | D72: =IFERROR(VLOOKUP(A72,'Monthly Statement'!A:X,7,0),"") ->  | E72: =IFERROR(VLOOKUP(A72,'Monthly Statement'!A:X,9,0),"") ->  | F72: =IFERROR(VLOOKUP(A72,'Monthly Statement'!A:X,10,0),"") ->  | G72: =J72+M72+P72+S72+V72+Y72+AB72+AE72+AH72+AK72+AN72+AQ72 -> 0 | H72: =IFERROR(VLOOKUP($A72,Pupils!$A$4:$T$3000,8,0),0) -> 0 | I72: =IFERROR(VLOOKUP($A72,'Monthly Statement'!$A$2:$V$3000,13,0),0) -> 0 | J72: =IF($C$5>0,ROUND(SUM(I72-H72),2),0) -> 0 | K72: =IFERROR(VLOOKUP($A72,Pupils!$A$4:$T$3000,9,0),0) -> 0 | L72: =IFERROR(VLOOKUP($A72,'Monthly Statement'!$A$2:$V$3000,14,0),0) -> 0 | M72: =IF($C$5>1,ROUND(SUM(L72-K72),2),0) -> 0 | N72: =IFERROR(VLOOKUP($A72,Pupils!$A$4:$T$3000,10,0),0) -> 0 | O72: =IFERROR(VLOOKUP($A72,'Monthly Statement'!$A$2:$V$3000,15,0),0) -> 0 | P72: =IF($C$5>2,ROUND(SUM(O72-N72),2),0) -> 0 | Q72: =IFERROR(VLOOKUP($A72,Pupils!$A$4:$T$3000,11,0),0) -> 0 | R72: =IFERROR(VLOOKUP($A72,'Monthly Statement'!$A$2:$V$3000,16,0),0) -> 0 | S72: =IF($C$5>3,ROUND(SUM(R72-Q72),2),0) -> 0 | T72: =IFERROR(VLOOKUP($A72,Pupils!$A$4:$T$3000,12,0),0) -> 0 | U72: =IFERROR(VLOOKUP($A72,'Monthly Statement'!$A$2:$V$3000,17,0),0) -> 0 | V72: =IF($C$5>4,ROUND(SUM(U72-T72),2),0) -> 0 | W72: =IFERROR(VLOOKUP($A72,Pupils!$A$4:$T$3000,13,0),0) -> 0 | X72: =IFERROR(VLOOKUP($A72,'Monthly Statement'!$A$2:$V$3000,18,0),0) -> 0 | Y72: =IF($C$5>5,ROUND(SUM(X72-W72),2),0) -> 0 | Z72: =IFERROR(VLOOKUP($A72,Pupils!$A$4:$T$3000,14,0),0) -> 0 | AA72: =IFERROR(VLOOKUP($A72,'Monthly Statement'!$A$2:$V$3000,19,0),0) -> 0 | AB72: =IF($C$5>6,ROUND(SUM(AA72-Z72),2),0) -> 0 | AC72: =IFERROR(VLOOKUP($A72,Pupils!$A$4:$T$3000,15,0),0) -> 0 | AD72: =IFERROR(VLOOKUP($A72,'Monthly Statement'!$A$2:$V$3000,20,0),0) -> 0 | AE72: =IF($C$5>7,ROUND(SUM(AD72-AC72),2),0) -> 0 | AF72: =IFERROR(VLOOKUP($A72,Pupils!$A$4:$T$3000,16,0),0) -> 0 | AG72: =IFERROR(VLOOKUP($A72,'Monthly Statement'!$A$2:$V$3000,21,0),0) -> 0 | AH72: =IF($C$5>8,ROUND(SUM(AG72-AF72),2),0) -> 0 | AI72: =IFERROR(VLOOKUP($A72,Pupils!$A$4:$T$3000,17,0),0) -> 0 | AJ72: =IFERROR(VLOOKUP($A72,'Monthly Statement'!$A$2:$V$3000,22,0),0) -> 0 | AK72: =IF($C$5>9,ROUND(SUM(AJ72-AI72),2),0) -> 0 | AL72: =IFERROR(VLOOKUP($A72,Pupils!$A$4:$T$3000,18,0),0) -> 0 | AM72: =IFERROR(VLOOKUP($A72,'Monthly Statement'!$A$2:$W$3000,23,0),0) -> 0 | AN72: =IF($C$5>10,ROUND(SUM(AM72-AL72),2),0) -> 0 | AO72: =IFERROR(VLOOKUP($A72,Pupils!$A$4:$T$3000,19,0),0) -> 0 | AP72: =IFERROR(VLOOKUP($A72,'Monthly Statement'!$A$2:$X$3000,24,0),0) -> 0 | AQ72: =IF($C$5>11,ROUND(SUM(AP72-AO72),2),0) -> 0
A73: ='Monthly Statement'!A68 -> 0 | B73: =IFERROR(VLOOKUP(A73,'Monthly Statement'!A:X,4,0),"") ->  | C73: =IFERROR(VLOOKUP(A73,'Monthly Statement'!A:X,5,0),"") ->  | D73: =IFERROR(VLOOKUP(A73,'Monthly Statement'!A:X,7,0),"") ->  | E73: =IFERROR(VLOOKUP(A73,'Monthly Statement'!A:X,9,0),"") ->  | F73: =IFERROR(VLOOKUP(A73,'Monthly Statement'!A:X,10,0),"") ->  | G73: 0 | H73: =IFERROR(VLOOKUP($A73,Pupils!$A$4:$T$3000,8,0),0) -> 0 | I73: =IFERROR(VLOOKUP($A73,'Monthly Statement'!$A$2:$V$3000,13,0),0) -> 0 | J73: 0 | K73: =IFERROR(VLOOKUP($A73,Pupils!$A$4:$T$3000,9,0),0) -> 0 | L73: =IFERROR(VLOOKUP($A73,'Monthly Statement'!$A$2:$V$3000,14,0),0) -> 0 | M73: 0 | N73: =IFERROR(VLOOKUP($A73,Pupils!$A$4:$T$3000,10,0),0) -> 0 | O73: =IFERROR(VLOOKUP($A73,'Monthly Statement'!$A$2:$V$3000,15,0),0) -> 0 | P73: 0 | Q73: =IFERROR(VLOOKUP($A73,Pupils!$A$4:$T$3000,11,0),0) -> 0 | R73: =IFERROR(VLOOKUP($A73,'Monthly Statement'!$A$2:$V$3000,16,0),0) -> 0 | S73: 0 | T73: =IFERROR(VLOOKUP($A73,Pupils!$A$4:$T$3000,12,0),0) -> 0 | U73: =IFERROR(VLOOKUP($A73,'Monthly Statement'!$A$2:$V$3000,17,0),0) -> 0 | V73: 0 | W73: =IFERROR(VLOOKUP($A73,Pupils!$A$4:$T$3000,13,0),0) -> 0 | X73: =IFERROR(VLOOKUP($A73,'Monthly Statement'!$A$2:$V$3000,18,0),0) -> 0 | Y73: 0 | Z73: =IFERROR(VLOOKUP($A73,Pupils!$A$4:$T$3000,14,0),0) -> 0 | AA73: =IFERROR(VLOOKUP($A73,'Monthly Statement'!$A$2:$V$3000,19,0),0) -> 0 | AB73: 0 | AC73: =IFERROR(VLOOKUP($A73,Pupils!$A$4:$T$3000,15,0),0) -> 0 | AD73: =IFERROR(VLOOKUP($A73,'Monthly Statement'!$A$2:$V$3000,20,0),0) -> 0 | AE73: 0 | AF73: =IFERROR(VLOOKUP($A73,Pupils!$A$4:$T$3000,16,0),0) -> 0 | AG73: =IFERROR(VLOOKUP($A73,'Monthly Statement'!$A$2:$V$3000,21,0),0) -> 0 | AH73: 0 | AI73: =IFERROR(VLOOKUP($A73,Pupils!$A$4:$T$3000,17,0),0) -> 0 | AJ73: =IFERROR(VLOOKUP($A73,'Monthly Statement'!$A$2:$V$3000,22,0),0) -> 0 | AK73: 0 | AL73: =IFERROR(VLOOKUP($A73,Pupils!$A$4:$T$3000,18,0),0) -> 0 | AM73: =IFERROR(VLOOKUP($A73,'Monthly Statement'!$A$2:$W$3000,23,0),0) -> 0 | AN73: 0 | AO73: =IFERROR(VLOOKUP($A73,Pupils!$A$4:$T$3000,19,0),0) -> 0 | AP73: =IFERROR(VLOOKUP($A73,'Monthly Statement'!$A$2:$X$3000,24,0),0) -> 0 | AQ73: 0
A74: ='Monthly Statement'!A69 -> 0 | B74: =IFERROR(VLOOKUP(A74,'Monthly Statement'!A:X,4,0),"") ->  | C74: =IFERROR(VLOOKUP(A74,'Monthly Statement'!A:X,5,0),"") ->  | D74: =IFERROR(VLOOKUP(A74,'Monthly Statement'!A:X,7,0),"") ->  | E74: =IFERROR(VLOOKUP(A74,'Monthly Statement'!A:X,9,0),"") ->  | F74: =IFERROR(VLOOKUP(A74,'Monthly Statement'!A:X,10,0),"") ->  | G74: 0 | H74: =IFERROR(VLOOKUP($A74,Pupils!$A$4:$T$3000,8,0),0) -> 0 | I74: =IFERROR(VLOOKUP($A74,'Monthly Statement'!$A$2:$V$3000,13,0),0) -> 0 | J74: 0 | K74: =IFERROR(VLOOKUP($A74,Pupils!$A$4:$T$3000,9,0),0) -> 0 | L74: =IFERROR(VLOOKUP($A74,'Monthly Statement'!$A$2:$V$3000,14,0),0) -> 0 | M74: 0 | N74: =IFERROR(VLOOKUP($A74,Pupils!$A$4:$T$3000,10,0),0) -> 0 | O74: =IFERROR(VLOOKUP($A74,'Monthly Statement'!$A$2:$V$3000,15,0),0) -> 0 | P74: 0 | Q74: =IFERROR(VLOOKUP($A74,Pupils!$A$4:$T$3000,11,0),0) -> 0 | R74: =IFERROR(VLOOKUP($A74,'Monthly Statement'!$A$2:$V$3000,16,0),0) -> 0 | S74: 0 | T74: =IFERROR(VLOOKUP($A74,Pupils!$A$4:$T$3000,12,0),0) -> 0 | U74: =IFERROR(VLOOKUP($A74,'Monthly Statement'!$A$2:$V$3000,17,0),0) -> 0 | V74: 0 | W74: =IFERROR(VLOOKUP($A74,Pupils!$A$4:$T$3000,13,0),0) -> 0 | X74: =IFERROR(VLOOKUP($A74,'Monthly Statement'!$A$2:$V$3000,18,0),0) -> 0 | Y74: 0 | Z74: =IFERROR(VLOOKUP($A74,Pupils!$A$4:$T$3000,14,0),0) -> 0 | AA74: =IFERROR(VLOOKUP($A74,'Monthly Statement'!$A$2:$V$3000,19,0),0) -> 0 | AB74: 0 | AC74: =IFERROR(VLOOKUP($A74,Pupils!$A$4:$T$3000,15,0),0) -> 0 | AD74: =IFERROR(VLOOKUP($A74,'Monthly Statement'!$A$2:$V$3000,20,0),0) -> 0 | AE74: 0 | AF74: =IFERROR(VLOOKUP($A74,Pupils!$A$4:$T$3000,16,0),0) -> 0 | AG74: =IFERROR(VLOOKUP($A74,'Monthly Statement'!$A$2:$V$3000,21,0),0) -> 0 | AH74: 0 | AI74: =IFERROR(VLOOKUP($A74,Pupils!$A$4:$T$3000,17,0),0) -> 0 | AJ74: =IFERROR(VLOOKUP($A74,'Monthly Statement'!$A$2:$V$3000,22,0),0) -> 0 | AK74: 0 | AL74: =IFERROR(VLOOKUP($A74,Pupils!$A$4:$T$3000,18,0),0) -> 0 | AM74: =IFERROR(VLOOKUP($A74,'Monthly Statement'!$A$2:$W$3000,23,0),0) -> 0 | AN74: 0 | AO74: =IFERROR(VLOOKUP($A74,Pupils!$A$4:$T$3000,19,0),0) -> 0 | AP74: =IFERROR(VLOOKUP($A74,'Monthly Statement'!$A$2:$X$3000,24,0),0) -> 0 | AQ74: 0
A75: ='Monthly Statement'!A70 -> 0 | B75: =IFERROR(VLOOKUP(A75,'Monthly Statement'!A:X,4,0),"") ->  | C75: =IFERROR(VLOOKUP(A75,'Monthly Statement'!A:X,5,0),"") ->  | D75: =IFERROR(VLOOKUP(A75,'Monthly Statement'!A:X,7,0),"") ->  | E75: =IFERROR(VLOOKUP(A75,'Monthly Statement'!A:X,9,0),"") ->  | F75: =IFERROR(VLOOKUP(A75,'Monthly Statement'!A:X,10,0),"") ->  | G75: 0 | H75: =IFERROR(VLOOKUP($A75,Pupils!$A$4:$T$3000,8,0),0) -> 0 | I75: =IFERROR(VLOOKUP($A75,'Monthly Statement'!$A$2:$V$3000,13,0),0) -> 0 | J75: 0 | K75: =IFERROR(VLOOKUP($A75,Pupils!$A$4:$T$3000,9,0),0) -> 0 | L75: =IFERROR(VLOOKUP($A75,'Monthly Statement'!$A$2:$V$3000,14,0),0) -> 0 | M75: 0 | N75: =IFERROR(VLOOKUP($A75,Pupils!$A$4:$T$3000,10,0),0) -> 0 | O75: =IFERROR(VLOOKUP($A75,'Monthly Statement'!$A$2:$V$3000,15,0),0) -> 0 | P75: 0 | Q75: =IFERROR(VLOOKUP($A75,Pupils!$A$4:$T$3000,11,0),0) -> 0 | R75: =IFERROR(VLOOKUP($A75,'Monthly Statement'!$A$2:$V$3000,16,0),0) -> 0 | S75: 0 | T75: =IFERROR(VLOOKUP($A75,Pupils!$A$4:$T$3000,12,0),0) -> 0 | U75: =IFERROR(VLOOKUP($A75,'Monthly Statement'!$A$2:$V$3000,17,0),0) -> 0 | V75: 0 | W75: =IFERROR(VLOOKUP($A75,Pupils!$A$4:$T$3000,13,0),0) -> 0 | X75: =IFERROR(VLOOKUP($A75,'Monthly Statement'!$A$2:$V$3000,18,0),0) -> 0 | Y75: 0 | Z75: =IFERROR(VLOOKUP($A75,Pupils!$A$4:$T$3000,14,0),0) -> 0 | AA75: =IFERROR(VLOOKUP($A75,'Monthly Statement'!$A$2:$V$3000,19,0),0) -> 0 | AB75: 0 | AC75: =IFERROR(VLOOKUP($A75,Pupils!$A$4:$T$3000,15,0),0) -> 0 | AD75: =IFERROR(VLOOKUP($A75,'Monthly Statement'!$A$2:$V$3000,20,0),0) -> 0 | AE75: 0 | AF75: =IFERROR(VLOOKUP($A75,Pupils!$A$4:$T$3000,16,0),0) -> 0 | AG75: =IFERROR(VLOOKUP($A75,'Monthly Statement'!$A$2:$V$3000,21,0),0) -> 0 | AH75: 0 | AI75: =IFERROR(VLOOKUP($A75,Pupils!$A$4:$T$3000,17,0),0) -> 0 | AJ75: =IFERROR(VLOOKUP($A75,'Monthly Statement'!$A$2:$V$3000,22,0),0) -> 0 | AK75: 0 | AL75: =IFERROR(VLOOKUP($A75,Pupils!$A$4:$T$3000,18,0),0) -> 0 | AM75: =IFERROR(VLOOKUP($A75,'Monthly Statement'!$A$2:$W$3000,23,0),0) -> 0 | AN75: 0 | AO75: =IFERROR(VLOOKUP($A75,Pupils!$A$4:$T$3000,19,0),0) -> 0 | AP75: =IFERROR(VLOOKUP($A75,'Monthly Statement'!$A$2:$X$3000,24,0),0) -> 0 | AQ75: 0
A76: ='Monthly Statement'!A71 -> 0 | B76: =IFERROR(VLOOKUP(A76,'Monthly Statement'!A:X,4,0),"") ->  | C76: =IFERROR(VLOOKUP(A76,'Monthly Statement'!A:X,5,0),"") ->  | D76: =IFERROR(VLOOKUP(A76,'Monthly Statement'!A:X,7,0),"") ->  | E76: =IFERROR(VLOOKUP(A76,'Monthly Statement'!A:X,9,0),"") ->  | F76: =IFERROR(VLOOKUP(A76,'Monthly Statement'!A:X,10,0),"") ->  | G76: 0 | H76: =IFERROR(VLOOKUP($A76,Pupils!$A$4:$T$3000,8,0),0) -> 0 | I76: =IFERROR(VLOOKUP($A76,'Monthly Statement'!$A$2:$V$3000,13,0),0) -> 0 | J76: 0 | K76: =IFERROR(VLOOKUP($A76,Pupils!$A$4:$T$3000,9,0),0) -> 0 | L76: =IFERROR(VLOOKUP($A76,'Monthly Statement'!$A$2:$V$3000,14,0),0) -> 0 | M76: 0 | N76: =IFERROR(VLOOKUP($A76,Pupils!$A$4:$T$3000,10,0),0) -> 0 | O76: =IFERROR(VLOOKUP($A76,'Monthly Statement'!$A$2:$V$3000,15,0),0) -> 0 | P76: 0 | Q76: =IFERROR(VLOOKUP($A76,Pupils!$A$4:$T$3000,11,0),0) -> 0 | R76: =IFERROR(VLOOKUP($A76,'Monthly Statement'!$A$2:$V$3000,16,0),0) -> 0 | S76: 0 | T76: =IFERROR(VLOOKUP($A76,Pupils!$A$4:$T$3000,12,0),0) -> 0 | U76: =IFERROR(VLOOKUP($A76,'Monthly Statement'!$A$2:$V$3000,17,0),0) -> 0 | V76: 0 | W76: =IFERROR(VLOOKUP($A76,Pupils!$A$4:$T$3000,13,0),0) -> 0 | X76: =IFERROR(VLOOKUP($A76,'Monthly Statement'!$A$2:$V$3000,18,0),0) -> 0 | Y76: 0 | Z76: =IFERROR(VLOOKUP($A76,Pupils!$A$4:$T$3000,14,0),0) -> 0 | AA76: =IFERROR(VLOOKUP($A76,'Monthly Statement'!$A$2:$V$3000,19,0),0) -> 0 | AB76: 0 | AC76: =IFERROR(VLOOKUP($A76,Pupils!$A$4:$T$3000,15,0),0) -> 0 | AD76: =IFERROR(VLOOKUP($A76,'Monthly Statement'!$A$2:$V$3000,20,0),0) -> 0 | AE76: 0 | AF76: =IFERROR(VLOOKUP($A76,Pupils!$A$4:$T$3000,16,0),0) -> 0 | AG76: =IFERROR(VLOOKUP($A76,'Monthly Statement'!$A$2:$V$3000,21,0),0) -> 0 | AH76: 0 | AI76: =IFERROR(VLOOKUP($A76,Pupils!$A$4:$T$3000,17,0),0) -> 0 | AJ76: =IFERROR(VLOOKUP($A76,'Monthly Statement'!$A$2:$V$3000,22,0),0) -> 0 | AK76: 0 | AL76: =IFERROR(VLOOKUP($A76,Pupils!$A$4:$T$3000,18,0),0) -> 0 | AM76: =IFERROR(VLOOKUP($A76,'Monthly Statement'!$A$2:$W$3000,23,0),0) -> 0 | AN76: 0 | AO76: =IFERROR(VLOOKUP($A76,Pupils!$A$4:$T$3000,19,0),0) -> 0 | AP76: =IFERROR(VLOOKUP($A76,'Monthly Statement'!$A$2:$X$3000,24,0),0) -> 0 | AQ76: 0
A77: ='Monthly Statement'!A72 -> 0 | B77: =IFERROR(VLOOKUP(A77,'Monthly Statement'!A:X,4,0),"") ->  | C77: =IFERROR(VLOOKUP(A77,'Monthly Statement'!A:X,5,0),"") ->  | D77: =IFERROR(VLOOKUP(A77,'Monthly Statement'!A:X,7,0),"") ->  | E77: =IFERROR(VLOOKUP(A77,'Monthly Statement'!A:X,9,0),"") ->  | F77: =IFERROR(VLOOKUP(A77,'Monthly Statement'!A:X,10,0),"") ->  | G77: 0 | H77: =IFERROR(VLOOKUP($A77,Pupils!$A$4:$T$3000,8,0),0) -> 0 | I77: =IFERROR(VLOOKUP($A77,'Monthly Statement'!$A$2:$V$3000,13,0),0) -> 0 | J77: 0 | K77: =IFERROR(VLOOKUP($A77,Pupils!$A$4:$T$3000,9,0),0) -> 0 | L77: =IFERROR(VLOOKUP($A77,'Monthly Statement'!$A$2:$V$3000,14,0),0) -> 0 | M77: 0 | N77: =IFERROR(VLOOKUP($A77,Pupils!$A$4:$T$3000,10,0),0) -> 0 | O77: =IFERROR(VLOOKUP($A77,'Monthly Statement'!$A$2:$V$3000,15,0),0) -> 0 | P77: 0 | Q77: =IFERROR(VLOOKUP($A77,Pupils!$A$4:$T$3000,11,0),0) -> 0 | R77: =IFERROR(VLOOKUP($A77,'Monthly Statement'!$A$2:$V$3000,16,0),0) -> 0 | S77: 0 | T77: =IFERROR(VLOOKUP($A77,Pupils!$A$4:$T$3000,12,0),0) -> 0 | U77: =IFERROR(VLOOKUP($A77,'Monthly Statement'!$A$2:$V$3000,17,0),0) -> 0 | V77: 0 | W77: =IFERROR(VLOOKUP($A77,Pupils!$A$4:$T$3000,13,0),0) -> 0 | X77: =IFERROR(VLOOKUP($A77,'Monthly Statement'!$A$2:$V$3000,18,0),0) -> 0 | Y77: 0 | Z77: =IFERROR(VLOOKUP($A77,Pupils!$A$4:$T$3000,14,0),0) -> 0 | AA77: =IFERROR(VLOOKUP($A77,'Monthly Statement'!$A$2:$V$3000,19,0),0) -> 0 | AB77: 0 | AC77: =IFERROR(VLOOKUP($A77,Pupils!$A$4:$T$3000,15,0),0) -> 0 | AD77: =IFERROR(VLOOKUP($A77,'Monthly Statement'!$A$2:$V$3000,20,0),0) -> 0 | AE77: 0 | AF77: =IFERROR(VLOOKUP($A77,Pupils!$A$4:$T$3000,16,0),0) -> 0 | AG77: =IFERROR(VLOOKUP($A77,'Monthly Statement'!$A$2:$V$3000,21,0),0) -> 0 | AH77: 0 | AI77: =IFERROR(VLOOKUP($A77,Pupils!$A$4:$T$3000,17,0),0) -> 0 | AJ77: =IFERROR(VLOOKUP($A77,'Monthly Statement'!$A$2:$V$3000,22,0),0) -> 0 | AK77: 0 | AL77: =IFERROR(VLOOKUP($A77,Pupils!$A$4:$T$3000,18,0),0) -> 0 | AM77: =IFERROR(VLOOKUP($A77,'Monthly Statement'!$A$2:$W$3000,23,0),0) -> 0 | AN77: 0 | AO77: =IFERROR(VLOOKUP($A77,Pupils!$A$4:$T$3000,19,0),0) -> 0 | AP77: =IFERROR(VLOOKUP($A77,'Monthly Statement'!$A$2:$X$3000,24,0),0) -> 0 | AQ77: 0
A78: ='Monthly Statement'!A73 -> 0 | B78: =IFERROR(VLOOKUP(A78,'Monthly Statement'!A:X,4,0),"") ->  | C78: =IFERROR(VLOOKUP(A78,'Monthly Statement'!A:X,5,0),"") ->  | D78: =IFERROR(VLOOKUP(A78,'Monthly Statement'!A:X,7,0),"") ->  | E78: =IFERROR(VLOOKUP(A78,'Monthly Statement'!A:X,9,0),"") ->  | F78: =IFERROR(VLOOKUP(A78,'Monthly Statement'!A:X,10,0),"") ->  | G78: 0 | H78: =IFERROR(VLOOKUP($A78,Pupils!$A$4:$T$3000,8,0),0) -> 0 | I78: =IFERROR(VLOOKUP($A78,'Monthly Statement'!$A$2:$V$3000,13,0),0) -> 0 | J78: 0 | K78: =IFERROR(VLOOKUP($A78,Pupils!$A$4:$T$3000,9,0),0) -> 0 | L78: =IFERROR(VLOOKUP($A78,'Monthly Statement'!$A$2:$V$3000,14,0),0) -> 0 | M78: 0 | N78: =IFERROR(VLOOKUP($A78,Pupils!$A$4:$T$3000,10,0),0) -> 0 | O78: =IFERROR(VLOOKUP($A78,'Monthly Statement'!$A$2:$V$3000,15,0),0) -> 0 | P78: 0 | Q78: =IFERROR(VLOOKUP($A78,Pupils!$A$4:$T$3000,11,0),0) -> 0 | R78: =IFERROR(VLOOKUP($A78,'Monthly Statement'!$A$2:$V$3000,16,0),0) -> 0 | S78: 0 | T78: =IFERROR(VLOOKUP($A78,Pupils!$A$4:$T$3000,12,0),0) -> 0 | U78: =IFERROR(VLOOKUP($A78,'Monthly Statement'!$A$2:$V$3000,17,0),0) -> 0 | V78: 0 | W78: =IFERROR(VLOOKUP($A78,Pupils!$A$4:$T$3000,13,0),0) -> 0 | X78: =IFERROR(VLOOKUP($A78,'Monthly Statement'!$A$2:$V$3000,18,0),0) -> 0 | Y78: 0 | Z78: =IFERROR(VLOOKUP($A78,Pupils!$A$4:$T$3000,14,0),0) -> 0 | AA78: =IFERROR(VLOOKUP($A78,'Monthly Statement'!$A$2:$V$3000,19,0),0) -> 0 | AB78: 0 | AC78: =IFERROR(VLOOKUP($A78,Pupils!$A$4:$T$3000,15,0),0) -> 0 | AD78: =IFERROR(VLOOKUP($A78,'Monthly Statement'!$A$2:$V$3000,20,0),0) -> 0 | AE78: 0 | AF78: =IFERROR(VLOOKUP($A78,Pupils!$A$4:$T$3000,16,0),0) -> 0 | AG78: =IFERROR(VLOOKUP($A78,'Monthly Statement'!$A$2:$V$3000,21,0),0) -> 0 | AH78: 0 | AI78: =IFERROR(VLOOKUP($A78,Pupils!$A$4:$T$3000,17,0),0) -> 0 | AJ78: =IFERROR(VLOOKUP($A78,'Monthly Statement'!$A$2:$V$3000,22,0),0) -> 0 | AK78: 0 | AL78: =IFERROR(VLOOKUP($A78,Pupils!$A$4:$T$3000,18,0),0) -> 0 | AM78: =IFERROR(VLOOKUP($A78,'Monthly Statement'!$A$2:$W$3000,23,0),0) -> 0 | AN78: 0 | AO78: =IFERROR(VLOOKUP($A78,Pupils!$A$4:$T$3000,19,0),0) -> 0 | AP78: =IFERROR(VLOOKUP($A78,'Monthly Statement'!$A$2:$X$3000,24,0),0) -> 0 | AQ78: 0
A79: ='Monthly Statement'!A74 -> 0 | B79: =IFERROR(VLOOKUP(A79,'Monthly Statement'!A:X,4,0),"") ->  | C79: =IFERROR(VLOOKUP(A79,'Monthly Statement'!A:X,5,0),"") ->  | D79: =IFERROR(VLOOKUP(A79,'Monthly Statement'!A:X,7,0),"") ->  | E79: =IFERROR(VLOOKUP(A79,'Monthly Statement'!A:X,9,0),"") ->  | F79: =IFERROR(VLOOKUP(A79,'Monthly Statement'!A:X,10,0),"") ->  | G79: 0 | H79: =IFERROR(VLOOKUP($A79,Pupils!$A$4:$T$3000,8,0),0) -> 0 | I79: =IFERROR(VLOOKUP($A79,'Monthly Statement'!$A$2:$V$3000,13,0),0) -> 0 | J79: 0 | K79: =IFERROR(VLOOKUP($A79,Pupils!$A$4:$T$3000,9,0),0) -> 0 | L79: =IFERROR(VLOOKUP($A79,'Monthly Statement'!$A$2:$V$3000,14,0),0) -> 0 | M79: 0 | N79: =IFERROR(VLOOKUP($A79,Pupils!$A$4:$T$3000,10,0),0) -> 0 | O79: =IFERROR(VLOOKUP($A79,'Monthly Statement'!$A$2:$V$3000,15,0),0) -> 0 | P79: 0 | Q79: =IFERROR(VLOOKUP($A79,Pupils!$A$4:$T$3000,11,0),0) -> 0 | R79: =IFERROR(VLOOKUP($A79,'Monthly Statement'!$A$2:$V$3000,16,0),0) -> 0 | S79: 0 | T79: =IFERROR(VLOOKUP($A79,Pupils!$A$4:$T$3000,12,0),0) -> 0 | U79: =IFERROR(VLOOKUP($A79,'Monthly Statement'!$A$2:$V$3000,17,0),0) -> 0 | V79: 0 | W79: =IFERROR(VLOOKUP($A79,Pupils!$A$4:$T$3000,13,0),0) -> 0 | X79: =IFERROR(VLOOKUP($A79,'Monthly Statement'!$A$2:$V$3000,18,0),0) -> 0 | Y79: 0 | Z79: =IFERROR(VLOOKUP($A79,Pupils!$A$4:$T$3000,14,0),0) -> 0 | AA79: =IFERROR(VLOOKUP($A79,'Monthly Statement'!$A$2:$V$3000,19,0),0) -> 0 | AB79: 0 | AC79: =IFERROR(VLOOKUP($A79,Pupils!$A$4:$T$3000,15,0),0) -> 0 | AD79: =IFERROR(VLOOKUP($A79,'Monthly Statement'!$A$2:$V$3000,20,0),0) -> 0 | AE79: 0 | AF79: =IFERROR(VLOOKUP($A79,Pupils!$A$4:$T$3000,16,0),0) -> 0 | AG79: =IFERROR(VLOOKUP($A79,'Monthly Statement'!$A$2:$V$3000,21,0),0) -> 0 | AH79: 0 | AI79: =IFERROR(VLOOKUP($A79,Pupils!$A$4:$T$3000,17,0),0) -> 0 | AJ79: =IFERROR(VLOOKUP($A79,'Monthly Statement'!$A$2:$V$3000,22,0),0) -> 0 | AK79: 0 | AL79: =IFERROR(VLOOKUP($A79,Pupils!$A$4:$T$3000,18,0),0) -> 0 | AM79: =IFERROR(VLOOKUP($A79,'Monthly Statement'!$A$2:$W$3000,23,0),0) -> 0 | AN79: 0 | AO79: =IFERROR(VLOOKUP($A79,Pupils!$A$4:$T$3000,19,0),0) -> 0 | AP79: =IFERROR(VLOOKUP($A79,'Monthly Statement'!$A$2:$X$3000,24,0),0) -> 0 | AQ79: 0
A80: ='Monthly Statement'!A75 -> 0 | B80: =IFERROR(VLOOKUP(A80,'Monthly Statement'!A:X,4,0),"") ->  | C80: =IFERROR(VLOOKUP(A80,'Monthly Statement'!A:X,5,0),"") ->  | D80: =IFERROR(VLOOKUP(A80,'Monthly Statement'!A:X,7,0),"") ->  | E80: =IFERROR(VLOOKUP(A80,'Monthly Statement'!A:X,9,0),"") ->  | F80: =IFERROR(VLOOKUP(A80,'Monthly Statement'!A:X,10,0),"") ->  | G80: 0 | H80: =IFERROR(VLOOKUP($A80,Pupils!$A$4:$T$3000,8,0),0) -> 0 | I80: =IFERROR(VLOOKUP($A80,'Monthly Statement'!$A$2:$V$3000,13,0),0) -> 0 | J80: 0 | K80: =IFERROR(VLOOKUP($A80,Pupils!$A$4:$T$3000,9,0),0) -> 0 | L80: =IFERROR(VLOOKUP($A80,'Monthly Statement'!$A$2:$V$3000,14,0),0) -> 0 | M80: 0 | N80: =IFERROR(VLOOKUP($A80,Pupils!$A$4:$T$3000,10,0),0) -> 0 | O80: =IFERROR(VLOOKUP($A80,'Monthly Statement'!$A$2:$V$3000,15,0),0) -> 0 | P80: 0 | Q80: =IFERROR(VLOOKUP($A80,Pupils!$A$4:$T$3000,11,0),0) -> 0 | R80: =IFERROR(VLOOKUP($A80,'Monthly Statement'!$A$2:$V$3000,16,0),0) -> 0 | S80: 0 | T80: =IFERROR(VLOOKUP($A80,Pupils!$A$4:$T$3000,12,0),0) -> 0 | U80: =IFERROR(VLOOKUP($A80,'Monthly Statement'!$A$2:$V$3000,17,0),0) -> 0 | V80: 0 | W80: =IFERROR(VLOOKUP($A80,Pupils!$A$4:$T$3000,13,0),0) -> 0 | X80: =IFERROR(VLOOKUP($A80,'Monthly Statement'!$A$2:$V$3000,18,0),0) -> 0 | Y80: 0 | Z80: =IFERROR(VLOOKUP($A80,Pupils!$A$4:$T$3000,14,0),0) -> 0 | AA80: =IFERROR(VLOOKUP($A80,'Monthly Statement'!$A$2:$V$3000,19,0),0) -> 0 | AB80: 0 | AC80: =IFERROR(VLOOKUP($A80,Pupils!$A$4:$T$3000,15,0),0) -> 0 | AD80: =IFERROR(VLOOKUP($A80,'Monthly Statement'!$A$2:$V$3000,20,0),0) -> 0 | AE80: 0 | AF80: =IFERROR(VLOOKUP($A80,Pupils!$A$4:$T$3000,16,0),0) -> 0 | AG80: =IFERROR(VLOOKUP($A80,'Monthly Statement'!$A$2:$V$3000,21,0),0) -> 0 | AH80: 0 | AI80: =IFERROR(VLOOKUP($A80,Pupils!$A$4:$T$3000,17,0),0) -> 0 | AJ80: =IFERROR(VLOOKUP($A80,'Monthly Statement'!$A$2:$V$3000,22,0),0) -> 0 | AK80: 0 | AL80: =IFERROR(VLOOKUP($A80,Pupils!$A$4:$T$3000,18,0),0) -> 0 | AM80: =IFERROR(VLOOKUP($A80,'Monthly Statement'!$A$2:$W$3000,23,0),0) -> 0 | AN80: 0 | AO80: =IFERROR(VLOOKUP($A80,Pupils!$A$4:$T$3000,19,0),0) -> 0 | AP80: =IFERROR(VLOOKUP($A80,'Monthly Statement'!$A$2:$X$3000,24,0),0) -> 0 | AQ80: 0
A81: ='Monthly Statement'!A76 -> 0 | B81: =IFERROR(VLOOKUP(A81,'Monthly Statement'!A:X,4,0),"") ->  | C81: =IFERROR(VLOOKUP(A81,'Monthly Statement'!A:X,5,0),"") ->  | D81: =IFERROR(VLOOKUP(A81,'Monthly Statement'!A:X,7,0),"") ->  | E81: =IFERROR(VLOOKUP(A81,'Monthly Statement'!A:X,9,0),"") ->  | F81: =IFERROR(VLOOKUP(A81,'Monthly Statement'!A:X,10,0),"") ->  | G81: 0 | H81: =IFERROR(VLOOKUP($A81,Pupils!$A$4:$T$3000,8,0),0) -> 0 | I81: =IFERROR(VLOOKUP($A81,'Monthly Statement'!$A$2:$V$3000,13,0),0) -> 0 | J81: 0 | K81: =IFERROR(VLOOKUP($A81,Pupils!$A$4:$T$3000,9,0),0) -> 0 | L81: =IFERROR(VLOOKUP($A81,'Monthly Statement'!$A$2:$V$3000,14,0),0) -> 0 | M81: 0 | N81: =IFERROR(VLOOKUP($A81,Pupils!$A$4:$T$3000,10,0),0) -> 0 | O81: =IFERROR(VLOOKUP($A81,'Monthly Statement'!$A$2:$V$3000,15,0),0) -> 0 | P81: 0 | Q81: =IFERROR(VLOOKUP($A81,Pupils!$A$4:$T$3000,11,0),0) -> 0 | R81: =IFERROR(VLOOKUP($A81,'Monthly Statement'!$A$2:$V$3000,16,0),0) -> 0 | S81: 0 | T81: =IFERROR(VLOOKUP($A81,Pupils!$A$4:$T$3000,12,0),0) -> 0 | U81: =IFERROR(VLOOKUP($A81,'Monthly Statement'!$A$2:$V$3000,17,0),0) -> 0 | V81: 0 | W81: =IFERROR(VLOOKUP($A81,Pupils!$A$4:$T$3000,13,0),0) -> 0 | X81: =IFERROR(VLOOKUP($A81,'Monthly Statement'!$A$2:$V$3000,18,0),0) -> 0 | Y81: 0 | Z81: =IFERROR(VLOOKUP($A81,Pupils!$A$4:$T$3000,14,0),0) -> 0 | AA81: =IFERROR(VLOOKUP($A81,'Monthly Statement'!$A$2:$V$3000,19,0),0) -> 0 | AB81: 0 | AC81: =IFERROR(VLOOKUP($A81,Pupils!$A$4:$T$3000,15,0),0) -> 0 | AD81: =IFERROR(VLOOKUP($A81,'Monthly Statement'!$A$2:$V$3000,20,0),0) -> 0 | AE81: 0 | AF81: =IFERROR(VLOOKUP($A81,Pupils!$A$4:$T$3000,16,0),0) -> 0 | AG81: =IFERROR(VLOOKUP($A81,'Monthly Statement'!$A$2:$V$3000,21,0),0) -> 0 | AH81: 0 | AI81: =IFERROR(VLOOKUP($A81,Pupils!$A$4:$T$3000,17,0),0) -> 0 | AJ81: =IFERROR(VLOOKUP($A81,'Monthly Statement'!$A$2:$V$3000,22,0),0) -> 0 | AK81: 0 | AL81: =IFERROR(VLOOKUP($A81,Pupils!$A$4:$T$3000,18,0),0) -> 0 | AM81: =IFERROR(VLOOKUP($A81,'Monthly Statement'!$A$2:$W$3000,23,0),0) -> 0 | AN81: 0 | AO81: =IFERROR(VLOOKUP($A81,Pupils!$A$4:$T$3000,19,0),0) -> 0 | AP81: =IFERROR(VLOOKUP($A81,'Monthly Statement'!$A$2:$X$3000,24,0),0) -> 0 | AQ81: 0
